Workbook

Sheet CB_DATA_ (hidden)
A1: Crystal Ball Data
P2: =_xll.CB.RecalcCounterFN() -> 1001
A3: Workbook Variables | B3: Last Var Column | C3: 0
A4: Name:
A5: Value:
A7: Worksheet Data | B7: Last Data Column Used
B8: 4
A10: Sheet Ref
A11: =CB_DATA_!#REF! ->  | B11: =Model!#REF! ->  | C11: =Data!#REF! ->  | D11: =Hoja1!#REF! -> 
A13: Sheet Guid
A14: b0bd8ec6-e4ee-47eb-88fa-b4ea1d56f06a | B14: 213a6119-1dbd-4da0-bdd2-563851335c94 | C14: e8346cbc-39e0-42bf-9064-347678d33e41 | D14: 3a3f0e9a-6780-4b97-951d-c7de63282515
A16: Deleted sheet count
A19: Last row used
A20: 31 | B20: 31 | C20: 31 | D20: 31
A25: Data blocks
A26: CB_Block_0 | B26: CB_Block_7.0.0.0:1 | C26: CB_Block_7.0.0.0:1 | D26: CB_Block_7.0.0.0:1
A27: 㜸〱敤㕣㝦㙣㈴㔷㝤摦㌷摥㔹敦慣敤戳㜳扥㑢㜲㈱㈴㈶㈱〴攲慢㌹㕦㜲㠴〰挷挵㍦敥ㄷ戹ㅦ㑥散扢㤴㤶㜶㙦扣晢挶㥥摣捥㡣㌳㌳敢㍢㠷㐸〴〸愰ㄶ㐱㘸搴㔰㠵愶㑡㑡㔵㈴晥〰㠴㤰㔲㘸昹愷㙡㈵㔰ㄵ愴晥㐱搵㈲晡㐷㡡㉡昸〳㠴㑥㐲㐲〸㈱搱捦攷捤捣敥捣慥㜷散㙣㤲攲㈰扦㍢㍦扦㜹扦收扤敦敦昷晤扥㜱㐱ㄴち㠵摦㈲昱㌷㔳㤱㠵㥢ㄷ㌷㠲㔰㍡㔳㜳㕥愳㈱㙢愱敤戹挱搴㡣敦㥢ㅢ㘷散㈰ㅣ㐰㠷㔲搵㐶㝢愰㔷〳晢㌱㔹慥慥㑢㍦㐰㈷扤㔰㈸㤷つつ敤㥣㠴㍦㘳挹㠳挱㔱挳㐵㘴㑢㜳戳攷㤷ㅦ挱慣㡢愱攷换㠳ㄳㄷ愳戱㐷愷愷愷愶愷敥戹㜷晡㕤㔳㠷づ㑥捣㌵ㅢ㘱搳㤷㐷㕤搹っ㝤戳㜱㜰㘲愱戹摣戰㙢て挸㡤㈵敦戲㜴㡦捡攵㐳㜷㉦㥢昷扣㝢晡㥥㈳㐷慣晢敥㝢昷㌰㕥㕤㌸㌷㌷扢攰㑢㉢㜸㡤收搴戹攴㝢收㘵捤收摥愴昴㙤㜷㘵㙡㙥ㄶ晦㔳敢挷搳扤㔳㡢慢㔲㠶㝣戵昴愵㕢㤳㠱㠱㠱㐳捥㑣㄰㌴㥤㌵〲捦㜰㑥㘰慢㌵㌳〸㜵㘷㑥㌶ㅡ㠶㤳捣㕡㜶捥〳㜶つ㜳㘳搸㔹㤴㙥㘰㠷昶扡ㅤ㙥㤴㥣㈵㑣㔴ㅦ㜱㉥〴昲㈱搳㕤㤱攷㑣㐷敡捥挹愶㕤㉦㐶愹㌰㜰㘷㌲㐵㝡㘱㙡晢㔳㌳㠱㌳户㙡晡㙡㐵〱〱㤳搳昷㠴㕦换昶扤扤昷扣㕣扡㝡〳攷扣愳㜷㍦戴㕣㌴晤㔶捦挹摥㍤攳捤㘷㔷昰捥摥晤㔳㌰捡㡥㜹㐷敦㌱ち㤴搹摥㘲㈸愶㙦〵㔱㙣挶㈸㌱ㅢ㘴㔶㘶㐶〴ㅡㄵ㘶㐳捣㠶㤱㠹攲㉦挰㈵改㠱㙣搲慡愶㔶㕤搶慡㌵慤㕡搷慡㔲慢㕡㕡㜵㐵慢慥㙡㔵㕢慢㍥愲㔵㉦愳㑦㤲捡㠳㠳㕡㥣㝥昸敢戳扦晣昶㝦ㅥ㍦晥捣㔳㍦摦昳㕦搷扥昲搳攱㍤攸昴㘰扣愸㜹摦扣〲㔲㙢㔳昱攱愹㐳晣户㌵㔷㠰㈹慣㈳搶扤搶昴㜴晤挸㈱昳㙥㔳攷戶㜲㤰㥦㈱㤴㌱昴ㅤ戶ㅥ戶摤扡㜷㐵攱敥收㔹㌳㤰㙤挰㑤挶㙤戳㕥搳慤〷㙦摡扣㜱㌱㌴㐳㜹㔳㘷㕢㝢㤲慥㘱㡢㘰㉢ㄹ愸昷摤搲㌹散愲搹㘸捡㤹慢㜶搴晣收㡥㘶㘷挱昷㤶㝢户㥥昰攵愳慤搶慥ㄵ捤㐰愸慤慢戹扢㜶ㄹ㌵㐵敢㥡㤸㕢昵〲改慡攵㑤㍡ぢ㜶敤戲昴ㄷ㈵㐵愲慣慢慤敥㘷㔳捣昵㤳攷㕤㙣ㄴ摣㕡扦㉤㕤㙢ㅤ扦ㅡ㠲㤹㘵ㅤ敢㕤㤳㝥戸戱㘴㉥㌷攴昵㤹㉥搱㍢搱㜰㈰㔳㝤挲慢㌵㠳㌹捦つ㝤慦㤱㙤㤹愹慦㥢㤰㌴昵戳㕥㕤ㄶ㡢〵㈵ㄴ㈰㜰〷〶㠴㈸摣搵㥢ㄷㄴ㈲㔲㈸㈶㈳摦㤸㈵扢愹㠷戰㍢散愲㈱㐹㤳摡㕢户㤸㡣敢㔵㌲㈶㠷〳㔳㝢愲晥攰㑢摦扥挵戴㉤捣扤扥㥤㌵㙤㍣摥晤昱㜵改㠶愷㑣户摥㤰㝥慥昶ㄳ㕣㤱㌱㡡㑣扦〶㠱搰ㄳ㝡㔴㜵攲慡搸搰慦搸昵㜰戵戴㉡敤㤵搵㄰㜵搰㤰攵㌲㐱摢㤵㡣敢㔰㘵散㘵㌶㡥慣㔲㈹㤴昶戱㔳愹㠲㔴搰㈹㥤㜲㜸㌹㈳挸㌹㉥挳换挳搶〹扢ㄱ捡㐸㈸㡦㕡挰㐸愴搵ㄴ晡㐶㐸愲扥㔹㡢ㄴ挶㍥㙢づ㔴㙡摡㙥戸搱收摢㉥㉥㠹㠸㘸㔷ㄶ散㌸㔹㐰㔱㤰㤵〷㌹扣〶愲改㤰〶昹㥤㔳㐴㐴㌶挸搱散㤸㌹㑢㘴散㥦㈳㈳搰㍦㑤㠴散㝤愸户㡣㈰戱㜷ㄳ㈹〷昵攴挷㕤㘹戶㤹㉤ㅦ㐹戳晤〰㥣㜱㍤戳ㅢ㤸摤挸散〰㌲昱㘳㐸㌸㑡㌹㤴戳挹㜸ㄳ㥥㡤㥢㤹扤ㄹㄹ攴㤳㐱㤹ㄳ㡢㉡摡㔰摢戱㈳搹㙦〴㜶戲㌲㡡㈳㔱㐴换戸㘵㘷㡥㌸ち搱戱搵戹㌳㜴㙤㔱改搸户昵愶捤昴㜶㐸㤱㌹㕤搳㝢摤愲㙢ㅡ㄰散摡愷摥扡ㄵ㐳㡤〹㘶㙦㐱㔶㌱㙥㘳づ攵㐲㠳㜷㝢ㄶ㍤㑤捡㌷㠴㔹ㄴㄹ㐳㝤㉡昸㤸㤰㜹〴挸ㄱ㜲㕤挷㤷㕤ㅢ㥡收攰愴昵㠶户愱て昶收敦ㄸ改ㅤ㝡㜳㔷敦搰㕦昴ち慤攸摢挱㕥攲扦㝢敡㤸㍢搰㙣扣㡤搹㥤挸㍡㜴っ㑦摦慦搴㔳愰捣㘲㈷㠵戹扤昴扡㈸㉢㜷㘹㘳㑤㉡つ㌴㙣㉤㤹晥㡡っ攱挱㌸㍤て㕢搸昳㝤搹挰愱戶慥㉡㜸㝥戹㈱㕢ㄹ㥣昰㍤㠷昵扢㌶㜲昰㠶㔰っ挵愲㌶㔰攸戰㤱㜳㙣捤㤴捦㈹㐵㌹搴挱㜷昷ㄶㄲ愹㐱㔹昲攲戸晣昳攵慥㈴改㐳㤲扣〳㘰㌵敥㐲〶㈹㈱晥愳愷㐴㌹挸㙥㝦愰扡㘵㉤㔶㝡昸㜲㑥㈷ㅤ㍥挴㉥㌹㌲ㄴ㌹㙣㘷攱㍦〸㐶㥣㐵摢㘹〹㡢㈱㘷㐱晡㌵昸ㄶ散㠶慣㐴㙥㔹㡡㥡㕤㔹昱〶㤱ㄵ〳〳㕤攷改ㅣ晦㥡愲㤳づ㈹㤱换敤戹㡤㌹㘷昱㌶㔱搱つ㐹愱㤲攳ㅡ㙡㐹㈰㔲ㅥ晢敥㡡㤸㍥㐴捣㍢〱㌸攳㄰戳㘹㘶㠷㤱改摦㠳愴搹㉥攰ㄹづㅢ㕣愷㑢扢㕡㉤㤴㠹〶攵㈲㝣愹愷戰㍡挲搷扣㡢搹扤挸㍡捣ㅦ㍡㈰㜳〸㔱愱㍣㐵㠸㉡㡣㘱㕤戴攵ㄵ搲挰ㅥぢ㠱愵戹㘶㄰㝡づ㈳㑢㈳搶扣㜷捥ぢ攷敤㘰つ㤱愸㜱㉢㉥㍣扣㉡㕤㔰㤷て摢愷愳捥㕢㕢㤳㜵挳㕡昴㥡㄰㙤愷攷㜷挲挱ㅣ攰㠰㉤愹捥收㥡㐰敡敦㝣㡣㈹〴㈰慤晣慤昴挶㙥换晢捤㐳摦㘸ㅢ愲㑢㜶搸㤰㐳㔶挴㜴㉣㤷㉤㐰ㄱ㤱㠳晡愰戵戴敡㑢㌹㍦㘲㥤昴敤㝡挳㜶㈵㤱〱ㅢ㤳挱扡㌳㜲〵㔱㠲〵㡦㌱㐰捦ㅤ戱㤶㝣搳つ搶㑣〶ㄴ㌷昶㘶㥥㔴㔸㐴户㘶㙤㌷挰㙢ㄴㄶ㔹ㅥ戵ㄶ㔷扤㉢㠸搸㌶ㅤ昷愴戹ㄶ散〸慣㤰攸愳愴㔰㈳㌴愱㘹愲慣㤵晢挵てて攴㠵〲㜹慦挸㑣攱慡愰搳㘷㥥愳扤㘹搷挷㌱ㅡ摡改㕣搳㌰愲㐷慤捡㠱㕣㈹㑣㑥㌵敥攳㤸昷㈰晢挰挹ぢ愷摢㤱戹㔷ㄵ戳搶改攵捦㤱昱㡡㉣㕡㠱㄰晡攸昶㐴愴挲㍡㔲づ㌸㄰ㄸ攷㔳㈷昹㔵㉣搵㠷搴户愷㕤㍣㠱㐸搲戰㜵挶㕣㤶つ挴愳ㅤ㌳摣ㄳ㍤搰㡣㜵捣㐶㄰户捤㜹㡥㘳㤲戴㐸㤶㡢㌵㤳ㄴ㍣搳っ扤戳戶㙢㔸挸ㄴ晤挵㔵收㔵㔴㤹㔷㔵搵戰昵㄰㐳㠳慡捣戹扣ㄵ搳户挳㔵挷慥㤵昹挰昰摤㡥愰㐹㌰㌹㈵㙦㤲ㄲ㤹㌱搱㘱捤㕦㠰挹ㄶ㑣〱摤㔳㤰愳〴ㅤ搱て捡搵㐴〹晦㐴㥦㡥㈵〸ㄸ攵㈹㌵摥㠷搹㜴㜵㍢〲㈲㐷愵㙢挹ㅤ㡣㙢ㅦ㐱㑤㈴㠴㠸昵ㅣㄲ㠱㔷㌰㈵攴改攲㉥㔹ㄷ㕣㍢〴昶㠸戱ㄳ㜶㌸ㅦ〰攵挸㔰㔴挷摢㥢ㄴ㔶㔳㠳㈶㕢㕡攱搶敥愶㡣㥡戸愵扢㍤慤㌷摥扡㐹㜳愴㔱㔲㡡㘴慢㑥㑡戳㙣戲挶㥤愴㙡㠴㔲摣㠹戶ㄱ㜹㙥搳㌶摣㈹㐵㕥㠵㘲㔲㌴㔳㌰摥慦〸〵㠱摥㔸㐷搱㘷㥦㑦ㅥ愹㠸つ㙤㠰ち昵㔴㔴㌷ㄲ㠷〴㑦攳摡㐹㕤㔶攲㈷昰昷㥥戸㜸扥ㄹ㘶㕡捣慢攳㜱换㑣愳㜱摥㠵㤵㔰㌳晤晡づ㘱㘹散㉤搲㌰㡡㍢晢搳晥㠹戲㑡㌱㈲㕣攴挷〸㌶戸挸ㄹㅡ挹昱〵㠳ㄵ挱㘰愹愸㉡㉤戴ㄱ㠲扢㔵㕤收搳㔹㘹扡ちぢ㡢㘱㝤㕥慥㉢㔳慣㙤捤㡦慢〱慤ㄳ愳㤲愵㠶㌵戳ㅣ㐰慤㠷㤴攵㜱㐹㌱戹㘱㍤㐴搷ㄴ㉥㌲㐰昴挶愵㠵㕡㠸昰㙥㙢〲㥥づ㜶づ㠶〰㤱㈸㝣㐲ぢ㡤㔲戴㤴㐳扣搹㑤㤰㝦晡挳㉡敦愱㔹㉡晤晣㤸昸挲戳㑣㕦㍥㔶㐸ち㌱㈳㌱攴㤵㘳㐱〰戹改攸㈴㌹㘹㍣〹㥡㐷搲㑤〹慥攱愴㡥㘶挶〸捤㍥㍦挴㑤ㅥ挶戳㐶挹㍡つ摣㜵ぢ㙤㘸搴挶挶ㅥ敢戴㕢㙢㌴敢㔲愹攳㐴㕥㉢慤扣㈳昰愵慥〱㐶ㅣ㤵〳㤷ㄸ㈸愷㜱㥣攲㤶㠹愴晥㙤㙦攳㝥っ㔷㠲づ㜳㐴敡㡦㐱挸ㅣ搷㥣ち㡡㜵摤㔵愰㡤戸户㝤㠹㐱㕤愰㠳㔸敢慡愲㍣㍢㠳㍢㜹慤㐸戲攲戶㔴户㌳摥ㄹ㡦㜶㝢慡敡㤴ㅤ㔵敤〸ㅣ㘱㥦㤱搰㉢㤵㘰㤰昴挹ㅤ㥣愴㜰㉤㡥昰㕥晢㠸㝡㉣㕣㠳搰㔳ㄸ㄰㡣昳昲㈴㔴〰㔴挱㐸㌴扡戵戶攵㉤ㄸ〱愶昵㙤捣㈲ㄳっ〵搳愸㐵捦挸挸㤹㐷㜹㙢㈳攷㔶昴捡㠹㤲愶〳慡㡣㔳㡥挳㘹て愴㠱㥢㜸㤸㕥昲愰㠸挲㝤敡㜲㔸㜲㍦㜱搲挱㌱挸昳慦敦愸㕣㌰㐳㕣㠱㜱て㜴㔴捦搴敢㌴㜹攱愳摢ㄱ㔸挵昵㡤挸㈴摤搷㜱㌱㑢敤㠹㌶摥敤ㅤつ昱㠵挱挳昳㔳愷捣戰戶扡ㄸ㙥㐴㤷户晡㈵〹晤㥦攰㤳搸昴敤戴㥢㡢㉥㉦愳慥ㄳ昶㤵换慥㜷挵㔵敢搲〳摥晣愳〶㌵〶〷戹挸㑡攱户昸愷㤲㔶搰晦ㄱ㌳㙥㘷搹㥣愰敤㈴攱㍣㉡㐵搲㘰〲攵ㅣ㍡㠱晤摥扡㌹㐰㍡搹搷㐱㈷㑡㄰散ㄲ㡡扢昲㥡ㄱ㡡昸ㄶ搰㑡㘲㠹㡥攵㠰昹㤷挰晡攲㥢愸㈱挲昱ㅣ㡢ㄱ晤㉤㈸攵愰㑥〹昲昸㥡〷㉦㠵晣晥㘰㈹攱收㑤搹改晦㠱㤹挵㍦㜴愲攸ㄶ愲攸挵㉥ㄴ〹㕥〵㔱晣晢〰ち㐹搲ㄹ愲㝤㐵挱㜰敥㘹昷㄰晡扡㕦晡晤ㅤㅥ㐲捦挶挴愱㙣㌴㠴摢敥挰㜳换㐴ㄸ攸㌲ㄱㄸ挰㔷㈶挲㌹ㄴ〴㈳昹㤱㠹㄰晢㐱ㄶ㔰戱戵㠹挰昸㕥㡥㈱㤸ち户愶㕣ㅢ㍣㠱㕤敦搰㐷㜶ち㤷㙦㘵㠰㤸㍥㤴㔶㌰〷慦搴つ摤搵ぢ愶㙦㍡〷㔴晤㐹㕦㐲㤹昹㑢戸捤慤㠶㜰挴㑤㥢戶愸㐱㥢昸㉢ㄲ㑦晢慥㑦㘵㝢㜷搸㠱愹㈸㐵㉥㝣㔱ㄶ愵㔷攱㉤ㄱ㍣㌷ㄴ㍥扣敦慢㈷晦攷戱㈷㡦昱挶㕡㑣慢晡㕤㈸昷ㄳ戶愷㍤㠱挰㙥敡戲挸㝥㝥㥣㜳ㄶ㥦㈹搹㙢つ㌹㙢晡捡ちちっ㈷㈹㐶㠴㤷㈲捣㠸昸㜶㠲㠹㠹扢て㤱㠹㌹搵攱昲㔴ㅦ㌷㈹㌷攱㔴㙡攱捡慦㤷㠴づ㐵㑦㐵搶愷戵愹㝦つ慡攸ㄵ㉥㈴㙢㈵昲搴挹㈴挴㔷㍢㜵摤ㄱ敡扡攸㈰挳搰㝦㈲愵㄰㠳㈰㠵愴て㌲扣ㄴ愰愴搴㈲ち㍡㘳㝤㌹搱戵捥㌰㉦晤〱扢㐲㐰戶㉥晥昵昹㈱ぢ愰〸㉣㈶晥昸㝥㑦戴戴㐵ㄳ搵挴㜰慤戲㘹㤶㔰㔰㠷ㄷ㔶㑣㈷戵ㄹ㑢㠷愷摡㙤扢愳昸㤲ㄱ㈷ち扥㐵㡣慤㍢昴戵㔵㥣攳㙥ㄳ户㍦愰㘷㑡㑡㘱戸㝢㔹㡤〳愹㡡搳㐵㕤㉢㔱ㄵ昳搱愸搸ㅡ㌴ㄴ㌷㐱㘷戹〷㜰㉡㐵〰㤰㕦ぢ戱㝤戲㍤昵晥捥ㄶ敡㌸㜷㄰ㅢ攴て散慦㕢㜲ㄸㅢ㙦㈵挷㐰挲㙥慢㔷㌹扡㈲㝥ㄱ㐳㤴㤵㉦㡣㜶㤱敦ㄲ㠲㜱敡㠴戳〶戴㉥晤捦〸戶攲慣㠷搹㥢愱散㡣晥晦㈰㉡戶搴晦攲㍥㡥挵㡦昱㐷㜱㠱て㍡㘳㈸㕢㠶㙤〸ㄱ㜸户ㄱ挰㔱〷㘳㐳ㄵㄹ昶㡥㑡㡢昸㠰㌵㙡㔶ㄲㅣ㝥慦㘲攷昵㠸搶㔸摡戶㐳㍤〵㈰攳㐳晡摦㐳〴昵ㅣ㥦㤵㕢㥣㡤愹昴㈱㘴晢捥摡㌵摦ぢ㍣㉢㥣㔸㐴攰㜷㠲摦㥦㔹戰㜹㘶挴摦㜵ち戵摢〱㠹攱㍦挵㤸㜳攷㈱戰捦挹昰戵㡡㐷㌲扡戰扤㘸〶扦㐵ㅡ㑢㠵㤸愸ㅤ㠲敢慣〷㥢㘶〳㥦慦㥥㠷慦㌳㘴搵㡥㔰㜶㤱挷戹昳㤶〶㐱㠷㝢㕡て挰ㅦ㈴ㅢ㔳〸㤰愹㉤晣昱㥦㄰慥㥤㌰挸昶㡤昷ㄶ戰㘷㝦㍥户㡡晥户挰改昶摥㤲㈵ㄹ扥㤳㕦㈵㔷㡣㑢捣㘱㝣挳㔱ㄷ㌱㠶㠹㐲㤲昴晢㔱摡扥摢㤶敦ㄸ〷昵挷㥦㝡搳㍤㌶搹㠰㔳㙤ㅢ㜱昱㘵っㄵ捡昷㠷㠲㔱攳㔳昲㌳㡦〲ㄹ㔴㍣㠷捤㤲㉤㔰㉥㤴㈴戲摥戴晥㠵捤㘸㝤㉣ㄱ搳㠲㈷てㄲ㘹㐵㍣㡢㡥〴㘲〴㡣㔵搶〱ㄸ敡㠴㠱戲㤱㡣㐰戹㈰㜸挲㔰ぢ昹㍣〶戴ㄶ㜲ㄹ戵扤ㄷ昲㤷㥢㉤㐴搰㌶攰晥㌲昳㡦㈵扡挵㜰搹攴㌱㕢㘳昶㈸戲㔱ち㑢㑡愰㔲ㄴ㜰昸ㄶ昱㠵昴敦昱敦㤷㡦㝤敦㈵愶㥦ㅤㄳ㑡㍣愲㈹㌳戹愰㜸㔴㡢晦㑣㝡昱㈱㙡㝢㉦晥搳㥢㉤㝥㡣㤲㤳㉢㌱搶㤱㡤っ㠸㑢昸愵㌶㜳〵〵挲㤱㍦㘳㈶㌲㈶愱㌰㡢㐲㘶㌹㘳挴戰㥡㘴〳〵㑣㐲挸慢㐹ㅥ㐳㈱㤹㐴㈷㈰㜲扥晦㔱收ㄳ敦㑡搲搵㔳㡡㝣戵愵㐸㘹㤶㥤搸㐹扢㈳㐴〷戶挴て㙡㝢㑡晣㔲㥦㤷〰挴㈷ㄲっ㥤㍡㤵㝣㕣愵挵㈱㈹㔰㐸㘴戰㤲㤰〸㐸昱㘴搲昹敢㉦戶㍤慡㘸㐰〲ㄹ㐵㥤㐹㜰慡昳挷㤳捥㠷昱攱㤶敡㔳搰愲㕦㠵㤷㤳捥㈴㑣搵昹㘳㐹攷㥦ㅥ㍥搰敡㥣㄰㘴㌴戳㑥㙡挹㌱㠵搵攱㈰昵ㄱ㌷捦摣扡㐵昵㍡㘴㐵搵ㄴ慣㉡扡摣㔰ち㜶ㄸ昷㐵㝣㝣㐶㝤〶搷㥦㜰㑢〴㌲㌸晡㙢ち愷㜱㉤㙡摥っ㑤㝣㈵扤㡥㜸戴㙦愸㈷づ㉥㔹攷㝤㔴っ㕡愷〳ㅣ戹敡㍢㡡㐴㘰㉤ㄴ㈳昸㙥攱戳捦戱㉣摢昰㐸㘲㘸ㅡ慦㤹昴愷㕢㔴摣愵㈸㥥㐸㌰㕢㜸愲㑤㌳挶㐷㠱ㅣ㠸㐹攴㉣ㄸㅦ㐳ㅥ挵㘹㜸愱戹㌰㐶㐱愰㤸晢㐹㌶㝣㠲搹㈷㤱㔵〴㤹㥤㜴㔰晡ㄴ戲晤㌰㘲昱搷㉣㠲㠹扡㥣㔸昳攵㍡晥㍡挶扦㝣挳搵挴搵攴㤵㘹㘲㌲晥㡣挳晥ㅣ搹〰㝣扣㈲㈶挵㡡昱㘹搴愴㕦㑤昱愱㕥晤ㄹ㌶㝣㤶搹㔳挸㉡㍡㤷扣㙤搸㜱㘷㝤㉡戲捦㘱愸㈰㐰㌸㠷昱ㄷ㜱㠱て㍡愱昱摥摥〶㌵捦换挹㕦〰㐰㍣㌴昳愹晦㜱㝣扡扦挱㑤て攰㉦㤷攸捡晡㉦㙡敦改㙦㉥戲〲つ㜷昵攳〲搸慦㘲ㅥ敥慢ㅤ㘶攱㡣搴㌱㘵慤㈴㠸㜵㙥㔸㌸㜸〳摦㜲㔴㌵〸㐱㑡㔰つ㡤戸㠱ㅡ捣㜸㠶㕤㠹攳㡦昲改昳㝣㈲㙡ㄵ㄰晦㉡㉥昰㐱㄰慦㙡昸㙡㍣㍣㜹㈱㜱慤ㅡ㔶㍡㕥㐸晣慢〶㉢晤挲扦收㘴ち㔹㈸㘴㜵ㄳ㤱㔶㘴敤摦㈰ㅢㄹㄸ攵摡愸㔴戵慢愲㜶愹㝥改搲慦㐶㡢ㄳ㌷ㄵ晦昰晥攱㘷㕦晥户ㅦ㍤晤晤てㅤ晤挹㙦㥥㝢敥晢晦晢昴㑢扦昹昶昲搱敦㝣昱㡢晦晡㠱攷㕦晡搱㕥敢〵敤挵㕦㥤㜹攱昱改换㡦㍦㙡㕤戸敢攴攳ㅦ㝣攴挱改㠵敢㈶〷〶〶〷敦ㅣ晦敥㡤㙦ㅦ㝢攲搱㙦㡡㝦晥挱つ慥㔰摢攵ぢ搳收挶ㄸ户慤㤶昱㍣ち㔸〶㔷晣扡㉥㠳摢㔵㠰扡ㄴ〳㙡ㄶㄵ㘵㌸㍥戸〰搵㔰捤㌶っ晤ㅦ㐱㠹扡慥 | B27: 㜸〱攵㝣〹㜸㕣挵㤵㙥㔷㑢㝤搵搵㤲慣昶挲㘲㔶ㄹ㉦ㄸ〴㐲㤲㘵㑢㌶㌸戶㉣㔹戶㡣㙤搹㤶㙣搶㐴敥攵戶搵㜶㉦愶扢㘵㘴挲昷戰つ扣㈴㐳〸挴挳扣㘱㑢挸挰㠴㈵㉦㐳㈶㈱〴㤲㠱㐷㠰㜹搹〶㕥ㄲ〸ㄹ㤲㘱挲㤲〴戲ㄲㄳ〷㈶㈱ぢ昳晦攷搶㙤摤㙥戵㠴挷㠳扦捦摦昷慥搵攷㥥㍡攷搴戹㔵攷㥣慡㝢慡扡摡㍥攵昳昹摥挱挵㍢慦㙡㈲㈷つ散捥ㄷ散㜴㜳㜷㌶㤵戲㘳㠵㘴㌶㤳㙦敥捡攵㈲扢搷㈶昳㠵㉡〸㔸㐳㐹昰昳㠱愱㝣昲ち㍢㌸戴换捥攵㈱ㄴ昰昹㠲㐱敤㈷摦㝣挲㙥㐱戳㤶慥㈶㠰㤴㑦㔳㐰搷㄰〴〱敡㌴挰㘰昷㡡晥攸㜶㍣㙥愰㤰捤搹㘷㌵㙥㜱㤴㉥㙤㙤㙤㙥㙤㙥敦㘸㕤搴摣㜲㔶㘳昷㐸慡㌰㤲戳㤷㘶散㤱㐲㉥㤲㍡慢㜱挳㐸㌴㤵㡣㥤㙦敦ㅥ捣敥戰㌳㑢敤㘸换㠲㘸愴扤戳戵㝤攱挲挴攲挵㥤㜵㈱㘸㕥摦扤㘲㐳捥㑥攴摦㉢㥤戵搴搹摦扤愲㜹扤㕤㜸慦㜴搶㐱㈷㔴昶㘴搳㤱㘴收㍤㔲ㅡ愰搱ㄷ昴搸戱㈴扤㘳摢戹㘴㘶㕢㌳㥡㕤㘲㘸㤴㍡㥡㝢㘱昱㔸㈴㕦攸戶㔳愹㑤㜶㠲㡥愹㑢搳㘶㜶捥捥挴散晣㤴昴捡搱㤸㥤㌲散㝣㌰扤㈵㤲㕢ㅦ㐹摢搵㐴ㅡ搲㡥摦晡攲㜶愶㤰㉣散慥㑦㙦捥摢㥢㈲㤹㙤㌶㐵〲改㔵㈳挹㜸㜵戵慡慥昶㔵㥤㕥愹㌱攲㥢收摥㕣慣㝢㌸㤲㉢㐸㠹㕥㙢慤㈴敢㠹㄰㘹㜸㐹戳ㄸ㐵㡤㘵戵攸愶㠱㘴晡㝣㍢㤷戱㔳㝣〸㥤搷㔴㈶㈴㌶㜱㑣㕦㌴㡥摢ㅢ㍡㐶搵㥡〱挱慥昰㈹扡㥥㘰ち㠰搵〰㜰晡㠶㕣㤶㤱摢戸㈵㤲ㅡ戱ㅢ㉦㐸ㄶ㠶戳㈳㠵挶晥㥤ㅣ㍡㡤㠵㙣㘳㔷㌴㤲㠹㘷㌳㍡捣㙡㔳〱㔴昵敢ㄸ㜴㕥戵㙣㤷㝦㈸攲ㅦ㡡晡㠷㘲晥愱戸㝦挸昶て㈵晣㐳摢晣㐳挳晥愱愴㝦㘸扢㝦㘸〷㘴摣㉢㔸㔳攳㌷搷摤㝦扢㝢愰捤摡扡收ㅦ㉥晥晢搷㈲㕦戹㘷慡攲㌸㤳〱㌷ㅤ㠸㥥〱㘰ㅤ〳㜰ㄲ㙣㥢㠷㡦㑣㌳戳㠹挶扥捣㉥㍢㕦㐸㠳㤶搷挷㔲昶㌸〰愵㝥㠶戶戱㝤搷摣㜱散晤愳㤹㉢㔷摦昹攱㜳搷㍣㜴搱收ㄵ㡡㘳㔷ㄴ捦愴昰〹〰搶㠹〰㌵㙥晦㑥㈲昹㘴〰愵㕥㌱㍡晡㕦挸㑥扦改昶扦敡晤㍦㝦晤昴㑦㕥㔹㝥晡㐱挵愱㉦㍡㑥愵㜰㈳㠰㌵ぢ攰挴㜱㡤敢㡥攴㠷ㅢ㝢㔳搹换昳晡㌴㡡捥〶㔰敡〵愳昷挰〷㝢づ扥晤挴㘵慢敥晣㕦㠱愶㘴捦摤ㅦ㔷っ㕡搱㍢㤷挲昳〰慣搳〱㘶㔵昶㡤㘹㌱扢慥攷戳挲ㄹ〰㑡㝤摦㘸㍦攵㥤敡〳ㄷㅦ摣扦晡㠱捦扣昵㥤晦昸晡㕢搷㉢㑥㔳愲扤㠹挲㘷〱㔸㘷〳㑣ㅢ㑣愶㙤㝡戸㍢㥢摥㤹戲改㙦摤㑣㠹㜳〰㤴晡㡥㔱㜷敤㌷㘲戳㥦扣㘸摦晡㍢昶㥥㝦挳愷慦昹昳㘸㕤㉢搸ㅢ㑤㔰昵攴㈲㤷㘳㘴㡥つ晡戶收ㄶ晥㝢昷搹づ㤳㕤㘲㘱愲㈳搱摡ㅡ㕦搸ㄲ㔹㄰〹㌰㉣て㜵㡣㌱㉣敡ㄲㄷ㈴ㄱ㤸㤷换愰慢㑢昴㈶㔳〵㍢㈷㠵㠶〴㙥捥挴㈱攵晡挴捡㔱捣戸㌱㘷㝣捥㐸㜴摢戹〲㘶慡挲敥戱㐱㝢搲㡡㐸摥ㅥ㉢㌶ㄹ摤㉢戲㈳㤹㜸晥挴捡捣㠱㐲愴㘰㥦㔰捥ㅢ㔳㌲慥摡〰㘶㌱㍢㉦㑤㍡愵扣㥡㡣扥慥搱愴挳㍥戹㡣㡤昹㉣ㅢ㥤㤸摢㥢戳㉦㉢㜲挷戵愸ぢ㙦挱㕤㌶昹攳㝡改戰㥣㜶㌵㜶て㘷㌱挲愴㜹㑤改つ挹搸づ㍢㌷㘰昳ㅤ㙡挷愵慢挷㤰㘵㈶搵愶晥っ㍡㡡㘹㌲㝥㥡㤷㑡㐳摢㤹戸ㅤ㐷㝢㜷挲捡扢〷㈳搱㤴㝤㙣㠹㠸昳㑣㌰㘶㤶㤰㝢戳戱㤱㝣㜷㌶㔳挸㘵㔳愵㥣慥昸慥〸㈶昲昸扡㙣摣慥㤶换攷㐰攵慢慡㔲捡㌷扦搲㡣㐸摤㜹捥㤹㥥㈰攱捣㍣戹戰㈷㠸㈸㕣㜱慥㉤㙡〶攲〹㌲捡㥦㌱㘹㑢扣㐱㐸改㤶㐹愵㉢〴㈹㉢ㅤ㕦㍡昰㥡㌷挱㍦昰㐳捡收愸昴捦㤹㔸攵㔸㕣扥㑢㑢㍤㕥㘱捡㐴改㐹㡣㈶㙡㡢戱㜷㘴㠵晤晥改愶昷㉢㜷㘱敥㕢㡤昷㔲捡捥㑤㥡昰㈹戶㐸户ㄱ㉣㈰㘸㈷㔸㐸戰〸㈰昰㑤捣㜱ㄳ㕡㤴㙦㈲㌵慡㜶〷㉥㑦挶ぢ挳搶戰㥤摣㌶㕣〰つ㠹㘲㌰㐸㜳㝦ㄳ㥦搵昸晣ㄱ㤲㜹㤹㘰㍢㔱搲㡢〹㤶〰㠴㐲㍥敢㕣摣㝤搵㈱㝤ㅥ㙥搶㔲㠰㥡㔵㜶挶㐶晡ㄷ㔲〱扥㠳晦敢㤹〲搳㔲㉤㠹〹㌲挷㝣㈰㡤晣㈷㕦㔵㔵挹ち慢昱ㄲ㉡㜰〰㑥捡㤴㥣攰㝤㔴扡っ愰㙥㌹挰晡搵㜶ち挳昷扤㑡㍡〳㑣ㅤ摥㌵戹㤹〶愱㘳搳〳扢㌳戱攱㕣㌶㠳摣扣㈷㔲㠸㜴挵㤰挱攵㔵挴㑡慦捤㜶㡦ㄴ慣昴敡㈴㙥㜵改㑤昶㑥㍢㔲攸挶昴㕣愸㑦慦㐵昶㈷昳㘷㕦㝣㌴㤰㜶ㄲ户ㅥ㍢ㅦ搳捣昰晡㌰ㅤ㡤㕡挰㤰摤搴愵㌹挱搸愳〵慡慥㐹㙦㠸㈰㐳㉣㘸〸㌵㐹㉤〷㘳捤㝡愱戹戵㐳愶〴つ㘱㐱㍤㕡㙡㠵攰㘸昲㌱㘲昰收挴摢戶摡挰昲㤱戳戹㤰㑣攵㥢㡤㜹㥢㝢戲㔸〱搸戲㍡㔹㡥㥡㤶㠵挰戲㈶㜵㔶昹〰㘷㡡搸ㅦ㡢㍡㙡搱㤴㔵戹散挸㑥愶㘳敦㤵ㅥ敡昲改㉥㠰㍢摥昸捣戹㜳㍦昱戹㜷捣晤㉡っㅤ戹㌴戳㐸捤㌸㘷ㄱ㌷戹㜴て㙥愱挹㜸〱收㤲ㄵ㘷搸〹戲㔹㈶㜰㜵㘹昴㜶㌰㘷㑢㝡ㅥ㤴挲敥㥤㜶㝤晡㠲㙣㙥㐷㌴㥢摤㐱攷㑦㤱㔲㝥搸戶ぢ捣㜹㙢㑤㡡㑦㕣㈹㔵㔵㔵㤲戹㝡㤲㘳㘶换ㄶ挷㜳㜸㌰ㅢ捦收ㅢ㔳晣㈴愳戹㙣摥敡〳戵ち㉦ㄳ㙢つ㤰慥慥挶㑤㉢扢搶㌶昶㙦ㄸ散敢㕦摦戸慥扦㘷攵摡挶摥晥㑤㡤㠳慢㔷㌶㙥改㕡扢戹㑢攸晤扤㡤㝤敢搷昷㙦㜱㑡ㅢ㌶昵慦㔹搹㍤㌸搰㍣㥡捡愷搵㠳戰ㄴ㤳搴㤹㤱㈵戳ㅥ㍤昹㔳敢ㅥ㝤㘶㑢攷挶〵㤷摥愴扥㘸ㄸ攳搲㘲㘶挳㤲戸慦〳愲搷ㄳ昴ㄳ㙣㈰搸〸愰敥㐷㔵捥㘷挳㈸㕣㡤㑦㌳㤲搵慢㘴㔶ㅡ愰捣㈰挱㘶〰捣㑡攲㉤㑣㑡ㄷ愰㘸㕤〸㔰挳ㄷ㕦㉥㤲ぢ㈹挵搴㡡ㄳ㤳扥㠸攰㘲〰挵散㥡㐳搸愷㉦〱㤸㌰づ㤸愶㡦㡦㠳て㠰ㅡ搲㤳昰ㄴ昳㜶挶㠲愶敤㌵㑤慤㘹㘶㜵㥢戱挵㌸㈳摤㙡ㄸ攳㔲㝣㘶昶㘲愴㙤㔴㐲㐳攸㈴挱㜶〲㉥㐰搴㑤挶㐸㔱ㄴ捥挴攷攳㌰搲昵㘲愴㌴㘵㌲〴㔹〰㡦㤱㉥㐳搱捡〱㜸㡣挴搵㠳ㄸ㈹て㐴昳愵愰戸㝣㜰㡣㌴〲㙣㐲㈳㜱挹㌱摥㐸愳愰㠶昴㈴㍣挵㠵㐹㈵㈳敤㥤挸㐸㝢っ㘳摣ㅡ㠶㑢ㄷ㌱搲㕥㌶㘵ㅦ〱挳㐵㕦㐳㜰㉤㠰扡挲ㄸ改挳㈸㤰扦て㐶摡㉢㐶晡㄰㘵㐸搶ㅦ〱昰ㄸ改㍡搲ㄸ㐹㠸愰㐶摣挴㌸搷〳搱ㅦ〳㔰愷〱㌸挶戹〱搸㠴挶㤹挵ち攳㘶㤲晤愰㠶昴㈴㍣㌵ㅢㄲ㤵㡣戳㙤㈲攳㈴っ㘳摣㐲㡣敢㉦㌱捥㙤㙣捡敤〴㥦㈰昸㈴挱ㅤ〰㙡慢㌱捥摦愲㜰㈷㍥ㅦ挵戴搴㈷挶昹㍢捡㤰愴敦〲㜰㡤㘳㠵昴愷㔱戴敥〶ㄸ㝢昷慢㜹㈸㡡㤱敥〱愲敦〵㔰昳〱ㅣ㈳摤〷㙣㐲㈳㜱㘱㌸摥㐸㥦〵㌵愴㈷攱愹㌳㈰㔱挹㐸敢㈶㌲搲㕡挳ㄸ户㥥㙣㠲㈶㌱搲㠳㙣捡㤷〸ㅥ㈲㜸㤸攰换〰慡搷ㄸ㘹扡昲昹㤸昹扣〹㈳扤㈸㐶晡㈷捡㍣㐲昰㈸㠰㙢㈴捣㐵㡦㤱挶㘱㠶〸攲ㄲ㔵㡣昳㌸㠹㑦〰愸㘶〰挷㌸㑦〲㥢搰㌸㘷戳挲戸〸晡ㅡ愸㈱㍤〹㑦㥤〳㠹㑡挶㔹㌰㤱㜱摡っ愳㝣㜵ㅣ㘸㠳愶昲户扥散搱ㄴ搷つ㥥ㄵ〹㍢㘹㈵㌶㘷㤲㠵㝣㙤愲㙢愴㤰敤㑤ㄶ㝡昲㠵扡〴〰㔰愹㜲㠲愴搸㥥㑡㑤㠹㉤㐹晢昲㐱扣昷㑥ㅤ捦挲昶㔵昷㐸扥㤰㤵㠴收㤴昱晣㥥散晡㙣愱㈷㤹摦㤹㡡散㥥㔳㠱敤㜰㉥ㄸ戶㌳㔸昳攵戰昴㝢㌷愱散捥㥤㜶扣㐲ㅢ〷戲㈳戹㤸摤搷㜳㌴慣ㅡ㤵㤳㤹昹昰昲㐷㕥愶收㑥扣㑡昲搸㍤〴摦昸㤱㌰愸挳㕣㜴㌰ち㝤晡㍢㠴ㄸ〵㉡ㄴ搲摦〵㡡㠸て㜰㈵㌲㜹㠸㜸搶愱㑣挰㐲〹戸搵愱搵㥢㡤㡥扥㑣㍥ㄹ户㐳愶戴㉥㤹㤹㘲搰晥㤱㐲〹㈷㌲㍡摤㜰扡㔲愹晥っ㕣ㅦ㡢攴攲㐷㠳㔷搰㌱㕣㡥㑢㤴㠵㝦㠷㘷㘸ㄸ㔷慥〳敥昷〰〷慥挲㘰㝦〶㌴摡扡ㅤ昷㡡㐹㘶㜱㌸〲昱㉣攳ㅢ㈰㕦㑦㜳ㄷ挹㐱㤶搶搹㤱㡣㜸㘱愰㄰敦戱㜷㑤ㄱ〹ㅢ〱㡥㕤攳㤴㍤扤戴㈸㙢つ㥤攸㡡收戳愹㤱㠲㍤愵㠸挹㐰搷㠹㑤㜶㉡挲㉤㤹扡㈲戶㈱㔶挰愶㔵㔱ㅦ户㕢㡥ㅥて挱㈲搵挶㑢㑡晣㘴㑤ㄲ扣愵㥤攰ㄸ㍡㍣慦㜲捣㈴攴㝡㝤㤹扡昵ㄶ㕥昷㉤昳戹㐸㠸㤷㉦戰㄰敡て㝤捦㠵㈳㘹扡扢ㄵ攸捣㜰㌲㜹搵戹㌴㙥㜷搴㈷㘴摥挳㥥㈶扦㌰㘸攰搰㐹攱摢㥣㐲㌲ㄶ㐹愵㜶㑦㐹昴㘵㘲愹㤱戸扤㌶ㄲ戵㔳敥㥣㥤捤愵㡦ㄲ㝦挹㌷㘰㡥慦㈶戱㡢搹㠸敡挳搷㘰敥づ捦㘱㑦㜳㑡㍦ぢ戳㕡摦〳愸㕥摡摤搶〲户㠵昴㜳㈸搱㍦摣㘳㌹慣㕤慥㘹㘳㝢戴昲㘵っ收户㜱㈴㑥㙣㕣昹ㄷ㌷捡㘴搸㜹挴搶㘶搷㘶戱㠹ㄹ昷㤰㔶㈷ㅤ搲㔱㌳戸挴㔷㤶㘵ㅤ敥㕢收㠳㌳敥㕦昵昲ㄵ搷㉣㠳愱㜱ㅤ戸敡㤶挱㥢㙥㝣攲㤸㤷㤷㈹搸㥦ㅥ攸〴戵㝣捦挰㤳㡤㐸〲㈰㌳㈱㜳慢〶㑥㘳㑥昶㌰㤸㉣愴散摡㠴昰〵て㜲㕣搰㥡㌵㠹挱㘱慣扦㝢敡ㄳ慢㜲挹㜸㉡㤹戱㤹㠹㘰㔳㥤㕦㠰慤戵户㘱晢㜷㐳㌶㥦攴户〹昵㠹挱㕣㈴㤳摦挹㙤㤶搸敥㘹㈵㈵㜱㔶㈰戱㈲㤹挱㈸㜲㥥㐹扣㈱㌱㌰㥣扤ㅣ摦摤㡥愴㌳慢㈲㍢昳㐷㠵愳摣㌷㡣晢戲昲㉢扦㕦〵晤挱挳㝣㘱昹㘴㔷㐴戲〲㈶㡢㡡挰戸㡢㕢㠷㤳っ㕣㝡捡㙣挰㜳攰戲㕤㈵㕦㜵㔶摣〵㉣㝥昹捤挹㔸晦㉢敢㍣て戰㘶搵收扥戱慦㙤晥㕢㕦㔴〷戸搹㌹挹㍢㐱㐲愳戸㐷㝣っ㠴愷㌸攱㐲ㅡ愳㐷㡢搷㔹㉡て挱㔰㐲㘴ㄸ㡤㜸㡤㔲㥣㘸㉦㜶昱敡㌰昸㌱〷㘳昷ㄳ㤳敦ㄴ愷挰扣㉥ㅤ㐹攵つて摦㙢愵㈳っ㉦㠶收〰㈶㜰㍢㈸㐹㌶㘶ㄳ㥤〰㤰ㄸ㌴愴挸㈸㐸㤱㔱㈱攱扤捣敦㝤〴愷慥散戶㐸づ㕦㡢愶㤳戱㈰ぢ晣㙥收愸㠸㑢挴㡥散㌸挲愰扣㘴㉥㐱挶㕡扥搳敡㙣づ挲摤捤㔸㐴搰㜴㜴㍦愲搷㉦㉦㜳㜵㤸㥢敡㜸㐱换㐲㑢晦㄰摡〲㝥〰㈸〴昴昹昶㕣昲㔵〷㌹㔰㔸づ㈴愴晦つ㐴㑣㐶㡡㉢㐱㜲昴ぢ〶㘱愱㥡㕢捦㤳敥㜹搶㐰㈰戴㌶ㅢ㠹昷攲㉢扣㙣慥挶ㅣ慥〸昲㙢㑢㑣㉤戹㌰昷戹扢昱攵㄰扥㜴摡㠵愴㌸ㄷ㈴㘱〰㍢挸搵摣㈱户ㅣ㍦搲㍥扥㐰愰㌶㔸改㔹㝤慥慥㌹㘶㍦搰㝢㝡愴㙦㥣晥㕦㙤散挴っ换㑥挹㥡昶摦㠱敡ㅦ〱㈸捥挳散㑦㤹挰㡢ㄴ㜸〹㈰搰〵㔰㍥㔲㈶摣ㄳ愶昲㐰㥡㝢搵挱㌴扢㠳摣挳挲づ㌶昶扣㘱ㄲ慢㌶戸ㅣ㝣晤㌲挰搳㑦㍤戵ㄴ㌷㥦攲愶慢晢晣㌷㠱㠷㐲㌴㥥㝥㠵攰挷〰㙡ㅤ〰攷ㅢ㜱㥤㑦晦ㄴ㈸㕤挲搵挹慢㐰改愵昵戸㜳㠵愲㤴㜹戹㍣收㉢扥㘵㐲晡㌵㈳搵㡦㍢㜳㙢搶㝥户㍣㑤㙤㠰ㅣ㜳㌵愵㝦〶㘸晤ㅣ㘰㉣㔹昸〵㑡㝣敥㐶摣㤹㌰㌸搷㠱㜷捣晤㉡㜳㠷㘹攵㤵愶〶㐰攰㙢捤㈷㥢㡡搲〰昶挸㍦㌶㡤慡㐱㤴㌹㤵敡㕦〱愸捤〰㥣愱搰㔴㈷㘲㕦〷㕥ㄲ戱㍥捦摡〱晤〹改摦㐰㠲㙤扡㐰㙡㐱搱〱㠳㠰敢㔳ㄷ〱戸㔶㈶挱㠴挱ㅢ㐰昵㙦㈹㜰㜱㘵㠱㠳ㄴ昸ㅤ〵㉥〱攸㘲㠹㑥㉡㝡敦〳㈸戸㝡晦㉦摢攱㜸敦㉤ち晥〷㠰摡〶挰㙥㕡扦㘷愹挵愷晦㠰扢敢扦户㠱戲捤挳戸㡢晦㡡㙥㘳ㅢ㜱挹扡攸㡦㐰㈸㤵挴晤㤰晤户ㅤ挲㡥晦晥〴捣晡㌳挰㤸晦晥㠲ㄲ㌵敥挰㝤捣㝦㈸挸㠵㠷㍡㜷㌷㈵㔱㘹㤴ㅤ晦㥤㈸ㅣ戴慥摣㝦ㄹ㌰挴㝦搲户㉣㑡慥晦搸㜱捤㜹㘶㜲晦㔵㠹昵㝣敡㌲㠸戳昷㥡㠹㌱ㄱ昹攴㠱戸㜶收挴㘵晣ㄷ〰㔳㕢ㄴ㉣㔴ㄶ愸愱㐰㤰〲㈳㄰攸挲㐷㙢㤴㡡晥ㅢ昵㔴㥢〲挵挶㝦㈱㔶慢㘵戵扤㄰㘰㕦捤攸慢〷㑤㝡㠸搱㌷〵㌸慤戸て㈴昱㥥㔹昴扣昱㤸㡦ㄹ摥㡣晢㝦昳ㄸ攲戲挱㐸㕤つ愹㐳昶ㅥ㌷㜶ㅤ敦㠵㔱摤㥡ち㌰收扤㘹㐶攳戵㄰ㅡ昳摥㠱挷㡡㘳ㅦ㜴㕥ち㔳〴摢昷㈱攰㡥昷㘶㌹昴昱摥晢㌰ㄸ攲扤ㄹ搰慤㍥㠲㤲敢扤㜳㠱敢㘳㐱㥤摣㝢挷㤹㌶㕤〷㜱愰㍥㝤㍣ㄵ㤹㠲扡ㅥ㠸敢㍤ㄲ㡤昷㘶〲搷㈷㔰昰㘳㤵〵㑥愴挰㐹ㄴ戸〱〲㕤昸攸㤳㔱㉡㝡㙦扦愷摡㌳㘰ㄸ敦㥤〲㔴㥦ち愰㙥㠳㠰挷㝢戳㐰㜳扤㜷㥡挸晢搴敤㈰㌹㘳て〸㉥捦扣〲敦捤㌶㔲㥦〰攷㤰扤昷㐹〸㍢摥㥢㠳敡ㄲ㌹㔴愳攷ㄹ㘵㜷㠰㑦挷ㄵ攷㘸攰ㅣ敢て晤㘰㘹攳㥥慤㍦㉢づ扢扦〳搵㜱摣改㈲㠱敡攵挳敥㑥㌰挴㜱昳挱㔴㜷愱㔴攲戸㌳㐱㥤摣㜱㑤㤰㘰㤰㜰挳ㅢ㈸捥ㅡ㔱㤱㈹愸㝢㠰戸㡥〳敡㍡敥㙣〸攸㘶ち摥㕢㔹攰ㅣち㜰㘱愹敥㠳㐰ㄷ㍥扡ㄵ愵愲攳戸昵敤敡攵换换㌸慥㡤搵ㄶ戰摡㠳㈰㝡ㅣ户㄰㌴搷㜱㡢㠰戳挵㕦〲㘹攲㐹戳挳㐸㜱㤷晢㤰ㅤ昷㌰㠴ㅤ挷㜵愲扡戵ㄸ㘰㙣搸㉤㌱ㅡ扦っ愱戱㘱㈷㙦㜴㔰づ㕣㌵慦㙦晦㥣扥晤慦ㄶ扤昷㑦愰㍡摥攳㉥戶㌴扦摣㝢㡦㠰㉣摥㍢て扡搵愳㈸㤵㜸敦㝤愰㑥敥㍤㍣㑣㙣昱㤸愳摦愷㤷㔳㤱㈹愸挷㠱戸㔶㈶搱っ扢㉥攰㝡〵㠰㝡愲戲㐰㌷〵㝡㈸昰㈴〴扡昰搱㉢㔱㉡㝡㡦㝢昳慥摥扦〷挳㜸慦ㄷ愸㕥〵㄰攰づ敡愱敤搸搶㐰㌲散搹㐶攷搲㈲㍦㌵戱㜱㈴㤲挲搱捥㝥散攵ㄴ㐸㍡ㅡ㜲昷㙡㘷㐷慤晣扣㕢改㠹㑦㙣㐶㑢ㄷ㉥㜹㍦户慥捡㙤㔰㉡㙢晡㤶㤷㑤慥挳㍡㈵ㄳち㍣晣㤷㜷摥㌹戴愷挰㉦扥㥡㕤㍣㔲㌱㌴攴ぢ昲㤹㔵昸㠴㜴㥦㌸搰愷戸搳㑤ㄹ扤〶搰〲挲㡦㝡挶愵㥥㑦㥥戹〲捦〲㤹㘴捤㕢戶㔹挵㥡搳挷戲㜳慥挵㥡㔲㍣搹㕤㈹慤㉦㕤晡慥㐵㕤昵ㅣ敡㔳㠷㕥攷㘹㠳攲慡㔸愸敢㈹㠳挲㔴㝣〲㍦〴㜸搷挵ㄴ㔷㘰搸㠶挷戲㙡愰戰㍢㠵愵㉣㔱ㅥ㐳㜰㌰收敤づㅢ㡤捥收㤰㠷㔴㤷ㅦ㌸㉡搶㙤㠵慡摡ㄹ挶㜹收㘴㈵捦戱㘷㜳攴㍣㡦㑦攰昳㜰搱㠴昵搹昰㌱慦戰づ㉦㙢〳攸㌳搶㈵㘳㌸挸㤰㑤ㄴㅡ〷戰㈵搳挸㈳㝦〹㙣捥㜵〵㍥〷㡤ㄵ㥦挹㡥㔵㘷㜸ち㕡ㅣㅤ摡㤱挹㕥㥥㤱搶〴昲㍣昹挸愷改㥡ㅡ㍥㈶㠴㡦㕣戳㘱㍣昵㙦㐰㠵戹〹搰㜵㝥㤸㙢㍥慡搴〳愰搶㔷㠵晦摤㐸㔹㠳㈸捦敤㕥搱扤㘹㘸㘱愴愳㉤搲ㄹ敦㘸敢㐸㐴摡摢ㄷ户㜶㉥㡣㉦㐸㈴㕡ㄷ戵戴戴㉦㙣㡤搸㙤攱ㅦ戹㥡㌷愳㑥昸㐵户戴㠵愵㤷摣ㄲ㜹つ㉦愳挴㔶昱昱敦改ㄵ㝥〵敡ㄸ散搶㠵㜸捥㤴敥ㄵ㐳㥥㑤ㄹ敢㈲搰敡㐰㤳㈵攷㈶㥣㐰戴㉥〶㘵㉡㈸愵挷捣挳㍦㌶㕡挶づ㘳敢昷㐳㔲㜱㐱挶〹㉦愴敥㠴㕦㌸㈰㥤㠱㌵〴㈶摦㔳慦㠲〷搴愷户〲扡戶㔵慦戹搴〸㜹收㔲㕣㙢㜱㜰改㈸愸敡ㄷ挰愴㘶㐹攰换〲㠹㌲㜱捡〰攱ㅣ慡戸㐰㘲昰慢摢搰〰㠶ㅣ㜰㝣㑦〹晥㠴㜱愴㙥㠱ㄸ㘳愹㌴ㄶ戸㤰㤲愷づ〳扡敤つ㜳㌵㈵戱㤰〴ㄵ戱昰㠶㤱戲戶愳散挴㐲㉣ㄱ㑤戴㐶㍡㈳ㅤ戱搶捥昶昶㐸㜴㜱㉣搶ㄶ㕤㙣㐷㍢摡㍡㕢摡愲㙤昱昰㙦㕤捤㍢㔰㈷㝣搰㉤愵㔸晡㥤㕢㈲慦攱㑤㤴㡥㑣㉣扣〵捤ㄲぢㄹ㍣愷㍣ㄶ戲愰㤵挶挲㑥㔰㉡挴〲㤷㜶搴愲愷ㄳ捣㈰挸㐳㔲晤〱㤸ㄳぢㅦ㠵㕤挷㘲㘱〴㑣挶挲摢攰〳昵改㕤㠰慥㙤搵ㅦ㕤㙡㐹㉣㜰摤㈶戱㌰㑡捤㝦㜱㘵㑡㘲㠱捡㐴摦ㄵ〶愱㑥搹搴㤱㔸戸ㄶ㡤㜰㘳㐱㌳ㄶ㌸㝤愸慢㉢扡㥤敢㉦㔱昵㍦〰摤愶㠵㌱昹㌹㙥扦ち〸摣捥〵㤷ㅦ㙡慣㍤㐰ㅣ户户㉤㙡㡦㉤㙡㡦㉣㑡㉣㙡㕦摣摥摡㤱㠸㉥㠸㜵㉥㙣敢㠸挵敤挸攲㐵ぢ㕢摡慣扤㐵搱㔸㡢摤㥥戰ㄷ㐶㕢愲㠹挵昸挵㑣㙢㌴ㅥ㡢㘱敥戰ㄷ㜶㐴㍡散㐴㐷㝢搸㌲敡昵㍥㈰晡㙡㠰㌰㔷㜰㝣愲扥㠶愴㙢㐹攲㝡㑥㐸㐵愹〶㉥敡㡥㑣挰㜰㈹㈸〱昳㘱㈰攵〱昳ㄱ搰㑡〳收慦㐰愹㄰㌰戵㐶㡢㥥挹慥㥣㐰㜰㍤㐸慡ㅥ挰〹㤸㕣㐹挰摣〰㍡〳㠶㙢㑣晣昹昴㡤㠰慥㔷ㄴ搷㤴㐲㉤〹㤸㌰㐸ㄲ㌰晢挹㥥收捡㤴〴㡣慣敦愸敦㈶挳づ愲愰戸扥㤳㠰搹㔱㌱㘰㤲ㄵ〳㠶㑢㍥晣昹昴捤㠰㙥搳挲挷愳㈰昳挴㉤㐰㄰㌰㕣攳攱捦㘷摤ち攸〴㑣㌴㠲㠹㘱㔱攷挲㐵㤱㐵ㅤ敤㤱㡥ㄶ㘰ㅤ㉤㜶㐷㈴ㄶ㡦㉣挲㥦ㅤ㍥挱搴搱户〱〹㜳ㄱ㠸㍦ㅣ敤㘱㐹㔶㠳㉣㤱搷挰搵攰㤱㜱㍢搷㤰㌲挲㌹㑦㘸㑥っ㥡㜳㐱昸㔴㤷㝥㉡ㅢ搱㐸㜰ㄷ㐸㙡ㄶ㠰攳挸㑢㑢ㅣ昹㘹搰改挸搳㈸㐴改扢〱㕤㙢愹搹㉥昵ㅥ昲捣愵收愰㈰㡥扣㤷散㜹ㄵ㘵收扢搴捦ㄸ㠴㡤㔵㘷愲㈰㡥摣散㜱愴昵㔹㔰㈷㝥ぢっ㔴昴㙥㤳慢晦㝥㈰㙥㝢挳㕣ㅣ㡡㜷㍦〷〴摥㍤ㅢ㌷㕥攱㘶ㄷ㌹挷㐵㕡っ搲挰㠵摦㤱昱ㄱ㤷㡢㌲㌴晦ㄱ㐸昹搰晣㍣㘸愵㐳昳ぢ愰㔴ㄸ㥡㕣㙦㡡愷攷愲㈳昲㐳ㅥ晤㈰㐸㙡㈱㠰攳搱㌵㈵ㅥ㝤〸㜴㝡㤴敢㔰晣攱っㄵ愰㙢㈱挵㜵愷㔰㑢㠶㘶㈷㐸攲搱慦㤰扤挴㤵㈹ㄹ㥡戲〶愴扥㐷挰收昴ㄶ挶㐷㜱つ㈸ㅥ敤昶㜸㜴㙣㉥敦慡攸㍣㉥ぢ昱攷搳㕦〵㜴㥢ㄶ㕥㡥㠲㌸敦㜱㈰㜰㕥ㄷ㙥昸昳㔹㑦〰㍡㐳㌳摥ㄶ㙤㙤㑦㈴ㄶ㜴㉣㘸㕤搰ㅥ㡦户㐷ㄷ㐷㍢㍢ㄷ㐵敤戶昶㘸㉣搶搲ㅡて慦㌰㜵昴㤳㐰挲摤㙥改㥦㔹敡㜱㑢攴㌵慣〴㌸㌲㙥敦㠵㘶㜱晢搷㠰㤴扢晤敢愰㤵扡晤ㅢ愰㔴㜰㍢ㄷ慡攲昶㈶ㅡ㡡挷搷昴扦㠰愴戸ㅥ挲㥦㑦㍦㘵〴㈸ㄴ㕥㠳〲愷㑡晤㌴㄰晤晦〸扥㑤昰ㅤ㠲敦ㄲ㍣〳㔰敦て㥦㡦ㅢ㉦戵ㄶ〸㜱晤慣㐱〲㈸㠴㕤㡦㠷搷㠳㉡捥昸ㅥ㄰㌸㘳ㄳ㙥昲㠰攷㠰攸敦ㄳ晣㉢挱昳〴㍦㈰昸㈱㐰扤㍦挰㕣晣摣㠹㑦㐳㜹㔲摢㈶慣挳㑡㝥搹戳ㄲ扦搴搹捤挸慡挲㤷㉣〱㐹㜸慢晤㑢づ㑦ㄷ㔷戹㜴㉦㍦㠱戹㠸挲晦㠶ㅥ昴挸戳〸愲㐶㤹㕣㕦〰㍤戰ㄹ愰攲㜹㠴挹㝥㥡挹㤰㍦㈶摤㤷㐷㍡㡦㥦㐴っ㘶扢㡡㍦て㥤敡愶昹㑤敥捦㌱收㡥㔱摣搳㍦㙥戵晥㕣戱ㅥ㝥㕤㠰㤵㌳ㄸ㑤晣昱挶㌱㘳㈵捦敦ち㑥ㅣ愳攲愸ㄷづ愰搸㜱㔷㘳ㅥ㥢戱搵晥㉡㜵昶挴挶挶㔱㜵戳㙥㜶搵攴㘹㠹ㄳ㉢㝣扢戵㈲㔹㤰㘵戲〶㕦㘹㉥挶慣ㅦㄱ㉣㥤搳㍤愷慤㈵㌰ぢ摥昸慦㍤〸㤵换ㅣ〰〲昶〶㕥〲㐳㙤〱愰㑡㤲ㄴ㔷㍣㔳㠱㤴ㅦ晣㍥〹〲ㄵ㑦挷㥦㘸ㄸ攳㑥挷㜳㜹㠴㍦㥦㝥ㄵ㤰㘳㑣挶搹㔶ㄴ㘴ㄸ扣〶㐴晦㡣攰攷〴扦㈰昸㈵挱慦〰㌰捥摣改㔵㐵㔱挶㥦㑦晦摡㈰戲愵ㄴ㐷㐱㠶搷敢㐰㌰扣㠶㜱ㄳ扤扦〱愲て㄰扣㐱昰㕢㠲㠳〴扦〳愸昷慢㈴㙥ㅣ㘲慡ㄶつ㘷㕣㑢㈸扥㐵捡づ〰㠶愳搲摢〱慤摦ㄳ㌸㈶㔷㌵㄰㜴㙤ㄴ搲㙦㔳㈸〵攰㤲㔴ㅥ㠵㑡㘶昳ㅢ敢㡣㍢㉦慦っ㘳摣㜹昹ㄱ敡㘶㜷昹㡡㈸㥡㙤ㄷ㐸搲㍤〵慡昶ㄳ㔴ㄱ㔴ㄳ㜰ぢ㔱㕢〰攸摥愸㕢扤〶㘵敡㤱㔹改ち㘰㘲慤㈰愵慡挲㕣〲㠸㍡晥扡㕥㠷〸㙡〹敡〸敡〹昸㕤〹搴㜱㔵㈰搶㝡攳捦ㅥ㙢昱㘷昸㙡ㅦ㔸㡥戵昶〰戳愶㠱〶㙢慤㘳㠰晥ㅡ挲㘷㔶ㅡ〹收㔷㈴ㄸち敥ㄸ㔸㤹ㄹ㐹愳扡㈷㍡敢㔰㈲㈵愴㘷昰㌱㔷ㄷㅦ戳㤷㡦㌹搶㜹っ挷㠱晡㌹ㅥ攳㝡㈰愴㡦愷昴㌵㤰攱搳愹㐰㜱㉤攱昲搵昵㈸㔴昲搰㑦㈰㕤㌱戰㝦㙣ㄸ攳づ敢摦〰㑤搴慦㑦挱ㄳ㡢ㅥ扡ㄱ㈴㌱改愹愰敡㐶㠲㔹〴愷ㄱ捣㈶㤸〳〰㤳敥㜷慢捦㐵㤹㝡㈴㥥㤹慥㡢㠷收㔱慡㉡㝣戳慢敥㜴㔶㥤㑦㜰〶挱㤹〴㑤〴㘷〱㐰ㅤ搳㜰昱搰戳㘸㙦㌱㥥㥢挱㔴捣愰ㅤて摤ち捣㙡〱捤㡤攷㙦㐳搸㌵㑤㐸户㔱晡㜶挸戸㈴㜵ㄷち㤵慣昵慤㠹慣昵㑤挳ㄸ㜷㝡㥦昹㌱晥㝣扡ㄳて㈹㕡敢㙥㤰挴㕡㡢㐱搵㑢〸捥㈵㌸㡦㘰㈹挱晢〰㌰つ戸㜹戳扡搷搵戳っっ㕥扣㠵㍦〳慡㤸㙤㌹挵慢挲昷扢㝡扢㔰搶㉢〸扡〹㝡〸㔶ㄲ昴〲挰㙣㥦㠳愰㤸敤换㕥戳慤〶㔳㍤〸㔶愵扥㝦㜱愲扥㍦㘰ㄸ攳づ攵㌳㤳挴ㅦ㝥ㅢ〴扤挵扥㍦っ㤲昴扤㥦敤搹㐰戰㤱㘰ㄳ挱〰挱㈰〰摡昸ㄵ户晡㘶㤴愹㐷挶㌲戳㐷改昲ㄶ㡡㕥㈰愲攱慦扡㍡㉦㈴昱㈲㠲㡢〹㉥㈱戸㤴攰晤〰搰挹搴㔰晡㝤愷户摦㐳㘰㉡㘶㜵㑥戸㌰㕦戴㈲愰戹攱昲㐹〸扢戱ㄱ搲㌱㑡㌳㈳㜴㐹㡡㠹㔵㈵㤳摤㌲㤱挹㙥㌶㡣昲愳晡㘱㈶㘵搲扢㈴ㅥ愲户ㄳ散〰〸愹愷挱㤰㠶摦㘴ㅡ㑥㝢㠶ㄴ㌳㌵㈱晦戵㈱戳ㄹ㐱扣㠹㤹扤〹㘳扦㘱ㅣ㉢昲捣攷㠴晣㜱㐳㍥㑥挸捣昰㠴㝣愳㈱捦愷ㅡ㥣挰㘴搶㈷㡣ㅢっ攳っ㌰㜴づ㑤ち㍦ぢ㤶㌴㌵㡦㔲㝤㔵㠰㠹㕥挵㔹㑦づ昳㌵㍢㈷㥥挶㝥㙥摥〰㐵㠱〴㜷愵㙢ㄳ捥慦扤㈵攵㤲搳慤戲愵㕢㠷挳㑦㌹晣攰㝢㉤捥昳攱挸ㄳ晥搷〹戳㘱㠹㜳㝥㍣㠰攲ㅥ慤搱㔲㘲㘵㉢搱㥦挳㔹㥢㥡㐴㕦ㅥ愷〶攳㐱晣㥡戲㠰ㅦ攰㘷㡥㠶㙦㔷戰挹捥㤷ㄵ㉥攷㑣㔴挵晤敤㔶戰换㡦攲㜸㡥㐶㡥搹挳㍤㈳敢攷㤹愹挳㍢捤㙣ㄵ搰ㅣ㈶㝡昸扦㑡昲㡤㜱扢㜱㘷捥摥㠵晦搹攴挹〷㌲㝥㜵ㅤ扣㉤㍢愷扦㙣㥢㈹㠹ㄱ攷ㅢ扤ぢ㌵攴挷㜰㝣ぢ㜳㐸㠶昴㈸㐹攷愲攰㥣ㅦ㔰捦戹昱昲㍦㑤扣㌸㘱捡㝣㕦挲攸㕡㐳㘶㤸㠶ㄴ㔷〰㐲扥挶㤰㥤㈰㝤摥㈵㕦㙤挸㑥㤰㜲㤵㈰搲晢っ㤹㐱ㅡ㔲㍦㜴挹㝢つ㤹㈱ㅡち㌰扢㉥㌷㌲扦昹攰〴攸㉢晢晤㜴㙤㉤㉤敦㍢㔸摢攵㝢敤搳㕤搵㉦愱敡㘴㜹㈹晢㔴㤳ㅥ㡡昰扦昰〹愶㠷㔲㜶㘶㕢㘱戸昸摦昶攰㝤㠶摦捣敡㍤㜸づㅦ挵㑦㤸㌹愰㡣㤵扤㈸敡㝤〴㔷〳㠴ㄴ搳㐰改搳㤵愶昱敥昸㘵㙡㈸㡣て㝡㍡换ㄱ挹㜴㔱ㄸ㔷㜸扡慢㍦〴㙤㡡㐹愴戰㐶つ换㌱㍥搳㑡㈱㕦㙥挸㡥㤵㤹㘸ち㜹㤷㈱㡢㤵挳㑣㌳愵愹搷㐱㘵㝤㤵㘲㠲挹愱慤ㄹ㉦㝥㤵㠷戰㐴〶挲㘲㉣㌲㍥〶㕥㔹㘴摣㐸㤲㈷㌲㤸㤸捡攳㌲㈵㡤㘳慡㉡攴戴㈱㍢㤱挱攴㔵挸㈹㐳㜶摡捣㜴㔶挸㍢っ搹㠹㡣㠳㉥㜹扢㈱㍢㤱挱㤴㔷愴㤳㠶㉣㤱愱㤸散㌲㍡㕣㝦慢户㔱愰捦昵捤散愲敢㌳㘲㘲㠸㕢搸㤳㕢〹㙥〳挰㙦挱〰㐵㙤摣愸㜵㝤挶扣㔴ㄸ㌱㑦㌳攸戳㉡㤷ㄱ昵㌴㐴摦〱㉡㔶㑤愶捥㔶挳㜲㝣挶㥣㔶㔴つㄹ戲搳㝦㘶戹㐲晥㠰㈱㍢㍥㘳戲㉢㑤扤ぢ〸㝣挶㌴搷攳戳㑢㈰㍣摥㘷㜷㐳愸捣㘷昷㤲攴昱ㄹ搳㘳㜹摣㤶㤲挶㌱㘱ㄶ昲㘶㐳㜶㝣挶ㄴ㕡挸㠳㠶散戴㤹㐹戵㤰〷っ搹昱ㄹ搳㙣㈱㙦㌲㘴挷㘷㑣扣㠵扣搱㤰ㅤ㥦㌱攵㉥昱ㄹ㤳㘳昱搹㍦〲挱㥦㝣搴昱㉥昵昳ㅥ㙡㤸㠹慡㤸攷ぢ㐰昴〳〴㕦〴〸㈹收慡昲戰昳捤挳㕣㑦㌶扡㡣㌵㥥挶搱㤳戳㕣㐶㥦愷㜹晡㘱㔰ㄵ㌳㕤㔱戶捡戰ㅣ㑦捥㜶挹扤㠶散㔸㠵搹戰㐸慦㌴㘴挷㤳㑣㡡愵愹㡦〰㠱㈷攷攱收昱攴ち〸㡦昷攴㘳㄰㉡昳攴攳㈴㜹㍣挹㌴㕡ㅥ户戴愴㜱㑣慣㠵㝣㥥㈱㍢㥥㘴慡㉤攴㜳つ搹㘹㌳㤳㙦㈱㉦㌱㘴挷㤳㑣挷㠵扣搸㤰ㅤ㑦㌲㐱ㄷ㜲愷㈱㍢㥥㘴㙡㕥攲㐹㘶摦攲挹㙦〲挱㥦㝣挲㥤挰挴㄰摦〲愲晦㠵攰㈹㠰㤰㘲挶㉣㙡ㄷㄸ戵㡥㤹㤹㐳ぢ戹捤㤰㕤㔷㌲慦ㄶ㐶慢㘱㌸㝤㘱愶㉤攴ㄶ㐳㜶晡挲摣㕢挸攷ㄸ㌲晢㐲挷㌳ㅦㄷ㐶戳㘱戰㌷晡㔹㔰挳换〰搸搴晡㙡戵ㅣ愸挷㕤㑤㤰ㅤ晦ㅡ晤㍥㠴捡摣昵㍣㐹ㅥ㜷㜵愱㉣㑦㥢㘷㥥收㜴㤲〹扤㤰攷ㅡ戲攳慥㙥㤷㍣挷㤰㥤㉥㌲改ㄷ改搹㠶散㜴㤱换〰㈱㥦㘶挸㡥扢昸㕥ㄴ昲㉣㐳㜶摣挵㈵㠱搷㕤㘱收昲攲㤸㤷㠰攸㤷〹㕥〱〸㈹愶昳愲攰㘴㡦㕥㥡㡥㈹扥㌰㑥昲㘸搶㍦〵㔵㌱昱ㄷ搶〹㠶攵昴㤳㑢〱㈱捦㌴㘴搷㤹㕣ㅥ〸攳㜸挳㜰㝡㍡攸㤲㡦㌳㘴㘷㌰㜱摤㈰㑤晤〵㄰っ㈶慥ㄸ攸ㅤ敢㤷㐰㘶㜴㙤挷㡦㔲㈳戹㈵㡤慢散㙣晡挹晢ち戹㘴㉣㠲晦㙢〰ㅡ挴㘵扥㍤㥥昷摢慦㔱挱㝡ㅤ㠰晦攳㠲攲扢〳ㄷ捥攴㠲攲㜵ㅢ㔷㈳ㅥ昷㑦㜱㜵㤵扣㉢て戲㔲ㅦ敡㍢㠷搳㤹㐵扤㔹愶攷㐲㤴愵㥢摡昴挷㌱ぢ搷㌵㐲づㅡ戲攳㝥慥㜴㠴㕣㘳挸㡥㔱戸昶ㄱ戲㘵挸㡥晢戹ㅡㄲ㜲挰㤰ㅤ昷㜳㝤㈴攴㙡㐳㜶摣㍦〴戲搷晤㉡〶㠲㡣搶㍦〳挱㥦㝣ㄴ㔷㉢㔲摢㙦㙡㥦〷㑥搰㙦愹敤㉥㐳ㄹ挶㔲㘱㈸戵挳㘵昸っ㘳ㄹㄸ㕡愱愳つ㕣㕤㑣㐱愹收扢㝥㠵晦挸㈶㕦㔵㔷昵㠲㝡慥敡㠰㡦昳摣㘷㈱ㄲ挶㙦っ〲㜹ㄴ捡㑦〶㜹㜲㘵捦ㄹ㥤㈰㌵愷昱㕢愱㠲愴捤㘹敥戹挸晥㡢㤵收㉦㝢㌲㔳㡤㙣㔳㔱㘶㕡㤱㔲㤴㥤㔲㈴㐹㥤㤹捥改㝣晥㑦㌶ㄴ㘹ㅡ㔳㝡㑣㌹㐷攴ㄱ㠶㡣㐴摦㘹㤵戶㠵㥣〵㔲戱㠱㄰ぢ慡㐳ㄶっ㍡晦㥦㤰ㅦ㤶㘳㤴㈸㕤挴愴ㄸ㘰搲㝥挸㙢ち㐶昶㘱ㅥ㘵挲㑦ㄹ昰㕦ㄳ攱㘱搴愱慢㔱〲㉥㥦㠶㍤㠶ㅡ㤴ㄶ敤㐵㐹㘲攵㡦㝦㜲㜶㙣摣㔸搹攷㌲摥㌶っ㌷㔶慥㜶ㄹ㝦㌰っ㠹ㄵ㙡㙢㘰摥㕢㡣㤵㘶敢㉡㠹㤵㘰攰㠰㡦㙦㡣慦㈱㔶晣㠸ㄵ㜵ㅤち㡣ㄷ捤晦㌷ㄳ㜷㔸愹㠸㐹㔱㝤っ㌷㔹摥昰攷ㄳ㡡戹慢㜴愳搶挸㔳愸攱㘶㐳㜵扡挱慣㔰扡昱扢戲㙥㌰㔳ㄴ挶挱戲㙥㌰㝢ㄴ挶㙦扤摤㘸㘰㌷敥〰慢搸㡤㡦㕢搷㑢㌷㜶愰ㅢ㍦〰攳扢攸㐶㠰摤戸ぢ〵改㐶戸搸㡤㈲〶㤶㑦㈹收㜴搲㡤愹散〶搳㌹改挶㌴㙦㌷㤸㌰㤱㉡摤㘸㘰愲㔴㉣㈹㈶㐸搲挴㕦㤷㜵敡〱㤷昱慢戲㑥㌱㤱㤲ㅡ扦昴㜶敡㔸㜶敡㘱戰㡡㥤摡㘷敤㤵㑥㕤㡡㑥㍤つ挶搷搱愹㉡㜶㡡㠹㡥㜴敡戸㘲愷㡡ㄸ㔸攸ㄴ㠷扤㜴敡㜸㜶㡡㤹㡤㜴㙡愶户㔳捣ㅤ挶扡挱㥣㐱ㅡ昵㙡㔹㌷ㄸㄵ挲昸㘹㔹㌷㤸㕢〸攳㈷摥㙥㥣捣㙥㍣ぢㄶ㌷㘵㘵㍡晡㘸愰㑦扡㤱愸㍥攰晢ㅢ㌰晥〶愳㑤㝤ㅦ㠸㌴昰ㄴ㌶昰㜹㤴愴㠱愷戲挴ㅥ昰昳ㄲ愸昲㠰㤷捡㥡挴㌷愸㌰㕥㉣㙢ㄲ摦慡挲昸㤱户㐹戳搹㈴扥㍢㡢㤶㝤㌳昰愲㌴改摢㘸㔲ㄳ戸㙦挰戲ㅤ戴㉣摦㝡㘲搹㌹愰〲㐷搴ㄷ㌱㈹㉡扥搶愴攱㜳搹㔴扥捤愴攱昳㔸㜲ㅢ㝥搰㤵㌹㥤㔴扥愹㐴㘶扥搱㠹戲慦㠱敦〲㔲㥤㤰挲昳㝤ㄷ愰攴ㅦ㔵戱慤昱慤㕢㝦摦㔰摤㜸㐲昵㠵换敢㙥㜹改㕢慦散晦摥愵㑢㕦晢搳敤户㝦敦㈷晢㥦晡搳㈳搱愵㕦扦昳捥㝦㕥㜳挷㔳慦㑣㑢㝣捡晦愵摦慦晤搴㤵慤㍢慥扣㉣戱昹捣㔵㔷㕥戴㝤㘳敢㠶愹㑤㔵㔵㌵㌵愷㑦晦挶昱昳挳㝢㉥㝢㔸㍤晥㠳攳㌲〱捥㜰㠷㌰㍦戲㐵㠷㌹㤹㥤挱扥捡㡣〶ㅤ晡㑣㤶㠰攰收ぢ㜳㘶㤳愴㠲戶搶㘷〱搴晢ㅢ搸昱㈳搹㘵㈵搳ㄵㅦ㜸㌶㠰㤲㐹㡡㉤㙢㘶〹〸ㅢㄴ收㘴㈵㉤㍢㠷㠲㉤〰㘸ㄹ愷㤷㈳摡㌲㤹㠱昸挰㔶〰㈵昳づ㕢搶挶ㄲ㄰摣㝣㘱捥㍦搲戲〵㐰㜴㍢〰㕡挶㌹攲㠸戶㑣愶ㄱ㍥㜰㈱㠰㤲挹㠳㉤㕢挴ㄲ㄰戱ㄹ㈷ㄱ㘹㔹〷〵㍢〱搰㌲づ晢㈳摡㌲㤹㈷搸ㄶ㜷㝢ㅦ㌸㡥摥戸㙤㔹挲㘶㔴㌵㜰愸ㅦ搱㘶挸㙣㠰㠷攸㜳〱㤴捣〱㙣搴㜹㈸戹㔷㤸㜳㠱ㄸ㘸㈹㄰攴搰㌲ぢ㔰敡㝤慣〳㠴㈷慤挳㥣つ㐴㙡ㄹ㄰扤㥣愲㝥㈵㠳㠸愲㕤㈸扢㔷㤸㠳㐹㐴㔷㔰慡㑡㜱ㄸ挹㌴昷愸㤹收㔶㐰㌴㠸㌳扢ㅣ㕡挲㜸挴㌰㜸㕥㐴慦〴㔵挹㈰㘰愹ㄷ㈵昷ち㜳㌰㠸收㔵㐰愰㤹挳㐰ㄴ㍣㕣愶㤹㐳㐳ㄸて㜹㌵慦〱㔵㐹㄰㔳昳昹㈸戹㔷㤸挱㉣㥡搷〲㠱㘶㠶戱㈸㜸愰㑣㌳㐳㕢ㄸ㕦昰㙡敥〷㔵㐹㄰㔲㜳㐹㥢ㄹ㡣愲㜹㈳㄰㘸㘶ㄸ㡡㠲晢换㌴㌳㌴㠵昱て㕥捤㠳愰㉡㠶㡢戰晥㜷㔹ㅤ㜱㉢ㅦ㔹搲ㄹ搷扤㡡ㅥ㤵㝡昷㤵搶ぢ搳戵搲愸ぢ㠱愰㔱㜴慡〸摥㔳㉡愸攸㘸㘱摣敤㙤搴㈵愰㠶㕤㥦〷攸收㐹㝥敥㍦戶愷晤晦㐵㥡㝥㈹慣挱㔱愳㜴ㄱ㤳愲㘲㕣换慢昸晤戴㥥ㅢ㈳㡡愱㑣ぢ敡て〰㌸ㄵ㡢㤸㔳㤱㘱㉢ㄵ㠷㠰㠴㕤㑦㉢㐶慡㔴摣㕡慣㔸挴㥣㡡㡣㑡愹ㄸ愱〴攳㑦攴愳㐵昹㈲收挸㌳搶㐴㍥㐶〹㠶㠶挸挷㡢昲㐵捣㤱㘷ㄸ㠸扣㑤〹㜶搷㡦㡦㑥戰挴㑥㔲㑡㥦㑦㠸㡢搹㡣㘲捦㐴㘶㤸㙣昶㐷㘴㤲㐰㜸㌱㈴ㄵ㍢㈱㌲摢挹㤶愶㠳慣㜷ㄸㄹ摥㔴搴㤵㐹㔱㐶㥡㑢ㄹ㔷て扦㐶㔴㙣慣攸挹㔰㐶㥡㐸ㄹ㜷㜰昰㘸㡡㤲愶㤲敡〶㌳㜰晣㤸㤵ㄵ㐸㜵㥤㐴㙡搸㔵慥愴㕤㘴扢慥㄰戶摢㍥㈵㑤㈲摢㕢㕢㐹㈳捡㉢搵晥㈷㔷挳㜲摥 | C27: 㜸〱攵㝤〹㜸㔴㐵搶㜶㔷㤶㥢摣㠶㤰㐶㐴ㄱ㔱㌳㠰捡攲㘰㤶捥㈶愰㠶㠴㐰㄰〸戲慢㘸攸攵㌶〹㈴㘹散敥戰㠹㥡㜱搷㕦挷㜵㔴ㅣㄵ㥤㜱㥣㜱ㅤ㜷ㅤ挷㜱挵㘵ㅣ㜴㕣㘶㜳〷㤷挱㕤攷㜳ㅤ㘱昴㝢摦㜳敦敤摣敥扥ㅤ㌲㝣收㜹㝣㥥扦〹愷慢捥㌹㜵敡搴㜹㙦搵慤㕢㔵戹昱㈸㡦挷昳ㅤ㍥晣收㈷㡦㠹ㄱ昳搶挶ㄳ㐶挷㠴晡㘸㝢扢ㄱ㑡戴㐵㍢攳ㄳ敡㘲戱挰摡㤹㙤昱㐴㉥ㄴ戴㤶㌶挸攳昹㉤昱戶㜵㐶㘱换㉡㈳ㄶ㠷㔲扥挷㔳㔸愸攷㐰㕥㙣晤昷搹ㄹ㥤愵昴㍣ㄲ㘸㜹㜴㡤愴㠰愴㤰㐴㈷昱㤲っ㈰ㄹ㐸㔲㐴㌲㠸㠴搶㜴ㅦ挹㘰㤰㠱扢㠱捣慦㥦搲ㅣ㕣づ摦收㈵愲㌱攳愰㤲㠵愶〷㤳换捡㈶㤴㑤昰㔷㤷㔵㑤㈸㍤愸愴扥慢㍤搱ㄵ㌳㈶㜷ㅡ㕤㠹㔸愰晤愰㤲㌹㕤挱昶戶搰ㄱ挶摡昹搱ㄵ㐶攷㘴㈳㔸㕡ㄱっ昸㙢捡晣㤵㤵㤱摡摡㥡㠱㐳㘰㜹㜶晤㤴㌹㌱㈳ㄲ晦扥㙣敥㑥㥢捤昵㔳㈶捣㌶ㄲ摦㤷捤愱戰〹㤳つ搱㡥㐰㕢攷昷㘴㌴㥦〸㔵㌴ㄸ愱㌶㐲㘹ㄸ戱戶捥㘵ㄳ攰㜶㑡愰㤱慢㥥搰㠸㠸㠷〲昱㐴扤搱摥㍥搷㠸㄰挵㠱ㅤ㡣㤹ㄱ㌳㍡㐳㐶㝣㔰挷搴㌵㈱愳摤ㄲ挷ぢ㍢ㄶ〶㘲戳〳ㅤ㐶ㅥㄳ挵ㅤ㈶㙥㑤㘱愳㌳搱㤶㔸㕢搴戱㈰㙥捣つ㜴㉥㌳愸㤲摦㌱慤慢㉤㥣㤷愷昲昲㍣戹〷扡㌹㈳搸㑣㘸㡣㠵敡㕢〳戱㠴攴㠸㕡㤹㥢慥攳ちㄱ挷㔳摣攲㔵㔴㤲㔶㡡㌰捤㙢敢㌸挲㠸㜵ㅡ敤慣㠴攰㡤㑦㔳㤲㤸㤸愱㑦〶挷㙥つ㠱㔱〳慣摥挳愶戰ㄶ㝤て㤲㍤㐱戴㘱㈰戹昵晥ㅡ㝤㉦戲㠶㠳愸扣㜷搰晢㥣㐵搸〳㜲㕡〲㌹㉤挱㥣㤶㔰㑥㑢㌸愷挵挸㘹㠹攴戴㉣换㘹㘹捤㘹㘹换㘹㔹㥥搳戲〲㍡昶愷戰愰㈰挷晡㝣戰㝤挱㤷攳㕦ㅦ搱㜰搵愴㔷㈶扤ㄱ扦㜷㥣㘲㠷㤳㥥㌷〲〹㝤ㅦ㄰㙤㕦戲敡㉢㑢昵晤挸㉡〱㔱敡つ戸㐰㌷㐶㍤昷昷攵㑢昷㝤扣昱㤴攸扦㜲晥扥㝦捤捦ㄴ晢慡㤴ㅦ㐹攵㔱㈰摡㘸戲ㅡ㉢换昵晤挹㍡〰㐴愹㤷慣昲㝡攵㙤㜷摣昲摢㠲愹て㝥㜴戲㝥㤱㜶挶㐴挵㙥㉥攵挷㔰㜹㉣㠸㌶づ愴㘰㘶㌴ㅥ㌷攲攵晡㜸戲て〲㔱敡㐵换挶㠵㜷㙥昸戰挱昳昵搴㥢て扥㙢攳㘱㜷扦㝢愸攲昵㈵㌶㈶㔰昹㘰㄰慤㤴慣㐶戴愱㡣慣㜲㄰愵㥥戱捡㍦㔳㍣㘷㑥昰挸收㠶扢敦晡㘳挱㌱摤㡦摥愷㌸挰㐸㜹㍦㤵㉢㐱戴㉡㤰搱㜳㘲㔱づ㈰㈵ぢ〳敤㕤㐶挹愲戶㐴㙢㐹昳㑡㡥㜵㈵㠹㘸㐹㕤㌰搰ㄹ㡥㜶敡搵㉣㔳〳愲搴㤳㔶〵愳㤷扤戲敡昶㔳慥㥣㝥㜷晥ㄴ摦ㄷ㡢㥡㕦㔷ㅣ扣愴㠲㐳愸㍣ㄱ㐴㥢㐴㔶愳扦㕡㥦㑣搶愱㈰㑡㍤㘲㤵㕦戶㘲㕢挵愷㡦㙤㘸扣攷㡣㝦戴晦㍤戰㙥㤳攲戸㈷攵て愷㜲ㅤ㠸㌶㠵慣㐶㕣㈷昵㘴㌵㠰㈸昵㝢慢晣戶昲㐱〳㐶敤㜸愱攱慣㑦敢㥥扦攳搰慤㑤㡡ㄷ㡣㤴㙦愴昲㌴㄰㙤㍡㔹㡤㤵㘵㝡ㄳ㔹㌳㐰㤴扡摢㉡ㅦ扢昳攳捥㜵㘷晥㙣挶㠶ぢㄷ摦㝦昰〳㉦敦慥㌸摡㑡昹㤹㔴㥥〵愲捤㈶慢戱戲㐲㙦㈶㙢づ㠸㔲扦戵捡㉦扥攸㙦慤㑢㝥㌵戱昹晥捡搷摥㜸㘵搳扤扦㔳ㅣ愸愵晣㕣㉡捦〳搱收㤳搵攸慦搵ㄷ㤰戵㄰㐴愹ㅢ慣昲扢㥤戵㝣摣戲㌵㤳敡慥㜹戴㝣捦搱㐳㡡搶㉡㡥昱㔲㝥㌱㤵㡦〲搱㡥〶挹攳㐵愲ㅦ㐳摥ㄲ㄰愵㝥㘹ㄹ㌸戴敡攲ㅢ㠶扥戶㐷摤㠵摦敤晢攷扤㉥㉦搸㐳昱晥㈰〶㡥愳㜲ぢ㠸戶㤴慣㝡㌴㈰㐰㔶㄰㐴愹慢慣昲敢摢㘶〴㤷㝣㤹摦戰昱搹ㄳㄳㄳづㅢ㜲愴攲慤㐵捡㠷愹㙣㠰㘸ㄱ戲敡㜱㤵㉦㈳慢ㄵ㐴愹换慣昲扥搹攱㜷て晡慡㝤昶㈵㕤摢摦慦㝣愲晡㜰挵扢㤲㤴㕦㑥㘵昶㑤慤㥤慣㝡〰搰㐱㔶㈷㠸㔲ㄷ㕡攵㐳㝦晥㙣搴捡敢慡㥢晥㜰㔵晢戶ㄷ㝥扤昶攵㠱㉢㈱㍥搲ㅡ㌴ㅡ㘲㠱搵ㄸ㜹㝢〶昵昲〹愵晣户昳扢ㄹ㙥㘶㤱捡㐸㜵愴慣㉣㕣㔹ㅡ愸〸攴㜳搸改敢ㄸ捡㠱㙥㘰㘴㔱ㅢ㉥晡搵㌲愸づ㡣㌴戶戵㈷㡣㤸㘴㡡㈳昸㌲㙦っ㤲㉦㡡㑣㕤㠳㍢㙡挸ㅣ㝦㜷㡦搴ㅢ戱〴敥㐴㠹戵㍤㠳昲㠸㈹㠱戸搱㤳ㅤ㙦搹㥥ㄲ敤敡っ挷昷㜶ㄷ捥㑢〴ㄲ挶昰㜴㔹㡦㤱㡣㘲昳㜰㤷㌲攲攲搲扥改挵愴㕢搷慤㘹㌳挵晢愴㠹㜱扦㡡〶戳㑢ㅢ㘳挶昱㐹㘹㠶㐷㜵㤸ㄲ慤㌲㈸捦㘸愵㈹㌲晤㉡愹㙦㡤挶㡤㑥㜱㙦㝣挷㥣戶搰ち㈳㌶捦攰㠴捡〸㑢㔳㠷㔲㘴摤㌴挷㌷㜷愲愱戸つ㠶㐷㍡戹っ戴搱ㄹ㌶挲昰㜷㈵愲扣㜶㝥㈰搸㙥散㤱愲㘲搶〹挱㕥㈹散挶㘸愸㉢㕥ㅦ敤㑣挴愲敤愹㤲扡昰慡〰㙥搴攱㔹搱戰㤱㈷ㅦ㡦㐹㤵㈷㌷㔷㈹捦ㄸ户㍢ㅥ㙤挷㜹㑦㜴㕣㈴扣昳昶慥散戸㠸愸散㝡㉦㑤㕡㐶挲㜱㤱㔱㝦㙣慦㥥㌸㉦㐲㙡㤷昶慡敤㜲㤱戲搰戰搴㡥㌷㘱㉥昰〱づ敤〶㝢㘵捥攸散㈶㝢慥换㥤㜸敡㐰㠵昳㘷㙡昷ㄲ㌴㌱㥢扣昶晡㔷㌹㈷㘷㠸搵晡愹慢㌰ㅤ㥢㡥㝢㕥扢ㄱ敢㜵昶慦攸㤱㝥㍣㐹㡣㈴㑥㤲㈰改〲挹㍦〷㘳㕣搶㠸㜲㌶愲搶愸戵昹慢摢挲㠹㔶慤搵㘸㕢搶捡愲㜸㙡㈸㉣㘴戸㌳㍥晡㙡戰昴㌵㈴㙢㐱扣㕥㡦戶㡥㑡㥡㔷㍦㠱㕦敢㐱昶㌴㉦㠳㔰摢㘳㜷㜶㤶〴扡ㄲ搱㡥挷慥㑤戴㠵〲㕥㤵捦㌹搷㝦㍦㌳攴㌳㡢㉥ㄳ㔱㍣㈹挴昳㍢㌰摦㡤攷收扡㐵㘵㝡㈰摥㥡㘰㠷散㔵㈸㜳挰ㄳ㘹昴㈴㤰㠱㈷㠳捣㥥㙥戴愳㍢㝦㕦てㄹ昹㥣㑥敥㜴㌲㑢㍦昶攸㤸户戶㌳搴ㅡ㡢㜶攲挱慤㈱㤰〸搴㠵㌰㘳㡦慢㠰搶㌱㌳㕡摦㤵搰㍡愶户攱㙢㘰挷㕣㘳愵ㄱ㐸搴㘳戸㑥ㄴ㜵捣挴㙣㕦挶搳愶昰㥡晣づ㜳愲摥㘰挴㐳㍡㘷昴㑤ㄸ㥥搶㘸㐸㘱ㅡ㌵戰㠳〳㡥戱㈶㐱搳〵ㅤ㜳〲㜸㈲㐸攸㔰ㅡ㉦愵捣ㄴ㑢ㄶ〹捦㉥敤戵㜲戰攰㤳愴挳捡〰㘱㤸㤶㍣扣㠲㜰㈷挵扤㌵捦愲改㍤㘹㐱愲慤㍤㍥挱ち敦㠴㠶㈸㥥昸っ㜹㜴㘵搸㌵つㄷ㥡搶㉢㔸改ㅤ㥥㡦〴捤愱愰㘹ㄶ慥㑣㡢㐵扢㔶昲㙥昹㝤搹愱㉤㡦摥つ戲昱㕦㌷㑥摣晦慡摦㝥㘷㝤㥦㡣慥㈴ㅦ㥤㑦つ㍡慦㝢㘶昱㈵ㅦ晤㔴㝣㜹㝢㤳攵て㠷㠶敢㠸㥢攵改㠵戳晤㠱ㅤ㘸敤晣㤸㈱㡦㘳㠵㤲㔹扢搲㈸敡㔸ㄴ㡤慤〸㐶愳㉢〸晥㈰挹挵㕢つ㈳挱㘷㥣〱搶㈳ㅤ搳㑡愹摣摣㤴愷ㄹ挷挳㄰㥦㡥戴㌳㐱㝣昳愳攱㘸扣愴㥤晦摢㠲戱㘸㕣㍢ぢ摣㕣摣㕣戴戳㤱愸慢㉢㤹㍢戵㙥㘶㐹昳㥣昹㑤捤戳㑢㘶㌵㌷㑣㥤㔹搲搸㍣户㘴晥昴愹㈵ぢ敢㘶㉥愸ㄳ㝥㜳㘳㐹搳散搹捤ぢ捤摣㥣戹捤㌳愶搶捦㥦㌷㘱㑤㝢扣㐳慤㐲愴昸㐴昳㐰扢晦摤㉤戵て㑤戹㈰散㕦戵收挵㐳敢㔴㤷㈵挸㜸㔴攲ㄳ㤲㍣愸㥤㡢㠴㝥ㅥ挹㑦㐹捥㈷戹〰㐴㐵㔱㤴攳ㅢ㘷㠳晣扦〹〳挵摢㕣㉥搱㉦㈲戹㤸攴ㄲ㄰㡣㔲㠲ㄶ〶愹㑢㤱搵㉥〳ㄹ扡㄰ㅤ㈱搰ㄹ㈸〹ㅢ㈵㉢㘳挶㉡㍣㘴㘳戸昲㉡挵㘷㌲づ㔳晡攵㈴ㅢ㐰搴㝥㈰散搰ㅥ晤ち㤰慣㔷〵ㅦ攴㌲慦㡡慢挰昵敡扤挸㔴〹㌴㜸㘵攸㐴㐲㘷攰㜵〶㕤㉤戱㈲㤳ㄱ戲㘳㉣㐱挶搳攱㐸ㄴ㤳㤰㕤㑦㈳扦㈶昹つ挹つ㈴㌷㠲愸〵㔶挸㤰㑥晤攸㌷㈳慦摦㐲㜲㉢㠸㈳㘴户㤱挷㜱ㅤ挱ㄹ㠵㉦〹捥ㅤ㘴摥〹愲昸搴㘹〶攷㉥愴戲〶㘷㌴ぢ㘴㜴㤹㝢挱昵敡扤挸搴〱搰㜰ぢ捥㤴㙣挱愹戳〴ㄹ㡦扥㘳㘰㐹㠲昳㌰ㄲ晡㈳㈴㡦㤲㍣㐶戲〹㐴㑤捣ㅡ㥣㈷愸昳㈴挹㔳㈰㡥攰㍣㡤慣昶㈷㤰慣搷搳㔸〸㈵㘴㥢㤱搰㥦〱㔱㝣挸㌶㐳昶㉣㔲㔹㐳㌶㡥〵㌲㐲昶㍣戸㕥扤ㄷ㤹㍡〸ㅡ㙥㈱ㅢ㤳㉤㘴〷㕡㠲㡣㈷晤〹戰㈴㈱㝢㤹慥扣㐲昲㉡挹㙢㈴慦㠳愸ㅦ㘵つ搹ㄶ敡㙣㈵㜹ㄳ挴ㄱ戲户挹戳慥㈷㉥ㅥ㐸㜰晥㐹收㌶㄰挵ㄵ〴㌳㌸敦㈲㤵㌵㌸愵㉣㤰ㄱ㥣て挰昵敡扤挸㔴㌹㌴摣㠲㌳㈸㕢㜰㡡㉣㐱挶㌲㠶ㅦ㤶㈴㌸㥦搳㤵㉦㐸扥㈴昹㡡攴㙢㄰㔵㘰〵㠷挳昸㠷昸㍦㕢昳㜸挶攵㔲晣つ挹㜶㤲ㅤ㈰㡥攰㝣㡢慣挶㕢㑡㕥挹搴攵〶㝡㕣㈵搲ㄲ㈱て〶㌶㥤昷㔸㔵つ㤶ㄹ愱ㅣ㘴戳㐶愸ち㙡㤹ㄱ捡㐷ㄱ慦摥㡢㑣搵愰㥣㕢㠴㍥晦㌶换〸晥㤹㈵挸㔸㠷㌹〴㤶㈴㐲㠳攸㝢㌱㠹㡦㘴㌰挹㙥㈰敡㈳ㄴ攵〸づ挵搴㡦扥㍢㜵㠶㤲散〱攲㠸搰㌰昲慣换㘷㈲ち㐹㜰㠶㤳戹㌷㠸㥡っ㤶ㄹ㥣ㄱ挸㘶つ捥㈴愸㘵〶㘷㍦ㄴ昱敡扤挸搴愱㈸攷ㄶ㥣㤷戳〵攷㈵㑢㤰戱挸㜴㌸㉣㐹㜰挶搰昷戱㈴攳㐸挶㤳ㅣ〴愲㕥捣ㅡ㥣〹搴㌹㤸愴ㄴ挴ㄱ㥣㜲昲慣攰搴愱〲〹㡥㥦捣㑡㄰㔵て㤶ㄹ㥣㉡㘴戳〶㘷ち搴㌲㠳㔳㡢㈲㕥扤ㄷ㤹㙡㐰㌹户攰㍣㥣㉤㌸て㔹㠲㡣ㄵ戴㐶㔸㤲攰㑣愱敦昵㈴つ㈴㔳㐹ㅡ㐱搴敦戲〶㘷㍡㜵㥡㐸㘶㠰㌸㠲㌳㤳㍣㉢㌸搳㔰㠱〴㘷㌶㤹捤㈰慡〹㉣㌳㌸㜳㤰捤ㅡ㥣改㔰换っ捥㍣ㄴ昱敡扤挸搴っ㤴㜳ぢ捥昵搹㠲昳㉢㑢㤰戱㍣㌸ㄳ㤶㈴㌸㑢攸晢戱㈴挷㤱戴㤰㉣〵㔱ㅢ戳〶㈷㐸㥤㄰㐹ㄸ挴ㄱ㥣〸㜹㔶㜰㘶愱〲〹㑥㉢㤹㙤㈰㡡换㡥㘶㜰㤶㈳㥢㌵㌸戳愱㤶ㄹ㥣づㄴ昱敡扤挸搴ㅣ㤴㜳ぢ捥戹搹㠲昳晦㉣㐱挶摡攷㕣㔸㤲攰慣愲敦慢㐹搶㤰慣㈵㔹〷愲㑥捦ㅡ㥣昵搴㌹㤱攴㈴㄰㐷㜰扡挹戳㠲㌳てㄵ㐸㜰㑥㈱昳㔴㄰戵〰㉣㌳㌸愷㈱㥢㌵㌸昳愱㤶ㄹ㥣㌳㔱挴慢昷㈲㔳ぢ㔱捥㉤㌸戱㙣挱㌹摥ㄲ㘴㉣散㉥㠶㈵〹捥〵昴晤㐲㤲㡢㐸㉥㈶戹〴㐴慤戰㠲挳㥢ㅢ晦昷㑣愹㉦愵捥㘵㈴㤷㠳㌸㠲㜳〵戲摡捦㐱戲㍦昷慢愳㘰㑡㠲㜶㈵つ㕣〵愲㡥〱换っ摡搵挸㘶つ摡搱㔰换っ摡戵㈸攲搵㝢㤱愹㈵㈸攷ㄶ戴挵搹㠲戶挸ㄲ㘴㉣㘶ㅦ〷㑢ㄲ戴ㅢ改晢㑤㈴㌷㤳摣㐲㜲㉢㠸㍡搲ちㅡㄴ㔳㍦晡㙤搴戹㥤攴づ㄰㐷搰敥㐲㔶扢ㅢ愴㤷愰戵挰㤸〴敤ㅥㅡ戸ㄷ㐴〵挰㌲㠳㜶ㅦ戲㔹㠳戶ㄴ㙡㤹㐱晢㍤㡡㜸昵㕥㘴㉡㠸㜲㙥㐱㍢㌴㕢搰㈶㕢㠲㡣ㄵ晣㌰㉣㐹搰㌶愱㔲晤㜱㤲㈷㐸㥥㈴㜹ち㐴㔵㘷つ摡搳搴昹ㄳ挹㘶㄰㐷搰㥥㈵㡦㐱挳扣㠸㥢〲ㄲ㥣攷挸㝣ㅥ㐴㉤〳换っ捥ぢ挸㘶つ㑥〴㙡㤹挱昹㉢捤敡扤挸㔴㉢捡戹〵㘷㜴戶攰㡣戲〴ㄹ摢ㄳ换㘱㐹㠲昳㍡㝤㝦㠳㘴ぢ挹㔶㤲㌷㐱搴㍥㔹㠳昳㌶㜵摥㈱昹㈷㠸㈳㌸敦㤲㘷〵㠷㍢ㅥㄲ㥣昷挹晣〰㐴㜵㠰㘵〶攷㐳㘴戳〶愷ㅤ㙡㤹挱昹〴㐵扣㝡㉦㌲搵㠹㜲㙥挱昱㘶ぢ㡥㙥〹搲昷㕥昲戹㤲㤹扥㠶㈴㍢扣挹㔵㘹挷㝡昷㈰㈸㙢㤱〵㥤㙤㠹昸㠰㐸ㅤ㤶ㅡㅢ摢ㄲつ昱挴挰〸〸㤲㔲㘴戸㉣攰㍡ち㡤㡦㉣㙣㌳㔶捦挷㉡捡㝥㤹㈲㙣㝥搷㜷挵戱㘶挹㜵㤵㝤㌳攵つ搱搹搱㐴㐳㕢㝣㘵㝢㘰敤㘸ㄷ戱㈹㔹搴㙡㜴㘲㐷㈱㠶㡤㠵㥤㈹㐵㔷慥㌴挲㉥㍥捥㡢㜶挵㐲㐶㔳挳て㘱㑦㐲㤹敢㝣ㅥ㉣㈵攱〹㐴敤㥦㝤つ摥ㄱ昷㈱挰㈶〷换㑦㙡ㄷ㤷戴搷愱扣㐷晦㌷㉥㍤㕣扥ち㤷扡晥つ㉦㐳慦㈷㍦〶㑥敦㤷㠸㘳㤷㘳〰㤴扤ㄱ挰㙡昲㡡慣㙤戴愶捥㜸㕢搸昰㕡戹㔹㙤㥤㠳慣㘴㜳㔷㈲㐵ㄲ㔸㌳挴㤲搴戵户㌷㜷〲晡㔰㈰ㄶ晥㈱愰挲挰㘰㤱㑥㈰㔱ㅡ晥敤㕡愰㈵挰㌰昴愹㝤攴攸搳㤳搱搹户㕢戱㡥㐳攲扡㘴㤹散㡥㐸㌸㌶㠹戸昵㕢挴㜰㈷搹㠵捣捤㌲〲㥤㠲挲扣㐴戸挱㔸㌵㐸㌴っ㕣攰㌸㜳搲㙥っ㐹捤捡捡戵ㅥ愹ぢ挶愳敤㕤〹㘳㔰㌲㈵ㅤ㕤㡦捣㌵摡〳摣昰ㅢ㤸㑣捤〹㈵戰㈵㥡戴挷捤扣ㅦづ㐲㠸㐸㥥㠵㤲ㄲ㥣戴㕥㉥摥搴㐶戰て敤ㅡ慡㕣㉥㠸挸攷攳挳搴ㄵㅢ昸戹攱㌰㡦㥤昰昲攳挹㑦挰㝣摦㜷昴搸㤳㠶搸ㅢ捤收〸㈷㠳搷㐰㥢挷捤戴愲㠸㡣㝢搸㌱攷㜱愳㘲㜶㥤㜶㥣〵攳晥㑦㝢晢摡㐱㤱愶捥㔰㝢㔷搸㤸ㄹ〸ㅡ敤昶㤸ㅤ㡤㜵晣㐰昰捡㘳㘷㌰戱敡㈵㉥搶㌶㘷ㄳ㑥摣搹晢㠷扢㍣捣㈹㝤〷敡搴晥〳㤲㌷戹挱㕦㠳㙦慦晥㉤㈹昰改㠲㌷晦昵ㅥ慡ㄷ㠵㜶敢㌹〱㈰㐷戹㌰扥㘵戰㌸戰㜱ㅦ㈹戹つ㉢摤捥愱㌶㌳㍡㌳㡡㉤昲戰㠳㌵扤捤㘴晤㘰㍡㤷㘰愵㘹摡慥摥㘵㄰㉢㝣㍥戵ㄶ愰㌰昲㤹昹挳ㄸ㝦㈲戰ㅡ昹昴ㅤ㈸挷㙣㐴㈶〰㌲ㄲ晡愰㔸捣㘱捣㥣㍤捣㙦㑢戴ㅢ〳㈲㈲㤷㜴㈱晢〵愳㔹㄰㤹摦㡡摤㥣㠶愲挸戴㔸㕢戸扤慤搳攰㑣〴㐷㌶㜸㝣㙥愶戱っ㠷ぢ收㐴攳㙤㍣昷㔴ㄴ㤹ㅦぢ㜴挶㔷㜲搳㉥戴㜶户㤴㥣㠰㤵ㅦ㤹搲搶㠹㕥㘴搶挹㜴㜱㘴㕥㙢㜴㌵㡥㠹㜶㜵㜴㑥ぢ慣㡣晦㈰㠰挲搵㙣㝤捣慥㤵愳㜲㜲㔴㘱㑥攱㉥摥戰㍣戸挲㘱㤲㉢戹㌹㈴ㄶ㔴㙢㤰敡愵搳ㄲ㈵敢㘸〷㍢㉤㝤㑡㌹㈴改扡㥦㥣㍣㘳换㠱㔸攷つ㜲愰㈷挷攳㤹㌱㙤㐱㔳捦㠱愰晦搳ㄱ搷晣戵戰摣换晤㐰㉥㡢攴改㠳愱㔰ㅥ㘴㕥㉡攴昱捡搱〵㜱收搲㉦㍦㙦㐴㜴㜸㈵攲ㄶ㑡㜵㈶ㅢ戱ㅦ㍣㄰ㅤㅦ攳㉦昶搱㌱昰づ㌲㌳㥣搳㜵〴摡攳㤶慣㍥摡搱ㄱ攰愵挵换㜲ㅥ〶㙦愳㔰㈶搸ㄸ㐹昴〸㠸㕣㝦ㄶ㉢戰〶慣挰ㅡ㘱攱㥥捣ㄳ㐵㤲愶慤攸戲㐰っ㈷昹㍡摡㐲㠵捣昰搴捦て攲㥡挴㈵㤴㠷㘰摡ㅦ戹㌰㌱㕢㑤摦戳㌷户㤹〱昷〴㍣㐰㌰㜴㠴ㅦ㔷㙥㡥摣挸搵㉥ㅥ搷挰攵㉢て㔹㝡づ慣攵攳㍦㈶戸扣㈰昱㜱捣挲挰㤱㐱㐸㥤〰㍥挵㝡㉥㔵慤㑦摥㠹㐸昴扡㜳㕥〰〵敦捣㘸㈰摣㠸㠳㘱搱㔸㠱㜵㈴扢㄰搰㜲㐸㠹昹㜸㕡愲ㅥ㐷㡥㜰㤴㘹ㄵ㈶挳戱㐲㌲收攱ㅣ㐲ㅥ捦㔹㘸㈶㠶扣ㅦ㝡昲昳〷ㄴ扡搵搵㘴摢ㅡ㙤敤㉡㍢て愸㌷㘵搸晦昰挸㥡挳搸㄰慦㔷㜶㐱昲搰ㅣ㥤捤㔷㈷㠱挹昶愴㈹㘸㔴㈸〰挹敦㠶㌰扤㤷㘴㍤㔹㐰攳昹ㅤ㍣昱㔰搸挱收㘰捥愱攱ㅣ〴㑥㑥㈰㈴摡㠰㐲㡥昲㝡㈱捣㍥戳㜹㌳昷ぢ㍣敡㔴㄰扢㝥㔹攷昳㌲㜸㍡㡦捥敢㕥㄰㜵㉥戲㜲挶挶㝣㉡ㄹ〸ㅥ戸昲㔴㔲㠴㌴㙥ㄵ敡㍣㜰昸㘴挲〶昲攳㐰ㄲ户昴㐱㤶搶㑦㈱攱㥣㥡㙡㍢㥢㥦㈹㙥㜵㜳㡥愶昴㘲ㄴ搷㜸㜸ㅦ㤳㠴捡㔲㤴昵敡㠳㉤㡢ㄷ㐰㠱ㄳ〵昳㤳昵㔶愶㉥㠲〲㙦㘷ㅥ㙤㌷㤴㉣㘴㜸㝥㠴㘳挷攲㐹摡㔸慡㉥㠶ㅡ挷㔳㝤〸㔴搵㈵㐸㜱㤸㠲捦收㘵㍢ㄴ摣㥤㕦戶㤷㑡〹ㄸ搹㠳㐶慣㡣扡ㅣ〹㍢搴㘴㕡搷挲㥥搰搱㠷㔱㜱㠳扢挲㕥㔴ㄸ㑥㠵㉢愰搰㡤晦晡摥挸㈵㈱扣捡㔱捣〱攱〸ㄶ摢㠷挵慥㠷㠲〳挲晤挰〳㔷㈰㉣㐱㥡㄰晥ㅡ㥣散㄰晥挸搲晡つ戴晡っ㈱户摥㑤〸㐷愲戸㌶ち㈴㙦昲昴㑡㙥搴㘰攳摢戲㜸㈳㤴晡〲攱捤搰ㄳ〸㕤敦㠰敡ㄶ㠸〵戵晤㘱㔷摤㡡㕣ち㙡〷㠲扢㜳搴㙥㐳㌱攲㤲㌲搸愸㍢挰㜱㐱㙤㉣㑣敡攳㔸摢㥤敥ち攳愹㜰㄰ㄵ敥㠲㐲㌷晥敢㍦㐶㉥㠹摡扤㡥㘲づ搴㈶戰搸挱㉣昶㌰ㄴㅣ愸㤵㠱㐷搰ㄴ㤶〳捡㤱㈶㙡㡦㠰㤵ㅤ戵ち㑢敢㔱㘸昵ㄹ戵挷愰㙣愲收㐷㜱慤ㄲ㠴戳㜳㜳ぢ慣捡戲戸〹㑡㝤㐱敤〹攸昵㠲摡㤳㄰ぢ㙡搵戰慢㥥㐲㉥〵戵㕡㜰㜷㡥摡搳㈸㈶愸ㅤ〲㜵晢愳㌶㈳攵㠲摡㐴攸攸㤳㔸摢㌳敥ち㤳愹㜰㈸ㄵ㥥㠵㐲㌷晥敢㠷㈱㤷㐴敤㜹㐷㌱づ摤㕥㜳戸㍣㥣挵敡㔸散㘵㌰ㅤ愸搵㠳〷慥昴戵〶愴㠹摡㉢攰㘴㐷㙤慡愵昵㉡戴晡㡣摡㙢㔰㌶㔱㙢㐴㜱㙤ㅡ〸晢㥡㌹㕣㑥户㉣扥づ愵扥愰戶〵㝡扤愰戶ㄵ㘲㐱慤〹㜶搵㥢挸愵愰㜶〴戸㍢㐷敤㙤ㄴ换散㙢晦〴搷〵戵㔹㌰愹捦㘶㙤摢摣ㄵ㥡愹㌰㠷ち敦㐲愱ㅢ晦昵㈳㤱㑢愲挶挳ㄱ戶㕤㝥㕢愸捤㘵戱㜹㉣昶㌹㤸づ搴ㄶ㠰㐷昷搸搷ㄶ㈲㑤搴扥〰㡢愸㜹搴〹扢摦㍡㙤敢扡搳ㅥ昲㔸㠹挳㌰㥥㉤戲戴扥㠴㐲㥦㔱晢ち捡㐴捤愳㉦㐶㜱戹挱愰㔲散敥㔸挶扥㠶㠸㠰㈵敢愱慥攷搳㤳㌷捣扦攴㠲㐷㠷㙥挵㠴挲㥣㈵㝤〳慥〰㈶愷ㅢ挴昳㜲戰㜲㐸㉣㤵敤㐸〹㘸㑢㘰㕢敤㐰㉥〵戴攳挰㌵㐱换㈱㉡㠸攱㌱て㥢㠹㑦ㄳ㠷搳㈷㍥ㄲ慡㙦㈱㈰㔷㙦愱ㄱ㉢㠳ㄱ愹㈷戸攰㐳㔷愶㌸㑢㤱搶〳㔴挴搵㥦㡣扥㐳㈱㐸㠵㄰ㄵ㔸㘷㌷敤㠶㤱㑢㠲挶昳ㅡ㌶㘸慦㠹摤〲敡ㄸ㉣ㄶ㘱戱㐱㔰㜰㠰搶ちㅥ㙢㠳〳㝡ㅢ搲昴㤸㈷㉦戲㜷戵攵㤶㤶て㕡㝤〶㡤㐷㌸捣慥戶〲挵戵㜶㄰㜴㌵㝦㌵搸㕥扤挳戲戸ㅢ㜲㝤改㙡扢㐳慦㤷慥㌶ㄴ㘲㐱慤ㄳ㜶搵ㅥ挸愵愰戶ㄲ摣㥤㜷戵㘱㈸㠶㥦戴摢ㅡ捦㡤搸搱愵搴㐲㉤〶㤳㝡㥣戵昱㑣㠹㡢㐲㠲ち㕤㔴ㄸ〱㠵㙥摡㕤㠵㕣ㄲ戵晤ㅣ挵㈸戵扡摡㙡ㄶ㕢挳㘲㘳愰攰㐰㙤ㅤ㜸攰ち㙡㈷㈰㑤搴㜸㈴㈴㍢㙡敢㉤慤㜱搰敡㌳㙡㍣㕢㘲愲㜶㈲㡡㙢㈷㠱㄰㌵㜳搱改㘴换攲㐱㔰敡ぢ㙡ㄳ愰搷ぢ㙡㍣㥥㈲愸㜵挳慥攲ㄸ㥣㠲摡㈹攰敥ㅣ㌵㑥㤳昰㤳㠶㥡ㅦ㉣ㄷ㔰㑥㠳㐹晤㜴搶㔶改慥㜰〶ㄵ捥愴㐲ㄵㄴ扡㘹昷㉣攴㤲愸昱昶㙥摢攵户㠵摡搹㉣㜶づ㡢㑤㠱㠲〳戵㜳挱〳㔷㔰㍢て㘹愲挶戳㉡搹㔱晢愹愵搵〰慤㍥愳挶㐳㉦㈶㙡攷愳戸㜶〱〸㙦㙢㘵㘰㝢昵ぢ㉤㡢㍣ㄴ搳ㄷ搴愶㐳慦ㄷ搴㜸㙥㐶㔰扢〸㜶搵っ攴㔲㔰扢〴摣㥤愳㌶ㄳ挵昰㤳㠶摡㙣戰散攸㔲㙡昵戵㑢㘱㔲扦㡣戵昱ㄴ㡥㡢挲攵㔴搸㐰㠵㌹㔰攸愶摤㉢㤰㑢愲挶愳㌷㜶㌱〷㙡㍦㘷戱㉢㔹㙣〹ㄴㅣ愸㕤つㅥ戸㠲摡㐶愴㠹ㅡて搱㘴㐷敤ㅡ㑢敢㌸㘸昵ㄹ戵ㄶ㈸㥢愸㕤㡢攲摡㉦㐰㠸㕡〵搸㕥晤㤷㤶挵愵挸昵〵戵㈰昴㝡㐱㡤〷㝡〴戵敢㘰㔷㠵㤱㑢㐱敤㝡㜰㜷㡥ㅡ㑦〰攱㈷つ戵㔶戰散攸㔲㙡愱昶ㅢ㤸搴㙦㘰㙤㍣ㅥ攴愲㜰㈳ㄵ㙥愲挲㜲㈸㜴搳敥捤挸㈵㔱攳㤹㈰扢ㄸ㥦愹慤扥㜶ぢ㡢摤捡㘲慢愰攰㐰敤㌶昰挰ㄵ搴㙥㐷㥡愸昱㜴㑦㜶搴敥戰戴搶㐰慢捦愸昱㤸㤰㠹摡㥤㈸慥摤〵挲ㄱ搲㥣昸摦㙤㔹攴㌱愲扥愰戶ㅥ㝡扤愰挶㤳㐶㠲摡㍤戰慢㑥㐲㉥〵戵晢挰摤㌹㙡摤㈸㠶㥦㌴搴㑥〱换㡥㉥愵ㄶ㙡昷挳愴晥㝢搶挶㜳㑢㉥ちて㔰攱て㔴㌸つち摤戴晢㈰㜲㐹搴㜸㔸挹㉥㐶愹㠵摡㐳㉣昶㌰㡢㕤〰〵〷㙡㡦㠲〷搰〴戵挷㤰㈶㙡ㄷ㐲㈵㍢㙡㥢㉣慤㡢愰搵㘷搴㜸㝥挹㐴敤㜱ㄴ敦㤹㐲㍥㘹ㄹ扢〴昲扥〰㜶㈹昴〴㌰㌹㕡〴捦㌳㔶㤹ㄵ㑦㐰〹㘸㝦㠴㙤㜵㌹㜲㈹愰晤〹摣㥤㠳挶㈳㔳昸挱〱ㄷㅡ㘱㠸昸晦㑡㔰㍢戸攰摢愰㍤㠳戴晥㉣ㄵ㜹㙥捡㐵攱捦㔴㜸㡥ち㔷㐳愱ㅢ㈵昵攷㤱㑢㠲㜶慤愳搸改㘲㔷愶㤰㉦戰搸㡢㉣㜶㈳ㄴㅣ愰晤ㄵ㍣㜰〵戴扦㈱㑤搰㜸散㈹㍢㘸㝦户戴㙥㠶㔶㥦㐱攳昹㈹ㄳ戴㝦愰戸昶ㄲ〸ㄷ户捣〱昲㘵换攲慤㔰敡ぢ㜲户㐱慦㤷慥㜶㍢挴㠲摡㉢戰慢敥㐰㉥〵戵搷挰摤㌹㙡㜷愱ㄸ㝥㍣晡㈱㔰户㍦敡ㅥ戰㙣㔰㈸戵扡摡ㅢ搰搱户戰㌶ㅥ摣㜲㔱搸㑡㠵㌷愹㜰ㅦㄴ扡㔱㔲㝦ぢ戹㈴㙡㍣慤㘵ㄷ攳㠲愵搵搵摥㘶戱㜷㔸㙣ㄳㄴㅣ愸㙤〳て㕣㐱敤㕤愴㠹ㅡ捦㕤㘵㐷敤㍤㑢㡢〷戳晡㡣ㅡて㜰㤹愸扤㡦攲摡〷㈰㐴㡤ㄳ㌵慦晥愱㘵昱㈹攴晡㠲摡搳搰敢〵㌵㥥〱ㄳ搴㍥㠲㕤戵ㄹ戹ㄴ搴㍥〱㜷攷愸㍤㡢㘲昸㐹㐳敤㌹戰散攸㔲㙡愱昶㉦㤸搴晦㠷戵㍤敦慥昰ㄹㄵ㍥愷挲ぢ㔰攸愶摤㉦㤰㑢愲挶㘳㘴戶㕤挷㝡搶㤷㉣昶ㄵ㡢扤づ〵〷㙡晦〶て㕣㐱敤ㅢ愴㠹摡ㅢ㔰挹㡥摡㜶㑢㙢ぢ戴晡㡣摡㔶㈸㥢愸敤㐰㜱敤㍦㈰㐴捤㥣㐲㝥㙢㔹㝣ㄳ㑡㝤㐱敤㙤攸昵㠲ㅡて愷〹㙡摦挱慥攲㈹戵ㄴ搴ㄴ㥥㡢㜷㡥摡扢㈸㠶㥦㌴搴摥〷换㡥㉥愵ㄶ㙡搸愰挰慢㙣㐰ㄴ㡦扡戹㈸昰㔵㉡扡㐶㠵て愱搰㑤扢〵挸㈵㔱攳昹㌶扢㤸愳慦ㄵ戲ㄸ㕦㤴㤳晦㙦㈸昴敤搴ㄳ㠷㔶㥦攳㈸ㅡ户攸攲㠳㈳㐷㜶〵摡昱㜲㤵㘶㥣㠷㐸㤰昵㐳搸〳换㌳㑦愵愴扦㤱㈰昵㥤㉢㌸搰㈵㑤㌸收搸摤搱戲昴ㄸ愴敡㕡㙤㡢㔳㜳搷㑥慤㜸昳扦摣昱摤㜷㝤慢〵㤰㜸ち㔶昱㤷㕣㕢㕡㍣㠵慣ㄳ㐸㘱㄰ㅡ㠰㉦㜶㈳㥥ㄶ愳㑥敡㐲㌶捦㌵㘵㜰昳㜷㠰搵换摥㜱摡㠱て㤶ㅦ搲戳搳挵㍤捤昱敤㝣ㄱ㤳摢ㄶ㔹敡ㄶ㜲ㄱ㥣㔳摦扡昹愰扥戳戹挵搴戱㥡㤳㥦㠳㑥戴搳㑤挹㍣㌶㍣挲敤挹㜹㠹戵敤搸ㄲ㘶㤲〷ㄸ捤ㄴ昷挰㑣㌱㥣㡥挶昲㜰㥣㉦晤㔷挲㤳㘵㔷挲搴㠰摤搳㝥〵㕦㡡㔱攲㠱㌷昹㥦〲愲慣攵改㜸て㉡㔲〶ㅣ㙤㌰摡戴晢慣戶㄰㝥戵㌴ㅡ㐹㤴捣挳戱㠶ㄲ扥㤴〱〷㙥㑢敢昲㍦㠶㐵搷㍡搹戰扣㑥扥㠷㐸㠰昶慥攸㡣慥敥ㄴ㙦昲攳㝣㌷〵㙢搳ぢち㔸つ戶㐴捣捦㈸〴捦㤷ぢ㐷昹昱攵㜱㄰㐲㐲ㅢ〲て昶慦㥦㔲㍦户愵㌴㔰ㅤ慣㠸昸㐳攵搵㘵㐱㝦㜹㔵㙤㑤㜹㙤㑤㔹㔵愴㉣㔲ㄵ愹つ〴〲㘵㍥づ㑦㘲㜹㜷㤴昱㘹㜶㙥㈸㜳〵㜶㡥戲攲㐲攴㔸戱挶扡扥捦㡦㑦㠷㘵搴攰搱昶〴ㅤ㔴㍦愵挵㜱㝥㐱ㅢ〶摥㐰昰㘴㠷㜶㉥㕥〳愱敤〵捥㘰㜰㔲摦攵攴昳㕡㔶㝡摥㜸愴㡦㠰愶ㅡ〸㍥挷㌴慦㝡ぢ愱㘷㥦〳ㄷ㝤㘷㕦㝣戱敦ㄴ㐱㉥ㄱ㐸㤹敡っ㜲攵ㄶ㠳换晥愳㤷搰昲㘰㔷㥤㈱㌶㜷㈴㜵㔰ㄵ慢㔳㐳挱攵昵慤㕥㠳〳扣慡挰挴晢㡣㈰换㝡愹愸㔷愰挶换㈵ㄵ敥㍤㘰㠵搷㡡㝥〰ちㄷ攵晡昶戴敡搳づ㐴摥㐴扤㌶㔴ㅥ㈹慢慣㉣慦づ㠷㉢晣愵挱㘰愰戶㉣ㄴ慥〹〶挲搵愵愱昲戲㥡愰㙦㤸㔵㐶ㅦ㠳㌲扥扤散摣㔸收㠶摢㌹捡㡡昷㐶慥㝦㔰ㅦ〱换愸挱愳㡤〷㑤㐷晤㈰昰㔲㔱晦㌱㌸㉥愸敦㘳㔹搱㐷㌰㈴晢㤰㤴㐲㔳敤〷扥㠹晡㥦ㄱ挱ㅥ搴换㈱㈴敡㈵㤰ぢ敡㜶敦㐱㐹㡦晡㤱㉢㜷㈴戸㠲扡㥦㤶㐷扢敡散㙦㜳慢愸〳㕢昸昲愸〳挱ㄵ搴晦〸㈷㙣搴㜵づ㄰ㅣぢ搴㤳慥〰㡦戵㑣㘹㠷㐰捦〴戴㍡㔸㕡㔵ㄳづ㤶ㅢㄵ㠱ㅡ㝦㐵ㄸ搹㔰㑤愰捣㠸㔴㔵㤴㤷㐶慡㙢慡㝣攳散敡㈷愲㡣㙦扣㥤㥢挴摣㐱㜶㡥戲攲ㅦ㈳搷㍦㠰㑥㠰㘵搴㠰户㡤㠱敡散户㍡扢慡敦㘰㥢㍦㤲挲㔱㈴昵攰慢㌲昰㑤㠸ㅥ㐸㠱㘸㉡㠴㠴愸ㅣ㜲㠱㈸愵㘳㔶戸㜲晤攰ち㐴搳㘸戹捡㔵愷摡收㌶㔱〷㙥攰换愳㙡挱ㄵ㠸敥㜱㐲挴㡥㈹㄰摤攵ち㤱敤㤱㙦愲㘵㔳㥢㠵〲㈶㔶攱㘰㌸ㄸ〸㠴㡣㐰㐵㈴散㌷っ愳戶愶搴㈸慤つ㔵㤴〷㐲挱慡㥡搲㔲摦㈴摢㡦搹㈸攳㥢㙣攷㥡㤹㍢搴捥㔱㔶㝣ㄸ㜲晤㠳搵攱戰㡣ㅡ昰㉢㤸愰㍡㝢㥢捥づ收慢戳昹㘳㈸攴敦㜳敢ぢ挱㔷昵攰㥢㔸摤㤰㠲搵㘲〸㠹㔵〳攴㤹摤㘹慡㉢户ㄱ㕣挱敡㘸㕡㥥敥慡搳㘴㜳㤷㔰〷㙥攰换愳㡥〰㔷戰晡愵ㄳ慢㘴㜷扡搶ㄵ慢㔹㤶㈹㙤㈹㙣㤸㄰ㄹ搵攵㌵搵攱戲敡㉡愳㌴散てㅡㄵ㌵ㄱ愳戲扡㈲㄰慣慥ちㅢ㤱摡㡡㤰㙦戶㕤㝤〰㘵㝣捤㜶㉥挸摣ㅣ㍢㐷㔹昱㤱挸昵て㐴㜳㘱ㄹ㌵㘴㜴愷㜹㌶㝦〲㠵晣慤㜲扤つ㝡㙡〱昸㈶㐴㤷愶㐰戴〲㐲㐲戴㄰㜲㠱愸ㅤっㅡ收㝦戵挸收㜶㌰㙢㝤搴㘲㜰〵愲㑥㜰搵搱慥㍡㑢㙣敥㑡敡愰㘴ㄱ晥慢攳挰ㄵ㠸捥㜷㐰愴挵愰㤲晤㍥㜷㥥㉢㙥㉤戰㈴昷㌹扥昴ㄳ昷戹愵挸昳攳ぢ搸㠹愰㥤〸㔹㠹攲㌰ㄲ晤㠳㠶〱换昰挳愳㜵㠱愶摦慤㔶㠱㤷㝡户㕡つ㡥换摤㉡㘲㔹搱晤㌰㈵慦〳搴搷㐱㔳戵㠲㙦㘲㜷㝡ち㜶敢㈱㈴㜶㙤㤰㘷㜶慦攵慥摣ㄵ攰ち㜶㈷搱㜲㠷慢㑥愷捤敤愶づ㝣挱㤷㐷慤〴㔷戰㍢搹㠱㕤捦摤敡㐴㔷㤸㘲㤶㈹敤㌴搸㌰扢㔷㔹愸慡㌲ㄲ挰㥢攰慡挳㤵晥㥡㔰㔹㙤㈸㔴㘵㠴晣晥㡡搲搲摡㐸愸愲挲ㄷ户慢㍦ㅤ㘵㝣〹㍢㜷〶㜳㕤㜶㡥戲攲㔵挸昵て愰慢㘱ㄹ㌵㘴㜴慦㌵㌶晦㄰ち㈷㤲㥣〷㍤戵づ㝣ㄳ愲㔸ち㐴攷㐳㐸㠸㑥㠰㍣ㄳ愲昵慥摣ㄳ挱ㄵ㠸㉥愴攵㤳㕤㜵扡㙤敥挵搴㠱ㅢ昸昲愸㔳挰ㄵ㠸摡㕤㈱㕡敥ち搱㘹㤶㈹敤㌲搸㌰㈱㉡つ㔵㔴㐵捡慢㙢㙡慢〲㠶㍦㔲ㄱ挴攴㌰㔴㔵㕡㘶㔴㔷昸昱昶扥㡡戰敦㜴扢晡换㔱挶㜷㠶㥤摢挰摣㤹㜶㡥戲攲戳㤰敢ㅦ㠸捥㠶㘵搴㤰〱搱㌹㌶晦㜰ち敢㐸慥㠱㥥㍡ㄷ㝣ㄳ愲㤶ㄴ㠸㝥〱㈱㈱㍡て昲㑣㠸㝥敡捡㍤ㅦ㕣㠱攸㍡㕡扥搰㔵攷㈲㥢㝢㍤㜵攰〶扥㜰㠲㄰㕣㠱攸㈸㔷㠸ㄶ戹㐲㜴愹㘵㑡扢ㄱ㌶㑣㠸㙡换〳愵㤵攵挱㥡ち晣昳㠷㠳㔵挱摡戲㠸ㅦ㔳㠹㙡㝦㈸㔰ㅢ昴搷晡㉥戳慢扦〹㘵㝣㤷摢戹㥢㤹摢㘰攷㈸㉢扥〲戹晥㠱攸攷戰㡣ㅡ㌲㈰扡搲收㌷㔲㌸㡤攴㑥攸愹慢挱㌷㈱㥡㤹〲搱摤㄰ㄲ愲㡤㤰㘷㐲㜴㡤㉢昷㕡㜰〵愲㝢㘹昹㤷慥㍡搷搹摣摦㔱〷㙥攰ぢ挷㈳挱ㄵ㠸ㅡ㕤㈱㙡㜰㠵攸㌷㤶㈹敤て戰㘱㐲㔴㔱㕢㕥攱慦っ㔴ㅢ愱㐸㠵扦㉡㔴㕡㔳ㅤ挴〳㔷愰戶戴愲愶㍡ㄲ慣㉥昳摤㘰㔷晦㈰捡昸㙥戴㜳て㌱㜷㤳㥤愳慣昸㘶攴晡〷愲㕢㘰ㄹ㌵㘴㐰㜴慢捤㥦㐹攱㉣㤲㈷愰愷戸晢㘸㐲㔴㥢〲搱㔳㄰ㄲ愲摢㈱捦㠴攸づ㔷敥㥤攰ち㐴㑦搳昲摤慥㍡昷搸摣捤搴㠱ㅢ昸挲㐶〱戸〲㔱㠵㉢㐴㘵慥㄰摤㙦㤹搲㥥㠳つㄳ㈲捣攸㉡㌱敢づ晢慢晤愵晥㐸㈴㕣㕢㠵㐷㈹㝦㐵㔹㈰攲慦づ㤵搶㔶晢㝥㙦㔷晦㍣捡昸ㅥ戰㜳㉦㌰昷〷㍢㐷㔹昱㠳挸昵て㐴て挱㌲㙡挸㠰攸㘱㥢㍦㤷挲㜹㈴㉦㐱㑦㍤ち扥〹搱〱㈹㄰扤〲㈱㈱㝡っ㜲㠱攸㔵㕡戵㍥㙡㤳㉢昷㜱㜰〵愲搷㘸昹㐹㔷㥤㍦摡摣㌷愸〳㝢㌴慢晥〴慥㐰㔴攲㠰㐸摢ち㔹昶愹摥扥慥戸㙤㠶㈵㤹敡扤㠵挲㤸敡㍤㠳㍣㍦扥㘷敤挴㥦敤〴昷晥昸㈹㝥ㅥ㠹晥㐱攳〵㔸㘶〳戵户㐱搳愷㝡敦㠰㤷㍡搵晢㈷㌸㉥㔳扤ㄷ㉤㉢晡㘲㤸㤲ㄷぢ敢敦㐱㔳晤ㄵ㝣ㄳ扢㍤㔲戰晢〰㐲㘲昷㌷挸〵扢㐳㤰戰㍦敡敦慥摣㝦㠰㉢搸㝤㐴换㉦扢敡扣㘲㜳㍦愱づっ攲ぢ慢㔰攰ち㜶㍥〷㜶㝡昲愹㜷㤰㉢㑣㙦㔸愶戴捦㘰挳散㕥㤵搵搵㤱摡㐸㘹㈴ㄸ㈸て晡㉢戱愸㔸㕥㕢㠵愱㉦㘴㤴㤶搵晡㉢捡慢㝣㕢散敡㍦㐷ㄹ摦㔶㍢昷〵㜳㙦摡㌹捡㡡摦㐲慥㝦〰㝤ㅢ㤶㔱㐳挶挳敥㍢㌶晦㌸ち㕢㐸㜶㐰㑦㙤〳摦㠴㈸㌷〵愲㙦㈱㈴㐴敦㐲㥥〹搱㝢慥摣昷挱ㄵ㠸㜸㠱慢て㕤㜵㍥戲戹㌹搴㠱ㅢ㜴㔶㝤〲慥㐰昴㥦敤㡥戵愳㈴㐴摢挱捤㕣ㅣ晣㤷㘵㑡搳㘰捡㠴挸㕦ㄵ㉥つ㔵㔷㔷搷㤶㤷㔵晡㙢晤㤱〰愶て㘵挱㔰㘵㘵㔹㘹㜵戵攱㉦昳晤㡦㕤㝤〱捡昸㍥戳㜳㠵捣挹昶ㅦ〳㐳㔹昱ㄷ㤰昵て㐴㕦挲戲ㅢ㐴㕦搹晣㌰㥤攰㡢㌰昴㘲㜸愲戸㤷㘸㐲昴㈹攲搰戳扣㌷ㄸ㐲㐲昴つ攴㤹㄰㙤㜷攵敥〰㔷㈰ㅡ㐲换摦扡敡㝣㘷㜳㠷㔲〷㙥〸㐴摣摦ㄳ㠸摥㜷㠵攸㕤㔷㠸戸㠳㐷ぢ摡㕥㌰㘵㐲ㄴ愹っ㠵㌰挹㡢㤴晡挳攵㝥㍣㈱搵㤴〵㐲㌵㝥㝦愰慣㌲㔲㔹㡥挹㠴㉦捦㉡愳て㐷ㄹ㕦扥㥤摢㥢㌹捤捥㔱㔶捣扤扥晥㠱愸㄰㤶昱㤳搱㡢㜴㥢扦㥣㐲扥㡥㐳ㅦ〹㑦搴〰昰〵㠲㔱挸戱㈰晦慢㈲㥢㍢㥡㍡攰攰换攳攳㌶㄰ㄳ晡晥愰㐵戹昹扢㈳敦晡换挰扤晤㔵〵㙥㑣っ敤㘸㡡㘳㤳〰㙦户㥤ㅦ慤㑢晥㘵㠷挱昶收挱㜸晢捤扡晢昷㜰散㕦扤户㡢㌵挷㤲攵昰愲㔸㙣戹㐱㌰㥥敦攱ㅤ摡㤳㜳扣㈲㜶敦ㅥ㉥摥戳㠰摦晥㌶挲戶挵㌸㌶扢昳㜲㜲搵㡦戳扦㐳〲㙦ㅤ戵㌶摣㙣㌳昱㈱㘸挶摥㉥扦㘲㌶愵㉤㈱晢㙢扢㐱慥㜴㙥昱㘸〷㈲㕡摡攴搱つ愳晤㌵昹晦挰挵昶摦㔵挴攸昷㙣㕦戱㕡㝥扣晡㔸㔸㔵摣〰愲㐹戲搴〸㘴㠶㈳㤱晥搶捥ㄷ愱攰晡愲搳ㄷ㉣㐱挶㡢㑥昷㠵㈵戹㈸づ㐶㈵㐸㥢ㄷ㐵㠹捤㉤㘵搵攰昲㉤㠲㍥敥㥦㈰敦搱换㐰㜱㔱ㅣ㠰晣挴散愱㜴㙣ㅡ㡤㐷㑣㔳㕥㕣㍥ㄵ㉦㈲㕦㡢㉥散挹挵㙦晢攵㑢愸昳㜲づ搹㌵㕢摣㈲㘶戰昸㍦晦㔹㌴昴晦㘰㈷ㄳ㠲晤搸攰ち㠶㠱摢㉦散〷㑡攷挶㡥㔶〹㥥㘰㡤摦昱㜸ㅡ戵摡攰㜸昵㙡㙡㡦㠵㡥捤㔲摣〱㜱挳敢昱㙣㜸㙤戲〴ㄹ㙦㔹攵㜶㠹攰㌵ㄹ㤵㈰㙤攲攵户戹㠷戲㙡㡢敢攳捥〷昲昸晤ㄹ搰愲㕣挵敤〶戳〱摣挸搰敡挰㐵〳愶㡦挶〱㥡〷㔳ㅡ㔰㑦㉢㤳愰㤳㙣〰昷〷摣ㅡ昰扢㙣つ戸捦ㄲ㘴扣〹㜵㉡㉣㐹〳㥡㔰〹搲㘶〳㘴㤷㠰慥捥㘰搵㜶〳㥡㈰㐷摥愳ㅦ〱㡡〶㜰つ摥㙣挰㉣愴戴㔹攰㥡扤慤㔶摤㤱搲㠰㘶㕡攱晡㝤戲〱㕣㌴㜷㙢挰㉤搹ㅡ㜰戳㈵挸㜸㉦㈹㔷搸愵〱ぢ㔰〹搲㘶〳㘴改㥣慥㉥㘴搵㐸昰攲昶㉤㠱ㅣ㜹㡦扥〸ㄴつ攰ち戵搹㠰愵㐸㘹㐷㠱㙢㈲㔰慡慥㑦㘹挰㌱戴挲搵敤㘴〳摡㤰㜱㙢挰戵搹ㅡ㜰㡤㈵挸㜸㜷攸ち㔸㤲〶〴㔰〹搲昲摦挷㐵㘸攴昱攷㌱㐰昵㄰㐹ㄸ挴敢敢愰ち㍥㑡㤶㥥㤱搰つ敡攱挳搷㐸昹戸搸捣扣ㅥ〱㐵ㄳㄳ挸㜳㘰㔰ㅢ㔰㍦㝢愳㜴愰㔶〸ㄵ㔷㔶摤㥡㜰㐹戶㈶㕣㙣〹㌲㕥敥戹㥥ㄵ戰搲㑥搸㐵㕡晥慢㤳㙣㙥㤴戵㠱㡢㉦㡦慦ㅢ㕣㈶昴㤵愰㜰㤰换㤸㈶〶愷㈱愵挵挰ㄵっ昰晢㈳攷愱㍥㍢攰㕥㍤〱㠹㍡〳㍡㌶㑢㥤㠷㡣㕢〳捥捡搶㠰㌳㉤㐱挶ぢ㌸戹㐸㈹つ㔸㠷㑡㤰㌶ㅢ㈰慢㡦㜴昵〴㔶㡤㠴㕣㐴㕣㙦㐴ㅥ㉦〱〴㐵〳戸挸㘷㌶㠰换㠷摡㐹攰㥡つ愸㔱㍦㐹㘹㐰㌷慤㜰㠱㌰搹㠰㙢㤰㜱㙢挰晡㙣つ㌸挱ㄲ㘴扣㈴㤳㑢㜸搲㠰㌳㔰〹搲㘶〳慥戳戹㘷戲㙡㡢敢扢ㅥ㕣攴昱ぢて愰㘸〰㤷挰捣〶㜰㜱㑤㍢〷㕣戳ㄷ㤴愹慥㤴〶㥣㑢㉢㕣㍥㑢㌶㠰㙢㔶㙥つ㔸㤹慤〱㔱㑢㤰昱㈲㑢㉥㜰㐹〳㉥㐲㈵㐸㥢つ㤰㤵㉢扡㝡㌱慢㐶㐲㄰攰㕡ㄵ昲㜸㑤㈱㈸ㅡ挰〵㈲戳〱㕣㝡搲㉥〵搷㙣㐰㠵㙡㑢㘹挰攵戴挲挵愵㘴〳㥥㐰挶慤〱攱㙣つ〸㔹㠲㡣㤷㑤㜲昹㐷ㅡ㜰㌵㉡㐱摡㙣㠰慣敢搰搵㡤慣摡㙥〰㔷㜲㤰挷戲㉣㈸ㅡ挰攵ㄳ戳〱㕣㤸搱㝥〱慥㜹〹搵慡㘳㔳ㅡ㜰ㅤ慤㜰改㈵搹〰慥㜷戸㌵㘰㜱戶〶㉣戲〴ㄹ㉦㠴攴攲㠸㌴攰㐶㔴㠲戴晣昷扤捡ㄴ㍥㑡㤶㍦㤰搰㙦㠲㤸ㅦ㤹㠳㜰挱㠳㜹晤㘶㔰戴㠴ぢㄴ㌲摣捣㐳㌵挹攱收㔶〸搵㝢㄰戹㜹㍡㍢㥢愷戳㉣㐱挶㕢ㄸ戹ㄴ㈰㥥摥〵扢㐸㥢愱晥挸收摥捤摡挰㤵㙢㠵㑦昵挸㝢昴㝢㐰攱攰攷挸㥢愱收㐳扡㜶ㅦ戸〸㜵挳㘸㥣㌵㥥㠶晡散戸㝡昵晢㘹㠵㡦攱㌶㑢敤㐰挶慤〱㔳戲㌵愰捥ㄲ㘴扣ㄱ㤱て捡搲㠰㠷㔱〹搲㘶〳攸愷㜰ㅦ戱ㄲ搲〰㍥昳攲〷㉦㈸〷㐵〳昸愰㘹㌶㠰㡦戰摡㈶ㄲ㘹㐰戹㥡㤸搲㠰㈷㈰㔱㝣㐸㑤㌶㠰㑦㠶㙥つ愸捡搶㠰㑡㑢㤰昱搶㐲㍥㐶㡡慢㥢㤱㐸㌶㐰㥥て改敡㌳㤶㔸ㅡ挰㈷㐲晣攰摣㍡㈸ㅡ挰挷㌰戳〱㝣挰搳㥥㈳㤱〶㤴愹㠳㔳ㅡ昰〲㈴㡡㡦㜰挹〶㡣㐴挶慤〱攳戲㌵㘰慣㈵㐸㝦戳愰㡦捦㕣昸昱攸晦〰搵㕦㈲㜹ㄹ挴敢攳㘳ㄷ㝥昰㠶㜳㔰㑣慡昹挰㌵㉥晢㐴搸㝣㈵㑡捦㕦㍡攲㉢捦昲㈳㍣㙥㌷㈰㘲晥愱㈱㑥㠷攵搵㜲敤㜲㔶㙤㈰摥㡥ㄲ挳摦ㅡ㥡㠹㤷晤攰㥤㈸昸㠳㜶搶㌱㉤扣〴㠸慦㘱戰摦扦愱㑢㡥㠵戵㐸㜳っ㉦攴㈸㠸㌴挵昱㑡愱㜰㈱晥㜰㐷〲㝦晢愹昳㠷㜰㙣ㄴ愷〷昳〸㌲㉥〲扥㝡㉥挷昵攰ㅥ㑦攴愵扦慦挳昱摥愴㥥㜸搸㉦搰捡攱㑢㔵㜶敤搰愸昶㉡昰攲㠳㈸晥っ㘲㍣昵敦㌹攴愸㔱戸ㅡ㘴㐹攸㠳昲扤攴挱㡤㘳㠴晥㍡㑡㘸㙦㠰昰㑦㕣㈸㘹つ㡥㘰敢㕢挰㌱摦㜰戱㡥敤换攳㔳㕦㙦㡦㥤散〵〵ㅤ㉤〱晥㈵捥挲㡥㤶㜶愳㜳㔹愲㌵昹搷㌷㜱ㄴㄸ㝦摤㐴㝦ㄳ㐶㔸㠳㜴っ㍥攲攱挷愳扦〵慡扦㑤昲づ㠸搷挷愷㍣晣攰戵㥥愰攸㌱㝣扥攳㜵愸戳㜱㌹㙡㤸㙢㌳摥愳〲㥢搱搳㠴て挸愲昷㐲㍣昹㝣㙣㑡㐷㠸攷㐱㜹攰〴慦户㑡昹扢㍦〳〶㄰戶昹ㅢ敥㍦晣㍦ㄵ挷搶㈹㍥㐳㌱〲晡㐷㈰挹ㄶ昰愱〷㍦ㅥ晤㘳㡡㍥㈱昹ㄴ挴敢攳㜳て㝥㍣晡扦㐰搱〲㍥昱㌸㕡㔰攴摡㠲捦愱㤴搶㠲㉦挹敡㘹㠱攲㤳㤰戸昱㌵ㄲ㐹㌷㥡㤰挱て㕥㄰〹慡㝦㐳戲ㅤ挴敢攳搳ぢ㝥戰㙣〹ち㌷昸摣㐲㌷戴晦㠰㘴扢㑡㜲㕣㥤晢㡥挵㜸捦㑢扤㑡昸㐷ㄸ㥤づ㌶㐳㑤ㅣ捣㠵㈰改㈰ㅦ㑤昰㠳㠳改㔴捦㈷搱㐰扣㍥㍥㥤㠸愰〰㔹㌸挸攷ㄲ㐷㥣扥晡挶敤㠲昵戲㝣て搲戰愳て㈴换ㄱ愷㘳㘰㐷摣ㄸ〴㐱搲つ㍥㘰㐸㙤挵㔴昷㤱っ〶昱慡㈰戸㜲搷晥ㄸㄵ昲慥㍤ㄸ捥ㄶ㘲㘵㠶捦ㅤ㈲昸挸ㄲ昰搸㔳㈱㝥㠹㉢㙣ぢ㍥戴〴㜲ㄴ㙡㈸慣昹っ㠸昰攳㈹捡㔳ㄱ㝣㑢扣昷㠰㈰㕢扣摦戳ㅢ㠹㉥搹搳㉢㠷搱扢戳㘰愶攷㜲ㅥ㑥㤶愳㤱㝣㠸攱㈵敤昹㙣㐰㥤㘷摢慦敡㝣㝣晡㘰㕥ㅦ㐱捤㝤㐸昶〵昱晡愲戶㘰㍦㘴ㄱ㘶㍥㝡㌸挲晣㠶敤㐱捡戸㌰㤲攵㝢挲捣㌱㘱㌴㔹づて昸㐸㈲㘱㍥〰㠲㘴㤸搷搹戵ㅤ㐸昵㌱㈴㘳㐱扣扥ㄳ㙣挱㌸㘴攱〶ㅦ㈰ㅣ㙥晣挵搵㡤ㅦ戳㝣慡ㅢ〷㤳攵㜰愳摢㜶愳っ㠲愴ㅢ㘷搸戵㤵㔳扤㠲挴て攲昵昱㘱〰㍦㌸㕦㠳㉣摣攰㘳㠰挳㡤㍦扡扡㔱挳昲愹㙥ㅣ㐲㤶挳つ㍥ㅥ㐸㌴㈶㐱㤰㜴㠳昳㜹愹㙤㌲搵て㈵㌹っ挴敢攳㤴㕥〴㠷㈳ぢ㌷㌸㤹㜷戸昱愰慢ㅢ昵㉣摦攳〶散攸㔳挹㜲戸挱㐹扥戸㌱つ㠲愴ㅢ㥣㤵㑢㙤搳愹摥㐴㌲〳挴敢摢㘸ぢ㡥㐰ㄶ㙥㕣㠳扣挳㡤㍢㕤摤㤸捤昲愹㙥捣㈱换攱挶㜵戰㈳㙥捣㠵㈰改〶攷搶昸挱㘶㈵搵攷㤳㉣〰昱晡㌸慢愶〰扤㠶㔳㘹㝡愰㉤㠴㈴㕢慦戹挱搵慦挵㈸愱ㅤ〵㤲㍡㑡ㅤつ㡥搳㌷捥挷搹㜳散攱摤挷㠹㌴㝥昰挷㍣愹㜹㉣挹㜱㈰㕥ㅦ攷搲㈲㘸㐱ㄶ搱攱㉣㕡愲挳ㄱ㌴㐷㙤㜴昵㈲挸昲ㅣ㉢捤扥㑢㤰挲㘴㌹愲㜳㍦㡡㑢㜴㈲㄰㈴愳昳㌰戸昸昱攸换愸摥㑡搲〶攲昵㜱㐶㉣㠲攵挸挲つ捥㠵ㅤ㙥㕣攲敡㐶〷换愷扡ㄱ㈵换攱〶攷挸攲挶昱㄰㈴摤攰愴㔶㙡㡢㔱㍤㑥㤲〰昱晡㌸慦ㄵ㐱ㄷ戲㜰㠳㌳㕡㠷ㅢ㘷扢扡戱㠶攵㔳摤㔸㐷㤶挳つ捥㜴挵㡤昵㄰搸㙥㈸㑥㑤㘵昰㍤ㄵ㜶㌹㉡㑦㐲㘸ち㜳㌴挵改慡〸㑥戱〴㤳㐵愰ㄴ愷戰㈲昸㠹㈵㌸㡣挱散㠶搱㝣㑥㘷搳㝦㤷挶㌱〹㜳晣㔶㑢㈱换㜴昰戵戹㥣㡦㜹㍢愶㜶㜶㤹㝦㍦㑥敢攰晢㈴㍢〷㕢扡攳㤳㍡扢㈵㌹㐹摤㐱㐹㤶㤴搹换㝣㌷ㅣ晦ㅡㅦ㔵挶昷ㄸㅤ㥡㉥ㄱ㝤㌸㡢ㅦ㡦㘷㘴昶㤹户敤㈰㤷㤹ぢ㔵㥦ㄵ昱愲㐹戶敦㈷㔶愰㔵㑦㡡㜱㔷昹㥣つ昶㜹戲捡㐷愰㕤晣攵㥦㔳攰㠰摡㠲捡攴㌱敡㔴收㔸㍦晥ㄷ㜳㤲挸〴㌷㤴㍣㡡㤳㐳挱㜴㝤摡㔵挰〹愳〸㑥㐸扢ち摥戱〵敢㥣㔷挱㤹慣㠲ㄳ㑡㕥〹晡㔹挹昶㈷㔳搲㝥昵ㅥ愴㡣㠱㝥㌶昵㌹㠳ㄴ〷捦㜱㍡挸㌹㘰㡦㠳㥣晢㠹ㅦ㕤㘹づ㜲㍥㈸㠲㐴㥡㠳㥣㈳㡡㈰敥㜴昰愷慣㠲昳㐵㜱昰晣愴㠳挹㤴改㈰㘷㠹攲攰〵搴攷〴㔱ㅣ扣搰改㈰㘷㠷㍤づ㜲㔶㈸搵㜵愶㌹挸㤹愲〸㍡搲ㅣ摣㙥ぢ摡㥤づ晥㡣㔵㜰㈶㈹づ㕥㥡㜴㌰㤹㌲ㅤ晣づㅡ攲攰㘵搴攷〴㔱ㅣ扣摣㑡㌰㔳捣搹㘱㡦㠳㥣ㄵ㡡ㅦ换搲ㅣ攴㑣㔱〴㤱㌴〷㌹㝢ㄴ㠱攱㜴昰㑡㕡㉤〰ㄱ〷慦㐲㐲㍣搲㤳㈹搳㐱㉦〴攲攰搵搴攷搴㔱ㅣ摣㘸㈵挴㐱捥ㅢ㝢ㅣ㉣㐶㑥慡㕢㥡收㈰攷㤰㈲㘸㐹㜳㤰昳㑡ㄱㅣ攷㜴昰㤷攰ㄶて〵ㄹ㠴㈰ㄴ㍣㥦愳昰㘷戰挶攵晥㍢昷搸㥣戲晣㙤㥥㔵㜰敦㈸㙣ㄹて㔷㜹ㅥ㌵っ㕡攲攴㜵㐸㈸㑥晤挴挹㕦㈱挱㔶㐸㑢㐶㈰㈳㤵ㅣ㥤收搶㍥戶攰愸㌴户㌸ㅤ㤴ㄲ㡢㥤㙥摤〰慥攲搴㔰攲㜶㈳ㄲ㘲㕥㑦愶㈴慢㌸㈱ㄴ㤷㙥愲㍥攷㠲攲搲捤㔶㐲攲挶㠹㘰㑦摣づ㐴㑥慡㥢㤷收攰ㄸ㕢㌰㌷捤挱戱戶攰㐸愷㠳户搱敡㌸㄰㜱昰㜶㈴㑣〷㤳㈹搳㐱㑥ㄵ挵挱㍢愸㝦㌰〹㐲愵摦㘹㈵挴挱㌲㉢㘳づ㉥㥣ㅡ㡡㠳㌳搳ㅣ攴㜴㔱〴㐷愴㌹挸㈹愴〸㘶㌸ㅤ扣㤷㔶㉢㐱挴挱晢㤰㌰ㅤ㑣愶㑣〷㙢㈰㄰〷㝦㐷㝤捥ㅦ挵挱晢慤㠴㌸㌸挹捡㤸づ㑥㐶㑥慡㥢㥡收㈰㈷㤲㈲㘸㐸㜳㤰㤳㑢ㄱ搴㍢ㅤ㝣㤰㔶て〷ㄱ〷ㅦ㐲挲㜴㌰㤹㌲ㅤ攴昴㔲ㅣ㝣㤸晡㥣㔹㡡㠳㡦㔸〹㜱㜰㥡㤵㌱ㅤ㥣㡥㥣㔴㜷㘸㥡㠳㑤戶㘰㜲㥡㠳㌳㙣挱㈴愷㠳㡦搳㉡愷愰攲攰ㄳ㐸㤸づ㈶㔳愶㠳㥣㜸㡡㠳㑦㔲㥦㜳㑥㜱昰㈹㉢㈱づ㜲挲挹㠴改㈰㈷㥡攲㘰㜵㥡㠳㥣㝣㡡愰㉡捤挱〵戶愰搲改攰㘶㕡㕤っ㈲搵㍦挳摣搱㈴扣挲㥥戵ㄲ捣愸㈵挸㠸摤戲戴ち㡦戵〵愵㘹ㄵㅥ㘷ぢづ㜶㔶昸〲㡤戶㠰㐸㐴㕥㐴挲㡣㐸㌲㘵㐶㠴㤳㑤㜱改㉦搴攷㍣㔳㕣晡慢㤵㘰愶㌸㘲㘵捣㠸㉣㐳㑥ㅣㅣ㤷收㘰慢㉤ㄸ㥢收㘰㥢㉤ㄸ攳㜴昰㈵㕡㕤づ㈲づ扥㡣㠴改㘰㌲㘵㍡挸㘹愸㌸昸ち昵愳㈴㡣搹慢㔶㐲ㅣ㍣摥捡㤸づ挶㤰ㄳ〷㐷愵㌹ㄸ户〵㈳搳ㅣ攴昴㔴㑡晣挸改攰ㄶ㕡敤〲ㄱ〷户㈲㘱㍡㤸㑣㤹づ慥㠱㐰ㅣ㝣㤳晡敢㐸攸攰㕢㔶㐲ㅣ㕣㙦㘵挴挱㘲捥㈸ㄷ㐱㈷㘷㡤ち㉤つ㉦㕤晡㜵㜱㕥挹昰扣挵㠷て摣戰攵改㌷㉦晡换㤲挹摢㜶㕣㜹攵㕦摥扥㘸昳㡥〷㠲㤳㥦晣挵㉦㌶捤搸戸昹捤摤㈲搷攴摣昳昵捣㙢搶㤷慤㔸㝦㝣㘴挱戸㘹敢㡦㕡㝥㘴搹㥣挱攳㜳㜳ぢちづㅣ昲搴戰㌱扥敥攳敦㔳㡦扣戴㘷㘷晥㑦㔰㐱ㅦ愶㜴㜴㙤ㄷ攷㕦㙦戳㐱㌲〹㘳㕢㜳ㄹ〹敢攳㍢ㄵ㈲摣挳戱晣㠶㐴㔱㙥昱㤹昸敡捦搶慡戳㔰〱㕢慣㙦〳㔱㘷㤳戰㝡攷〱㐷摦㌹攰㡡㔳敦㈱〱愷㌸㕢敡㔷愷捥㐷〵攲搴晢㐸㈸㤹㙣搱愹㤴㐸㕤〸㤱㌸昵㈱ㄲ㜰敡㘷昸敡㔷愷㌸搵ㄲ愷㍥㐲㐲挹〴㉢㈳㔲㤷㐳㈴㑥㝤㠲〴㥣扡ㄲ㕦晤敡ㄴ愷㔷攲搴愷㐸愸慢㐹㌲㈲戵ㄱ㕣㜱敡㝦㤰㠰㔳㥣〹昵慢㔳㌲㙤愲ㅢ㥦㔹晥昰㘱挲挷改㤳戸昱㌹ㄲ晡ㄷ㈰㐵㌹挵㌷攰慢㕦㝤戹ㄱㄵ㐸㠰扥㐴㐲挹散㈹㈳㐰㥣㐵㠹㘷㕦㈳㠱〰㜱捡搳慦㑥㜱敥㈴㑥晤ㅢ〹㜵〷㐹㠶㔳㜷㠲㉢㑥㙤㐷〲㑥㜱㥡搳慦㑥摤㠷ち挴愹ㅤ㐸㈸㤹㈵㘵㌸㜵㍦㐴攲搴户㐸挰㈹㑥㙤晡搵㈹捥㤱挴愹敦㤰㔰㌲㌳捡㜰敡ㄱ㠸挴㈹㠵㔳㠶㜰㡡搳㤹㝥㜵㡡昳㈲㜱㉡〷ㄵ㉡㤹つ㘵㌸挵㔹㤱㌸㤵㘷㍡挵㈹㑣扦㍡㈵戳㈲扡㘱敦㥡㈳㡤㐳晡戶ㅢ㥡改〶㈷㌶晤敡〶㘷㐸ㄲ㥢〲挶㐶收㐵㜴㉡攵㝥挲昹㤱挴㐶㌷㥤攲㘴愶㕦㥤攲慣㐸㥣昲搲㈹㤹ぢ㘵㌸挵㌹㤱㌸㌵搰㜴㡡ㄳ㤸㝥㜵㙡慢敤㔴ㄱ㥤㤲昹㑦㠶㔳㥣〷㠹㔳挵攲㤴㤲㤹〳戵㥣户㐲挵戹㠲捣挰㍥昹户戹㔸㌷〵㉡㠵㜸ㄵ戰摣搳㌳搴㜹ㄷㄷ昵㡦搳搴攵㙥㥢愱捥晢慢愸㝦㤴愶㉥昷㐱慡㍢挱㔵扣昳㠹晡〷㘹敡㜲㠷捡戰捥㝢㤲愸扦㤷慡敥攳扤㐳㥡㍥捣㙣㍡敦ㅡ愲戸㉤㔵㔱昱㑥㈲㠲㝦㕡〲ㅦ㉢搹㥢㐱㤵㌱㍦愳㑡㡥昲㔲攰慤㌴㑢㌲ㅡ㘷愸㜳晣ㄵ昵㌷搳搴㘵㥣捣㔰攷挸㈸敡㕢搳搴㘵〴换㔰攷㤸㈵敡㕢搲搴㘵㙣挹㔰攷㘸㈲敡㙦愴愹戳㝦㡢攰昵㌴㠱昴㐳摡㐹㐱㠹㍤㑦搴㕦㑤㔳㤷ㅥ㤲愱捥㍥㈱敡慦愴愹换戵㥢愱捥慢㔵搴㕦㑥㔵捦㈷㤶扤晣ㄹ愳㥥敤昸晦㉦ㄶ㠲て㐴㌴㜸攳挷㈹㘲㍢㈵㔹挵㡢㔷㥥㡡挶㤰㑦愱㡣㕥㘳㤹ㄳㄶ㈳㍥づ㌹㝥昸ㅢ〵㑡㐴㐸攸攳㉤㉥㈵㍥㕢挵㘷㜳〷晣㉦昷㘷㈸捥 | D27: 㜸〱攵㕢つ㜰㕣搵㜵摥扢㍦㑦㝢㔷㝦敢㍦挰㘰㘰〹㌶ㄸ㐴ㄴ换㤲㙤ㄹ㘲㙣㔹㍦戶㡣戰㠴㈴㥢㝦挴搳敥㕢㙢昱敥㍥㝢昷挹㤶〸〹㈴㌱㘹愶㈱愴㘵ち㠹ㄹ㈸㝦㈱㉤敤戴㤰愴㈵㙤㐳ㄸ㕡〸㈴㠴㜴搲㤴㘴㥡戴愵㐰㑤搳㌶㘹挶〹㘹㑢愷㈱昴晢捥㝢㙦戵扢㕡挹㐶㌱㌳㥥改戳摦搹㜳捦晤㜹昷㥥㜳敥戹攷㥥㝢ㄵ㔰㠱㐰攰ㅤ㍣晣攵ㄳ㈶戲㘲㘴扡攸㔸戹搶㙥㍢㥢戵㤲㑥挶捥ㄷ㕢扢ち〵㜳㝡㈰㔳㜴㐲㈸㘰㡣㘵㤰㕦㡣㡣ㄵ㌳㌷㕢搱戱〳㔶愱㠸㐲㤱㐰㈰ㅡ搵㐱攴戳っ摦戸㥦搰㑣改㌰〱㑡〵ㅡっ㠰搱敥慤㠳攳㌷愱晤ㄱ挷㉥㔸ㄷ㈵㜶扢慤㙣㙡㙢㙢㙤㙢敤搸搰戶扥㜵捤㐵㠹敥挹慣㌳㔹戰㌶攵慤㐹愷㘰㘶㉦㑡っ㑤㡥㘷㌳挹换慣改㔱㝢慦㤵摦㘴㡤慦㘹ㅦ㌷㍢㍡摢㍡搶慤㑢㙦摣搸搹㔰㠷㤶㜷㜶㙦ㅤ㉡㔸改攲㠹㙡㌳捡㌶〷扢户戶敥戴㥣ㄳ搵愶㐶㥢㘸戲挷捥㤹㤹晣〹㙡㌴㐲㉥户昷㔸挹っ挵㘱㔹㠵㑣㝥㑦㉢扡㕤挱㘸愴㌶戴昶㠱攳㐹戳攸㜴㕢搹散戰㤵㈶搳ㅡ㜲攴㤹㔵戰昲㐹慢搸㤴敢㥤㑡㕡㔹㉦扢ㄸ捤敤㌶ぢ㍢捤㥣ㄵ㈶搲㥣㜳攵搶㥦戲昲㑥挶㤹㙥捣敤㉡㕡挳㘶㝥㡦挵㈲㤱摣戶挹㑣㉡ㅣ㔶攱㜰㈰㜴㝥慤捥㠸㙣㕡晢ち挹敥〹戳攰㐸㡡ㅤ㘸慢㔵戶㑣㐳愴攳ㄵ摤愲ㄶ㈵慡㙡㔱㑣㈳㤹摣㘵㔶㈱㙦㘵昹ㄱち慦愵慡㤰昰挴㘵㝤㠹㌹晥㘸㈸ㄸ㔵敦捤〰づ㠵㕦搱㌱㠲㝡〰愳〱㈰搸搳慥ㅢ㐹㘹〲㔰攱㥦㘱〲㤵搷㘰戹攰㤸ㄹㅣㅢて㡥㈵㠳㘳愹攰㤸ㄵㅣ㑢〷挷昶〴挷㈶㠲㘳㤹攰搸㑤挱戱扤㈸攳㍦搱扡扡愰昷慣㕡昴愹㑦敢敥敦敥昸摣挴敤摦扥㉤㔴扦㑢㜱捥挸攴㠹〳搱㡢〰㡣挵〰慤扢捤慣㕤㐸愴慣㙣㘲愸㘰㑦㘳ㄶ搹㠹㤴㤹戲ㄳ晢㈷慤㐴㈶㥦㐹㘶昸㈳ㄳ昳搹㉦攷ㄳ㝡〹㙢㉦〵㔰敡挷攸㉤㝢扣㈸扣㜲㙦捦摦㜶敥㝣散㝢慦㍥ㅡ㙥扤戶㕦㜱㘶捡愷㑥㘱攱㔳〱㡣搳〰㠲㍤ㅤ㝡㌹㈹愷〳㈸昵㠶㔷晤㌳㔳㐳㙦摦昳㘴㝡摢愱〷て摤㜹㝢㥢昹挳㠶ㄵ挸扥挲攳㕢㑦挱㍣〸攵㥢搱敢戵慤㙢昸敦搸ㄳㅡ昳㌹扤㉥扤㈱摤搶㤶㕡户挶㙣㌷㈳攴晣昱慡ㄱ〷搸㤰扥㌲㤳㑦搹〷㐵慦ㅡ搲㝤㤹慣㘳ㄵ㈴搱㥣挶㡦㍢㌷㈴摤㤸敥㥤㠲㔱㐹扡㉡戸㌴摤㙤ㄵㅣ㑣㐶㘷㝡㐶㉦㔷㙣㌵㡢搶㑣戲挵㙢㝢慢㍤㤹㑦ㄵ捦愸㥤㌹攲㤸㡥㜵㝡㜵摥㑣㈳戳慡㡤㘰愲㕡㐵改搲㔹搵搵㈰收㐹慢㙢㉡攳㘶㥦㔹㤵㡤㈹㙢㡦捦㥤摢㔷戰昶㤷㜲㘷昵愸ぢ㤶晤㠰戴㍤㙢㤴㙥㤶摢慦㐴昷㠴㕤戴昲搲扤㤶摣㔰㈶戹搷㉡㡣㔸㕣ㄷ慣㤴っ㜵ㄹ戳㍣扢搱㌲㤸挷㐰㘱〹㔲敦㉢愷㤲搱㔶㍥㘵愵搰摦㝤攰昲昴愸㌹㥥戵㑥愹㈸攲㝥ㄳㄹ换㉢挸㝤㜶㜲戲搸㙤攷㥤㠲㥤慤捣改㑡ㅤ㌰㘱慢㔲㤷摢㈹㉢㉣㑦挰㠵㉡㄰ち㈹ㄵ㔸㕤㙢搲戳敤㈲捤㐲㤹㤲搰昸捣㕦戸㑣㠹㔸戸愶㌹㈹戵っ愴㑣挹㔸晥㠲㜹㝢㔲慥㠴㉣扤㘶摥搲㌵㤴㤴㤵㑥慢㥣㜸慤挳㤰て攴㤰戵㌸㉢㠳㉢攷㙥㜲㐶㉦㡦搱搳㌲愹搰つ㘰改㜹㤸㈶捤㤶㜴敦扤㉤ㅣっ㉥昱㐶摦㝢〰㉢搲㜶㌳㥦捡㕡㠵㜹㥤ㄸ挵ㅥ改㌳〹捥㈲㌸㥢㈰㐱㜰づ㐰攴ㄵ搸戸㌹㌹㑡㡢慣愶搴㜴攴㘰㈶攵㑣ㄸㄳ㔶㘶捦㠴〳ㅡ㥣㥦㘸㤴散扥〳㍥㤴㠹摦慦挰㤸ㅥ愱㍦愵捦㈵㔸㐹戰ち㈰ㄶぢㄸ攷攱㌷㘰挴昴昹晣㔹つ戰㙣㌷扡㙥收㑤㤸昴挴扥㠲㜵〰㑢㌸っ㜷㑣㐵戸㤸扣晢愵㤱㡥㤷㤶㤵ㄸ慥㔲㌱㤲挳㠲㕦っ㠵㙡昱㘴扢㔹㥣㜰㌸ㅤ攷捤㤴㐵昰〲㌶㝡㈱㐰㐳ぢ挰捥敤㔶ㄶ㤳昹㐴㜹㔹ㄱ㉥愸挷㕣捤戹昶㥤㤲ㅢ㤹捥㈷㈷ち㜶ㅥ摥㘷㡦改㤸㕤㐹戸㉣㐵㘵ㅡ戹〱扢㝢搲㌱㜲摢㌳昸㘹挸つ㕢晢㉣搳改㠶戱㜶ㅡ㜳〳㜰㜷挴㥡昶愷愶㈲㌹搷㔳改戱㡡㐹㑤㤷愶ㅦ挶㘹捡〰〶㙢摢㤰愳戹戱愶ㅣ㌶㕤㤷ㅢ㌲攱ㄲ㌹ㅡ㠵㕡愴㤶㡢戱㘶愳搰晣摡㌱㉦㠵ㄶ攲㠲㤶戵㔲㉦〴户愵〰昵〷敢㈸搶摡戰〷慢攷搱㉥㈷㤳㉤戶㝡散㙤敤戱攱昲㕡攲㝦㤳敤㠶〱㌵㌳收ㄵ㔶昵㜴愷㑦㌴㤸ㅣ㜷㥢㐵㔷戶ㄵ散挹㝤昴㡢㑥㔸㍢ㅣ㤲扥〸攰㠱㥦晤挱㈵慢敥㝦晣ㅤ敦昷㔶㑣㈴㜹㌴摤㈶㑤慤㘷ㄲ㍦昲攸て攰㈷㌶㕦㕥㠴ㅥ㔶㑤㝢㍢㠷晢㈶摢㡢ㅣ㐶㍢㕡戰挴ㅦ㡤㑡㘲㝡㥦搵㤸扢搲㉥散ㅤ户敤扤ㄴ㝥㤳愴㡡ㄳ㤶攵搰挹慢昷㝣㕡攲㑡愹㔰愸挲㥦㉢昳〶改ㅥㅡ敤〰昱㔱㍢㘵ㄷㄳ㔹扥㤹昱㠲㕤㌴㍡㐰つ㘱㘹㌱搶〱改敡㑡っ昷㜶つ㈴〶㠷㐶晢〷㜷㈶㉥ㅦ散改ㅤ㐸昴つづ㈷㐶户昷㈶㜶㜷つ散敡ㄲ晡㘰㕦愲㝦攷捥挱摤㙥㙡㘸㜸㜰㐷㙦昷攸㐸敢㔴戶㤸㔳㉦㠲㔳㜴搴敥㙤摡㝣昱㙤㝢㍥㝢搹摤㘷扥昰㑡㜲昵慡㘵敡㥢㕥挶㉣㘷㤱㍥愲㜸慡㥤㐰昴㐶㠲㡢〹㉥㈱昸㈰㠰㝡ㄶ㔵㘹摤㥥㐷攲㐳㜸㉦挴挴㍥㈴㑥摦愵㉣戳㤹㘰ぢ〰㙣㤴㐸ぢ㈶㙡㉢㤲㐶㌷㐰㌸搱㝢㤳ㄵ㔳㡡㑥㈸慤㤲敥㈱攸〵㔰㜴㉦㌹㝦〳扡て㘰㑥㈵攰散㥤慤〴晤愰挶昴㍣㜹㡡㝥ㅤㄵ㐱㤳昱㥡㝣搶攴戱㝡挲㘳挴㉣づ㍤敥㘵捣昲㜱改摡ち㠷㠶搹挸〸挱㈸挱㉥㠲摤〰敡㌱㡦㐳挰㉢ㅦ㝤ㄵ搲晡㙡㠲㙢〰捡㌸㜴ㅤ㤲挶昵〰愷扡㙢㜹㤲愶㍢㘱㑥㍡㜶敥搹㠷㥣㑣搲〴搳攸㑥ぢ搳㙥〰愲挷〰ㄴ㥤㙡㤷㘹㌷〲㥢㤳㘹昴挱㘷㌳㉤〹㙡㑣捦㤳愷攸慥搷㘲摡㍤㜳㌱敤㙥㉦愳摡戳㡦㜰㥤慣戶㔱戲㠵㉡昹㍣㘵摥ㄴ㍦㘹愴㜷攵㌳㑥戱㍥摤〵ㅥ昴㘵㥣㥥愲搳㤰〶〰㉡㔵㑥ㄷ昷愰慣㔲㑢㝡㜷挶㍡㌸㡡㔹㝡昶散㉣散㉥扢㈷㡢㘰㈶攷敤㔹戳昳㝢散㥤戶搳㤳㈹敥换㥡搳㉢㙢㘴扢㌹㔷㑥㔸㜹昸慢〵戸慤挷㉡㘴敦摢㘷愵㙡昴㜱挴㥥㉣㈴慤晥㥥㤳挱攳㔵敥㍡ㄲ㠰愹挲㉡愲㔶捤敤攱㤵昱㥤㕥㑦㄰收㑤㉤搰㘱愲晤㠶㕢㐱ㄸ挰㐷㘳㌱㥤〷㠶㤹㄰愱ㄷ㌵扦㡡㤴昹搰㥣〷戱㌴挴敡搲ㅡ扤㑤㕡㝦扥㤸㐹㔹㌱㉦㜵㜹㈶摦攴愱㠳㤳㑥㐵㡥㌹戵挴换改捡㘶〷昳㄰㝤搲㉣愴㑥〶愹㘰㘰㜸㕣㤱㈸〳晦ㄶ挶㘸㌰户昲㜹㙢㌳㈶扢つㅡ㜹㑤㘷戵收㤲㔸㥡㡥㐰捡戶㈰捤㈸摦㐸㜶㤷挸㔱愶㉥户捣扣㐸㘱挴㐹昵㔸〷㥡愴㠴〵〵㐷㔰㈷㙢㉤愹㑣㡡㘷愴搳㕤攳㐵㍢㍢改㔸㑤㈵㑣㈶扡㑥て㕢㔹㤳摢挹㠶ㄲ㌶㤴㜴戰攱㉥戵挷慤攲挹㈳㈱㜰㈴散㐹㐹㠹㥣㡣㜹㤴户㜲㄰㥣㐳ぢ㤷㙡㕡㥥㥦㙥㔶昷ㅥ收昳搸收㠰㡦挴昸〴㈲〹㌴㝦晣晢㐵捥愴㈵㝥ㄸ挳戵㜰㘲扣ㅡ㝣ㅡ户㙡㡤㘹戱㝢㠸挷㌰㥥搷捣愹㤳㐵戰㤵ぢ㔳㌶㍢摤㤴敥捦㈷戳㤳㈹㙢挰ㅣ户戲扥捤戶ぢ戹㤳㐴㕥ㄲ㤱㜶㘵㌵て㕦扣㑤㜴㍦挲搲晥敥㜴挱㘶㑥改㝤㘰慢戱ㅦ㈰戴愹慦ㅤ㜳㌱愶ぢ㐸㔰㍣攷攰昷㕤㙦搰改㜰㉣㥥〹㉦㐹愸ㄴ收㙤ㄶ㠹㜶㡤摢㤴搲ㅥ㕦㘶㕤㔹戱〱㝢挰㐶晣㈵㔵㐶摡㥥㜱㐹㈷捤摣ㄲ㔱ㄹ㠶戱搰㐵〶扣挲㜳㤴㥥㈸㝦㙦晤挵挶挳㑦敦㌸敤敦㌷㉢昰㥦ㄲ㌸ㄷ搴敡つ㑥㤹㌳㈲敢扦ㄸ㐲㍡挳捤戴㘲慥昳㌰㥡㜱戲㔶㝤㕡昲〵㡦㜲㕡㤰㥢㜵改搱〹㙣ㄶ㝡ㅡ搳摢ち㤹㔴㌶㤳户攸㠸㈰ㅥ挸昰昴㠰戵〷㤱慢㈱扢㤸攱㌹㐸㘳㝡戴㘰收㡢晢戸㈷㑣㑥㉦慥㐸㠹戰㈲改慤㤹㍣㈶㤱晢㑤攲捤改㤱〹晢㈰㡥㔲㈶㜳昹㙤收扥攲㐹㈱愸㤹昵挵㥤㔹㐱ㄵっ慡㘸㌰扡搰昵捡㈸㠲搹搱敤昶㑤㘶摢㌹㍤㜰搲搱晥㕡㔰㠲〴㥥摣ㄸ晥㤸㘷〲㔳㘴㕥㄰㤱ㄳ㤸ㅤ慣㌸㤱愸ㄹ扢㈸ㅤ㑡㐹㌸挷㘱㥤㐹㠰ㅤ摢㜶昵捦㠴㥥㝦慤昳愴〸〳㌶昳慣つ愲㈳愵㌸搷㌲ㄴ㙥㜲昵㠶㌴慡㤱ㄶ昱㌳㔵慤㡢戱戴㤴愱㕡㘲㌹㘵㜱愲㝤㠸㍤㌴挰ち挰ㄶ㈳㘶〳㈳摣攴㈶攸摦攵捣㙣搱换敢戶㜳㌹㤳㝡㐶ㅤㅤ㠱㈱户愲攲㙣挳慣攸㌴㠰㈸愳㐷㌲愷㐰㌲愷㠴㠴昵㤹戱㙢挱搹㤶扤挷㉣㘴㥣㠹㕣㈶ㄹ㘵㠲昱攵㤳㐲㐱愱㐲ㄲ㈷〱㐳昹㠸㤶挲㜳慤㡥て戹㈱つ㠸扢ㄵ㥢〹戲㡥攲㠷ㅡ〷㘵㔱㔷ぢっっ㐲㝤㘵挳愵て愲戵〸㐳㘹㔸㑢〰昱ㅣ昵㑦㑡㡦摥ち㡡㔸㈴挵ㄸㅥ戳昵㤴㠷㌰ㄱ㘶戰㙣摥㈸つ㜵㌶㌶㘰㥢愹㍥ㅣ㐱搸㠵㍡敦晣㌳ち搱搲扥ㄴ攲㡣捣㜵㈳戸㡤愰昹〱㌸挶㠵㈸〹㈳㠸㜹㠵ㄹ搳㌳㕣ㄹ㤲㌷㠱㐸愴㍥㕡敢㕢晤㝥㕢㉢扤〸㐶昹㠹㙥晦慣昶㝦㜲㐵㈷捣㉣㠷㈵ㄱ㠱㘹愰晡㘶〰挵㤸ㅦ挷㔳㔵㠰〱〴㝤ぢ㐰㠴愱㥦敡㔹㌲㘷ㄴ㡢㡤㐷㜲㡣慥㐵㜳ㅣづ晣て〳㌱㌷㐴改挰ㄲ愳㍥摡挲㘶㍦っ昰敤㤷㕥摡㠴㥦㠰㘲㤸挸晦㍥㌷敥戱㤸㑣昸㡦〰搵户戲㐰㈷〰㜷愹㈲戶㠰晥㈸㔰㡡㠴㍢㤴㡦〱挵扡愱ㄸつ攱㉥挵㤷㈴搰㡢敦㔸昳晡㥤搳扤㤷㘲㝤晦戸㔷㡡攱ㄲ晡搷慣㝤㉣㕦㑤㌱慣㤲㘰㔹㝤〸搰戸ㅤ㈰戴愹扦ㅤ㕦㠸改㑦㈰挱捦㌲敡㜲づ摥て㉤晤攳㙤慦摤㝣愸戴慣ㅤ㝡攷㝢㕦扤扦敤つ㝦㔹㔳㤷愲っ㤷㌶㘵晣〶㘰㍢㘴捥愳昱㠴〸㌹戱㝡て㕣敢㝣挲㤹㌰ㅤ〰〶㠸摤摣㑣ㄱ攱攲〳㔶ㄶ㠷㉡㈹昰〷㝤慥戲扡㡡摦愳攵搵㥦㘴摢㕢〰㘸搰㔰搲㔵昰摦〴敥㉡㜸㄰㤵昱摣㜶敤㌳㉥㜲搴搹〲挴㔵㜰㐶㠰㐸搵㥦昲㄰㈶㔴て㠰㉦ㄴㄲ㍣慤戹〳愸晥㌴ぢ㌰㌲㔴愳挰㥤㉣昰ㄹㄶ㘰慣㠸㥡愳㝦ぢ愰㈴散㝥㈴晣㙡攳挰㍤㘱晦㌶ぢ摥〵愰愸〱㘵挲晥ㅤ㈴㐱愵㝦愰敦〶㐶慥㌳戰㈳挲㘶ㄶ㥥戲㘹ぢ搹摣〳ち㑢㌱昲㜳摣挲摥㠵挲〹扣㑡㝦ㄶ搰昸ㅣ〰扣挳づ㡣㍣愶て㈳挱〶ㄹ㐰㍡〷慦晢ㅣ㝤挷晢扤搵晢㠵㌰㕣㠶㕥〵〲㠵捤㔰ㄴㅡ愸ㄶ摡搵挸ㄱ愱摤ぢ㐴㕤〳㔰㈱戴晢㐰㌸戶㔵㘲㔰ち㙤〷昴晤〰晥愳㙥〰收㌳㤷戹㥥搰㝥ㄷ愸㝥〰㐰㡤搵㉥昰㈰ぢ㍣挴〲㌷〲㠸搰ㅥ〶㔲ㄲ㕡ㄲ〹扦摤换㠰㝢㐲㝢〴愸晥㍣㐰㠴㐱㠳攳て㔲挴换㈲㐷㕣㐵㡢㡢搲㔷㑣㥡㔹㕣㌶ㄸ挴昶挵㈱改㘴㔸愶挲敥㈶戲晡㜸扡昲づ〲攲㉦㌲㠴㙢慦㘷挸扤㥡〷㤵㘵扤戱ㄵ㔹㜲㘱㥢捣㔸攴㕡㠴昱㡥敦㉢㔴㠰扡〳㍣昳ㄸㅢ挳改ㄵ㔲㈱扣㌱晤〵㐲愸㌳㠳㍢愲㐲扦〷㈴攸扤㡡㘱〸愱晥㍥㄰晦㠹㜰换㌴㡦㝢㔷戵㍦㘳晤㈵㌳㡢ㄱ摤㡥㤶㉣㉦ㄷ搵㕡挵㉡扤扣挷㔰㔵ㄵ〸昰敡昲㍥㈸㍡㠰㐲晤㐳て攱㜰㈲㕣挴㡦改㌷㠴㔱〸㤱㈷㜸㄰㈳捥㜴ㄶ㕥ㅢ㔱挶ㅢ㕤㡣换㤴㥢㡤㑥摢〵散㐹挳搵攷㠳愵扡㉢搰㔴晤搲慡昳㔸愹挶ㅣ㍡㈸㤱㔱㠸㘸捥晡ㅣ挱㡣㔴㔸㠷㡦昱㐷〰㑢㉦捦㈴㜱搲㘰愷㥤挴〸戶㈱〹㥥搰愷戱㈱敤㡡っ愳挵㥡摦攴挰挲㜹摥换ㄱ㐱挷昶收敤㠳㜹改㑤愴挸㡢ち挲慦扡㍡㝥㠶摢㔴㜹捥〵ㄷ攳㜴㘶㔸㔹㍦づ搰ㄸ㡡搳ㅢ㘰㘱攳〹㠰㔵摤㕢扢㠷挷摡㌶㙣攸㘸㙢敦㔸戳戶摤ㅣ敦ㄸ㕦戳愱㌳戹㜱扤搹搹搹㤶㑣慦㕢摦㥥㕡戳㌶㉥捥〳㡡敢㉦〲挴改㉥挸攷扥挴搴㉤㝥㡡㜹捤ㅦ〶攰昷つ扣㈷昴㠹㝦〴捤㔱て㡣㍦〱㘸敡摥㍡㔶戶搳㌰晥ㄴ戴〶搰㘴㤹ㅤ挶搵〰攳㐹㔰ㄶ㠱㔲㜹挵㈹㑥ㄳ捥㔶㘶㉥〲改㍦㐷㔲㝤ㄴ㠰愶㉤愶晡㈰〱㑥㍤㜷ち㝤㤵㌴㑣愱㡦戱㄰㕥晤ㄴ〰戳昸慡㡦ㄳ攰搵㕦〳昰ㅦ㜵〸ㄸ愷㤱㝥ㅡ㐰㝤㠲㠰愹㡡㌲㥦昴愹捦昸〸㝦戹㡣㔳捤搵㘶㜴㠰捡〵㍣㘰晣ㄵ挰㥣ㅡ愳㌶愱ㄸ戵愶㔲敡㕣攱㐵敡捦〱㠱搴戹㥡戳ㄷ挶搷〱㍣愹㈷㍢㍢㍡搷㡣㙦㘸㑦戵㔹ㅤ收扡つ㘶攷晡捥戵攳㙤ㅢ㍢㌷慣ㅦ㕦㍦㥥㕡ㄳ㤷挵ㅦ挵昵昳〰㜱㉥昷㌲㡥ㄷ㤸㤲㜵摦捦㙢收扡晦摥㐸㥤摥〲㔹㙤㝣ㄳ愰㕡敡㉦㠲㔶㈹昵㙦㠱㔲㐳敡㜷㠱捣㔶㜴㥣㘰ㄱ挱㕦〳㈸扡ㅣ慥搴摢挰挱ㄹ愹㝦〷㜴㑡㥤㙥㠸㡣戹㘲敤愵摢㌱㥢㑡㙦㐲愴晥㕤㘶搳㤳㤸㕤㐶晣〰攴攸㤷扤㙣搱愲晢㤰㄰愹户愰ㄳ㈵愹㝦ㅦ搴戹愵㝥㐱㑤愹晢摤㡣搳て攰攷㡤扦〳㜰挵扤㈱㘹愵捤㜵ㅢ搷㔹㙢㍢捤㡥㡥㜵ㅢ挷摢摢捣戴戹戶㌳搵戱㝥摣㑣慦㌵攳攲㌶愰戸晥〱㐰晣㐱〰ㄹ挰て㤹㝡挸㑦㌱慦㤹ㅥ挳㝢㈳敥㐷搰戲㠸晢ㅦ㠰㔴㡢晢ㅦ㐱慢ㄴ昷㉢愰搴㄰昷攷扤㔶昴㈹㐰攴〲㥣㝥つ㤸晡〲〱㐹慦〳昰㌳㝣攳㕣ㄴ㘵慡晣㌳㄰㝤〴愰㌱ㄸ昷搷㈳㈵换ㄴ㌳摥〰㘰攵㍡扣㜱㉥㑣㔲攷㕦㠰㌴㠶㈲戴慤㤷捣㝤㜴㔳㘶慡㕡戰㠲㔶㕣愱敡挵㤵愸改㈰敡㠷戰ㅢ㡣㠸〱ぢ〷㉦㕥㔸㕢昴㑦搸㍦扥㤱攵㔰㤱㕦愳ㅤㄹ㙢挹愹㘰㡢㘷攳搵晦捡愶㘹敡㙢㐶㑦攷扢收㘹愰搲戲㕣㝦ㄱ收ㄹ户㑤㐶敤慥搲㔵搳㐵扥搹㙥昱㙦扡慣㥡愱昸㐷ㄵ㝥戵挱㐲愹ㅥ㉥㙥挰攷㐱㐶ぢ敦挵㉣㥢㐹㤵㕤搹㌸㘳㠶㡡㜳㈹㐴换慤㤴摦㘲ㄱ㥢㡤㜰㌰愴摥㍦㌷戳㜱ぢ挰昳㜸晣㘶㡡攴挴ㄹ㌵戶攱㕢㌳㡥㌸㌸ㅣ愶搲㑦〰ㅡ晦づ㄰搹戴戲㙦㘵㝢㘴ㄹ㠴昱敥扥㌳㥢晦㘸つ㑥摤㑦〰ㄵ㔷㕥㌶㐹㤲攲〲搶㠴户晡㔴㍤㡥〲㌵敦ㅤ㌴㝢ㄹ戳敥ㅤ㜰戵㤳〹昲㜳㈰愵〹挲㈵㑦㤴晤㑤㝥攴ㄷ〴晦〹㄰㡢晢㉢㥡㤲㠵㡥昴晦〲㠸攰㕤㠲㌷晥っ㠰搴晢㙦㈰㡤㈱昵ㅣ㝥㌸㔱㔴ㄴ摦愷㜶㡡㐲晤て㈹捦〳㔰愹㤴收晡㘴晣㉦〰ㄸ搷扦戲㕤㠵㔱捥ㅦ㘹㑣扦捤㌲㉦〰昸㈴㐵㍢㕥㙢昰敦晣㙡㡥挱晦捡换㤸㜵愵㠰㐶㕦〶ㅦ〲昴〷慦挴㥡㈳㐷昳晣㠲搹㥣慡㜱摡㙦ㄹ㕡〴㈴っ㡤㘶搱敤㍦つ慥㔱〷慡〸扥㐳扤㠵捦昹㥤㡤㘹捤㐶㘸㔱㝤㤲㝡つ㠹㕡晤㝦㜳慥晥晦摣换愸㍥摤㡦搳愸㐹㥦㥡昱ㄱㅤ㈷㔸〴㄰㔳戴㙢挲昷㥦愲㉡昹扥ㅡ㠴㈸㐲㘱㐷晣㡣晦昰㌲戸昳搳㑢㔱㈹㑥㙢㈷㡤㉤㐳ち〶㡥㜶敥挲戹攷㠹ㅢ扥㥣戹晦摡㡣攲㤱㌴晤敥晡戴㝢晤㤴愶㐹㡥㠴戳攲戴㌶㈰㤲㔹挰つ搴〱㐴改ㄱ扦挴㑤㙦捦㔱㐳昴㥥ㄱ㈵㍦㔶愶㈵挵捡㐶㝡戰㠰攰㔹㕤扡扦㠸戳㠰㔴ㄴㄷ扡ㅣ摣〸捥㥦っ晢㐷㙣㈳挲搴ぢ攸つ㑦昱㠳㌵㍤昸ㄵ挸慥㡥慤㤵ㅤ㜸捣昰挳㍦昸ち㌲〰扡戰摤愳㜱ち挴㐶㠳㠸扦て㘰㙣愹散㉡㘲㔰晤ㅢ愴㉤ㅥ攳㡦搷㉥ㄷぢ㐲愵搶愷愱㠶戱ㅣ㠰㔷㥦㤴㡣㠶昱慦搳㐱㜱㘳㑣攷㜱㝣ㄱ摡晦敡攱㜱㔷搵挷ㅡ㔵㔷㈹敢敢㌹收搱挳㝦戱攵敤昶敢扢挲戴㕣昳㔹㑥捥戹扡摣㤸挹扦㔰㠹收挶戲㔶㝥㡦㌳㔱晡慢ㄴ搸㕤㕣㤸搳㉢搰ㅦ㝥㡡㙦㥣㘶㑡戴昴㑣昶昲㉣㠲戳〱㘲㡡㤶㑡㔴晥㔵㑦戳改昳㐵㘱敢㘹扤㈴攳㥦慡收〲㉤㥡㘴扣㔲㍥ㄷ捥㐵㙢㜱ㅡ戵㈸㕥扤㤲ㅦ㔸㐵㜰ㅥ挱昹〴慢〱㘰〰㘸攲㌸㐷㡣ぢ㤰㥥㡢昱摦慦挹昸ㄶ㌶搳㠱扡㌳㑣㝦㍦㐹攴户ㅢ〷㔵戴㤱㘴㝣攰捤晡慥挰㡦ㅥ敤㔲戴㠳㘴愷晥〰㑡㤶搸㐱挳㈵散㔸挳晡㙤〴㙢〱㘲㜱摡㉥挹攰㈱㈸㝡㑢慢㈵扤㘵搸㙢慥摥㝥慢㘶㙦搷愳㠶戱〱㘰㐶㑤昰〵摤〹㑡㜹㡦㘹攸愴㠳ㄷ〳昱㍢愸㘸㤹㠴挹㕦昷㤸晣㐱㡣㈱ㅡ㌴ㄴ慤㤵㘴㍣攷㘵㙣㤲っ摣㔱昳㌳㥥昵㌲㌶㜳搴㤷㠲摡㑣㍢搵㠰㔴摤摦㈰收昹㤵搰ㄱ昵㕣昰㠸㝡㈴㜸㌴㤰㐵㐶㔶㈱㥡㑥摢㔵ㅤ㐱㈹㥢㜱㘵戱っㄱ㙦㡥㜷ㅢ㌸昹㘲戹摥晣愴㝢㠹搴挸昱搴㉦扦挸㉢摢㔲㉡戳戸㐴㈹㤵㙤㉡㤱愴捥㜲㌷㘸捦㉢戹㉣搲㌲搳攸戲敡ㅣ㈹て〱㔱㐶㠱昷捤㙤㘶晤づ搲〷㠹慡攳㉥ㄸ㜵慦㐹昳㑣㠰愲㔰扡㠴㐹㌲挲愹㝦摣㤶〹㘵ㄷㅡ昲搹㠲扡㡡〶㠵㙤攸㉥て㘱愲㤹搳㥡㐸㤴㐶㐰㜱㍡㡢㍡㍣㕤愵㈷㥣攲㤲昱戵㉡㍤攱戴㤷㡣愷捡昵愴ㄷ搴㘶捥㘱慥戰愲㈷ㄷㅡ㠷㐲㡦㠶㕥㔵攱挸搱挰㜷㌰晡㙦㔰㑦㜰㐴愵㌸户愹㉦扡て挰攵㔲〹㤳愴攲挴㤷ㄲ摢㠰ㄸ散愶㉥㘱㤲㔴戴ち㔲㘲㍢㄰㙥㤰㤴㉥㘱㤲㔴㌴ㄹ㔲愲ㅦ㠸っ㔵㤷㌰㐹㉡摡ㄳ㈹戱〳㐸愳戴㔱挲㈴愹㘸㉦㈸㌱㝤ㄹ㠰愲愹挰晦㠰ㅥ〰㘴㐷昹㌶搳㉣㤰敡戲㤳收㐰㤸昳攵㉡㜶搲㐴㐸挶㤷慡搸㐹戳㈱ㄹ㕦㉣㘷攷㄰愸㡡㈶㐴㍡㜸〵㄰㤷㔱㈵捣㘵ㄴ㑤㠴㜴㜰㤸攵㘹ㄹ昰ㅦ㤷㌴㍤㠴㠹㘶㥡〵㈲搲挱㘶捥攷㉢㤱ち㑥愹攴㡤愹ㅢ㙦㝣慢㌹㥣㌸㍤㝣搵㤶㠶挳慦扥昸晡㕤㉦㕦户改㐷扦扣敦扥㤷㡦摣昵搲㉦㥦ㅡ摦昴挲挳て㍦户攳㠱㤷㕥㕦㥣㝥㌰昸攴㕢〳て摥搲戶昷㤶晤改㕤ㄷ㙥扢攵敡㥢慥㘸ㅢ㕡搴ㄲち搵搵㥤扦攴ㅢ愷慤㡥摦戶晦捦搴㕦晥攰搴㝣㠴ち㝦ㅣ搳㠵㍤㕡㘰㌸㜳ㄴ㜵搵ㄶ〲戴愱㜷ㄱ攲攱㠴㡥㔳搱挵晡敥〶搲ㄸ㙡愶㔶扥㤷愳㔵㔴㕣㡥㔸㕦〹愰愸愴㤲扡㡡㈹㉡愴愴慥㘶㡡捡㈷愹㙢㤸愲愲㐹敡㕡愶㐴扤搰㝦㝤ㅤ㔳㐰愸愰㜱慡㤹っ收㝡㈰晡〶㠰挶㘰㌳ㄵ攳㍤ㅤㄱ㌵㑣㝡㌶〶㐴㠹㕥戱㘷昷〳昸㑦㥣晡㈵㍤㌳㠱㘰㤱ㄳ㠹㈰㔷㡦㈳敤㍦㜱㑡㠶愵ㅡ挳㡡攲㄰㈵扦摦㔳昲慤愰㐷㜱ㅦ㔲搸〶扣愲愶ㄲ昶捤愲ちㅢ㘷㔱㠵㥤戳愸挲㔶㔲㔳昸㌲㍢挵㌷㑥昶㑡扦㉤㈰攸㌷ㄹ㉢摤扡户慡㕢㘴戶㘴ㅣ昶㌲攲㙣㙢〲㔴㈵㙣㘱慡㥣㈳㡡㡣㤰ち昷㔴戶ㄴ昷㌹ㄲ㘷㐷攴摢㝢㠱挰捤㘷ㄷ收戹㤴㌳攳愳晥扦㔸㌰改㐸攰㍦捣㜸〹㤳愴㈲捦挵挲攵㠰㐴挸扢㜹㤶捦捡㙢㠷㕣〷ㅡ㜳敥戵㈲㠹㈹攰㡦㝡戸慣捦昶㌹ㄶ㤳摣㔲㔱㌴收㤲〸㥢㕤戴攴㝣搴㝢㔹昴㔶摥慤攷㔱〷ㄵ攰㡢㘵敤慣昹㥤て搷昱㌸扥㔲㥥搷㤱〷㜷㘲㙣㕣改ㄹ㔴搲㡡㕣㤵㔹㙤〳㔱攴㈵晥捦〴捡戹愸㌶戳づㅦ㐳㐹㈱㘰㝡扦㐷㈲㌹敥㈷敡晦て搲㐶搲愱
A28: Decisioneering:7.0.0.0 | B28: Decisioneering:7.0.0.0 | C28: Decisioneering:7.0.0.0 | D28: Decisioneering:7.0.0.0
A29: CB_Block_7.0.0.0:1 | B29: CB_Block_0 | C29: CB_Block_0 | D29: CB_Block_0
A30: 㜸〱捤㔹㕦㡣ㅢ挵ㄹ昷慣扤㝢㕥摢㜷昱㈵〴㐸㐸挰愴愱〱㉥戸戹晣㈹㐷㘸〸㍥晢晥㈵㤷昳攵散㕣愰㠰㥣戵㍤㝢摥摣㝡昷戲扢㑥捥㔵愴昲搰㠷㍥昵㠱ㄶ㈱㉡愴㔲㕡㕡㔱愹ㄲ晤愳戶慡ㅡ㔵㉤愸戴㠸㠷㤶㐲慢扥㔴〸㈱㈱ㄵ㔴㐵慤㔴愱ち㠹㝥扦搹戵捦攷㜳挸㜱愴㔲昶㙥㘷㘷收㥢昹㘶收晢㍦㥦㐳㉣ㄴち㝤㐴て扥㜸㈲愸散㈸㌴㕤㡦搷搳㔹摢㌴㜹挵㌳㙣换㑤㘷ㅣ㐷㙢㑥ㅢ慥ㄷ愶〱㑡挹㈰戸㉢㤷㕣攳㑢㍣㕡㍡捦ㅤ㤷〶挹愱㔰㌴慡㑡〴〷ㄲ扣挹㔶㐳挵慣㐴㠴㡡㘲㜶㌴㕦㍥㑢㔸ぢ㥥敤昰扤愹㜹㝦敥㤱攱攱昴㜰晡攰扤挳㥦㑦敦摢㥢捡㌶㑣慦攱昰㈳ㄶ㙦㜸㡥㘶敥㑤捤㌶捡愶㔱㌹捥㥢㐵㝢㤱㕢㐷㜸㜹摦㠱戲㜶㜰㘴昸攰愱㐳晡㝤昷㡤㈴㘸改搰㙣㜶㜴㤲㥢㑢㠴敦㕡㘱㔵〸敢㑣㜶㜴搶攱晡戵挲㈹㠳㄰昷攴㜸挵〰挵㌸㜷っ㙢㈱㥤ㅤ愵晦づ慡㔰敢摥㜴扥㤰㈷扡㥡㕡ㄳ㘷㔳敢昹㑡㜹㕥㌳ㅢ㕣愹㡢敤㐴敢昳㥡㌳愳搵㜹㝦晤㤴换攷㌴㙢㠱愳㈵搷㈷ㅡ㐶㌵㐲㕣っ摦搵㙢㤱㠰㐰改㝣㜶㌴㕢搳ㅣ㑦愰挴〲㐳扤㐶㡢㤵搲挱㌶挴㜸搱〳戲戰㜸㈰㈳㘲㍤散戰て㐵㤴ち㐵愵㘲挷㠴昳搲户㜵愳㘲愷慡㍣攵㌶㠸㉢㑢戶㙢㔴㡣㤷㝥㘲愵㠶㔹攴㍦㈴㜲㥤ㄸ攲㌴㐵㉡㘹㔲愹㉣㤵㉡㔲愹㉡㤵戸㔴搲愵搲㠲㔴慡㐹㈵㐳㉡㥤㤵㑡㡢㌴愶昵㐴晢晡愴攰昹敢㥦㐶ㅥ㤸㝣昵㕦愳㕦㜹散慢ㄷ昷晣昶捤㙣〲戸㘶攸㠰改ㄹ敥㕤㈳㐹㤰㜱戸昵ㄳ㌴㐱愳攵扡捦㡦ㅣ㜷㉢㉡㤸㌵㘵㔵昹戲㐲㌵㘲㘲愲㥥戵㉤㡦㉦㝢㌹捤搳晡敡戳㥡挳㉤㑦愵㐱㐳㘲㤶㕦挳捣㝥搱搷㥡ㅤぢ㕡㠴㈱㈹慡ㅤ㔸攲愲挳挷挴㐸昷挲ㄱ扦㡣㉡扤戴㜹㔲㜳㙢㥥㔶㌶昹敥㉥扥㠳㙥㈴㙡愷㍣挳㜴搳㠴㜲挲戱ㅢ㑢愰攸戵挲㈳愴ㄹㄲ愲昴㔳㈱㙣て扥愱搰攵愳敡〰㝤㘲㉡㠰㉡㠰戰㑢昴愱愷〵㑢㙣愶挶挹㐰昲㜲㡥㜶㠱戴㘷㠵挵晢搳晢昰㜷㜵昳㐱搶㐳㍦愴摦慢てて㔷て敤搳づ㘸㌲挴昶㤳㘸㐰㤲挶㈷昴搳㠶㔵戵㉦〸㤵搸㌱慡戹㝣㐵㐳㠶〲搸愸摤戰慡敥㉤扤㠱〵㑦昳昸昶㙥搸ち㤲㌵搳ち㘴㉤戸㉢搶扢戵㝢㥡㄰慢捣戲攱㠳㜷㜶㠱挹㘶搸攵㉢㐳挷ㅤ㝥慥つ㕤戳愳っ㜹㠰昳ㅣ昰㌵愷昴㐱晥扥㔲搹㥡敤㜲㑢㙣㙦愸㍥㙢㔴ㄶ戹㔳攰昰ㅦ扣㉡㡥扡ㄵ㈰㑥㤲㕥攱敥㔰摥愲㠳㤲搱慡敥敡散搵挷㤶㍤㑥㝡㔲愵晤㤲挹昰㥡㐵挸攸㡤慢㠶昸㙢ㄲ㘰摢慡敥㜱扢搲㜰愱て㡥㙤慥㠶㘴慡攷㌵㕡戳㝡挲慥昲㐸㈴ㄴ挱㐳摥㈹ㅣ㈶〵搹摢㈵晥挲ㄲ〳慦摢㌲㝢ㅤ㑣㠶摤扢㜹戵昰愵攷攸㝣㜴づ㤳㐳㌲愵㙥㙤敡㐰户挲㔷愰改㘹㑢晣㜵㍢㑥〵㜷㡢搱㜷㕥㜹㤷〲㙤㥢㜷晦摦挱㤲戴㈵㌸晤搸㜹戲㔷㤳㥡㔵㌵戹搳换扣戴㠳〵㠶ㅤ愹㕢愸㤰摦㈷㙤扥㈲昵㄰ㄹ戰㘵搶㤴㉦ㄸ㔵慦愶搴戸戱㔰昳愸㡦〲㡡㘸ㄴ愴摤ㅥ扣㌲㡤㉣挲㠷慡㕢㔱摣㠸攲㈶㉡㘲㌱摦㘶㈸㌱㜵ㅢ㌵ㄵ㡣㑦ㄶ㡤㈵攱㝦ㄶ〲㕦ㄴ㘳ㄱ㤸㤸㕥㍢㙥ㅢ㐴㔸晡搸戴慤㔵挷戵ち㐵㈸㝤㐱㝣ㄲ捤摡昵㈵㌲搳㑥ㄲ㈳戳㈴㑡㈴愲攷㡤㉡㜷愲攸㈸㔰ㅣㄴ愱昰挴㔵㠴㈲扡㘴㝦挳㈱㔹㡥㐷㝢慤㌵搵挲戵㍢㈰㘷㘷㥣㌵戵〶晦晢㈷㐷㡥㈲㡥㡡挵挴戹㙦愱慡扡㠳ちㄹ㘴晤㐴〲㡣挳㉢晡㈹换昰摣戸㥥㘹㜸昶戸攱攵㕣㉦愱㔳㐱㔵㈱㝦摢㠵㐴㜵㐸晤㤰㍥㙦昰ぢ挵收ㄲ扦㙤㉤㠸㘲㡦㙣挳昵㙣攱戶㙥㕤ぢ捦搹㌳戶㤷㌳摣㈵㡡㘳㜶昷〰晢㤰搳㌵㙥㤱㠹㜰挸㔲㕣㙤㤰扤戴挴慢㍤昶㔸戰ㅢ㑥㠵㑦攵慥〷㈳挳㐲㄰㘷ㄲ㘸㘱㘲搸ㅤ㔷搶摥づ扡㐳㔱㈴㐶捦〶㜵㑣㜸㔳昵㔶戱㌰㉤ㅤ㡢愹户㔱㥤搴㐲㠶愲慣换㌰挱慢㙤搲摢㉣㉤ㅡ㥥挹攳扡攰㥡愸㐷㜵㘲ㄲ㤹昵㙡㥦㕥慣㌹㥣攷晡昵〹挷愸㥡㠶挵㈱ㅥ㌷昸㐳愷昹〲㤹昰㔹㡡昶㜰㜱攸搷㡢㡥㘶戹㔰ㅤ慢搲摣扣慡攵〷㥦晡愸㘱㤱㌸晡㘲㠴晡㈶扤㔰戳㉦㤰㑥㌴敡搶㠴戶攴㕥て㉣ㄵ户ㄹ㥦戶㍥㔳㈵㈶㐹㉣㉡㐵㌷挸㉥愶愴〸㕢㈲扦〴ㅡ愵〴㈱㐲㡣㠵㐳晢愹㌷㡣㠲㌸〷摥挱扥慤摦㔷攰捡㤵㄰昷㠳挰捤㠶㝢㤹㥦戶㜱ㄶ戶昹㜶捣搹㐵挵戱㠹㔳㔳㉢戱搴愷扡㡥挹戰挸敢㜶㕡㤰捦〱㕦㜶攰挸㈰㑡慡㄰〱戴扡攵㌱愶㡢㌱㄰捤㠱㤵敡㌸昹晤㠴㍥慤㤵戹㌹㙥㍢㜵捤ㅢ昰ㅢ搰扣扡㘶扡〱㡣散㙥㕤㠳慣攱敡㔳愸㘸㈶㡦ち㌳㜸挲戰㔴㥤ち挱㠷愰㑢㕢愶㉥㙤㔹㜴㈵昴㌹〴㜲愲づ㕣昶㠲收ㄸ㕥慤㙥㔴愲㘸㈰搸扡㉥㠴㤴昴摥户㍣㐴㔱㝡㠴愴㤲㑤㐹㜵ㄹ㈰㍦戸㈷㜶愷挹捣㠳㜴㘰㍦㠹戲挴ㄴ晡㘳ㅢ昴昲㈴扦㈲㙡㔷㜷ㄳ㌶㔹㕣晣㜱〳挱㜳戹㤵㕥戸晣㘵敡ㄱ㤲捤攰愵〱㔶敦〸㉡㘸㈴攱摣㌰㔵昹㉣ㄵ〳搹搱㔲㐷㌴愴散愱扥㐱敡昳㙦捡㔳㔵㡡㐱っ慦㤹㠴㉦挴ㅣ㜱昹㔴敦愲㥡っ㌳戸㍥戳ぢ㜷㥦散昰㠵㤰㍥㜷㔰㍦搹搰㑣挲㥤搷挹㉤愲敢㝡㘰㙦㈴㈲ㄸ扡愷㡢㥢戸戱ㄵ㡣晡㜱敥㔸摣㑣㤳㐷ㄱ㐷㜸攴㌱㕣摡扡㘹戰㝡㙣㜰㌶ㄷ㈳㌷收㜵㘲昲㕦㈸慡㕢摦㉡攰㙦摦㜹摣㝥㑢愵㔰ㄴ㙢㈲㥣㠹愹㐳㈸㘳㈱〶㜷㈵〴㘲㙦㔰㐱㠳摤摥敡扤㠷㉡攰昲㌰扤㌲㐴散慡㔲つ㔵㠸改㤰敦㠲搷㌴挹愶愰㡡㑢戹㕦㐳挸收㠳挹搵搸づ愵㑣㈲摤攱㘹㝢㉥㈲搰昸つ㕤愱扦㤸〶挸㉥㝡攵搷㝢㠴户敤昹慢捦㡥㌹㜸㤴捦㔱㜱挳〹愳攲搸慥慤㝢愹〲㌹捡ㄴ㉥㔳㝡㈸戴㉦㈳晦㤱㌰昶㕣ㄳ〷㡢㔸挸昶〸㜲挶ㄶ㉤晢㠲㈵㜶㈳扢戸㔳ち㉡昶昵㘱㤹ㄸ扤攲昹っ搱㌶〹㔵挳㘴ㄵ㐴散て㈷昶搳㠷㐴㈲㘷搷㌵挳扡㔶戶ㅦち搸昳㉥敤㉦搳捥㜴戵昴ㄷ〹㠱〴搲㕢㐵ち㈹挰㥥愸㘸㤰搲昵搷㑦摢捥㘲搹戶ㄷ搱㍤㈰㕡㙥㡤㜳て㌹愷㜸摤㌷〳愸㔳搴ㄴづ慦㑡㈷〵慣〲㄰㠷㔴づ㔰㤱㉣摡㔵摢㑤㤹㜸㡤㌲搱㕣㌹㐸扤晤㐴〰攱て㠴㜵㔷づ㔱㔷㈶㤳㥡ㅢ换㑣愷昲戳挵愹晣㑣敡㐴㍥㌷㌶㥤ㅡ捦捦愵㡡㤳㘳愹昹捣昴愹㡣攸捦㡦愷愶㘶㘶昲昳㝥㙢㜶㉥㝦㙣㉣㕢㉣愴㤷㑤户捥㕥㈵摥㈱挷昵扢慦㕤㝡昱㥦敦扣㌷昱搵晦晥昴ㅦ㍢攷㉦㥦㘵㝦〸〰摤㔹㉢〶㌵㄰㡣ㅢ愱ち㌴〳㙦ㄲ扡㈰㌸㜶ㅦ㔵晡挳㐹㘸〱㤲ㄵ敡㘱ㄴ昷愳㔳㤱挱捤晢扢慣㐲挷捤戳挳㠴づ㜵摦慦挷攸扥摣㠴㕡㠵改昲㈲ぢㄲ㐴愴挳ㅢ挳〵扢㠳㤰〲慦晣㌲㥤昳㔳攰㔹慤㌰挰〸昳愰ㅥ愱㈲〹〲〹㥡㍣㠰慥愳㈸ㅥ愴㈲挶㐰㈳搰㠲晤㥡ㄶ挷〶〶愹ㄱ㤵挲㌲㠸㜵昷㤵て攵㠷〳㉢挹㤵㑤㌴㕣搶㈱㜳㜱摤捦㙤攰㘸㘴㉢っ搳ㄴ㙡㤶愰挸挰愱昴挶㌴㐵扥ㄴて㤰昵つ㕣ㄲ㐵挴挸攸戵慥㠶慡㘸〹扡攸㜹㠷敥㡡㝤晡㤴㑢昱㜵㌵㑡㈹㍦捦㈳㡢㝤㍤昸ㄵ㌲㝣ㄱ㠸〰〹〱㔲㈲㔲㑦㥢〳㘳昲㌱ㄱ摤ち㍤㕡㌹ぢ〹〱挵挶扣㡡㌲㑡㡢㔱昲㤱慣㌲㘵㡦捤ㄴ㤱戳㐹㘹ㄶ扡捡㙢㔵㍢㜵慥挱㔳㠶㐵愹㘴㝣挴㉦て挸㈹㑢散ㄲ㌱ㅣ㈶㌳昶摥晥㙤ㅦ攱㌴昰ㄷ㙡㡥㍥敡ㄸㄵ㑣ㅣ㤱㤱挳ㄹ㐷ㄷ慥㑢愲〸㌱㘸ㄱ㈴㐴㤹愴㘲て㉤㠶㕦㈷晣㤸㍣㜵㥡挲㍣扢攱愵㠲㐰㥤昶㤰㈹㔳摡挳戶㈴昶昳搶㝡㤳㤳慤㌴㈵慤㜷っ㜸㡦㔳㐱搱ㄴ㑡㕡㙦ㅡ㕤㉢敢挹㄰攲㙥ㅡ挳ㄹ㡤㘳㠷㕤〹㤰㜸ㅣ㠴て晤㍢㥥〹扤晢㝣㠶㐱攲㠵㠴晦㤸ㄶ㠷㠴㝦㠱㍡愲㤲挲愰〵〲昰愳〰㠰㐵愲ㄴ晢㍤搸〲扣ㄸ〰㠴扥㥣愴㕥ㄹ愴㔹㌷㑢㜱㤸㉤㈴晣挱敦㐱〸㜹㠷㑣晣ㅡ㜴昵ㅢ挶ㅣ㑤㘵㘰〱㍣㠳㈰㠴㔲愴㕡㜸摣愹㠸ㄶ晢〱㙤つ挶昲㥢〳㐷て㍦扥昰搴昱㈷㜷扥昲昷捡㥤㜷㙣㘵㉦〴㠰挱挸敥挵摣㥦㐷㘶㕥㜸昳慤攷㈳改㐷愶ㄸ㔸㈸㡣攵㐳㔴〱搹昰㌲搰㕥昰晢㘱戴挰㠴昶㡡㉡㔶昴㔷晢㑥㠰㜴㥢㜶昸昶㑢㍢㥦㍤㜱改昵昹㤱㤳〷ㅥ晤〶㝢㉥〰㝣敦愹㘶㘱扦㜲收搸て扦昸摤㜷戵㕦㝥㝦㤰㠱㠱㘲戵ㄲ㔵㕡慢㙤〲つ㑦愳㘳㤹㔵捥㔴捦㥣昹㘰㔳㈴戵㍤昲搰㠳㠹愷摦㝡昵敤㈷摥㜸昴挸扢ㅦ㍥昳捣ㅢ敦㍣昱摡㠷扦㉡ㅦ㜹攵戹攷㕥㍥昶慤搷摥摥慣㍦㉢晤散㠳改㘷㉦づ㉦㕥㍣愷㥦扡㝢攲攲挳㘷㑦づ捦づづ㠵挳㝤㝤㝢戶晣晥收㍢㤳㡦㥦晢〵晢捤摦㙥戲㤸愰ㅢ㉤愰㥥愱挲ㄷ㈶戲㝥㌸戱戰㝥ㅡ㐰㘵㉡晡㈵㈶づ㡣㜶㠵ちっ㠵㔳㑤㘲扢㘲㘸㤵㉡㉡愷愲㕦㑡㥥㘹㜵敡㘸㠷ㄹ搰〸挹㜹㥡㡥て㤱㐲ㄶ㐰慤㔱挱㠰㕣㠰㥥ち㐰愳搴ㄱ愵㌸〲慢〸挴㘷愹㐲㌸㠰㕦っ㝣戲ㄳ㠷㐹扤っ慢ち搰搷㔷攳㤰戱晣挷㘴㈵㔶っ㡡㜰㜷㜵㘴㤰㘱㕡㘲昵㌱慢攱晦㠸愲搴㤱㈷戰〶挹愷㌹㤴慢ㅢ㙡㡦搹摣敥㘹㡦ㅤ㘸㜷㠹㌹摢晣っㅣ㤲换ㄸ㌲戴㠲㜴㙢㌷㐴㡣愷挳攲扣愱㕤㔷㜶㈲慤つ㉡㌴㉣捡搶㍤㌰敡㘷㐸㉤㥡㈵㔸慣戶㙢愲挹挰㠸ㅣ扤慡㡤ㄱ愰㌷〸愷㉥愱㠵㜷愵收㡦〷搱挵昸㜳㔴㤱㠱㙣ㅤ㕢挱搴つ㉡户㐳㔳㤹搸ㅢ㔵㔴捡㝢㡡〷㐴㘰搸㈳㌶愰㈲㤱换戰ㅦ慣愳㌶愸挰〳㌹㘳㘲㍡㔵摡㌳〵愴㠵㠶㠹㤹㙢挰㉤っ昱晦〱㠷㙣㈹㌰ | B30: 㜸〱敤㕣㕢㙣ㅣ搷㜹摥㌳㝢攱捥㤲ㄴ㘹㔱ㄷ换㜱㙣挶㡥㘳挷㔴ㄹ㔱戶攲㈸㡤㉣昳㈲㔲㑡㈸㠹㌲㈹㈹㙥㤳搲挳摤ㄹ㜲慣㥤㔹㙡㘶㐸㠹慥㕢㍢慤摤㌴㘹㔱ㄴ㐹摢㌴㐱㤰㈸㑥㉦㈸㥡㈶つ搲㌸㉥㄰戴〸㕡愰㐵愱〰㉤㤰㍥ㄴ挸㠳ㅢㄴ敤㐳㡡㐲㐰㕦昲㄰挰晤扥㝦㘶㜶㘷㜷戹㐳㙡㙤户㜴挱㘳敦捦㌳攷㌶攷㥣晦㝡晥晦㡣㌲㉡㤳挹扣㡥挴扦㑣㌹㘶敥㥥摦昰〳搳ㄹ㥤慣㔵慢㘶㌹戰㙢慥㍦㍡敥㜹挶挶慣敤〷㔹㌴㈸㉣摡愸昷昳㡢扥晤慣㔹㕣㕣㌷㍤ㅦ㡤昲㤹㑣戱愸㙢愸攷㈰晣つ挶て㍡㝢昵攵〰ㄶ㈶㈷捥㉦㍤㠳㔱攷㠳㥡㘷ㅥㅥ扥ㄴ昶㍤㌱㌶㌶㍡㌶晡攸㘳㘳敦ㅦ㍤㜲㜸㜸㜲慤ㅡ慣㜹收〹搷㕣ぢ㍣愳㝡㜸㜸㙥㙤愹㙡㤷㍦㘲㙥㉣搴慥㤸敥〹㜳改挸㈳㑢挶愳ㅦㄸ㝢昴搸㌱敢昸昱て昴攱搵㤹㜳㤳ㄳ㜳㥥㘹昹㙦搲㤸㜹㑥昹搱㈹戳㙣㜳㙤愶改搹敥昲攸攴〴晥㑦捣ㅦ㑦㡦㡤捥慦㤸㘶挰㔷㥢㥥改㤶㑤㕦㐷挷㕥㘷摣昷搷㥣㔵㙥㥥敥㑣㘳愹㘵挳て昲捥愴㔹慤敡㑥㍣㙡搱㌹㡦扤慢ㅡㅢ㝤捥扣改晡㜶㘰慦摢挱㐶挱㔹挰㐰㤵㝥攷愲㙦㍥㘹戸换收㌹挳㌱昳捥捣㥡㕤挹㠵㈹㤳㝤㌰ㅥ㈲㌹㌱㔹晥攸戸敦㑣慥ㄸ㥥捣挸攷挶愴戴㥤昶捡捤㙤敦敦㍣㉥愷㉥㙦攰㤸て㜴㙥㠷㥡㑢㠶㔷㙦㌹搲戹㘵戴昸收ㄹ扣慦㜳晢挴ㅥ㌵昷㜹㙦攷㍥戲㤵捤慤㔵㙦㐴摦戲愳㔸㡣㕥㈰攸㈱㈸ㄲ㄰㠱㝡㠹愰㤷愰て㐰攵晥ㅢ㕣㤲散挸㉡㙤搱搰ㄶ㤷戴挵戲戶㔸搱ㄶ㑤㙤搱搲ㄶ㤷戵挵ㄵ㙤搱搶ㄶ㥦搱ㄶ慦愰㑤㥣㡡㍤㍤㕡㤴敥ㅥ捥扥昸昸昱ぢ愷㕥㍡昲㡤㥢㕦晢㘳搷敦摢㠳㐶ㄷ愲㐹㑤㜹挶㌵㤰㕡㠳㡡㡦㡥ㅥ攱㝦㕢㜳〵㤸挲㍡㘶㍤㘶㡤㡤㔵㡥ㅤ㌱ㅥ㌱昲㕣㔶ち昲㥢〸㘵㄰㙤晢慣换戶㕢愹㕤ㄳ摣摤㍤㘱昸㘶㘳攳㐶愲扡㠹摡㥡㕢昱摦戱㜹攵㝣㘰〴收㕤慤㜵㡤㐱摡扡捤㠳慤㑣㕦摥㜷㑦㙢户㑢㐶㜵捤ㅣ扦㙥㠷搵敦㙣愹㜶收扣摡㔲攷摡㘹捦扣㕡慦㙤㥢搱㌸㠴摡扡㡣摤戶捡戰㉡㥣搷昰攴㑡捤㌷㕤㤹摥㠸㌳㘷㤷慦㤸摥扣㐹㤱㘸㔶㘴愹晢㔹ㄵ㜱晤挸㜹ㄷぢ〵户㔶敥㑢㤶㕡愷慥〷㘰㘶戳㠲昹慥㥡㕥戰戱㘰㉣㔵捤〳㑤㑤挲㜷愲攲㔰㔳昱㜴慤扣收㑦搶摣挰慢㔵㥢㙢挶㉢敢〶㈴㑤攵㙣慤㘲收㜲ㄹㄱち㄰戸搹慣㔲㤹㠷㍢昳㠲㈰㈲㠱㘲㌲昲㥤捤㘴㌷晡㈴㔶㠷㔵㔴㑤搲愴昶敥㉤〶攳㝣㐵挶愴㜰㘰㘲㑤搴ㅦ㝣改㐳㕢っ㕢挷摣㕢摢㔸搳㠶愲搵㥦㕡㌷摤攰戴攱㔶慡愶㤷慡晤ㄴ㘷愴て〰攴㙦㐱㈰㜴摣㍤慡㍡㜵㕤㙤攴慦搹㤵㘰愵戰㘲摡换㉢〱捡愰㈱㡢㐵㙥㙤㕢搲敦㐰㤱扥㤷㘰〸愰㔴捡ㄴ昶戱㔱愱㠴㤴挹㔳㍡愵昰㜲㤳㈰㘷扦㈶㕥敥戳愶敤㙡㘰㠶㐲㜹挰〲㐶㐲慤㈶攸敢㈷㠹㝡㐶㌹㔴ㄸ晢慣㐹㔰愹㘱扢挱㐶㠳㙦摢戸㈴㈴愲㕤㔹戰攳㘴〱㐵㐱戳㍣㐸攱㌵㄰㑤㡢㌴㐸㙦㥣㈰㈲戲㐱㡡㘶挷挸捤㐴挶昶㈹㌲〲敤㤳㐴挸搶㐷㍡换〸ㄲ㝢㍢㤱戲㔳㐷㝥摣㤵㘶㥢搹昲愱㌴摢㡦㡤搳て㄰ㅣ㈴戸㤳攰㄰㠰晡㜷㐸㌸㑡㌹攴㥢㤳晥づ㍣敢㜷ㄳ扣ㄳ〰昲㐹愷捣㠹㐴ㄵ㙤愸敤搸㤱㙣搷て㍢㔹㡣攲㔰ㄴ搱㌲慥摢㤹晤㡥㈰㍡戲㍡㜷㠶慥捤㠹㡥㝤㑦㘷摡㑣㉥㠷ㄴ㤹搲㌴戹搶㉤㥡㈶㌷㠲㑤扢搴㕢昷愲慢㍥㑣昰㉥㠰㤲㝥ㅦ㈱㤴ぢつ摥敤㔹昴㌴㈹摦ㄶ㘶㔱㘸っ㜵愹攰㈳㐲收ㄱ㈰㐵挸戵ㅤ㕦㜶㙤㘸㥡㠳㈳搶摢摥㠶㍥摣㤹扦㈳愴户攸捤㕤扤㐳㝦搱㙤㕡搱昷㠳扤搴て㍢敡㤸〷㔰慤扦㠷攰㐱㠰ㄶㅤ挳搳昷敤㝡ち挴㉣㜶ㄲ㤸摢㑢慦㡢㔸戹ぢㅢ慢愶㘸愰㍥㙢挱昰㤶捤〰ㅥ㡣㌳㔳戰㠵㙢㥥㘷㔶㜱愸慤㐸〱捦㉦〷㥢ぢ晤㘹慦收戰㝣搷㐶昶摦ㄶ㡡㈱㤷搳戲㤹ㄶㅢ㌹挵搶㑣昸㥣ㄲ㤴㐳ㅤ晣㐸㘷㈱㤱攸搴㑣㕥散㤷㝥扥摣㤵㈴㕤㐸㤲昷㘲㕢昵㠷〱㈰㈵搴㍦㜷㤴㈸㠷搹散㘷愴㔹戳挵㑡て㕦捡改愴挵㠷搸㈶㐷㝡㐳㠷敤〴晣〷㝥扦㌳㙦㍢㜵㘱搱敢捣㤹㕥ㄹ扥〵扢㙡㤶㐲户㉣㐵捤慥慣㜸㥢挸㡡㙣戶敤㍣㥤攲㕦ㄳ㍡㘹㤱ㄲ愹摣㥥㕡㤹㜲ㄶ㙦㄰ㄵ摤㤰ㄴ㉡㈹慥愱扡〴㈲攵戱敤慥㠸改㐲挴扣てㅢ愷ㅦ㈱ㄸ㈳㌸ち㤰晦㍥㈴捤㜶㌷㥥攱戰㥥㜵扡戴ㄷㄷ㌳㐵愲㐱㕣㠴㌷㍢ち慢㘳㝣捤晢〹ㅥ〳㘸㌱㝦攸㠰㑣㈱㐴㐱㜹㠲㄰㈵㡣㘱㕤戲捤㙢愴㠱㍤ㄶ〲㑢㤳㙢㝥㔰㜳ㄸ㔹敡户愶㙡攷㙡挱㤴敤慦㈲ㄲ㌵㘴㐵㤹换㉢愶ぢ敡昲㘰晢戴㤴搵㔶㔷捤㡡㙥捤搷搶㈰摡捥㑣敤㠴㠳㌹戶〳戶愴㥣捤㌵㠵搴摤昹ㄸ㐳㈸散戴昸㕢改㡤摤㤶昷㥢㠷扥㠱挶㡥㉥搸㐱搵散戵㐲愶㘳扥㘸㘱ㄷㄱ㌹愸昴㔸ぢ㉢㥥㘹㑥昵㕢㌳㥥㕤愹摡慥㐹㘴挰挶㘴戰㙥搶㕣㐶㤴㘰慥挶ㄸ㘰捤敤户ㄶ㍣挳昵㔷つ〶ㄴ㌷昶㌶㍤㐹㔸㈴㙦㑤搸慥㡦搷〸ㄶ㤹ㅦ戰收㔷㙡搷㄰戱㕤㜳摣ㄹ㘳搵摦ㄱ㔸㈱搱㠷㐹㔰愳㌴愵㘹慡愸ㄵ扢挵てて攴㤹っ㜹㉦㐷㈰戸捡攴改㌳㑦搱摥戴敢愳ㄸつ敤㜴捥愹て搱愳㝡㘱㌶㔵ち㤳㔳昵攳散昳㐱㠰て捦㕣㍣搳㠸捣扤愱㤸㜵㥥㕥晥ㄴㄹ㉦㘴㔱て㠴搰㐷户㈷㈴ㄵ㤶㤱㜲挰㠱挰㌸㥦㕡挹慦㘴㐹ㅢ㔲摦㥥㐶㜶ㅡ㤱愴㍥㙢搶㔸㌲慢㠸㐷㍢㐶戰㈷㝣愰ㄹ敢ㄸ㔵㍦慡㥢慣㌹㡥㐱搲㈲㔹捥㤷つ㔲昰昸㕡㔰㍢㙢扢扡〵㈰昴ㄷㄵㄹ搷㔱㘴㕣㤷愲㍥敢㐹㠶〶㈵捦戱㙡换㠶㘷〷㉢㡥㕤㉥昲㠱攱扢ㅤ㐱㤳㘰㜲㑡摥㌸挵㌲㘳戸挵㥡扦〸㤳捤ㅦ〵扡㐷㈱㐷戹㜵㐴㍦㈸㔷㔳〵晣愷扡㜴㉣㐱挰㠸愷㔴晦㄰㐶换换敤〸㠸ㅣ㐹户攲㍢ㄸ户㥥㐷㐹㈸㠴㠸昵ㄴㄲ㠱㔷㌰㈱攴改攲㉥㔸ㄷ㕤㍢〰昶㠸戱㘹㍢㤸昲㠱㜲〰㘴攵㜸㝢㤷㘰㌵搱㘹愴慥ㄵ敥㙤慦㙡㔲ㄳ昷戴搷㈷昵挶扢㌷愹づ㌵㑡㐲㤱㙣搵㐸㌴换㈶㜳摣㐹慡㐶㠹攲㡥戵㡤㑡㜳㥢㌶昶㥤㔲攴つ㈸㈶愱㤹㡣晥戸㄰ち〲扤愵㤲㝥ㄲ㜹扡㙥改户㑦㈷㤱㐴搴㠶㜶㐰㠹扡㉡㉣敢㡦挲㠲㘷㜰昵愴㘲㤶愲㈷昰昸㥥㈸㝢㝥㉤㘸慡㌱慥て㐵㌵攳搵敡㜹ㄷ㤶㐲搹昰㉡㍢㠴慤戱戶㔰换〸㠷㜶㘷〱挴ち㉢挱㡣㜰㤳㍦挱㙤挳㕥㌳㍣㤲攲て〶㍢㠲挹ㄲ㤱㔵㕡㘹晤摣敥㝡㜱㤱㑦㘷㑤挳ㄵ㉣捣〷㤵㈹㜳㕤捣戱㠶㐵㍦㈴ㅤ敡愷㐶㤱愷扡㌵扥攴㐳戵〷㤴攷㔱㑥ㄸ㕤户㥥愴㝢ち㤷ㄹ㈰㝥愳摣㕣㌹㐰㠸户㍥〰㑦〸㍢〷㐳搸㤱㌰㠴㐲㉢㡤㤲戴㤰㐲扣捤㡢㈰て㜵㠷㔵摥㐵戳㈴晤搷㐹昵㠵捦㌳晤挹挹㑣㥣㠹っ㍥㠶扤㔲慣〸㈰㌷ㄹ愱㈴㈷つ挵㠱昳㔰挲㠹昰敡㡢换㘸㙡昴搳昴昳〲摣收㘱㑣㙢㠰慣㔳挵㝤户挰㠶㔶慤㙥散戱捥戸攵敡㕡挵ㄴ㤵ㅣ换㙣搱捣㍢〲㕦㜲ㄵ㌰攴愸㤴㝤㠹㌶攵っ㡥㔴㕣㌲㤱搴戵晤慤昴㜱㜴㉦㑣〰攴㑥㑣ㅥ㍤㐲㍤愸㑦攲㠹捣挷㠸㘴㡡㥦㑥㈲㘴㙤ㄷㄷ㘸㌰敥㙤摣㘸㤰摢㜴㤰㙦㙤㐵ㄴ㙣戳戸愰㔷て㉢ぢ摢㈵㥡捤搶㘶㙢㌴攲ㄳ㐵愷敤戰㘸㐷㈰ぢ敢っ愵㕦愱〰敢愴㑢㌶攱㈰㤹㕢㔱戸昷搶昳昲㤸戹〵㑤㈳搶㠸㘲搰㤷挷愲っ㜶ㄵ愸愱〵慥㌵捣㜰挵㜰㌰㑤㜱㝤ち㐰㌱㉥㑣ぢㄷ㉤㐳㡢㘷ㅡ昹搰攲搱搰㤹㈹㈱㘴〵搳㌳㈸㈳愶敦挵摦㤴戰㘹㌲挲捡挰攵㄰扣昸㐰ㅣ㔸㡢愷敢㠵ㅡ戴㔲戰㑦㙥㡢挵ㄷㄶ㐷ㅣ㥣㡢㙡摥㠱㤶挲㌹㈳挰㥤ㄸ昷㔰㑢昱㜸愵㐲ㅢㄸ㑥扢ㅤ㠱㔹摣攷〸㙤搴㝤㉤㌷戵㘴㑤㌴晡敥㙦愹㠸㙥㄰ㅥ㥤ㅡ㍤㙤〴攵㤵昹㘰㈳扣捤搵㉤㔹攴㕦㠵㤳㘲搳户搳㤰捥戹扣㥤扡捥扤㉦㕤㜱㙢搷㕣㤹㔷摥攷㔵㐰㈲㕡敦改攱㈴㑢㤹搷昱㥦㈴㉤㤳晦づ㐶摣捥戴㌹㐰挳㙢挲㜱㈴㠵搶昱㌰昲㈹㜴〲㠳扥㝥㤵㠰㜴戲慦㠵㑥㐴ㄸ散ㄲ㡡扢晣愶ㄱ㡡㝡〵㘸㈵戱㠴攷㜴散昹ㅦ㠱晤搵户㔱㐲㠴攳㌹ㄲ㈵昹㜷㈱㤷㠲㍡ㄱ收搱扤て摥ㄲ昹晦㠳愵㤸㥢㌷㘵愷晦〵㘶㔶㝦搱㡡愲㝢㠸愲㙦戵愱㐸昱㙥㠸昰敦㌹㘴攲㤴㘷捣昶戶愲攳㕣搳敥愹昴㉤扦〵晣㝦㜸㉡㥤㡢㠸㐳㠵㠶戴㝡〰捦㜵㌳㈱摢㘶㈶㌰愲㉦㘶挲〵㘴ㄴ㐳晢愱㤹㄰㌹㐶收㔱戰戵㘳㠴〱扦ㄴ㘳㌰ㄱ㝦㑤昸㍡㜸ㅣ㍢攰搰㘹㜶ㅡ户㜱㑤ㅦ㐱㝥㈸㉤㝦ㄲ㙥慡㠳敤挵㜳㠶㘷㌸㠷愴㝣挶㌳愱捣扣〵㕣敦㤶㉥散㜱搷愶㌵搲㘹ㄳ〷㐶散㝡摦㜵戲㙣敦㔲㍢㌰ㄵ愶搰愷慦㡡慡昰〶摣㈷㡡㘷㠷捣㉦敥晢晡捣扦㍥晢攲㐹㕥㘱㡢㘸㌵晦㌰昲摤挴昱㘹㑦㈰搲㥢戸㍤戲㥦㕦敢㥣挵㜷㑢昶㙡搵㥣㌰㍣戱㠲㝣摤㠹戳㈱攱㈵〸㌳㈴扥㥤㘰㘲攲㌲㐴㘸㘲㡥戶昸㐰攵㙢㈷昱ㅢ㡥㈶㈶㉥㡥扥㌸㤶愸㍡㉡戲㉥慤捤晣搷愰㡡㙥㜳㈲捤㔶㈲㡦愰㑣㑡晤㘹慢慥㍢㐶㕤ㄷㅥ㘶㜸ㄷ㈰㤶㔲〸㑡㤰㐲㤲㠷ㄹ摥ㄲ㄰㈹㜵〹㤹㍣㠳㝦㈹攱戶搶戸㉦㥤〳扢㐲挰慣摦〴散昲换ㄶ散㈲戰ㄸ㍢攸扢㍤搵搲ㄶ㡤㔵ㄳ攳户㘲搳㕣㐶㐶づ㉦㉣ㄸ㡢㑢㥢㉣ㅤ㥥㙣户敤㥢攲㑢晡㥤㌰ㅡㄷ㌲㜶摥愱攳慤攴㥣㜲搷㜰ㅤ〴㝡愶㈰ち挳摤换㘲ㅣ㐸㈵㜰ㄷ㌶㉤㠵㐵㠴〳㘱戶摥愹㌷慡㠲捥㜲て攱㔴㡡㠸㈰㍦ㅦ㘲晤㐸㘳攸晤慤㌵搴㜱㙥てㄶ挸ㅦ散慦㝢㔲ㄸㅢ㙦㈵挷㐰挲㙥慢㔵㌱扣㌳晥ㄴ扡㠸㤵慦昴㐶㤶敦㔲㡡㠱敢㤸戳戲㕡㥢晥㘷㐸㕢㌸敢攷搸㥡戱敤㈶晤晦㌱ㄴ㙣愹晦搵㜱昶挵㑦晦㜸㤴攱㐳㥥㐱㤵㉤攳㌸摣ㄱ戸扡ㄱ搱㤱㠳戱㉥㔹挶挱挳摣㍣扥㘸つ慢㐵㠲挳〹㤶㙢扤㉦㔱敦㑢摢戶户愳〰㘴挰㈸晦㌲㐴㔰挷晥捤㜲㡢愳㌱ㄵㄶ〱昶㥤戵换㕥捤慦㔹挱昰㍣㈲挱挳晣㈰捤㠲捤㌳慥㙥戴ち戵晢戱ㄳ㝤〶晡㥣㍢て㠱㝤捥っ摥慣〰㈵挳つ摢ぢ㙦昰攳愴挱㐴捣㠹摡挱扦挳扡戰㘶㔴昱㍤敢㜹㌸㍥〳ㄶ敤〸㘵ㄷ扡㥦㕢慦㙤㜰敢㜰㜱敢㈳昰〷㤹搵㔱㐴捣㘴〹㍦晦㜱敥㙢敢ㅥ㌴户㡤搶收戳㘵㜷㝥户㔲晥㑢挰改昶摥搲㑣㌲㝣㈷㍦㔳㉥改㘵㐲㕣㝥㍢㠹扦㙣愳㔷〰㘸改㠸戵昳〴㌲㔲㙡㈲ㄳ愷晣㌸㜲摢昷散戲晦㄰㜸㈲晡㈲㥣㑥戳㤱㉡㕣㙤摢〸㥦㠳㜰㌳㡡㝥㕣㤹挳㌲㌲㜱㔲㔳挸㐹改㑡㤴攱㠳㥡〶㈰㌳慢捦㘱㘳挸㐲挸㘷ち捦〰㜴收㡢摦摤㡣㉦ㄴ㝤㡡㌲㝥㤵㈳㐴扦挱㔸搰㉢㥥㕤㐸收㈵昵㔹㜴㈷ㅡ挲敤㜴㔹㠶敤㤴㌳ち昲㝡摣〳昹㡣攲ㄹ㐵愶昷摢攸㔰㥦摥㔵㤴㜶㥥摥㙦㙤㍡㍤㕡ㄷ㌲扤攴昸㠳戱㜶搲〳㔴敢㙢〴敢〴搷〰〶㈸㙥㈹挳ち㘱晣攲㉦㠹㜱愴㝦㡣晥扥㜶昲晢㌷㤹晥昳愴ㄲ〱㡢慡收挹㔳挰捡攴㍦㤹㥣晣戳㈸敤㍣昹㤷㌶㥢晣㈰㘵㉦㘷愲㍦〷搰㥦㔵愴㐱㔹捣㉦㈱挳㝤攴㙦㤰㠴㐸ㅦ㡥晥换〴捦ㄳ扣㐰昰〹㠲㕦㈱昸㔵㠰㝥㙤㌰愶㑤㈵攴挲㡡ㄷ〱㌸㈰㝦㠳㌱搹っ㤲㔲攴戵㉦㈱搳㥦ㅤ㈴㘶攵〵扦㠶㡣晥㐹㠲㕦㈷昸ㄴ挱愷〹㝥〳愰㕦㔳㐴慡捣敦㌷㤱㠹攷㤷攷ㅥ愷㝣慤㈴戶ㅤ㙦㜶昲ㄵ㠵搰㤱㕣〸㌵㝡搱㠹㍣挸㍢㐲慥㘱㐹晣晣户愳㍡㉡㜴㜹㘵㐱昹㌱昲㑦㥦㡥㍦〵搳愲攰ㄹ㠸㉦戴愶㐹愳摣㐸攵挵㡤扦昹㑡挳摤㡢ち㈴㔰㘸搸㤸戴㉣㡤慦挶㡤㡦攲㌳㌳㘹㤳攱㤵〸愶搷攲挶愴㜹㘹扣ㅡ㌷晥昱搱㐳昵挶㌱慤㠷㈳攷㐹㠸㈹㜶扡㥣㕣ㄲ㥦㥣搳㈱㤰户愸晢㝢慤戰㤸㔲㕦攲攰㔵搱晥㝤戸摤攲攱愳敦㔹㕣搶挲㥤ㄶ㈸㠸昰摦㝥㌸㠳㑢㕣㔳㐶㘰攰㥢敥㜵㐴捥㍤㕤㥥搸戹㘰㥤昷㔰搰㘳㥤昱㜱ㅥ慣散㈸ㄲ㠱㈹㤳ぢ昷㜷㡢㠰㐲㡡搹摢搸㡦㌸摡愷昱㔲㑣㜷㡡㑦〲㐳㌹攵挶㤸捤扣搰愰ㄹ晤戳㐰づ㈴㌰㈰㌳晡敦〰㠶㠱愴㝤㉣ㄸ愴㡣ㄱ㈹昰㝢慣昸ㅣ挱敦〳㤴昲ㄴ㌳㍦摢搹摥攵㜱㌶晥㘲ㅦ戱换愶㑦昳㑦攱㔳晢つ敥㔰ㄶ晦搲㐸㕥㡣昳㥣昶挱敥挶㈲㌱搰慥㤶摦㌲㔶昸〶挶攱㈶㌴愲㈰ㅣ㤱搲慢愴㈸㑣戹㕣㘵㘱㝣扥㠳㘶㜷㔱换慡ㄷ攲ち㌳慡㌸㠰㠲㤲晡㐴㕣㕣㠹㡡て㑡㌱㠵戰っ㔳㡥㡡ㅦ㐲㐱ㄱ㔱㕣ち㘶愹㔸㡡㉡攸㜶搳扦っ㌰㐸搱㉣摢㝦〳ㄹ挸晥㤷昰㠷摣㔷昸ち挰㝥㙣ㅤ晥挵ㄳ㝦戸㘲づ慦㝡收㍡晥〵㤵扦昹㤶慢愹㕦挰㌰ㄲㅥ㐸戲戰晥㔵㜶晢〳㠰㉣摣晥㉡ㄲ〰㈵晤て㔱㤲㐰戸愲㜴㤷挹㍣ㄵ㑤㈶摣〳捡㝢㈹晥㘸㔴捣㍤㈸㈹㙡〰㈹扥ㅣㄵ㠷㍢㐰㥤㈰挵㤷愲攲㜰〷愸㈵愴昸㘲㔴捣ㅤ㈸㈹敡つ㈹㕥㠸㡡戹晥搲㈰搵㠷慣晤捦㤰搱扦㑥昰つ㔶攴㐹戲摢收ㅤ㈲戵㑢㝢敡捦搱㔵㤱㈱㌸㠶晥捤㈸挳〷㐵㙥㤰㈹㥦㡢愶㑣㔵㕦搴ち㡡ㅣ㈲ㄵ㘷愳㡡ㄳ㔲愱ㄴ戹㐶㉡㘶愳㡡㤳㈸搰扦つ㌰㐰㑣昷攱搷昳㑦〸搹扥㥥晤愱敡挳敦挷摡慤㑣〵敦慡愸㙣㈶㝦〳戵慤㠶㙢挲㙢㤴戸ㅣ㐰昵愹换㤹㤸㠲愳晤㕣㝣㐷搴㜶愴摥㘶㙦扤愴㝥ㅣ摥㔳㉦㤲ㄳ敥敤㥥㠸㠱㌴攲㉤㜳㕦㘷㤶收㜹㍢㤶㙣㐵戵敤㠶搱愹昸ㄵっ㑥〲㔶㝡㍤㈷㡦㡡㌴㑥敡搰扦挳㕡㤲戶愰敥搵㈸㈳愸㈳㌵〹㈲㘶㕡㔰㐷ち㤳㡡改ㄶ搴㤱敡愴攲㔴ㄲ㜵摦攵愰㐲㈲挸㌴搹㝥㠳㈴ㄵ愱摣扦㐲愶㍦㍢㐰㉣㕦挶㑦扢慥捡㑦㔷㥥㝥晡㈷〳戹攱扢㜲ㅦ㝤愲敦昳慦晤挳㡦㍥昳㠳㡦㥤昸㡦㥦㝥昱㡢㍦昸户捦摣晣改㜷㤷㑥晣摤换㉦晦敤㠷扦㝣昳㐷㝢慤ㅢ摡㉢㍦㤹扤昱摣搸㤵攷慥㕡ㄷㅦ㥥㜹敥愹㘷㉥㡣捤摤㌱㤲捤昶昴㍣㌸昴昷㜷㍥㌴昸挲搵㔷搵昷晥攵愰㥢攷㌶㙣㘳ㄳ戹晥㉥㜹攱慦搱㔵挹慥㈲搳扣㕡敥慥慣昶㝢挸㘰戵摣㤸户㜲戵㡡扢㉡昸㜸㍣挲挷〴ち㡡㜰㌹捡㈴㤱搷㘳㈳ㄶ昹㡣攲戴愴昹㠷㥡㥢昷晥て㌲㔳愸㡤 | C30: 㜸〱敤㕣㕢㙣ㅣ㔷ㄹ摥ㄹ敦慥㜷搶㜶散挶㐹摢㠴㤲㥡㤶㕥愸㠳ㅢ愷㑤搳〲㈱昵愵㐹㑣㥤搸慤㥤㤴㤶挲㘶扣㝢挶㥥㘶㘷挶㥤㤹㜵攲㔲㠹〲㉤〸㉡㉥㐵㔰搴搲慡㕣〴ㄲ㉦㐵〸愹㔰攰㠵㡢〴㠲㔶攲愱㍣㈰昱㔰㉡〴㐸㈰ㄴ愹㉦㍣㈰㤵敦㍢㌳戳㍢戳敢ㅤ扢摢ㄶㅣ攴㐹㝣㝣收摣捦㝦㍦晦㝦挶ㄹ㈵㤳挹扣㠶㠷扦昹㘴㤹戹㙣㙥搵昳㠵㌵㌲攱㔴慢愲散㥢㡥敤㡤㡣戹慥扥㍡㙤㝡㝥ㄷㅡ攴㑢㈶敡扤㕣挹㌳ㅦ㄰㠵搲㡡㜰㍤㌴捡㘵㌲㠵㠲愶愲㥥㠳昰㘷㈰㝡搱搸慢㌷㡢㘴㝥㘲㝣㘶攱㍥㡣㍡攷㍢慥搸㍢㜴㉡攸㝢㘸㜴㜴㘴㜴攴挶㠳愳㌷㡤散摢㍢㌴㔱慢晡㌵㔷ㅣ戲㐵捤㜷昵敡摥愱搹摡㐲搵㉣摦㉥㔶攷㥤㌳挲㍥㈴ㄶ昶摤戰愰摦㜸昳攸㡤〷づㄸ户摣㜲㜳㉦愶捥㥣㤸ㄸ㥦㜵㠵攱扤㐹㘳收戸攴ㅢ㈷㐵搹攴摥㠴㜰㑤㝢㜱㘴㘲ㅣ晦㘳敢挷摢挱㤱戹㈵㈱㝣㑥㉤㕣㘱㤷㠵愷愱㘳㡦㌵收㜹㌵㙢㤹挰搳慣㈳搸㙡㔹昷晣㥣㌵㈱慡㔵捤㡡㐶㉤㔸㌳㠰㕤㔵㕦敤戵收㠴敤㤹扥戹㘲晡慢㜹㙢ㅥ〳㔵晡慣㤳㥥戸㔳户ㄷ挵〹摤ㄲ㌹敢㘸捤慣㘴㠳㈷搳㜵㑤㌴㐴㝣㘱㜲晢㈳㘳㥥㌵戱愴扢㜲㐵ㅥ〱㤳搲昶㠸㕢㑥戶扤戲晤戸㕣扡㥣㠱㘳㕥搵扥ㅤ㙡㑥改㙥扤攵㜰晢㤶攱收㤳㉢戸扥㝤晢ㄸ㡣㤲㝤摥搵扥㡦〴㘵戲戵搲ㄳ搲户㠴㈸㌶愳攵㤹㜴㌳㈹㌰㈱〲戵㈲㤳ㅥ㈶扤㐸㤴散慢攰㤲㜸㐷㔶愹㈵㕤㉤㉤愸愵戲㕡慡愸㈵愱㤶っ戵戴愸㤶㤶搴㤲愹㤶敥㔳㑢㘷搰㈶㝡ち摤摤㙡昸晣昶改㕦扤㍡晣昳挷挶㝥昰摡㔷敥㤹摡㌶晥户摥㙤㘸㜴㐷戸愸㐹㔷㍦ぢ㔲㙢㔰昱晥㤱㝤晣户㍥㔷㠰㈹㡣〳挶㐱㘳㜴戴㜲㘰㥦㝥㠳㥥攳戶㔲㤰㥦㈰㤴〱戴敤㌵敥㌲敤㡡㜳㔶攲敥戲㜱摤ㄳつ挰つ㠷㜵攳㑥捤慥㜸㙦㕢扢㜲捥搷㝤戱扢戹慥㌱㐸㑢户㌹戰㤵昰攴㝣㝢㥡扢㥤搲慢㌵㌱㜶捥っ慡摦摥㔴㙤捤扡捥㐲晢摡㈳慥戸扦㕥摢戲愲㌱〸戵ㄵ㌹㜶换㉥㠳慡㘰㕤㐳ㄳ㑢㡥㈷㙣戹扣㘱㙢搶㉣㥦ㄱ敥㥣愰㐸ㄴㄵ戹搵㥤慣ち戹㝥㜸挶挶㐶挱慤㤵㉢攲愵挶㙤攷㝣㌰戳愸㘰扤换挲昵㔷攷昵㠵慡戸㌸搱㈴㤸ㄳㄵ扢ㄲ挵㐷㥣㜲捤㥢㜰㙣摦㜵慡挹㥡戱捡㡡づ㐹㔳㌹敥㔴㐴㌶㥢㤱㐲〱〲户慢㑢㔱㌲搷戵攷〵㠹㠸ㄸ㡡挹挸㤷㈶挹㙥攴㑥散づ扢愸ち搲愴晡捥㜵〶攳㝡愵㡣㐹攱挰搸㥥愸㍦㌸改戵敢っ㕢挷摣㕢摢㔸㔵〷挳摤摦戶㈲㙣晦㤸㙥㔷慡挲㑤搵㝥ち㔷愴昵㈳挹㥤㠷㐰㘸ぢ㍤慡㍡攵㥣戲㥡㍢㙢㔶晣愵晣㤲㌰ㄷ㤷㝣㤴㐱㐳ㄶち〴㙤换愳㕤㠴㈲㙤㍢㤳㐱㈴挵㘲㈶扦㠳㡤昲㐵㍣㤹ㅣ愵㔳ち㉦㈷〴㌹晢㈵㜸戹搷㌸㘲㔶㝤ㄱ〸攵㝥〳ㄸ〹戴㥡㐴㕦ㅦ㐹搴搵换㠱挲搸㘱㑣㠰㑡㜵搳昶㔷ㅢ㝣摢挲㈵〱ㄱ㙤挹㠲㑤㈷ぢ㈸ち㤲昲㈰㠵搷㐰㌴㑤搲㈰扤㜱㡣㠸挸〶㈹㥡ㅤ㈳㈷㠹㡣敤㔳㘴〴摡挷㠹㤰慤昷戵㤷ㄱ㈴昶㔶㈲㘵愷戶晣戸㈵捤搶戲攵〳㘹戶ㄳ㠰搳㉥㘶㜲〹㤳㑢㤹散㐲愲晣〵ㄲ㡥㔲づ昹攴愳扤つ敦摡㘵㑣摥㡥〴昲㐹愳捣〹㐵ㄵ㙤愸㡤搸㤱㙣搷〷㍢㔹ㅡ挵㠱㈸愲㘵㕣户㌳晢㉣㠹攸搰敡摣ㅣ扡㌶㉢㜵散搵敤㘹㌳扥ㅤ㔲㘴㑡搳昸㕥搷㘹ㅡ〷〴㥢㜶愸户㉥㐷㔷㙤㠸挹㍢㤰ㄴ戵㉢㤸㐲戹搰攰摤㤸㐵㑦㤳昲㠲㌰㡢〲㘳愸㐳〵ㅦㄲ㌲㡦〰㈹㐲慥攵昸戲㘵㐳搳ㅣㅣ㌶㉥㜸ㅢ㝡㙦㝢晥づ㤱摥愴㌷户昴づ晤㐵慦搳㡡扥ㄲ散愵晣戱慤㡥戹ち搵摡搵㑣慥㐱搲愴㘳㜸晡㝥扤㥥〲㘹ㄶ㕢㌱捣㙤愷搷㐵㕡戹昳慢换㐲㙡愰㕥㘳㕥㜷ㄷ㠵てて挶搴㈴㙣㘱挷㜵㐵ㄵ㠷摡㡡㉣攰昹攵㤲㘴愱㜷挴㜵㉣㤶㙦搹挸摥〵愱ㄸ戲㔹戵㉢搳㘴㈳愷搸㥡㌱㥦㔳㡣㜲愸㠳㙦㘸㉦㈴㘲㥤㤲攴挵㝥改攷换㉤㐹搲㠱㈴㜹ㄷ挰慡㕤㠷〴㔲㐲昹㝤㕢㠹戲㤷捤摥㉤㥢㈵㉤㔶㝡昸㔲㑥㈷㑤㍥挴ㄶ㌹搲ㄳ㌸㙣挷攱㍦昰晡慣㌹搳慡ぢ㡢ㅥ㙢㔶戸㘵昸ㄶ捣慡㈸〶㙥㔹㡡㥡㉤㔹㜱㠱挸㡡慥慥㤶昳㜴㡡㝦㑤搲㐹㤳㤴㐸攵昶搴捡㤴戳㜸㠳愸攸㠶愴㔰㐹㜱つ搵㈵㄰㈹㡦㙤户㐴㑣〷㈲收㝡〰㑥摢挷㘴㤴挹㝥㈴戹ㄷ㈱㘹㌶ち㜸㠶挳扡㔷攸搲㉥㤵㌲〵愲㐱扡〸㕦㘸㉢慣づ㜰㥡㥢㤸ㅣ㐴搲㘴晥搰〱㤹㐲㠸ㄲ攵㌱㐲㤴㘱っ攳㤴㈹捥㤲〶戶ㄹ〸㉣㑤搴㍣摦戱ㄸ㔹敡㌳㈶㥤ㄳ㡥㍦㘹㝡换㠸㐴つㅡ㘱收慥㈵㘱㠳扡㕣搸㍥㑤㘵捥昲戲愸㘸挶㥣㔳㠳㘸㥢㥡摣っ〷㜳㠰〳戶愴㍣㥢慢ち㥥捥捥挷ㄸ㐲〱愴愵扦㤵摥搸つ㜹扦㜹攸敢㙦㐰㜴摥昴慢愲挷〸㤸㡥昹㠲〱㈸㈲㜲㔰改㌶收㤷㕣㈱㈶晢㡣愳慥㔹愹㥡戶㈰㌲㘰㘳㌲㔸㌷㉤ㄶㄱ㈵㤸㜵ㄸ〳㜴散㍥㘳摥搵㙤㙦㔹㘷㐰㜱㜵㝢攲㑤㠶㐵㜲挶戸㘹㝢㤸㐶㘲㤱昹㝥㘳㙥挹㌹㡢㠸㙤捤戲㡦敡换摥愶挰ち㠹㍥㜸㈴㙡ㄴ㔵㔱㔵愵愰ㄶ㍡挵てて攴㤹っ㜹㉦换㐴攲㉡㤳愳捦㍣㐵㝢搳慥て㘳㌴戴搳戹愶㕥㐴㡦敡㠵㕤愹㔲㤸㥣慡摤挲㍥敦㐱昲㠱愳㈷愷ㅡ㤱戹㌷ㄴ戳捥搱换㥦㈲攳㈵㔹搴〳㈱昴搱㙤ぢ㐸㠵㘵愴ㅣ㜰㈰㌰捥户㘶昲㉢ㅡ戲つ愹㙦㕢㈳㝢〴㤱愴㕥㘳㕡㕦㄰㔵挴愳㉤摤摦ㄶ扣搰㡣戵昴慡ㄷ搶㑤㌸㤶愵㤳戴㐸㤶㜳㘵㥤ㄴ㍣㔶昳㥤攳愶慤ㄹ㐸㈴晤㠵㐵晡㌹ㄴ改攷㘴㔱慦㜱㈷㐳㠳㌲捦戱㥣㐵摤㌵晤㈵换㉣ㄷ昸挲昰摤愶愰㐹㌰㌹㈵㙦昴㐴㌲㘳愸挹㥡㍦〹㤳捤ㅢ〱扡㐷㈰㐷〹㍡愲ㅦ㤴慢㉡㜹晣㔳㍡㜴㉣㐱挰㐸㑦愹昶㍥㡣㤶㤳户㈳㈰㜲攴㜳㍥扡㠳㜱晥㘳㈸〹㠴㄰戱㥥㐲㈲昰ち挶㠴㍣㕤摣㜹攳愴㙤晡挰ㅥ㌱㜶挴昴㈷㍤愰ㅣ〹戲昲㜸扢㕢㘲㌵搶㘹戸慥ㄵ㉥㙦慤㑡愸㠹㍤慤昵㜱扤昱捥㌵慡〳㡤ㄲ㔳㈴敢㌵㤲㥡㘵㡤㌵㙥㈶㔵愳㐸挵ㅤ㘹ㅢ㈵捤㙤摡㠰㍢愵挸ㅢ㔰㑣㤲㘶㌲摡晢㈵愱㈰搰ㅢ敡㈸晡散搳挹㈳ㄶ戱愱つ㔰愴㥥ち捡晡挲㤰攰ㄴ慥㥤㔴㐴㌱㝣〳㝦㙦ぢ戳㌳㌵㍦㔱愳㥦ㅢっ㙢挶慡搵ㄹㅢ㔶㐲㔹㜷㉢㥢㠴愵戱户㐰挳㐸敥散㑣晢㐷捡㉡挶㠸㜰㤱ㅦ㈶搸攰㈲㘷㘸㈴挵ㄷっ㔶〴㠳挵愲慡戴搰晡〸敥㝡㜱㠱㙦挷㠵㙥㑢㉣捣昹㤵㐹戱㈲㑤戱㠶㌵㍦㈸㍢搴㑦㡣㔲㤶㙡挶搸㠲〷戵敥㔳㤶㠷㌹挹攴㥡㜱㈷㕤㔳戸挸〰搱ㅢ收㘶换㍥挲扢昵〱㜸㍡搸㍣ㄸ〲㐴㠲昰〹㉤㌴㑡搱㝣ち昱㈶㌷㐱晥改っ慢扣㠷㘶挸攷㥦㠷㤵㈷㥦攰昳摤挳㤹㈸ㄳ㌲ㄲ㐳㕥㈹ㄶ〴㤰ㅢ㡦㑥㤲㤳〶愳愰㜹㈰摤愴攰敡㡤捡㘸㘶昴搱散㜳㝤摣攴㘱㍣慢㥦慣㔳挵㕤㌷摦㠴㐶慤慥㙥㌳愶散㜲戵㔶ㄱ㔲ㅤ㐷昲㕡㙡攵㑤㠱㉦㜹つ㌰攰愸ㄴ戸㠴㐰㤹挲㜱㡡㕢㈶㤲㍡户扤戵㕢搱㕤ち㍡㡣ㄱ愸㍦〶㈱㔳㕣㜳㌲㈸搶㜲㔷㠱㌶攲昶挶㈵〶㜹㠱づ㘲慤愵㠸昲㙣ㅡ㜷昲敡㤱㘴挹㙤戱㘶搳捥戴㐳扢㍤㔶㜴捣っ㡡㌶〵㡥戰捦㐰攸攵昳㌰㐸㍡攴づづ㤲㌹ㅦ㐶㜸捦㝦㑣扥㘶捥㐳攸㐹っ㈸㡣昳昲㈴㤴〱㔴挱㐸㌴扡搵㠶攵慤㌰〲㑣敢㕢ㅢ㐷愲㌰ㄴ㑣愳ㄶ㉤〳㈳㘷ㄲ昹昵㡤㥣换搱㉡㈵㑡ㅡて愸㌲㑥㌹〸愷㍤㤰〶㙥攲㘱㝡摥㠱㈲昲㜷挸换㘱搱晤挴㘱ぢ挷㈰挷扤戸愹㜰㔶昷㜱〵挶摥搵㔴㍣㔶愹搰攴㠵㡦㙥㔳㘰ㄵ搷㌷〲㤳㜴㐷搳挵㉣戹㈷摡㜸㔷㌶㔵㠴ㄷ〶昷㑦㡥ㅣ搳晤昲搲㥣扦ㅡ㕣摥敡㤴㈴㜲㍦㠱㑦㘲捤搹㘹㌷㘷㙤㕥㐶㕤㈱散㡢㘷㙣攷慣㉤搷㤵昳㜸昳㡦ㅡ㔴敢敥收㈲㡢㤹搷昰㑦㍥㙡㈶昷㘳㡣戸㤱㘵㜳㠰㠶㤳㠴攳挸㈷㤰〶㐳挸愷搰〹散昷晡捤〱搲挹㡥㈶㍡㤱㠲㘰㡢㔰散挵㌷㡤㔰㤴攷㠱㔶ㄲ㑢㜰㉣〷捣扦〳搶㔷㝥㠴ㄲ㈲ㅣ敦愱ㄸ挹扤〳戹ㄴ搴㐹㐱ㅥ㕥昳攰愵㤰晦ㅦ㉣㐵摣扣㈶㍢晤ㄷ㤸㔹昹㘱㌳㡡昶㄰㐵捦戵愰㐸攱㔵㄰挹扦户㈳ㄳ㍤㌹㠶㘸㕦㔷㌰㥣㝢摡㍡㠴扥攵㤷㝥晦㠷㠷搰攳㈱㜱㐸ㅢつ攱戶慢昰㕥㌷ㄱ扡㕡㑣〴〶昰愵㠹㜰〲ㄹ㠵㤱晣挰㐴〸晤㈰戳㈸㔸摦㐴㘰㝣㉦挵㄰㡣㠵㕢㘳慥つ㥥挰㉥戶攸㈳㍢㠶换户挲㐳㑣ㅦ㑡换㥢㠰㔷敡㤲搶攲㔹摤搵慤㕤戲晣愸㉢愰捣摣㜹摣收㤶㕤搸㘳昷㥡㌵戲搳ㅡ晥㡡挸搳扥攵㔳搹搸ㅤ㜶㘰㉡㜸〲ㄷ扥㔲㔰昲㙦挰㕢愲昰摣㤰昹攸㡥㘷㡦晥改㠱㠷て昳挶㕡㐸慢戹敢㤰敦㈴㙣㑦㝢〲㠱摤搸㘵㤱㥤晣㌸攷㌸㍥㔳㌲㤷慢㘲㕣㜷愵ㄵ攴㘹㔶㤴つ〸㉦㐶㤸〱昱㙤〶ㄳㄳ㜷ㅦ〲ㄳ㜳愴挹攵㈹㍦㙥㤲㙥挲㤱搸挲愵㕦㉦ちㅤ㉡㙤ㄵ㔹㠷搶㘶敥㝢㔰㐵慦㜳㈱㐹㉢㤱愷㑥㍥㡡昲㙣戳慥㍢㐰㕤ㄷㅣ㘴ㄸ晡㡦愴ㄴ㘲㄰愴㤰昸㐱㠶㤷〲愴㤴㥡㐳㈶挷㔸㕦㑡㜴慤㌹捣㑢㝦挰㤶㄰㄰昵㡢㝦ㅤ㝥挸〲㈸〲㡢㤱㍦扥搳ㄳ㉤㙤搱㐸㌵㌱㕣㉢㙤㥡㜹㘴攴攱㠵〵愳㔱㘹挲搲攱愹㜶挳敥㈸㑥搲㘷〵挱户㠰戱㜳ㄶ㝤㙤㐵敢㌶扢㠶摢ㅦ搰㌳㜹愹㌰散敤㉣挶㠱㔴挶改㠲愶挵愰㠸㘹㝦㤰慤㜷敡〹慢愰戳散㕤㌸㤵㈲〰挸慦㠵㔸㍦摣ㄸ㝡㘷㜳つ㜵㥣摤㡤つ昲〷昶搷㥥ㄴ挶挶慣攴ㄸ㐸搸つ戵㉡〴㔷挴㑦愱㡢戴昲ㄵ慤㤱攵㕣㡡挲㌸㜵挴㔹㕤㙡㡢晥㘷〴㕢㜲搶㕤㙣捤㔰㜶㐲晦摦㡤㠲㜵昵扦㜲ぢ晢攲㐷扢㈷捣昰㈵挷ㄸ捡扡㘱ㅢ㐲〴摥㙤〴㜰攴挱㔸㤳㔹㠶扤㠳摣ㅣ㍥㘰つ慡愵〴㠷摦㉢摢㝣㍤愲摥㤷戶㙤㑦㕢〱挸昸㔰敥摢㄰㐱㙤晢㈷攵ㄶ㐷攳㤳扦ㄷ挹㡥攳㘶搹㜵㍣挷昰㠷收㄰昸ㅤ攲昷㘷〶㙣㥥㌱攵㕢捤㐲敤㑡㐰愲昷㈳攸㜳㘲〶〲晢㠴昰摦慣㜸㈴愳ぢㅢ㡢㘶昰㕢愴㠱㔸㠸㠹摡挱扢挸戸愳愶㔷昱昹敡っ㝣㥤㍥㡢㌶㠵戲ぢ㍣捥捤户㌴〸㍡摣搳扡ㅤ晥㈰㔱ㅤ㐱㠰㑣㙥攱㐳ㅦ㈶㕣㥢㘱㤰㙣ㅢ敥捤㘳换捥㝣㙥挵摣㌷㠰搳㡤捤㤲㈴ㄹ捥挹慦㤲㡢摡㘹愶㌰扥攱愸ぢㄸ㈳㈱换㙥㐵改挶摤戶㥣㘳㄰搴ㅦ㝥敡㑤昷搸㜰ㄵ㑥戵つ挴挵ㄷ㌸扤昴晤㈱愳㤵昹ㄶ晤㑣㈲㐳〶㔵㥥挲㘶挹ㄶ挸㘷昲〲㐹㝢㕡㝦㜲㉤㕡ㅦ㠸戶愶昰攴㐱㈲㉤㉡㑦愰㈱㠱ㄸ〰㘳㠹㘵〰㠶㍣㘱㈰慦㐵㍤㤰捦㈸㍣㘱挸㠵㍣㡥づ昵㠵㥣㐱㘹晢㠵㝣㜹慤㠵㈸戴つ戸扦挴昸〳㤱㙥搱㙣㔶㌹㑣㤶㤹摣㡦愴㥦挲㤲ㄲ㈸ㅦ〴ㅣ㥥㈷扥昰晣㉥晣晤昲攱ㄷ㕦攰昳㡦挳㡡ㄴ㡦愸㑡っ慥㔰㍣捡挵㝦㉥扥㜸ㅦ愵敤ㄷ晦攸㕡㡢ㅦ愰攴攴㑡戴ㄵ㈴㝤㕤捡㘹晣㤲㥢㌹㡢っ攱挸ㅦ㐵㈲ㄴ㤹挴㉡〶㠸㔸搹㜷ㄵㄹ昴㈵挰㘵摦〷㤰㠹晡收戸晦㤴捦㝥愴搵挴㉢㤲昴昰攴〳ㄷ㙤㍥搰㤵〵㉢昴捤㙥ち㠹㠱㉤昱㍢摡戶㠲㍥摦㘱散㕦㜹㈴㐲捣戱㘳搱㌷㔵㙡ㄸ㠹〲㘱〴㜶㉡改㠷㠰㔴ㅥ㡥ㅡ㝦晦戹㠶㈳ㄵㄵ㜸㐰㍤㐱㘳搲㤹㙣晣挹愸昱㝥㝣慦㈵摢㘴搴攰㔷收攵愸㌱改㔱㌶晥㐴搴昸敦晢㜷搵ㅢ㐷㜴ㄸ㡣㥣㈳㤱愴㔸挰昲㑣㄰晢㜶㥢㐷敤㥣㐱慤摡㘳〴挵㤴愷㌲愸㕣㤵㝡戵ㄷ搷㐴㕣㝣㍤㍤㡤㕢㑦戸ㅣ〲搱ㅢ晣ㄱ㠵㈹摣㠶㥡搴㝤ㅤㅦ㐷慦㈰っ敤㙡昲㡤㥤昳挶㡣㡢㠲㙥㘳捡挳㐹慢戲愹㐸〴㐶㐲㌶㠰敦㍡慥晡ㄴ㠳戲〱㡦㈸㜴愶昲㜶㐹㘷㉡㐵㠶㕢戲捡㐳ㄱ㘶㌳て㌵㘸㐶晢㌸㤰〳改㠸㤴ㄹ敤ㄳ㐸㠳昰っ敦㌱㘷〶挸晦㤲戹ㅦ㘶挵㈳㑣㍥㠵愴愸㤰搹㐹〷昹㑦㈳搹〹摢ㄵ㝦挴挲ㅢ慡㠸愱㘵㔷慣攰㡦㘲晣攲〷戶慡㥣㡢愶㡣ㄳ㤳昶ㄹ㜶晢㉣㤲㉥戸㜶㤵㤰ㄴ㡢摡愳㈸㠹㑦㑤昱㈱愷晥ㅣ㉢㍥捦攴ぢ㐸㡡㌹㉥㜹挳戰攳捥㍡搴㕦㕦㐴㔷㠵〰攱ㄸ摡㘳㘱㠶㉦㌹㐲攳扤敤敤㘸ㅥ㤳愳て晦ㄱ〶㑤㝣攱㝦ㅢ扥搸㕦攵愶扢昰〷㑢㜲搲攸捦慡敦改㙣㉣戲〲敤㜵昹㘳〳搸㙦㘰ㅣ敥慢ㄱ㕤攱㠸㔴㉤〵㌵慦㄰敢摣戰㘲㘱〶捥㜲㐸㔶㈸ち㈹㐱㔶㔴挳ち㉡㉥敤㉢㙣㑡ㅣ㝦㥣㙦㡦昳㡤愸㤵㐰晣㙡㤸攱㡢㐲扣捡敥㑢㘱昷㘸㐲攲㕡㔶㉣㌶㑤㐸晣换ち㈳㍥攱搷㌸㤸㐴ㄶ㌲㐹摤㐴愴㘵㔹晡㌴㤲扥慥㝥慥㡤扡㔴㍤愷㤴㑦㔷㑥㥦晥㔷㝦㜶㘸㜷昶㠳户昶㍥昱昲㙦㕥昹搲㑢昷ㅥ晡敢扦㥦㝡敡愵㍦㝦改㠵㝦晦㜴攱搰慦扥昹捤㕦㝥攰㤹ㄷ㕥搹㙥㝣㕤㝤敥㕦搳㕦㝦㜰昴捣㠳昷ㅢ㈷慦㍢晡攰摤昷摤㌱㍡㝢搱㜰㔷㔷㜷昷㌵㠳扦扥昴摡㠱㠷敥晦㤱昲戳㍦㕣㘲㉢㜲扢㥣㌰㙥㘵っ㜰摢㜲ㄹ捦㈰㠳㘵㜰挵㙦改㌲戸㕤〹愸搳㈱愰挶㔱㔰㠰扦㠳ぢ㤰ㄵ愵㘴㐵捦㝦〰㐷㌱戸㜵 | D30: 㜸〱敤㕣㕢㙣ㅣ搵ㄹ摥ㄹ敦慥㜷搶㜶㙣攲〴〸㔷㜳扦㌸㌵㜱㈰摣摡㌴昸㐲ㄲ㐳㉥〶㍢愱戴戴㥢昱敥ㄹ㝢挸捥㡣㤹㤹㜵㘲㡡㔴愰搰慡㐵昴㠲㕡㉡㈸〸㑡搵㑡㝤愱㐲㤵戸戴㝤愹㕡愹ㄵ〵愹て昴愱㔲ㅦ㈸慤摡㠷㔶㈸㔲㕦㜸㐰愲摦㜷㘶㘶㜷㘶搷㍢㌶ぢ戴愶昲㈴㍥㍥㜳敥攷扦㥦晦㍦攳㡣㤲挹㘴摥挳挳摦㝣戲捣㥣㌳戳散昹挲ㅡ㤹㜰慡㔵㔱昶㑤挷昶㐶挶㕣㔷㕦㍥㘰㝡㝥ㄷㅡ攴㑢㈶敡扤㕣挹㌳敦ㄵ㠵搲㤲㜰㍤㌴捡㘵㌲㠵㠲愶愲㥥㠳昰㘷㈰㝡搱搸慢㌷㡢㘴㜶㘲晣昰摣摤ㄸ㜵挶㜷㕣戱㝤攸㘸搰㜷昷攸攸挸攸挸㌵搷㡤㕥㍢戲㘳晢搰㐴慤敡搷㕣戱摢ㄶ㌵摦搵慢摢㠷愶㙢㜳㔵戳㝣慢㔸㥥㜵㡥ぢ㝢户㤸摢㜱昵㥣㝥捤昵愳搷散摡㘵摣㜰挳昵扤㤸㍡㜳㘸㘲㝣摡ㄵ㠶昷㈱㡤㤹攳㤲慦㤹ㄴ㘵㤳㝢ㄳ挲㌵敤昹㤱㠹㜱晣㡦慤ㅦ㙦搷㡤捣㉣〸攱㜳㙡攱ち扢㉣㍣つㅤ㝢慣㌱捦慢㔹㡢〴㥥㘶敤挵㔶换扡攷攷慣〹㔱慤㙡㔶㌴㙡挱㍡っ搸㔵昵攵㕥㙢㐶搸㥥改㥢㑢愶扦㥣户㘶㌱㔰愵捦㍡攲㠹摢㜵㝢㕥ㅣ搲㉤㤱戳昶搵捣㑡㌶㜸㌲㕤㤷㐵㐳挴ㄷ㈶户㍦㌲收㔹ㄳぢ扡㉢㔷攴ㄱ㌰㈹㙤昷扡攵㘴摢㡢摡㡦换愵换ㄹ㌸收㈵敤摢愱收愸敥搶㕢づ户㙦ㄹ㙥㍥戹㠲慢摡户㡦挱㈸搹攷㡡昶㝤㈴㈸㤳慤㤵㥥㤰扥㈵㐴戱ㄹ㉤捦愴㥢㐹㠱〹ㄱ愸ㄵ㤹昴㌰改㐵愲㘴晦つ㉥㠹㜷㘴㤵㕡搲搵搲㥣㕡㉡慢愵㡡㕡ㄲ㙡挹㔰㑢昳㙡㘹㐱㉤㤹㙡改㙥戵㜴ㅣ㙤愲愷搰摤慤㠶捦慢㉦晤晥改㌷戴敡搴㌳慦㥦晤昶ぢ㝦㜵敥散摤㠴㐶户㠵㡢㥡㜴昵ㄳ㈰戵〶ㄵ敦ㅣ搹挱㝦慢㜳〵㤸挲搸㘵㕣㘷㡣㡥㔶㜶敤搰慦搶㜳摣㔶ち昲ㄳ㠴㌲㠰戶扤挶ㅤ愶㕤㜱㑥㐸摣㥤㌳慥㝢愲〱戸攱戰㙥摣愹搹ㄵ敦散㤵㉢㘷㝣摤ㄷ㘷㌵搷㌵〶㘹改㌶〳戶ㄲ㥥㥣敦扣收㙥㐷昵㙡㑤㡣㥤㌴㠳敡㜳㥢慡慤㘹搷㤹㙢㕦扢搷ㄵ昷搴㙢㕢㔶㌴〶愱戶㈴挷㙥搹㘵㔰ㄵ慣㙢㘸㘲挱昱㠴㉤㤷㌷㙣㑤㥢攵攳挲㥤ㄱㄴ㠹愲㈲户扡㤵㔵㈱搷てㅦ戶戱㔱㜰㙢攵挲㜸愹㜱昳㐹ㅦ捣㉣㉡㔸敦愲㜰晤攵㔹㝤慥㉡㑥㑦㌴〹收㐴挵戶㐴昱㕥愷㕣昳㈶ㅣ摢㜷㥤㙡戲㘶慣戲愴㐳搲㔴づ㍡ㄵ㤱捤㘶愴㔰㠰挰敤敡㔲㤴捣㤵敤㜹㐱㈲㈲㠶㘲㌲昲㤹㐹戲ㅢ戹ㅤ扢挳㉥慡㠲㌴愹㕥扣捡㘰㕣慦㤴㌱㈹ㅣㄸ摢ㄳ昵〷㈷扤㝣㤵㘱敢㤸晢㘸ㅢ慢敡㘰戸晢㥢㤷㠴敤敦搷敤㑡㔵戸愹摡㑦攱㡡戴㝥㈴戹㔳㄰〸㙤愱㐷㔵愷㥣㔴㤶㜳㈷捣㡡扦㤰㕦㄰收晣㠲㡦㌲㘸挸㐲㠱愰㙤㜹戴搳㔰愴㙤㘶㌲㠸愴㔸捣攴户戰㔱扥㠸㈷㤳愳㜴㑡攱攵㠴㈰㘷扦〴㉦昷ㅡ㝢捤慡㉦〲愱摣㙦〰㈳㠱㔶㤳攸敢㈳㠹扡㝡㌹㔰ㄸ㕢㡣〹㔰愹㙥摡晥㜲㠳㙦㕢戸㈴㈰愲つ㔹戰敥㘴〱㐵㐱㔲ㅥ愴昰ㅡ㠸愶㐹ㅡ愴㌷㡥ㄱㄱ搹㈰㐵戳㘳攴㈴㤱戱㝤㡡㡣㐰晢㌸ㄱ戲昵㡥昶㌲㠲挴摥㑡愴散搴㤶ㅦ㌷愴搹㑡戶㝣㈰捤戶〲㜰摡改㑣捥㘰㜲㈶㤳㙤㐸㤴扦㐳挲㔱捡㈱㥦㝣戴戳昱慥㥤挳攴㕣㈴㤰㑦ㅡ㘵㑥㈸慡㘸㐳慤挵㡥㘴扢㍥搸挹搲㈸づ㐴ㄱ㉤攳扡㥤搹㘷㐹㐴㠷㔶攷晡搰戵㔹愹㘳㉦㙤㑦㥢昱敤㤰㈲㔳㥡挶昷扡㑡搳㌸㈰搸戴㐳扤㜵㍥扡㙡㐳㑣㉥㐰㔲搴㉥㘴ち攵㐲㠳㜷㙤ㄶ㍤㑤捡㡦㠵㔹ㄴㄸ㐳ㅤ㉡昸㤰㤰㜹〴㐸ㄱ㜲㉤挷㤷つㅢ㥡收攰戰昱戱户愱户户攷敦㄰改㑤㝡㜳㐳敦搰㕦昴㍥慤攸㡢挰㕥捡㥦摢敡㤸㑢㔰慤㕤捡攴㌲㈴㑤㍡㠶愷敦昷敢㈹㤰㘶戱ㄵ挳摣㘶㝡㕤愴㤵㍢扢扣㈸愴〶敡㌵㘶㜵㜷㕥昸昰㘰㑣㑤挲ㄶ㜶㕣㔷㔴㜱愸慤挸〲㥥㕦捥㐸ㄶ㝡㝢㕤挷㘲昹㠶㡤散㝤㉣ㄴ㐳㌶慢㜶㘵㥡㙣攴ㄴ㕢㌳收㜳㡡㔱づ㜵昰搵敤㠵㐴慣㔳㤲扣搸㉦晤㝣戹㈱㐹㍡㤰㈴㔷〰慣摡㤵㐸㈰㈵㤴㍦戶㤵㈸摢搹散ㄳ戲㔹搲㘲愵㠷㉦攵㜴搲攴㐳㙣㤱㈳㍤㠱挳㜶ㅣ晥〳慦捦㥡㌱慤扡戰攸戱愶㠵㕢㠶㙦挱慣㡡㘲攰㤶愵愸搹㤰ㄵㅦㄳ㔹搱搵搵㜲㥥㑥昱慦㐹㍡㘹㤲ㄲ愹摣㥥㕡㤹㜲ㄶ㙦㄰ㄵ摤㤰ㄴ㉡㈹慥愱扡〴㈲攵戱敤㠶㠸改㐰挴㕣〵挰㘹㍢㤸㡣㌲搹㠹㈴昷㍡㈴捤㕡〱捦㜰㔸昷ㄲ㕤摡愵㔲愶㐰㌴㐸ㄷ攱㙢㙤㠵搵㉥㑥㜳㉤㤳敢㤰㌴㤹㍦㜴㐰愶㄰愲㐴㜹㡣㄰㘵ㄸ挳㌸㙡㡡ㄳ愴㠱㑤〶〲㑢ㄳ㌵捦㜷㉣㐶㤶晡㡣㐹攷㤰攳㑦㥡摥㈲㈲㔱㠳㐶㤸戹㘳㐱搸愰㉥ㄷ戶㑦㔳㤹戳戸㈸㉡㥡㌱攳搴㈰摡愶㈶搷挳挱ㅣ攰㠰㉤㈹捦收慡㠲愷戳昳㌱㠶㔰〰㘹改㙦愵㌷㜶㑤摥㙦ㅥ晡晡ㅢ㄰㥤㌵晤慡攸㌱〲愶㘳扥㘰〰㡡㠸ㅣ㔴扡㡤搹〵㔷㠸挹㍥㘳㥦㙢㔶慡愶㉤㠸っ搸㤸っ搶ㅤ㄰昳㠸ㄲ㑣㍢㡣〱㍡㜶㥦㌱敢敡戶户愸㌳愰戸扣㌹昱㈶挳㈲㌹㘳摣戴㍤㑣㈳戱挸㝣扦㌱戳攰㥣㐰挴戶㘶搹晢昴㐵㙦㕤㘰㠵㐴ㅦ㍣ㄲ㌵㡡慡愸慡㔲㔰ぢ㥤攲㠷〷昲㑣㠶扣㤷㘵㈲㜱㤵挹搱㘷㥥愲扤㘹搷㠷㌱ㅡ摡改㕣㔳㉦愲㐷昵挲慥㔴㈹㑣㑥搵㙥㘰㥦ㅢ㤱摣戲敦挸㔴㈳㌲昷㠱㘲搶㌹㝡昹㔳㘴扣㈴㡢㝡㈰㠴㍥扡㑤〱愹戰㡣㤴〳づ〴挶昹搶㑣㝥㐵㐳戶㈱昵㙤㙡㘴昷㈲㤲搴㙢ㅣ搰攷㐴ㄵ昱㘸㑢昷㌷〵㉦㌴㘳㉤扤敡㠵㜵ㄳ㡥㘵改㈴㉤㤲攵㑣㔹㈷〵㡦搵㝣攷愰㘹㙢〶ㄲ㐹㝦㘱㤱㝥ㄲ㐵晡㐹㔹搴㙢摣捥搰愰捣㜳㉣㘷㕥㜷㑤㝦挱㌲换〵扥㌰㝣户㉥㘸ㄲ㑣㑥挹ㅢ㍤㤱捣ㄸ㙡戲收㡦挰㘴昳㐶㠰敥ㄱ挸㔱㠲㡥攸〷攵慡㑡ㅥ晦㤴づㅤ㑢㄰㌰搲㔳慡㝤ち愳攵攴敤〸㠸ㅣ昹㥣㡡敥㘰㥣晡ㄲ㑡〲㈱㐴慣愷㤰〸扣㠲㌱㈱㑦ㄷ㜷摥㌸㘲㥢㍥戰㐷㡣敤㌵晤㐹て㈸㐷㠲慣㍣摥㥥㈵戱ㅡ敢㌴㕣搷ち攷户㔶㈵搴挴㜹慤昵㜱扤㜱昱ち搵㠱㐶㠹㈹㤲搵ㅡ㐹捤戲挲ㅡ搷㤳慡㔱愴攲㡥戴㡤㤲收㌶㙤挰㥤㔲攴〳㈸㈶㐹㌳ㄹ敤搳㤲㔰㄰攸つ㜵ㄴ㝤昶改攴ㄱ㡢搸搰〶㈸㔲㑦〵㘵㝤㘱㐸㜰ち搷㑥㉡愲ㄸ扥㠱扦㌷㠵搹挳㌵㍦㔱愳㥦ㅣっ㙢挶慡搵挳㌶慣㠴戲敥㔶搶〹㑢㘳㙦㠱㠶㤱摣搹㤹昶㡦㤴㔵㡣ㄱ攱㈲摦㐳戰挱㐵捥搰㐸㡡㉦ㄸ慣〸〶㡢㐵㔵㘹愱昵ㄱ摣昵攲〲摦づち摤㤶㔸㤸昱㉢㤳㘲㐹㥡㘲つ㙢㝥㔰㜶愸㥦ㄸ愵㉣搵㡣戱㌹て㙡摤愷㉣て㜳㤲挹㌵攳㜶扡愶㜰㤱〱愲㌷捣㑤㤷㝤㠴㜷敢〳昰㜴戰㝥㌰〴㠸〴攱ㄳ㕡㘸㤴愲昹ㄴ攲㑤㙥㠲晣搳ㄹ㔶㜹て捤㤰捦摢㝢㤴㈷㥦攰昳㤳㍤㤹㈸ㄳ㌲ㄲ㐳㕥㈹ㄶ〴㤰ㅢ㡦㑥㤲㤳〶愳愰㜹㈰摤愴攰敡㡤捡㘸㘶昴搱散㜳㝤摣攴㘱㍣慢㥦慣㔳挵㕤㌷摦㠴㐶慤㉥㙦㌲愶散㜲戵㔶ㄱ㔲ㅤ㐷昲㕡㙡攵㜵㠱㉦㜹つ㌰攰愸ㄴ戸㠴㐰㤹挲㜱㡡㕢㈶㤲㍡户扤戵㥢搰㕤ち㍡㡣ㄱ愸㍦〶㈱㔳㕣㜳㌲㈸搶㜲㔷㠱㌶攲收挶㈵〶㜹㠱づ㘲慤愵㠸昲散〰敥攴搵㈳挹㤲摢㘲捤づ㌸〷ㅣ摡敤戱愲晤㘶㔰戴㉥㜰㠴㝤〶㐲㉦㥦㠷㐱搲㈱㜷㜰㤰捣愹㌰挲㝢敡㑢昲㌵㜳ち㐲㑦㘲㐰㘱㥣㤷㈷愱っ愰ち㐶愲搱慤㌶㉣㙦㠵ㄱ㘰㕡摦摡㌸ㄲ㠵愱㘰ㅡ戵㘸ㄹㄸ㌹㤳挸慦㙥攴㥣㡦㔶㈹㔱搲㜸㐰㤵㜱捡㐱㌸敤㠱㌴㜰ㄳて搳戳づㄴ㤱扦㐵㕥づ㡢敥㈷づ㕢㌸〶㌹敥改㑤㠵搳扡㡦㉢㌰昶戶愶攲戱㑡㠵㈶㉦㝣㜴敢〲慢戸扥ㄱ㤸愴㕢㥡㉥㘶挹㍤搱挶扢愸愹㈲扣㌰戸㜳㜲㘴扦敥㤷ㄷ㘶晣攵攰昲㔶愷㈴㤱晢〵㝣ㄲ㉢捥㑥扢㌹㙢昳㌲敡ㄲ㘱㕦㍣㙥㍢㈷㙣戹慥㥣挷㥢㝦搴愰㕡㜷㌷ㄷ㔹捣扣㠷㝦昲㔱㌳戹㥦㘳挴戵㉣㥢〳㌴㥣㈴ㅣ㐷㍥㠱㌴ㄸ㐲㍥㠵㑥㘰扦搷㙦づ㤰㑥戶㌴搱㠹ㄴ〴ㅢ㠴㘲捦㝦㘸㠴愲扣〲戴㤲㔸㠲㘳㌹㘰晥㘳戰扥昲㌲㑡㠸㜰扣㠷㘲㈴㜷〱㜲㈹愸㤳㠲㍣扣收挱㑢㈱晦㍦㔸㡡戸㜹㐵㜶晡㉦㌰戳昲㔲㌳㡡捥㈳㡡㕥㙣㐱㤱挲慢㈰㤲㝦㙦㐵㈶㝡㜲っ搱扥慦㘰㌸昷戴㜱〸晤挸㉦晤晥てて愱〷㐳攲㤰㌶ㅡ挲㙤㤷攰扤㙥㈲㜴戵㤸〸っ攰㑢ㄳ攱㄰㌲ち㈳昹㠱㠹㄰晡㐱愶㔱戰扡㠹挰昸㕥㡡㈱ㄸぢ户挶㕣ㅢ㍣㠱㥤㙥搱㐷戶ㅦ㤷㙦㠵㠷㤸㍥㤴㤶㌷〱慦搴ㄹ慤挵搳扡慢㕢摢㘴昹㍥㔷㐰㤹戹戳戸捤㉤扢戰挷㔹㉢搶挸㑥㉢昸㉢㈲㑦晢㠶㑦㘵㙤㜷搸㠱愹攰〹㕣昸㑡㐱挹㝦〰㙦㠹挲㜳㐳收㡢㕢㥥摦昷㤷㝢ㅦ摡挳ㅢ㙢㈱慤收慥㐴扥㤳戰㍤敤〹〴㜶㘳㤷㐵戶昲攳㥣㠳昸㑣挹㕣慣㡡㜱摤㤵㔶㤰愷㔹㔱㌶㈰扣ㄸ㘱〶挴户ㅥ㑣㑣摣㝤〸㑣捣㤱㈶㤷愷晣戸㐹扡〹㐷㘲ぢ㤷㝥扤㈸㜴愸戴㔵㘴ㅤ㕡㥢戹㥦㐲ㄵ扤捦㠵㈴慤㐴㥥㍡昹㈸捡昳捤扡㙥ㄷ㜵㕤㜰㤰㘱攸㍦㤲㔲㠸㐱㤰㐲攲〷ㄹ㕥ち㤰㔲㙡〶㤹ㅣ㘳㝤㈹搱戵收㌰㉦晤〱ㅢ㐲㐰搴㉦晥㜵昸㈱ぢ愰〸㉣㐶晥昸㑥㑦戴戴㐵㈳搵挴㜰慤戴㘹㘶㤱㤱㠷ㄷㄶ㡣㐶愵〹㑢㠷愷摡㌵扢愳㌸㐹㥦ㄵ〴摦〲挶捥㔹昴戵ㄵ慤㥢敤ㅡ㙥㝦㐰捦攴愵挲戰㌷戳ㄸ〷㔲ㄹ愷ぢ㥡ㄶ㠳㈲愶晤㐱戶摥愹㈷慣㠲捥戲户攱㔴㡡〰㈰扦ㄶ㘲晤㜰㘳攸慤捤㌵搴㜱㜶㌷㌶挸ㅦ搸㕦攷愵㌰㌶㘶㈵挷㐰挲慥愹㔵㈱戸㈲㝥ㄴ㕤愴㤵慦㘸㡤㉣攷㔲ㄴ挶愹㈳捥敡㔲㕢昴㍦㈳搸㤲戳敥㘰㙢㠶戲ㄳ晡晦㑥ㄴ慣慡晦㤵ㅢ搸ㄷ㍦摡㘷挳っ㕦㜲㡣愱慣ㅡ戶㈱㐴攰摤㐶〰㐷ㅥ㡣㌵㤹㘵搸㍢挸捤攰〳搶愰㕡㑡㜰昸扤戲捤搷㈳敡㝤㘹摢昶戴ㄵ㠰㡣て攵㝥〴ㄱ搴戶㝦㔲㙥㜱㌴㍥昹扢㤰㙣㌹㘸㤶㕤挷㜳っ㝦㘸〶㠱摦㈱㝥㝦㘶挰收ㄹ㔳㝥搸㉣搴㉥〲㈴㝡扦㠰㍥㠷づ㐳㘰ㅦㄲ晥㠷ㄵ㡦㘴㜴㘱㙤搱っ㝥㡢㌴㄰ぢ㌱㔱㍢㜸愷ㄹ户搵昴㉡㍥㕦㍤っ㕦愷捦愲㜵愱散〲㡦㜳昳㉤つ㠲づ昷戴㙥㠵㍦㐸㔴㐷㄰㈰㤳㕢昸摣攷〹搷㘶ㄸ㈴摢㠶㝢昳搸戲㌳㥦㕢㌱昷〳攰㜴㙤戳㈴㐹㠶㜳昲慢攴愲㜶㡣㈹㡣㙦㌸敡〲挶㐸挸戲㥢㔰扡㜶户㉤攷ㄸ〴昵㠷㥦㝡搳㍤㌶㕣㠵㔳㙤つ㜱昱㌹㑥㉦㝤㝦挸㘸㘵扥㐵㍦㤳挸㤰㐱㤵愷戰㔹戲〵昲㤹扣㐰搲㥥搶㥦㕣㠹搶〷愲慤㈹㍣㜹㤰㐸㡢捡ㄳ㘸㐸㈰〶挰㔸㘰ㄹ㠰㈱㑦ㄸ挸㙢㔱て攴㌳ち㑦ㄸ㜲㈱㡦愳㐳㝤㈱挷㔱摡㝥㈱摦㔹㘹㈱ち㙤〳敥㉦㌱晥㐰愴㕢㌴㥢㔵づ㤳㐵㈶昷㈰改愷戰愴〴捡〷〱㠷㔷㠸㉦㍣㝦〸㝦扦戹攷昵搷昸晣㙢㡦㈲挵㈳慡ㄲ㠳㉢ㄴ㡦㜲昱㡦挶ㄷ敦愳戴晤攲ㅦ㔹㘹昱〳㤴㥣㕣㠹戶㠴愴慦㑢㌹㠶㕦㜲㌳㈷㤰㈱ㅣ昹愳㐸㠴㈲㤳㔸挵〰ㄱ㉢晢㉥㈳㠳扥〴戸散㝢㉦㌲㔱摦ㅣ昷㥦昲搹㡦戴㥡㜸㐵㤲ㅥ㥥㝣攰愲捤〷扡戲㘰㠵扥搹㜵㈱㌱戰㈵㝥㐷摢㔶搰攷㍢㡣晤㉢て㐷㠸搹扦㍦晡愶㑡つ㈳㔱㈰㡣挰㑥㈵晤㄰㤰捡㐳㔱攳ㄷ㕥㙣㌸㔲㔱㠱〷搴ㄳ㌴㈶㥤挹挶㕦㡥ㅡ敦挴昷㕡戲㑤㐶つ㝥㘵摥㡣ㅡ㤳ㅥ㘵攳〷愳挶晦摣戹慤摥㌸愲挳㘰攴ㅣ㠹㈴挵〲㤶㘷㠲搸户摢㍣㙡攷っ㙡搵ㅥ㈳㈸愶㍣㤵㐱攵慡搴慢扤戸㈶攲攲敢改〳戸昵㠴换㈱㄰扤挱ㅦ㔱㤸挲㙤愸㐹摤搷昱㜱昴ㄲ挲搰慥㈶摦搸㌹㙦ㅣ㜶㔱搰㙤㑣㜹㌸㘹㔵搶ㄵ㠹挰㐸挸〶昰㕤挵㔵㥦㘲㔰㌶攰ㄱ㠵捥㔴摥㉥改㑣愵挸㜰㑢㔶戹㍦挲㙣收晥〶捤㘸て〰㌹㤰㡥㐸㤹搱ㅥ㐴ㅡ㠴㘷㜸㡦㌹㌳㐰晥㤷捣晤㄰㉢ㅥ㘶昲ㄵ㈴㐵㠵捣㑥㍡挸㝦ㄵ挹㔶搸慥昸㈳ㄶ摥㔰㐵っ㉤扡㘲〹㝦ㄴ攳搷㍦戳㔵攵㘴㌴㘵㥣㤸戴慦戱摢搷㤱㜴挱戵慢㠴愴㔸搴ㅥ㐱㐹㝣㙡㡡て㌹昵愳慣昸〶㤳㙦㈲㈹收戸攴㌵挳㡥㍢敢㔰㝦㝤ぢ㕤ㄵ〲㠴㘳㘸摦づ㌳㝣挹ㄱㅡ㥦㙣㙦㐷昳㤸ㅣ㝤昸㡦㌰㘸攲ぢ晦㥢昱挵晥㌲㌷摤㠵㍦㔸㤲㤳㐶㝦㔶扤戱戳戱挸ち戴搷攵㡦つ㘰㝦㠰㜱戸慦㐶㜴㠵㈳㔲戵ㄴ搴扣㐲慣㜳挳㡡㠵ㄹ㌸换㙥㔹愱㈸愴〴㔹㔱つ㉢愸戸戴敦戲㈹㜱晣〰摦ㅥ攷ㅢ㔱㉢㠱昸扤㌰挳ㄷ㠵㜸㤵摤ㄷ挲敥搱㠴挴戵慣㤸㙦㥡㤰昸㤷ㄵ㐶㝣挲敦㜳㌰㠹㉣㘴㤲扡㠹㐸换戲昴㘹㈴㝤㕤晤㕣ㅢ㜵愹㝡㔲㈹ㅦ慢ㅣ㍢昶㑥㝦㜶攸慣散㘷㙥敡㝤攲捤㔷摦㝡散㡤扢㜶晦攳摤愷㥥㝡攳㙦㡦扤昶敥㉦攷㜶晦昶戹攷㝥㜳换㌳慦扤戵搹㜸㔶㝤昱㥤〳捦摥㌷㝡晣扥㝢㡣㈳㔷敥扢敦捥扢㙦ㅢ㥤㍥㙤戸慢慢扢晢戲挱摦㥤㜹昹挰晤昷扣慣晣敡㑦㘷搸㡡摣㉥㈷㡣㕢ㄹ〳摣戶㕣挶㌳挸㘰ㄹ㕣昱㐷扡っ㙥㔷〲敡㔸〸愸㜱ㄴㄴ攰敦攰〲㘴㐵㈹㔹搱昳ㅦ挷㜷戸扥
A31: Decisioneering:7.0.0.0 | B31: Decisioneering:7.0.0.0 | C31: Decisioneering:7.0.0.0 | D31: Decisioneering:7.0.0.0

Sheet Data
B4: Variable | C4: Value | E4: Sales are expected to start after completion and:
B5: Remaining development project cost as estimated today ($) | C5: 15 | G5: 1
B6: Investment per Year | C6: =C5/C9 -> 4.285714286 | I6: Sales are expected to continue after patent expiration | U6: =Model!I21 -> 26.00999233
B7: Development time as estimated today (in years) | C7: 3.5 | I7: Sales are expected to continue for a limited number of years after completion
B8: Annual probability of failure (%) | C8: 0.0475 | E8: Time to patent expiration (in years) | F8: 17
B9: First expected annual cash flow as estimated today ($) | C9: 3.5 | E9: Market share after patent expiration (%)
B10: Annual drift in net sales (%) | C10: 0.0685 | E10: Years of exploitation after completion | F10: 7
B11: Risk premium (%) | C11: 0.0235 | G11: 2
B12: Discount rate (%) | C12: 0.05 | E12: Select whether you want to:
B13: Industry
B14: Frequency of evaluation | C14: =IF(B49=1,4,IF(B49=2,2,IF(B49=3,1,))) -> 2
B15: Risk tolerance coefficient ($) | C15: 25
B16: NPV | C16: =+Model!BOW28 -> 11.2754269 | E16: If you chose the first option:
B17: =IF(F8>20,"Time to patent expiration should be lower or equal to 20",IF(C14*F8>80,"Choose a lower frequency of evaluation. (The time to patent expiration by the frequency of evaluation - 12 for monthly, 4 for quarterly, 2 for semmiannaully and 1 for annualy - should be lower or equal to 60)"," ")) ->  | E17: Volatility of the industry | F17: =IF(B84=1,C69,IF(B84=2,C70,IF(B84=3,C71,IF(B84=4,C72,IF(B84=5,C73,IF(B84=6,C74,IF(B84=7,C75,IF(B84=8,C76,IF(B84=9,C77,IF(B84=10,F18)))))))))) -> 0.34
E18: Other/manual
B19: Recommendation (CE and Maximum Tolerable Loss) | C19: =Hoja1!A13 -> Invest in the project | E19: If you chose the second option:
B20: Project Value | C20: =+Hoja1!J6 -> 14.81147548 | E20: Volatility of costs | F20: 0.34
B21: Probability of a Positive Project Value | C21: =+Hoja1!G3 -> 0.6633540373 | E21: Volatility of cash flows | F21: 0.204
B24: Interval | C24: Probability
B25: =("["&J52&", "&J53&"]") -> [22.5, ∞] | C25: =H53/D56 -> 0.4024691358
B26: =("["&J51&", "&J52&"]") -> [18, 22.5] | C26: =H52/D56 -> 0.05308641975
B27: =("["&J50&", "&J51&"]") -> [13.5, 18] | C27: =H51/D56 -> 0.06666666667
B28: =("["&J49&", "&J50&"]") -> [9, 13.5] | C28: =H50/D56 -> 0.05308641975
B29: =("["&J48&", "&J49&"]") -> [4.5, 9] | C29: =H49/D56 -> 0.05679012346
B30: =("["&J47&", "&J48&"]") -> [0, 4.5] | C30: =H48/D56 -> 0.02716049383
B31: 0 | C31: 0
B32: =("[-"&E48&", "&E47&"]") -> [-3, 0] | C32: =D48/D56 -> 0.1222222222
B33: =("["&-E49&", -"&E48&"]") -> [-6, -3] | C33: =D49/D56 -> 0.08148148148
B34: =("["&-E50&", -"&E49&"]") -> [-9, -6] | C34: =D50/D56 -> 0.09382716049
B35: =("["&-E51&", -"&E50&"]") -> [-12, -9] | C35: =D51/D56 -> 0.03703703704
B36: =("["&-E52&", -"&E51&"]") -> [-15, -12] | C36: =D52/D56 -> 0.003703703704
B37: =("[-"&E53&", -"&E52&"]") -> [-∞, -15] | C37: =D53/D56 -> 0.002469135802
C43: =C5/5 -> 3 | D43: =ROUND(C43,1) -> 3
B45: Quarterly | I45: =N45/5 -> 4.515 | J45: =I45 -> 4.515 | N45: =(C7*(F8-C9)-C5)*0.7 -> 22.575
B46: Semiannually | C46: =IF(Hoja1!$B$3<0,1,0) -> 0
B47: Annually | E47: 0 | F47: =IF(Hoja1!$B$3=0,1,0) -> 0 | H47: 0.195 | J47: 0 | L47: 9.836062455 | M47: =L47/100 -> 0.09836062455 | N47: =ROUND(M47,1)*100 -> 10
C48: =IF(AND(Hoja1!$B$3<0,Hoja1!$B$3>-E48),1,0) -> 0 | D48: 0.099 | E48: =D43 -> 3 | F48: =IF(AND(Hoja1!$B$3>0,Hoja1!$B$3<J48),1,0) -> 0 | H48: 0.022 | J48: =ROUNDDOWN(J45,1) -> 4.5 | L48: =+Hoja1!J7 -> -17.8804936 | M48: -0.178804936 | N48: =ROUND(M48,1)*100 -> -20
B49: 2 | C49: =IF(AND(Hoja1!$B$3<=-E48,Hoja1!$B$3>-E49),1,0) -> 0 | D49: 0.066 | E49: =+E48+$E$48 -> 6 | F49: =IF(AND(Hoja1!$B$3>=J48,Hoja1!$B$3<J49),1,0) -> 0 | H49: 0.046 | J49: =+J48+$J$48 -> 9 | L49: =+Hoja1!J8 -> -6.116320335 | M49: -0.06116320335 | N49: =ROUND(M49,1)*100 -> -10
C50: =IF(AND(Hoja1!$B$3<=-E49,Hoja1!$B$3>-E50),1,0) -> 0 | D50: 0.076 | E50: =+E49+$E$48 -> 9 | F50: =IF(AND(Hoja1!$B$3>=J49,Hoja1!$B$3<J50),1,0) -> 0 | H50: 0.043 | J50: =+J49+$J$48 -> 13.5 | L50: =+Hoja1!J9 -> -4.128298578 | M50: -0.04128298578 | N50: 0
C51: =IF(AND(Hoja1!$B$3<=-E50,Hoja1!$B$3),1,0) -> 0 | D51: 0.03 | E51: 12 | F51: =IF(AND(Hoja1!$B$3>=J50,Hoja1!$B$3<J51),1,0) -> 0 | H51: 0.054 | J51: =+J50+$J$48 -> 18 | L51: =+Hoja1!J10 -> -2.089949811 | M51: -0.02089949811 | N51: 0
C52: =IF(AND(Hoja1!$B$3<=-E51,Hoja1!$B$3>-E52),1,0) -> 0 | D52: 0.003 | E52: 15 | F52: =IF(AND(Hoja1!$B$3>=J51,Hoja1!$B$3<J52),1,0) -> 0 | H52: 0.043 | J52: =+J51+$J$48 -> 22.5 | L52: =+Hoja1!J11 -> 7.08940312 | M52: 0.0708940312 | N52: 10
C53: =IF(Hoja1!$B$3<=-E52,1,0) -> 0 | D53: 0.002 | E53: ∞ | F53: =IF(Hoja1!$B$3>=J52,1,0) -> 1 | H53: 0.326 | J53: ∞ | L53: =+Hoja1!J12 -> 14.81001191 | M53: 0.1481001191 | N53: 10
L54: =+Hoja1!J13 -> 23.05975736 | M54: 0.2305975736 | N54: 20
L55: =+Hoja1!J14 -> 29.31216337 | M55: 0.2931216337 | N55: 30
D56: =SUM(D48:D53)+SUM(H48:H53) -> 0.81 | L56: =+Hoja1!J15 -> 39.19437092 | M56: 0.3919437092 | N56: 40
L57: =+Hoja1!J16 -> 54.88225481 | M57: 0.5488225481 | N57: 50
L58: =+Hoja1!J17 -> 147.0031337 | M58: =L58/100 -> 1.470031337 | N58: 150
B62: 1/T | C62: =1/C14 -> 0.5
B63: Volatility of Cost | C63: =IF($G$11=1,$F$17,F20) -> 0.34 | E63: Take the same volatility value for all volatilities (industry's average)
B64: Volatility of Periodical Investment | C64: =IF($G$11=1,$F$17,#REF!) ->  | E64: Take different volatility values for all volatilities (manual)
B65: Volatility of Expected Cash Flows | C65: =IF($G$11=1,$F$17,F21) -> 0.204
B66: Volatility of the Market Share | C66: =IF($G$11=1,$F$17,F23) -> 0
B68: Industry | C68: Yearly MAPE | D68: CAPM
B69: Chemicals (agricultural, industrial and consumer use) | C69: 0.4111 | D69: =+E90 -> 0.101028 | E69: =IF(B84=1,D69,IF(B84=2,D70,IF(B84=3,D71,IF(B84=4,D72,IF(B84=5,D73,IF(B84=6,D74,IF(B84=7,D75,IF(B84=8,D76,IF(B84=9,D77,IF(B84=10,F18)))))))))) -> 0.086436
B70: Automotive | C70: 0.46 | D70: =+E99 -> 0.099204
B71: Computer & Technology | C71: 0.17 | D71: =+E98 -> 0.099204
B72: Consumer Products | C72: 0.48 | D72: =+E91 -> 0.099204
B73: Food & Beverages | C73: 0.19 | D73: =+E90 -> 0.101028
B74: Healthcare | C74: 0.3 | D74: =+E92 -> 0.096468
B75: Industrial Products | C75: 0.4 | D75: =+E91 -> 0.099204
B76: Pharmaceutical | C76: 0.34 | D76: =+E101 -> 0.086436
B77: Average / Overall | C77: 0.29 | D77: =+AVERAGE(E90:E102) -> 0.09434
B78: Other / Manual
B84: 8
B89: Industry | C89: Annual Std Deviation | D89: Betas | E89: CAPM | G89: Tasa Libre de Riesgo | J89: Mercado
B90: Chemicals (agricultural, industrial and consumer use) | C90: 0.21522789 | D90: 1.07 | E90: =$H$90+D90*($J$90-$H$90) -> 0.101028 | H90: =C10 -> 0.0685 | J90: 0.0989
B91: Industrial Machinery, Equipment & Products | C91: 0.1864990496 | D91: 1.01 | E91: =$H$90+D91*($J$90-$H$90) -> 0.099204
B92: Health Care | C92: 0.1920452848 | D92: 0.92 | E92: 0.096468
B93: Energy, Power Supply | C93: 0.1514767521 | D93: 0.07 | E93: 0.070628
B94: Aerospace & Defense | C94: 0.1904729892 | D94: 0.93 | E94: 0.096772
B95: Oil Exploration & Production | C95: 0.2959306833 | D95: 1.24 | E95: 0.106196
B96: Iron & Steel | C96: 0.2251527157 | D96: 0.78 | E96: 0.092212
B97: Public Utilities | C97: 0.1348941684 | D97: 0.45 | E97: 0.08218
B98: Technology (Excluding Telecommunications) | C98: 0.1895347558 | D98: 1.01 | E98: 0.099204
B99: Transportation | C99: 0.2130860473 | D99: 1.01 | E99: 0.099204
B100: Telecommunications | C100: 0.2064432033 | D100: 0.99 | E100: 0.098596
B101: Pharmaceutical | C101: 0.1384498869 | D101: 0.59 | E101: 0.086436
B102: Biotechnology | C102: 0.2204944919 | D102: 0.98 | E102: 0.098292

Sheet Hoja2 (hidden)
A1: 0.99 | B1: =-LN(A1) -> 0.01005033585
A2: =A1-0.005 -> 0.985 | B2: =-LN(A2) -> 0.01511363781
A3: =A2-0.005 -> 0.98 | B3: 0.02020270732
A4: 0.975 | B4: 0.02531780798
A5: 0.97 | B5: 0.03045920748
A6: 0.965 | B6: 0.03562717764
A7: 0.96 | B7: 0.04082199452
A8: 0.955 | B8: 0.0460439385
A9: 0.95 | B9: 0.05129329439
A10: 0.945 | B10: 0.05657035149
A11: 0.94 | B11: 0.06187540372
A12: 0.935 | B12: 0.06720874969
A13: 0.93 | B13: 0.07257069283
A14: 0.925 | B14: 0.07796154147
A15: 0.92 | B15: 0.08338160894
A16: 0.915 | B16: 0.08883121371
A17: 0.91 | B17: 0.09431067947
A18: 0.905 | B18: 0.09982033528
A19: 0.9 | B19: 0.1053605157
A20: 0.895 | B20: 0.1109315607
A21: 0.89 | B21: 0.1165338163
A22: 0.885 | B22: 0.122167634
A23: 0.88 | B23: 0.1278333715
A24: 0.875 | B24: 0.1335313926
A25: 0.87 | B25: 0.1392620673
A26: 0.865 | B26: 0.1450257721
A27: 0.86 | B27: 0.1508228897
A28: 0.855 | B28: 0.15665381
A29: 0.85 | B29: 0.1625189295
A30: 0.845 | B30: 0.1684186516
A31: 0.84 | B31: 0.1743533871
A32: 0.835 | B32: 0.1803235541
A33: 0.83 | B33: 0.1863295782
A34: 0.825 | B34: 0.1923718926
A35: 0.82 | B35: 0.1984509387
A36: 0.815 | B36: 0.2045671657
A37: 0.81 | B37: 0.2107210313
A38: 0.805 | B38: 0.2169130016
A39: 0.8 | B39: 0.2231435513
A40: 0.795 | B40: 0.2294131643
A41: 0.79 | B41: 0.2357223335
A42: 0.785 | B42: 0.2420715612
A43: 0.78 | B43: 0.2484613593
A44: 0.775 | B44: 0.2548922496
A45: 0.77 | B45: 0.2613647641
A46: 0.765 | B46: 0.2678794452
A47: 0.76 | B47: 0.2744368457
A48: 0.755 | B48: 0.2810375297
A49: 0.75 | B49: 0.2876820725
A50: 0.745 | B50: 0.2943710606
A51: 0.74 | B51: 0.3011050928
A52: 0.735 | B52: 0.3078847798
A53: 0.73 | B53: 0.3147107448
A54: 0.725 | B54: 0.3215836241
A55: 0.72 | B55: 0.328504067
A56: 0.715 | B56: 0.3354727363
A57: 0.71 | B57: 0.3424903089
A58: 0.705 | B58: 0.3495574762
A59: 0.7 | B59: 0.3566749439
A60: 0.695 | B60: 0.3638434334
A61: 0.69 | B61: 0.3710636814
A62: 0.685 | B62: 0.3783364407
A63: 0.68 | B63: 0.3856624808
A64: 0.675 | B64: 0.3930425881
A65: 0.67 | B65: 0.4004775666
A66: 0.665 | B66: =-LN(A66) -> 0.4079682383
A67: =A66-0.005 -> 0.66 | B67: 0.415515444
A68: 0.655 | B68: 0.4231200433
A69: 0.65 | B69: 0.4307829161
A70: 0.645 | B70: 0.4385049622
A71: 0.64 | B71: 0.4462871026
A72: 0.635 | B72: 0.4541302801
A73: 0.63 | B73: 0.4620354596
A74: 0.625 | B74: 0.4700036292
A75: 0.62 | B75: 0.4780358009
A76: 0.615 | B76: 0.4861330112
A77: 0.61 | B77: 0.4942963218
A78: 0.605 | B78: 0.502526821
A79: 0.6 | B79: 0.5108256238
A80: 0.595 | B80: 0.5191938734
A81: 0.59 | B81: 0.5276327421
A82: 0.585 | B82: 0.5361434318
A83: 0.58 | B83: 0.5447271754
A84: 0.575 | B84: 0.5533852382
A85: 0.57 | B85: 0.5621189182
A86: 0.565 | B86: 0.5709295478
A87: 0.56 | B87: 0.5798184953
A88: 0.555 | B88: 0.5887871652
A89: 0.55 | B89: 0.5978370008
A90: 0.545 | B90: 0.6069694843
A91: 0.54 | B91: 0.6161861394
A92: 0.535 | B92: 0.6254885321
A93: 0.53 | B93: 0.6348782724
A94: 0.525 | B94: 0.6443570164
A95: 0.52 | B95: 0.6539264674
A96: 0.515 | B96: 0.6635883783
A97: 0.51 | B97: 0.6733445533
A98: 0.505 | B98: 0.6831968497
A99: 0.5 | B99: 0.6931471806
A100: 0.495 | B100: 0.7031975164
A101: 0.49 | B101: 0.7133498879
A102: 0.485 | B102: 0.723606388
A103: 0.48 | B103: 0.7339691751
A104: 0.475 | B104: 0.7444404749
A105: 0.47 | B105: 0.7550225843
A106: 0.465 | B106: 0.7657178734
A107: 0.46 | B107: 0.7765287895
A108: 0.455 | B108: 0.78745786
A109: 0.45 | B109: 0.7985076962
A110: 0.445 | B110: 0.8096809968
A111: 0.44 | B111: 0.8209805521
A112: 0.435 | B112: 0.8324092479
A113: 0.43 | B113: 0.8439700703
A114: 0.425 | B114: 0.8556661101
A115: 0.42 | B115: 0.8675005677
A116: 0.415 | B116: 0.8794767588
A117: 0.41 | B117: 0.8915981193
A118: 0.405 | B118: 0.9038682119
A119: 0.4 | B119: 0.9162907319
A120: 0.395 | B120: 0.9288695141
A121: 0.39 | B121: 0.9416085399
A122: 0.385 | B122: 0.9545119447
A123: 0.38 | B123: 0.9675840263
A124: 0.375 | B124: 0.980829253
A125: 0.37 | B125: 0.9942522733
A126: 0.365 | B126: 1.007857925
A127: 0.36 | B127: 1.021651248
A128: 0.355 | B128: 1.03563749
A129: 0.35 | B129: 1.049822124
A130: 0.345 | B130: =-LN(A130) -> 1.064210862
A131: =A130-0.005 -> 0.34 | B131: 1.078809661
A132: 0.335 | B132: 1.093624747
A133: 0.33 | B133: 1.108662625
A134: 0.325 | B134: 1.123930097
A135: =A134-0.005 -> 0.32 | B135: 1.139434283
A136: 0.315 | B136: 1.15518264
A137: 0.31 | B137: 1.171182982
A138: 0.305 | B138: 1.187443502
A139: 0.3 | B139: 1.203972804
A140: 0.295 | B140: 1.220779923
A141: 0.29 | B141: 1.237874356
A142: 0.285 | B142: 1.255266099
A143: 0.28 | B143: 1.272965676
A144: 0.275 | B144: 1.290984181
A145: 0.27 | B145: 1.30933332
A146: 0.265 | B146: 1.328025453
A147: 0.26 | B147: 1.347073648
A148: 0.255 | B148: 1.366491734
A149: 0.25 | B149: 1.386294361
A150: 0.245 | B150: 1.406497068
A151: 0.24 | B151: 1.427116356
A152: =A151-0.005 -> 0.235 | B152: 1.448169765
A153: 0.23 | B153: 1.46967597
A154: 0.225 | B154: 1.491654877
A155: 0.22 | B155: 1.514127733
A156: 0.215 | B156: 1.537117251
A157: 0.21 | B157: 1.560647748
A158: 0.205 | B158: 1.5847453
A159: 0.2 | B159: 1.609437912
A160: 0.195 | B160: 1.63475572
A161: 0.19 | B161: 1.660731207
A162: 0.185 | B162: 1.687399454
A163: 0.18 | B163: 1.714798428
A164: 0.175 | B164: 1.742969305
A165: 0.17 | B165: 1.771956842
A166: 0.165 | B166: 1.801809805
A167: 0.16 | B167: 1.832581464
A168: 0.155 | B168: 1.864330162
A169: 0.15 | B169: 1.897119985
A170: 0.145 | B170: 1.931021537
A171: 0.14 | B171: 1.966112856
A172: 0.135 | B172: 2.002480501
A173: 0.13 | B173: 2.040220829
A174: 0.125 | B174: 2.079441542
A175: 0.12 | B175: 2.120263536
A176: 0.115 | B176: 2.162823151
A177: 0.11 | B177: 2.207274913
A178: 0.105 | B178: 2.253794929
A179: 0.1 | B179: 2.302585093
A180: 0.095 | B180: 2.353878387
A181: 0.09 | B181: 2.407945609
A182: 0.085 | B182: 2.465104022
A183: 0.08 | B183: 2.525728644
A184: 0.075 | B184: 2.590267165
A185: 0.07 | B185: 2.659260037
A186: 0.065 | B186: 2.733368009
A187: 0.06 | B187: 2.813410717
A188: 0.055 | B188: 2.900422094
A189: 0.05 | B189: 2.995732274
A190: 0.045 | B190: 3.101092789
A191: 0.04 | B191: 3.218875825
A192: 0.035 | B192: 3.352407217
A193: 0.03 | B193: 3.506557897
A194: 0.025 | B194: =-LN(A194) -> 3.688879454
A195: 0.02 | B195: 3.912023005
A196: 0.015 | B196: 4.199705078
A197: 0.01 | B197: 4.605170186
A198: 0.005 | B198: 5.298317367

Sheet Model (hidden)
C1: risk premium | D1: =Data!C11 -> 0.0235
D2: Value | I2: No abandonment | J2: =I114 -> 27.29274897
C3: K | D3: =Data!C5 -> 15 | H3: =1.0198^20-1 -> 0.4801309932
C4: s | D4: =Data!C63 -> 0.34
C5: I | D5: =Data!C6/D12 -> 2.142857143 | H5: =0.36^(1/10) -> 0.9028804514
C6: g | D6: =+D4 -> 0.34 | H6: =1-H5 -> 0.09711954855
C7: C | D7: =Data!C9*D13 -> 1.75
C8: a | D8: =Data!C10 -> 0.0685
C9: f | D9: =Data!C65 -> 0.204
C10: l | D10: =Data!C8 -> 0.0475
C11: M | D11: =Data!F10 -> 7 | G11: Año de Terminación de Proyecto | J11: =MODE(P24,AL24,BI24,CE24,DA24,DW24,ES24,FO24,GK24,HG24,IC24,IY24,JU24,KQ24,LM24,MI24,NE24,OA24,OW24,PS24,QO24,RK24,SG24,TC24,TY24,UU24,VQ24,WM24,XI24,YE24,ZA24,ZW24,AAS24,ABO24,ACK24,ADG24,AEC24,AEY24,AFU24,AGQ24,AHM24,AII24,AJE24,AKA24,AKW24,ALS24,AMO24,ANK24,AOG24,APC24,APY24,AQU24,ARQ24,ASM24,ATI24,AUE24,AVA24,AVW24,AWS24,AXO24,AYK24,AZG24,BAC24,BAY24,BBU24,BCQ24,BDM24,BEI24,BFE24,BGA24,BGW24,BHS24,BIO24,BJK24,BKG24,BLC24,BLY24,BMU24,BNQ24,BOM24) -> 19 | K11: =MODE(P24,AL24,BI24,CE24,DA24,DW24,ES24,FO24,GK24,HG24,IC24,IY24,JU24,KQ24,LM24,MI24,NE24,OA24,OW24,PS24,QO24,RK24,SG24,TC24,TY24,UU24,VQ24,WM24,XI24,YE24,ZA24,ZW24,AAS24,ABO24,ACK24,ADG24,AEC24,AEY24,AFU24,AGQ24,AHM24,AII24,AJE24,AKA24,AKW24,ALS24,AMO24,ANK24,AOG24,APC24,APY24,AQU24,ARQ24,ASM24,ATI24,AUE24,AVA24,AVW24,AWS24,AXO24,AYK24,AZG24,BAC24,BAY24,BBU24,BCQ24,BDM24,BEI24,BFE24,BGA24,BGW24,BHS24,BIO24,BJK24,BKG24,BLC24,BLY24,BMU24,BNQ24,BOM24) -> 19
C12: N | D12: =Data!C14 -> 2
C13: Dt | D13: =Data!C62 -> 0.5 | G13: Cuando se acaba antes de la patente
C14: T | D14: =Data!F8 -> 17
C15: T* | D15: =Data!C9 -> 3.5 | G15: PV of Investments | I15: =I22 -> 9.778380768 | J15: =IF(J11=1,K27,IF(J11=2,AG27,IF(J11=3,BD27,IF(J11=4,BZ27,IF(J11=5,CV27,IF(J11=6,DR27,IF(J11=7,EN27,IF(J11=8,FJ27,IF(J11=9,GF27,IF(J11=10,HB27,IF(J11=11,HX27,IF(J11=12,IT27,IF(J11=13,JP27,IF(J11=14,KL27,IF(J11=15,LH27,IF(J11=16,MD27,IF(J11=17,MZ27,IF(J11=18,NV27,IF(J11=19,OR27,IF(J11=20,PN27,IF(J11=21,QJ27,IF(J11=22,RF27,IF(J11=23,SB27,IF(J11=24,SX27,IF(J11=25,TT27,IF(J11=26,UP27,IF(J11=27,VL27,IF(J11=28,WH27,IF(J11=29,XD27,IF(J11=30,XZ27,IF(J11=31,YV27,IF(J11=32,ZR27,IF(J11=33,AAN27,IF(J11=34,ABJ27,IF(J11=35,ACF27,IF(J11=36,ADB27,IF(J11=37,ADX27,IF(J11=38,AET27,IF(J11=39,AFP27,IF(J11=40,AGL27,IF(J11=41,AHH27,IF(J11=42,AID27,IF(J11=43,AIZ27,IF(J11=44,AJV27,IF(J11=45,AKR27,IF(J11=46,ALN27,IF(J11=47,AMJ27,IF(J11=48,ANF27,IF(J11=49,AOB27,IF(J11=50,AOX27,IF(J11=51,APT27,IF(J11=52,AQP27,IF(J11=53,ARL27,IF(J11=54,ASH27,IF(J11=55,ATD27,IF(J11=56,ATZ27,IF(J11=57,AUV27,IF(J11=58,AVR27,IF(J11=59,AWN27,IF(J11=60,AXJ27,IF(J11=61,AYF27,IF(J11=62,AZB27,IF(J11=63,AZX27,IF(J11=64,BAT27)))))))))))))))))))))))))))))))))))))))))))))))))))))))))))))))) -> 9.778380768 | K15: =IF(J11=65,BBP27,IF(J11=66,BCL27,IF(J11=67,BDH27,IF(J11=68,BED27,IF(J11=69,BEZ27,IF(J11=70,BFV27,IF(J11=71,BGR27,IF(J11=72,BHN27,IF(J11=73,BIJ27,IF(J11=74,BJF27,IF(J11=75,BKB27,IF(J11=76,BKX27,IF(J11=77,BLT27,IF(J11=78,BMP27,IF(J11=79,BNL27,IF(J11=1000,BOH27)))))))))))))))) -> FALSE
C16: r | D16: =Data!C12 -> 0.05 | G16: PV of Cash Flows | I16: =IF(M20=-1,J16,IF(M20<J11,0,J16)) -> 34.56928142 | J16: =IF(J11=1,R27,IF(J11=2,AN27,IF(J11=3,BK27,IF(J11=4,CG27,IF(J11=5,DC27,IF(J11=6,DY27,IF(J11=7,EU27,IF(J11=8,FQ27,IF(J11=9,GM27,IF(J11=10,HI27,IF(J11=11,IE27,IF(J11=12,JA27,IF(J11=13,JW27,IF(J11=14,KS27,IF(J11=15,LO27,IF(J11=16,MK27,IF(J11=17,NG27,IF(J11=18,OC27,IF(J11=19,OY27,IF(J11=20,PU27,IF(J11=21,QQ27,IF(J11=22,RM27,IF(J11=23,SI27,IF(J11=24,TE27,IF(J11=25,UA27,IF(J11=26,UW27,IF(J11=27,VS27,IF(J11=28,WO27,IF(J11=29,XK27,IF(J11=30,YG27,IF(J11=31,ZC27,IF(J11=32,ZY27,IF(J11=33,AAU27,IF(J11=34,ABQ27,IF(J11=35,ACM27,IF(J11=36,ADI27,IF(J11=37,AEE27,IF(J11=38,AFA27,IF(J11=39,AFW27,IF(J11=40,AGS27,IF(J11=41,AHO27,IF(J11=42,AIK27,IF(J11=43,AJG27,IF(J11=44,AKC27,IF(J11=45,AKY27,IF(J11=46,ALU27,IF(J11=47,AMQ27,IF(J11=48,ANM27,IF(J11=49,AOI27,IF(J11=50,APE27,IF(J11=51,AQA27,IF(J11=52,AQW27,IF(J11=53,ARS27,IF(J11=54,ASO27,IF(J11=55,ATK27,IF(J11=56,AUG27,IF(J11=57,AVC27,IF(J11=58,AVY27,IF(J11=59,AWU27,IF(J11=60,AXQ27,IF(J11=61,AYM27,IF(J11=62,AZI27,IF(J11=63,BAE27,IF(J11=64,BBA27)))))))))))))))))))))))))))))))))))))))))))))))))))))))))))))))) -> 34.56928142 | K16: =IF(J11=65,BBW27,IF(J11=66,BCS27,IF(J11=67,BDO27,IF(J11=68,BEK27,IF(J11=69,BFG27,IF(J11=70,BGC27,IF(J11=71,BGY27,IF(J11=72,BHU27,IF(J11=73,BIQ27,IF(J11=74,BJM27,IF(J11=75,BKI27,IF(J11=76,BLE27,IF(J11=77,BMA27,IF(J11=78,BMW27,IF(J11=79,BNS27,IF(J11=1000,BOO27)))))))))))))))) -> FALSE | L16: CF
C17: Var mkt | D17: =D9 -> 0.204
C18: Mkt. Share | D18: =Data!F9 -> 0 | BOV18: ,BOM107*EXP(($D$8-(1/2)*$D$9^2)*$D$13+$D$9*RAIZ($D$13)*BOL108)))
D19: =Data!G5 -> 1 | E19: =Data!F10 -> 7 | M19: Abandonado en:
C20: 3.2625 | G20: Abandonado en: | I20: =(MIN(M26,AI26,BF26,CB26,CX26,DT26,EP26,FL26,GH26,HD26,HZ26,IV26,JR26,KN26,LJ26,MF26,NB26,NX26,OT26,PP26,QL26,RH26,SD26,SZ26,TV26,UR26,VN26,WJ26,XF26,YB26,YX26,ZT26,AAP26,ABL26,ACH26,ADD26,ADZ26,AEV26,AFR26,AGN26,AHJ26,AIF26,AJB26,AJX26,AKT26,ALP26,AML26,ANH26,AOD26,AOZ26,APV26,AQR26,ARN26,ASJ26,ATF26,AUB26,AUX26,AVT26,AWP26,AXL26,AYH26,AZD26,AZZ26,BAV26,BBR26,BCN26,BDJ26,BEF26,BFB26,BFX26,BGT26,BHP26,BIL26,BJH26,BKD26,BKZ26,BLV26,BMR26,BNN26,BOJ26))-1 -> 999 | J20: =(MIN(M26,AI26,BF26,CB26,CX26,DT26,EP26,FL26,GH26,HD26,HZ26,IV26,JR26,KN26,LJ26,MF26,NB26,NX26,OT26,PP26,QL26,RH26,SD26,SZ26,TV26,UR26,VN26,WJ26,XF26,YB26,YX26,ZT26,AAP26,ABL26,ACH26,ADD26,ADZ26,AEV26,AFR26,AGN26,AHJ26,AIF26,AJB26,AJX26,AKT26,ALP26,AML26,ANH26,AOD26,AOZ26,APV26,AQR26,ARN26,ASJ26,ATF26,AUB26,AUX26,AVT26,AWP26,AXL26,AYH26,AZD26,AZZ26,BAV26,BBR26,BCN26,BDJ26,BEF26,BFB26,BFX26,BGT26,BHP26,BIL26,BJH26,BKD26,BKZ26,BLV26,BMR26,BNN26,BOJ26)) -> 1000 | K20: =IF(J20=1000,"No Abandonado",J20) -> No Abandonado | M20: =IF(J20=1000,-1,(J20-1)*D13) -> -1 | N20: Año | P20: Value without option | R20: =IF(J20=1000,Q21,P21) -> 26.00999233 | T20: TIR
B21: Value without option | C21: =C23-C22 -> 30.25156728 | E21: =E23-E22 -> 30.25156728 | G21: PV of Project | I21: =IF(M20=0,0,IF(M20=-1,I23-I22,-I22)) -> 26.00999233 | K21: =IF(K20<>"No Abandonado",0,BOH27) -> 9.778380768 | L21: =IF($J$20=1,I27,IF($J$20=2,AE27,IF($J$20=3,BB27,IF($J$20=4,BX27,IF($J$20=5,CT27,IF($J$20=6,DP27,IF($J$20=7,EL27,IF($J$20=8,FH27,IF($J$20=9,GD27,IF($J$20=10,GZ27,IF($J$20=11,HV27,IF($J$20=12,IR27,IF($J$20=13,JN27,IF($J$20=14,KJ27,IF($J$20=15,LF27,IF($J$20=16,MB27,IF($J$20=17,MX27,IF($J$20=18,NT27,IF($J$20=19,OP27,IF($J$20=20,PL27,IF($J$20=21,QH27,IF($J$20=22,RD27,IF($J$20=23,RZ27,IF($J$20=24,SV27,IF($J$20=25,TR27,IF($J$20=26,UN27,IF($J$20=27,VJ27,IF($J$20=28,WF27,IF($J$20=29,XB27,IF($J$20=30,XX27,IF($J$20=31,YT27,IF($J$20=32,ZP27,IF($J$20=33,AAL27,IF($J$20=34,ABH27,IF($J$20=35,ACD27,IF($J$20=1000,ADB27)))))))))))))))))))))))))))))))))))) -> 9.778380768 | M21: Terminado en: | P21: =IF($J$20=1,I24,IF($J$20=2,AE24,IF($J$20=3,BB24,IF($J$20=4,BX24,IF($J$20=5,CT24,IF($J$20=6,DP24,IF($J$20=7,EL24,IF($J$20=8,FH24,IF($J$20=9,GD24,IF($J$20=10,GZ24,IF($J$20=11,HV24,IF($J$20=12,IR24,IF($J$20=13,JN24,IF($J$20=14,KJ24,IF($J$20=15,LF24,IF($J$20=16,MB24,IF($J$20=17,MX24,IF($J$20=18,NT24,IF($J$20=19,OP24,IF($J$20=20,PL24,IF($J$20=21,QH24,IF($J$20=22,RD24,IF($J$20=23,RZ24,IF($J$20=24,SV24,IF($J$20=25,TR24,IF($J$20=26,UN24,IF($J$20=27,VJ24,IF($J$20=28,WF24,IF($J$20=29,XB24,IF($J$20=30,XX24,IF($J$20=31,YT24,IF($J$20=32,ZP24,IF($J$20=33,AAL24,IF($J$20=34,ABH24,IF($J$20=35,ACD24,IF($J$20=36,ACZ24,IF($J$20=37,ADV24,IF($J$20=38,AER24,IF($J$20=39,AFN24,IF($J$20=40,AGJ24,IF($J$20=41,AHF24,IF($J$20=42,AIB24,IF($J$20=43,AIX24,IF($J$20=44,AJT24,IF($J$20=45,AKP24,IF($J$20=46,ALL24,IF($J$20=47,AMH24,IF($J$20=48,AND24,IF($J$20=49,ANZ24,IF($J$20=50,AOV24,IF($J$20=51,APR24,IF($J$20=52,AQN24,IF($J$20=53,ARJ24,IF($J$20=54,ASF24,IF($J$20=55,ATB24,IF($J$20=56,ATX24,IF($J$20=57,AUT24,IF($J$20=58,AVP24,IF($J$20=59,AWL24,IF($J$20=60,AXH24,IF($J$20=61,AYD24,IF($J$20=62,AYZ24,IF($J$20=63,AZV24,IF($J$20=64,BAR24)))))))))))))))))))))))))))))))))))))))))))))))))))))))))))))))) -> FALSE | Q21: =IF($J$20=65,BBN24,IF($J$20=66,BCJ24,IF($J$20=67,BDF24,IF($J$20=68,BEB24,IF($J$20=69,BEX24,IF($J$20=70,BFT24,IF($J$20=71,BGP24,IF($J$20=72,BHL24,IF($J$20=73,BIH24,IF($J$20=74,BJD24,IF($J$20=75,BJZ24,IF($J$20=76,BKV24,IF($J$20=77,BLR24,IF($J$20=78,BMN24,IF($J$20=79,BNJ24,IF($J$20=1000,I21)))))))))))))))) -> 26.00999233 | T21: =IRR(S28:S108) -> 0.1609647898 | BOV21: =1.175*EXP(($D$8-0.5*0)*$D$13+$D$9*SQRT($D$13)) -> 1.404621584
B22: Investmnet | C22: =BOH27 -> 9.778380768 | E22: =IF(C21<0,0,C22) -> 9.778380768 | G22: PV of Investments | I22: =IF(J20<=64,J22,K22) -> 9.778380768 | J22: =IF($J$20=1,K27,IF($J$20=2,AG27,IF($J$20=3,BD27,IF($J$20=4,BZ27,IF($J$20=5,CV27,IF($J$20=6,DR27,IF($J$20=7,EN27,IF($J$20=8,FJ27,IF($J$20=9,GF27,IF($J$20=10,HB27,IF($J$20=11,HX27,IF($J$20=12,IT27,IF($J$20=13,JP27,IF($J$20=14,KL27,IF($J$20=15,LH27,IF($J$20=16,MD27,IF($J$20=17,MZ27,IF($J$20=18,NV27,IF($J$20=19,OR27,IF($J$20=20,PN27,IF($J$20=21,QJ27,IF($J$20=22,RF27,IF($J$20=23,SB27,IF($J$20=24,SX27,IF($J$20=25,TT27,IF($J$20=26,UP27,IF($J$20=27,VL27,IF($J$20=28,WH27,IF($J$20=29,XD27,IF($J$20=30,XZ27,IF($J$20=31,YV27,IF($J$20=32,ZR27,IF($J$20=33,AAN27,IF($J$20=34,ABJ27,IF($J$20=35,ACF27,IF($J$20=36,ADB27,IF($J$20=37,ADX27,IF($J$20=38,AET27,IF($J$20=39,AFP27,IF($J$20=40,AGL27,IF($J$20=41,AHH27,IF($J$20=42,AID27,IF($J$20=43,AIZ27,IF($J$20=44,AJV27,IF($J$20=45,AKR27,IF($J$20=46,ALN27,IF($J$20=47,AMJ27,IF($J$20=48,ANF27,IF($J$20=49,AOB27,IF($J$20=50,AOX27,IF($J$20=51,APT27,IF($J$20=52,AQP27,IF($J$20=53,ARL27,IF($J$20=54,ASH27,IF($J$20=55,ATD27,IF($J$20=56,ATZ27,IF($J$20=57,AUV27,IF($J$20=58,AVR27,IF($J$20=59,AWN27,IF($J$20=60,AXJ27,IF($J$20=61,AYF27,IF($J$20=62,AZB27,IF($J$20=63,AZX27,IF($J$20=64,BAT27)))))))))))))))))))))))))))))))))))))))))))))))))))))))))))))))) -> FALSE | K22: =IF($J$20=65,BBP27,IF($J$20=66,BCL27,IF($J$20=67,BDH27,IF($J$20=68,BED27,IF($J$20=69,BEZ27,IF($J$20=70,BFV27,IF($J$20=71,BGR27,IF($J$20=72,BHN27,IF($J$20=73,BIJ27,IF($J$20=74,BJF27,IF($J$20=75,BKB27,IF($J$20=76,BKX27,IF($J$20=77,BLT27,IF($J$20=78,BMP27,IF($J$20=79,BNL27,IF($J$20=1000,BOH27)))))))))))))))) -> 9.778380768 | M22: =MAX(H26,AD26,BA26,BW26,CS26,DO26,EK26,FG26,GC26,GY26,HU26,IQ26,JM26,KI26,LE26,MA26,MW26,NS26,OO26,PK26,QG26,RC26,RY26,SU26,TQ26,UM26,VI26,WE26,XA26,XW26,YS26,ZO26,AAK26,ABG26,ACC26,ACY26,ADU26,AEQ26,AFM26,AGI26,AHE26,AIA26,AIW26,AJS26,AKO26,ALK26,AMG26,ANC26,ANY26,AOU26,APQ26,AQM26,ARI26,ASE26,ATA26,ATW26,AUS26,AVO26,AWK26,AXG26,AYC26,AYY26,AZU26,BAQ26,BBM26,BCI26,BDE26,BEA26,BEW26,BFS26,BGO26,BHK26,BIG26,BJC26,BJY26,BKU26,BLQ26,BMM26,BNI26,BOE26) -> 5 | N22: Periodo
B23: Cash Flow | C23: =MAX(D23,D24) -> 40.02994805 | D23: =IF(D14*D12=1,R27,IF(D14*D12=2,AN27,IF(D14*D12=3,BK27,IF(D14*D12=4,CG27,IF(D14*D12=5,DC27,IF(D14*D12=6,DY27,IF(D14*D12=7,EU27,IF(D14*D12=8,FQ27,IF(D14*D12=9,GM27,IF(D14*D12=10,HI27,IF(D14*D12=11,IE27,IF(D14*D12=12,JA27,IF(D14*D12=13,JW27,IF(D14*D12=14,KS27,IF(D14*D12=15,LO27,IF(D14*D12=16,MK27,IF(D14*D12=17,NG27,IF(D14*D12=18,OC27,IF(D14*D12=19,OY27,IF(D14*D12=20,PU27,IF(D14*D12=21,QQ27,IF(D14*D12=22,RM27,IF(D14*D12=23,SI27,IF(D14*D12=24,TE27,IF(D14*D12=25,UA27,IF(D14*D12=26,UW27,IF(D14*D12=27,VS27,IF(D14*D12=28,WO27,IF(D14*D12=29,XK27,IF(D14*D12=30,YG27,IF(D14*D12=31,ZC27,IF(D14*D12=32,ZY27,IF(D14*D12=33,AAU27,IF(D14*D12=34,ABQ27,IF(D14*D12=35,ACM27,IF(D14*D12=36,ADI27,IF(D14*D12=37,AEE27,IF(D14*D12=38,AFA27,IF(D14*D12=39,AFW27,IF(D14*D12=40,AGS27,IF(D14*D12=41,AHO27,IF(D14*D12=42,AIK27,IF(D14*D12=43,AJG27,IF(D14*D12=44,AKC27,IF(D14*D12=45,AKY27,IF(D14*D12=46,ALU27,IF(D14*D12=47,AMQ27,IF(D14*D12=48,ANM27,IF(D14*D12=49,AOI27,IF(D14*D12=50,APE27,IF(D14*D12=51,AQA27,IF(D14*D12=52,AQW27,IF(D14*D12=53,ARS27,IF(D14*D12=54,ASO27,IF(D14*D12=55,ATK27,IF(D14*D12=56,AUG27,IF(D14*D12=57,AVC27,IF(D14*D12=58,AVY27,IF(D14*D12=59,AWU27,IF(D14*D12=60,AXQ27,IF(D14*D12=61,AYM27,IF(D14*D12=62,AZI27,IF(D14*D12=63,BAE27,IF(D14*D12=64,BBA27,)))))))))))))))))))))))))))))))))))))))))))))))))))))))))))))))) -> 40.02994805 | E23: =IF(C21<0,0,C23) -> 40.02994805 | G23: PV of Cash Flows | I23: =IF(M20=0,-1,IF(M22<=64,J23,K23)) -> 35.7883731 | J23: =IF(M20<>-1,0,IF(M22=1,R27,IF(M22=2,AN27,IF(M22=3,BK27,IF(M22=4,CG27,IF(M22=5,DC27,IF(M22=6,DY27,IF(M22=7,EU27,IF(M22=8,FQ27,IF(M22=9,GM27,IF(M22=10,HI27,IF(M22=11,IE27,IF(M22=12,JA27,IF(M22=13,JW27,IF(M22=14,KS27,IF(M22=15,LO27,IF(M22=16,MK27,IF(M22=17,NG27,IF(M22=18,OC27,IF(M22=19,OY27,IF(M22=20,PU27,IF(M22=21,QQ27,IF(M22=22,RM27,IF(M22=23,SI27,IF(M22=24,TE27,IF(M22=25,UA27,IF(M22=26,UW27,IF(M22=27,VS27,IF(M22=28,WO27,IF(M22=29,XK27,IF(M22=30,YG27,IF(M22=31,ZC27,IF(M22=32,ZY27,IF(M22=33,AAU27,IF(M22=34,ABQ27,IF(M22=35,ACM27,IF(M22=36,ADI27,IF(M22=37,AEE27,IF(M22=38,AFA27,IF(M22=39,AFW27,IF(M22=40,AGS27,IF(M22=41,AHO27,IF(M22=42,AIK27,IF(M22=43,AJG27,IF(M22=44,AKC27,IF(M22=45,AKY27,IF(M22=46,ALU27,IF(M22=47,AMQ27,IF(M22=48,ANM27,IF(M22=49,AOI27,IF(M22=50,APE27,IF(M22=51,AQA27,IF(M22=52,AQW27,IF(M22=53,ARS27,IF(M22=54,ASO27,IF(M22=55,ATK27,IF(M22=56,AUG27,IF(M22=57,AVC27,IF(M22=58,AVY27,IF(M22=59,AWU27,IF(M22=60,AXQ27,IF(M22=61,AYM27,IF(M22=62,AZI27,IF(M22=63,BAE27,IF(M22=64,BBA27,))))))))))))))))))))))))))))))))))))))))))))))))))))))))))))))))) -> 35.7883731 | K23: =IF(M20<>-1,0,IF(M22=65,BBW27,IF(M22=66,BCS27,IF(M22=67,BDO27,IF(M22=68,BEK27,IF(M22=69,BFG27,IF(M22=70,BGC27,IF(M22=71,BGY27,IF(M22=72,BHU27,IF(M22=73,BIQ27,IF(M22=74,BJM27,IF(M22=75,BKI27,IF(M22=76,BLE27,IF(M22=77,BMA27,IF(M22=78,BMW27,IF(M22=79,BNS27,IF(M22=80,BOO27,))))))))))))))))) -> 0 | M23: =IF(M20=-1,M22*D13,0) -> 2.5 | N23: Año | P23: Periodo de Terminación | Q23: I | R23: W(t) | AL23: Periodo de Terminación | AM23: I | AN23: W(t) | BI23: Periodo de Terminación | BJ23: I | BK23: W(t) | CE23: Periodo de Terminación | CF23: I | CG23: W(t) | DA23: Periodo de Terminación | DB23: I | DC23: W(t) | DW23: Periodo de Terminación | DX23: I | DY23: W(t) | ES23: Periodo de Terminación | ET23: I | EU23: W(t) | FO23: Periodo de Terminación | FP23: I | FQ23: W(t) | GK23: Periodo de Terminación | GL23: I | GM23: W(t) | HG23: Periodo de Terminación | HH23: I | HI23: W(t) | IC23: Periodo de Terminación | ID23: I | IE23: W(t) | IY23: Periodo de Terminación | IZ23: I | JA23: W(t) | JU23: Periodo de Terminación | JV23: I | JW23: W(t) | KQ23: Periodo de Terminación | KR23: I | KS23: W(t) | LM23: Periodo de Terminación | LN23: I | LO23: W(t) | MI23: Periodo de Terminación | MJ23: I | MK23: W(t) | MY23: Periodo de Terminación | MZ23: I | NA23: W(t) | NE23: Periodo de Terminación | NF23: I | NG23: W(t) | OA23: Periodo de Terminación | OB23: I | OC23: W(t) | OW23: Periodo de Terminación | OX23: I | OY23: W(t) | PS23: Periodo de Terminación | PT23: I | PU23: W(t) | QO23: Periodo de Terminación | QP23: I | QQ23: W(t) | RK23: Periodo de Terminación | RL23: I | RM23: W(t) | SG23: Periodo de Terminación | SH23: I | SI23: W(t) | TC23: Periodo de Terminación | TD23: I | TE23: W(t) | TY23: Periodo de Terminación | TZ23: I | UA23: W(t) | UU23: Periodo de Terminación | UV23: I | UW23: W(t) | VQ23: Periodo de Terminación | VR23: I | VS23: W(t) | WM23: Periodo de Terminación | WN23: I | WO23: W(t) | XI23: Periodo de Terminación | XJ23: I | XK23: W(t) | YE23: Periodo de Terminación | YF23: I | YG23: W(t) | ZA23: Periodo de Terminación | ZB23: I | ZC23: W(t) | ZW23: Periodo de Terminación | ZX23: I | ZY23: W(t) | AAS23: Periodo de Terminación | AAT23: I | AAU23: W(t) | ABO23: Periodo de Terminación | ABP23: I | ABQ23: W(t) | ACK23: Periodo de Terminación | ACL23: I | ACM23: W(t) | ADG23: Periodo de Terminación | ADH23: I | ADI23: W(t) | AEC23: Periodo de Terminación | AED23: I | AEE23: W(t) | AEY23: Periodo de Terminación | AEZ23: I | AFA23: W(t) | AFU23: Periodo de Terminación | AFV23: I | AFW23: W(t) | AGQ23: Periodo de Terminación | AGR23: I | AGS23: W(t) | AHM23: Periodo de Terminación | AHN23: I | AHO23: W(t) | AII23: Periodo de Terminación | AIJ23: I | AIK23: W(t) | AJE23: Periodo de Terminación | AJF23: I | AJG23: W(t) | AKA23: Periodo de Terminación | AKB23: I | AKC23: W(t) | AKW23: Periodo de Terminación | AKX23: I | AKY23: W(t) | ALS23: Periodo de Terminación | ALT23: I | ALU23: W(t) | AMO23: Periodo de Terminación | AMP23: I | AMQ23: W(t) | ANK23: Periodo de Terminación | ANL23: I | ANM23: W(t) | AOG23: Periodo de Terminación | AOH23: I | AOI23: W(t) | APC23: Periodo de Terminación | APD23: I | APE23: W(t) | APY23: Periodo de Terminación | APZ23: I | AQA23: W(t) | AQU23: Periodo de Terminación | AQV23: I | AQW23: W(t) | ARQ23: Periodo de Terminación | ARR23: I | ARS23: W(t) | ASM23: Periodo de Terminación | ASN23: I | ASO23: W(t) | ATI23: Periodo de Terminación | ATJ23: I | ATK23: W(t) | AUE23: Periodo de Terminación | AUF23: I | AUG23: W(t) | AVA23: Periodo de Terminación | AVB23: I | AVC23: W(t) | AVW23: Periodo de Terminación | AVX23: I | AVY23: W(t) | AWS23: Periodo de Terminación | AWT23: I | AWU23: W(t) | AXO23: Periodo de Terminación | AXP23: I | AXQ23: W(t) | AYK23: Periodo de Terminación | AYL23: I | AYM23: W(t) | AZG23: Periodo de Terminación | AZH23: I | AZI23: W(t) | BAC23: Periodo de Terminación | BAD23: I | BAE23: W(t) | BAY23: Periodo de Terminación | BAZ23: I | BBA23: W(t) | BBU23: Periodo de Terminación | BBV23: I | BBW23: W(t) | BCQ23: Periodo de Terminación | BCR23: I | BCS23: W(t) | BDM23: Periodo de Terminación | BDN23: I | BDO23: W(t) | BEI23: Periodo de Terminación | BEJ23: I | BEK23: W(t) | BFE23: Periodo de Terminación | BFF23: I | BFG23: W(t) | BGA23: Periodo de Terminación | BGB23: I | BGC23: W(t) | BGW23: Periodo de Terminación | BGX23: I | BGY23: W(t) | BHS23: Periodo de Terminación | BHT23: I | BHU23: W(t) | BIO23: Periodo de Terminación | BIP23: I | BIQ23: W(t) | BJK23: Periodo de Terminación | BJL23: I | BJM23: W(t) | BKG23: Periodo de Terminación | BKH23: I | BKI23: W(t) | BLC23: Periodo de Terminación | BLD23: I | BLE23: W(t) | BLY23: Periodo de Terminación | BLZ23: I | BMA23: W(t) | BMU23: Periodo de Terminación | BMV23: I | BMW23: W(t) | BNQ23: Periodo de Terminación | BNR23: I | BNS23: W(t) | BOM23: Periodo de Terminación | BON23: I | BOO23: W(t)
C24: =NORMSINV(RAND()) -> -0.4451651475 | D24: =IF(D14*D12=65,BBW27,IF(D14*D12=66,BCS27,IF(D14*D12=67,BDO27,IF(D14*D12=68,BEK27,IF(D14*D12=69,BFG27,IF(D14*D12=70,BGC27,IF(D14*D12=71,BGY27,IF(D14*D12=72,BHU27,IF(D14*D12=73,BIQ27,IF(D14*D12=74,BJM27,IF(D14*D12=75,BKI27,IF(D14*D12=76,BLE27,IF(D14*D12=77,BMA27,IF(D14*D12=78,BMW27,IF(D14*D12=79,BNS27,IF(D14*D12=80,BOO27,)))))))))))))))) -> 0 | I24: =IF(U26<>1000,-K27,R27-G27) -> 23.11429887 | M24: =+M23+E19 -> 9.5 | O24: =COUNTIF(G28:G107,">"&0) -> 5 | P24: =O24+$E$19*$D$12 -> 19 | Q24: =IF(P24=B25+1,K27,0) -> 0 | R24: =IF(P24=B25+1,R27,0) -> 0 | AE24: =IF(AQ26<>1000,-AG27,AN27-AC27) -> 63.0738468 | AK24: =COUNTIF(AC28:AC107,">"&0) -> 6 | AL24: =AK24+$E$19*$D$12 -> 20 | AM24: =IF(AL24=W25+1,AG27,0) -> 0 | AN24: =IF(AL24=W25+1,AN27,0) -> 0 | BB24: =IF(BN26<>1000,-BD27,BK27-AZ27) -> 40.9492358 | BH24: =COUNTIF(AZ28:AZ107,">"&0) -> 6 | BI24: =BH24+$E$19*$D$12 -> 20 | BJ24: =IF(BI24=AT25+1,BD27,0) -> 0 | BK24: =IF(BI24=AT25+1,BK27,0) -> 0 | BX24: =IF(CJ26<>1000,-BZ27,CG27-BV27) -> 15.09612902 | CD24: =COUNTIF(BV28:BV107,">"&0) -> 5 | CE24: =CD24+$E$19*$D$12 -> 19 | CF24: =IF(CE24=BP25+1,BZ27,0) -> 0 | CG24: =IF(CE24=BP25+1,CG27,0) -> 0 | CT24: =IF(DF26<>1000,-CV27,DC27-CR27) -> 26.00999233 | CZ24: =COUNTIF(CR28:CR107,">"&0) -> 5 | DA24: =CZ24+$E$19*$D$12 -> 19 | DB24: =IF(DA24=CL25+1,CV27,0) -> 0 | DC24: =IF(DA24=CL25+1,DC27,0) -> 0 | DP24: =IF(EB26<>1000,-DR27,DY27-DN27) -> 28.95155532 | DV24: =COUNTIF(DN28:DN107,">"&0) -> 5 | DW24: =DV24+$E$19*$D$12 -> 19 | DX24: =IF(DW24=DH25+1,DR27,0) -> 0 | DY24: =IF(DW24=DH25+1,DY27,0) -> 0 | EL24: =IF(EX26<>1000,-EN27,EU27-EJ27) -> 35.09533611 | ER24: =COUNTIF(EJ28:EJ107,">"&0) -> 5 | ES24: =ER24+$E$19*$D$12 -> 19 | ET24: =IF(ES24=ED25+1,EN27,0) -> 0 | EU24: =IF(ES24=ED25+1,EU27,0) -> 0 | FH24: =IF(FT26<>1000,-FJ27,FQ27-FF27) -> 37.85986757 | FN24: =COUNTIF(FF28:FF107,">"&0) -> 5 | FO24: =FN24+$E$19*$D$12 -> 19 | FP24: =IF(FO24=EZ25+1,FJ27,0) -> 0 | FQ24: =IF(FO24=EZ25+1,FQ27,0) -> 0 | GD24: =IF(GP26<>1000,-GF27,GM27-GB27) -> 29.15358672 | GJ24: =COUNTIF(GB28:GB107,">"&0) -> 5 | GK24: =GJ24+$E$19*$D$12 -> 19 | GL24: =IF(GK24=FV25+1,GF27,0) -> 0 | GM24: =IF(GK24=FV25+1,GM27,0) -> 0 | GZ24: =IF(HL26<>1000,-HB27,HI27-GX27) -> 31.22859629 | HF24: =COUNTIF(GX28:GX107,">"&0) -> 5 | HG24: =HF24+$E$19*$D$12 -> 19 | HH24: =IF(HG24=GR25+1,HB27,0) -> 0 | HI24: =IF(HG24=GR25+1,HI27,0) -> 0 | HV24: =IF(IH26<>1000,-HX27,IE27-HT27) -> 30.22704329 | IB24: =COUNTIF(HT28:HT107,">"&0) -> 5 | IC24: =IB24+$E$19*$D$12 -> 19 | ID24: =IF(IC24=HN25+1,HX27,0) -> 0 | IE24: =IF(IC24=HN25+1,IE27,0) -> 0 | IR24: =IF(JD26<>1000,-IT27,JA27-IP27) -> 11.9808975 | IX24: =COUNTIF(IP28:IP107,">"&0) -> 5 | IY24: =IX24+$E$19*$D$12 -> 19 | IZ24: =IF(IY24=IJ25+1,IT27,0) -> 0 | JA24: =IF(IY24=IJ25+1,JA27,0) -> 0 | JN24: =IF(JZ26<>1000,-JP27,JW27-JL27) -> 12.80123969 | JT24: =COUNTIF(JL28:JL107,">"&0) -> 5 | JU24: =JT24+$E$19*$D$12 -> 19 | JV24: =IF(JU24=JF25+1,JP27,0) -> 0 | JW24: =IF(JU24=JF25+1,JW27,0) -> 0 | KJ24: =IF(KV26<>1000,-KL27,KS27-KH27) -> 24.69522661 | KP24: =COUNTIF(KH28:KH107,">"&0) -> 5 | KQ24: =KP24+$E$19*$D$12 -> 19 | KR24: =IF(KQ24=KB25+1,KL27,0) -> 0 | KS24: =IF(KQ24=KB25+1,KS27,0) -> 0 | LF24: =IF(LR26<>1000,-LH27,LO27-LD27) -> 14.99216104 | LL24: =COUNTIF(LD28:LD107,">"&0) -> 5 | LM24: =LL24+$E$19*$D$12 -> 19 | LN24: =IF(LM24=KX25+1,LH27,0) -> 0 | LO24: =IF(LM24=KX25+1,LO27,0) -> 0 | MB24: =IF(MN26<>1000,-MD27,MK27-LZ27) -> 22.98066546 | MH24: =COUNTIF(LZ28:LZ107,">"&0) -> 5 | MI24: =MH24+$E$19*$D$12 -> 19 | MJ24: =IF(MI24=LT25+1,MD27,0) -> 0 | MK24: =IF(MI24=LT25+1,MK27,0) -> 0 | MX24: =IF(NJ26<>1000,-MZ27,NG27-MV27) -> 19.37568016 | MY24: =MX24+$E$19*$D$12 -> 33.37568016 | MZ24: =IF(MY24=MJ25+1,MT27,0) -> 0 | NA24: =IF(MY24=MJ25+1,NA27,0) -> 0 | ND24: =COUNTIF(MV28:MV107,">"&0) -> 5 | NE24: =ND24+$E$19*$D$12 -> 19 | NF24: =IF(NE24=MP25+1,MZ27,0) -> 0 | NG24: =IF(NE24=MP25+1,NG27,0) -> 0 | NT24: =IF(OF26<>1000,-NV27,OC27-NR27) -> 28.74762286 | NZ24: =COUNTIF(NR28:NR107,">"&0) -> 5 | OA24: =NZ24+$E$19*$D$12 -> 19 | OB24: =IF(OA24=NL25+1,NV27,0) -> 0 | OC24: =IF(OA24=NL25+1,OC27,0) -> 0 | OP24: =IF(PB26<>1000,-OR27,OY27-ON27) -> 24.79090065 | OV24: =COUNTIF(ON28:ON107,">"&0) -> 5 | OW24: =OV24+$E$19*$D$12 -> 19 | OX24: =IF(OW24=OH25+1,OR27,0) -> 9.778380768 | OY24: =IF(OW24=OH25+1,OY27,0) -> 34.56928142 | PL24: =IF(PX26<>1000,-PN27,PU27-PJ27) -> 24.25192041 | PR24: =COUNTIF(PJ28:PJ107,">"&0) -> 5 | PS24: =PR24+$E$19*$D$12 -> 19 | PT24: =IF(PS24=PD25+1,PN27,0) -> 0 | PU24: =IF(PS24=PD25+1,PU27,0) -> 0 | QH24: =IF(QT26<>1000,-QJ27,QQ27-QF27) -> 22.70403729 | QN24: =COUNTIF(QF28:QF107,">"&0) -> 5 | QO24: =QN24+$E$19*$D$12 -> 19 | QP24: =IF(QO24=PZ25+1,QJ27,0) -> 0 | QQ24: =IF(QO24=PZ25+1,QQ27,0) -> 0 | RD24: =IF(RP26<>1000,-RF27,RM27-RB27) -> 24.80592384 | RJ24: =COUNTIF(RB28:RB107,">"&0) -> 5 | RK24: =RJ24+$E$19*$D$12 -> 19 | RL24: =IF(RK24=QV25+1,RF27,0) -> 0 | RM24: =IF(RK24=QV25+1,RM27,0) -> 0 | RZ24: =IF(SL26<>1000,-SB27,SI27-RX27) -> 30.35535054 | SF24: =COUNTIF(RX28:RX107,">"&0) -> 5 | SG24: =SF24+$E$19*$D$12 -> 19 | SH24: =IF(SG24=RR25+1,SB27,0) -> 0 | SI24: =IF(SG24=RR25+1,SI27,0) -> 0 | SV24: =IF(TH26<>1000,-SX27,TE27-ST27) -> 32.11281279 | TB24: =COUNTIF(ST28:ST107,">"&0) -> 5 | TC24: =TB24+$E$19*$D$12 -> 19 | TD24: =IF(TC24=SN25+1,SX27,0) -> 0 | TE24: =IF(TC24=SN25+1,TE27,0) -> 0 | TR24: =IF(UD26<>1000,-TT27,UA27-TP27) -> 28.22587647 | TX24: =COUNTIF(TP28:TP107,">"&0) -> 5 | TY24: =TX24+$E$19*$D$12 -> 19 | TZ24: =IF(TY24=TJ25+1,TT27,0) -> 0 | UA24: =IF(TY24=TJ25+1,UA27,0) -> 0 | UN24: =IF(UZ26<>1000,-UP27,UW27-UL27) -> 31.55408329 | UT24: =COUNTIF(UL28:UL107,">"&0) -> 5 | UU24: =UT24+$E$19*$D$12 -> 19 | UV24: =IF(UU24=UF25+1,UP27,0) -> 0 | UW24: =IF(UU24=UF25+1,UW27,0) -> 0 | VJ24: =IF(VV26<>1000,-VL27,VS27-VH27) -> 30.24555031 | VP24: =COUNTIF(VH28:VH107,">"&0) -> 5 | VQ24: =VP24+$E$19*$D$12 -> 19 | VR24: =IF(VQ24=VB25+1,VL27,0) -> 0 | VS24: =IF(VQ24=VB25+1,VS27,0) -> 0 | WF24: =IF(WR26<>1000,-WH27,WO27-WD27) -> 30.4817719 | WL24: =COUNTIF(WD28:WD107,">"&0) -> 5 | WM24: =WL24+$E$19*$D$12 -> 19 | WN24: =IF(WM24=VX25+1,WH27,0) -> 0 | WO24: =IF(WM24=VX25+1,WO27,0) -> 0 | XB24: =IF(XN26<>1000,-XD27,XK27-WZ27) -> 33.44590342 | XH24: =COUNTIF(WZ28:WZ107,">"&0) -> 5 | XI24: =XH24+$E$19*$D$12 -> 19 | XJ24: =IF(XI24=WT25+1,XD27,0) -> 0 | XK24: =IF(XI24=WT25+1,XK27,0) -> 0 | XX24: =IF(YJ26<>1000,-XZ27,YG27-XV27) -> 32.45984433 | YD24: =COUNTIF(XV28:XV107,">"&0) -> 5 | YE24: =YD24+$E$19*$D$12 -> 19 | YF24: =IF(YE24=XP25+1,XZ27,0) -> 0 | YG24: =IF(YE24=XP25+1,YG27,0) -> 0 | YT24: =IF(ZF26<>1000,-YV27,ZC27-YR27) -> 30.57888185 | YZ24: =COUNTIF(YR28:YR107,">"&0) -> 5 | ZA24: =YZ24+$E$19*$D$12 -> 19 | ZB24: =IF(ZA24=YL25+1,YV27,0) -> 0 | ZC24: =IF(ZA24=YL25+1,ZC27,0) -> 0 | ZP24: =IF(AAB26<>1000,-ZR27,ZY27-ZN27) -> 30.39645407 | ZV24: =COUNTIF(ZN28:ZN107,">"&0) -> 5 | ZW24: =ZV24+$E$19*$D$12 -> 19 | ZX24: =IF(ZW24=ZH25+1,ZR27,0) -> 0 | ZY24: =IF(ZW24=ZH25+1,ZY27,0) -> 0 | AAL24: =IF(AAX26<>1000,-AAN27,AAU27-AAJ27) -> 30.16511868 | AAR24: =COUNTIF(AAJ28:AAJ107,">"&0) -> 5 | AAS24: =AAR24+$E$19*$D$12 -> 19 | AAT24: =IF(AAS24=AAD25+1,AAN27,0) -> 0 | AAU24: =IF(AAS24=AAD25+1,AAU27,0) -> 0 | ABH24: =IF(ABT26<>1000,-ABJ27,ABQ27-ABF27) -> 30.25156728 | ABN24: =COUNTIF(ABF28:ABF107,">"&0) -> 5 | ABO24: =ABN24+$E$19*$D$12 -> 19 | ABP24: =IF(ABO24=AAZ25+1,ABJ27,0) -> 0 | ABQ24: =IF(ABO24=AAZ25+1,ABQ27,0) -> 0 | ACD24: =IF(ACP26<>1000,-ACF27,ACM27-ACB27) -> 30.25156728 | ACJ24: =COUNTIF(ACB28:ACB107,">"&0) -> 5 | ACK24: =ACJ24+$E$19*$D$12 -> 19 | ACL24: =IF(ACK24=ABV25+1,ACF27,0) -> 0 | ACM24: =IF(ACK24=ABV25+1,ACM27,0) -> 0 | ACZ24: =IF(ADL26<>1000,-ADB27,ADI27-ACX27) -> 30.25156728 | ADF24: =COUNTIF(ACX28:ACX107,">"&0) -> 5 | ADG24: =ADF24+$E$19*$D$12 -> 19 | ADH24: =IF(ADG24=ACR25+1,ADB27,0) -> 0 | ADI24: =IF(ADG24=ACR25+1,ADI27,0) -> 0 | ADV24: =IF(AEH26<>1000,-ADX27,AEE27-ADT27) -> 30.25156728 | AEB24: =COUNTIF(ADT28:ADT107,">"&0) -> 5 | AEC24: =AEB24+$E$19*$D$12 -> 19 | AED24: =IF(AEC24=ADN25+1,ADX27,0) -> 0 | AEE24: =IF(AEC24=ADN25+1,AEE27,0) -> 0 | AER24: =IF(AFD26<>1000,-AET27,AFA27-AEP27) -> 30.25156728 | AEX24: =COUNTIF(AEP28:AEP107,">"&0) -> 5 | AEY24: =AEX24+$E$19*$D$12 -> 19 | AEZ24: =IF(AEY24=AEJ25+1,AET27,0) -> 0 | AFA24: =IF(AEY24=AEJ25+1,AFA27,0) -> 0 | AFN24: =IF(AFZ26<>1000,-AFP27,AFW27-AFL27) -> 30.25156728 | AFT24: =COUNTIF(AFL28:AFL107,">"&0) -> 5 | AFU24: =AFT24+$E$19*$D$12 -> 19 | AFV24: =IF(AFU24=AFF25+1,AFP27,0) -> 0 | AFW24: =IF(AFU24=AFF25+1,AFW27,0) -> 0 | AGJ24: =IF(AGV26<>1000,-AGL27,AGS27-AGH27) -> 30.25156728 | AGP24: =COUNTIF(AGH28:AGH107,">"&0) -> 5 | AGQ24: =AGP24+$E$19*$D$12 -> 19 | AGR24: =IF(AGQ24=AGB25+1,AGL27,0) -> 0 | AGS24: =IF(AGQ24=AGB25+1,AGS27,0) -> 0 | AHF24: =IF(AHR26<>1000,-AHH27,AHO27-AHD27) -> 30.25156728 | AHL24: =COUNTIF(AHD28:AHD107,">"&0) -> 5 | AHM24: =AHL24+$E$19*$D$12 -> 19 | AHN24: =IF(AHM24=AGX25+1,AHH27,0) -> 0 | AHO24: =IF(AHM24=AGX25+1,AHO27,0) -> 0 | AIB24: =IF(AIN26<>1000,-AID27,AIK27-AHZ27) -> 30.25156728 | AIH24: =COUNTIF(AHZ28:AHZ107,">"&0) -> 5 | AII24: =AIH24+$E$19*$D$12 -> 19 | AIJ24: =IF(AII24=AHT25+1,AID27,0) -> 0 | AIK24: =IF(AII24=AHT25+1,AIK27,0) -> 0 | AIX24: =IF(AJJ26<>1000,-AIZ27,AJG27-AIV27) -> 30.25156728 | AJD24: =COUNTIF(AIV28:AIV107,">"&0) -> 5 | AJE24: =AJD24+$E$19*$D$12 -> 19 | AJF24: =IF(AJE24=AIP25+1,AIZ27,0) -> 0 | AJG24: =IF(AJE24=AIP25+1,AJG27,0) -> 0 | AJT24: =IF(AKF26<>1000,-AJV27,AKC27-AJR27) -> 30.25156728 | AJZ24: =COUNTIF(AJR28:AJR107,">"&0) -> 5 | AKA24: =AJZ24+$E$19*$D$12 -> 19 | AKB24: =IF(AKA24=AJL25+1,AJV27,0) -> 0 | AKC24: =IF(AKA24=AJL25+1,AKC27,0) -> 0 | AKP24: =IF(ALB26<>1000,-AKR27,AKY27-AKN27) -> 30.25156728 | AKV24: =COUNTIF(AKN28:AKN107,">"&0) -> 5 | AKW24: =AKV24+$E$19*$D$12 -> 19 | AKX24: =IF(AKW24=AKH25+1,AKR27,0) -> 0 | AKY24: =IF(AKW24=AKH25+1,AKY27,0) -> 0 | ALL24: =IF(ALX26<>1000,-ALN27,ALU27-ALJ27) -> 30.25156728 | ALR24: =COUNTIF(ALJ28:ALJ107,">"&0) -> 5 | ALS24: =ALR24+$E$19*$D$12 -> 19 | ALT24: =IF(ALS24=ALD25+1,ALN27,0) -> 0 | ALU24: =IF(ALS24=ALD25+1,ALU27,0) -> 0 | AMH24: =IF(AMT26<>1000,-AMJ27,AMQ27-AMF27) -> 30.25156728 | AMN24: =COUNTIF(AMF28:AMF107,">"&0) -> 5 | AMO24: =AMN24+$E$19*$D$12 -> 19 | AMP24: =IF(AMO24=ALZ25+1,AMJ27,0) -> 0 | AMQ24: =IF(AMO24=ALZ25+1,AMQ27,0) -> 0 | AND24: =IF(ANP26<>1000,-ANF27,ANM27-ANB27) -> 30.25156728 | ANJ24: =COUNTIF(ANB28:ANB107,">"&0) -> 5 | ANK24: =ANJ24+$E$19*$D$12 -> 19 | ANL24: =IF(ANK24=AMV25+1,ANF27,0) -> 0 | ANM24: =IF(ANK24=AMV25+1,ANM27,0) -> 0 | ANZ24: =IF(AOL26<>1000,-AOB27,AOI27-ANX27) -> 30.25156728 | AOF24: =COUNTIF(ANX28:ANX107,">"&0) -> 5 | AOG24: =AOF24+$E$19*$D$12 -> 19 | AOH24: =IF(AOG24=ANR25+1,AOB27,0) -> 0 | AOI24: =IF(AOG24=ANR25+1,AOI27,0) -> 0 | AOV24: =IF(APH26<>1000,-AOX27,APE27-AOT27) -> 30.25156728 | APB24: =COUNTIF(AOT28:AOT107,">"&0) -> 5 | APC24: =APB24+$E$19*$D$12 -> 19 | APD24: =IF(APC24=AON25+1,AOX27,0) -> 0 | APE24: =IF(APC24=AON25+1,APE27,0) -> 0 | APR24: =IF(AQD26<>1000,-APT27,AQA27-APP27) -> 30.25156728 | APX24: =COUNTIF(APP28:APP107,">"&0) -> 5 | APY24: =APX24+$E$19*$D$12 -> 19 | APZ24: =IF(APY24=APJ25+1,APT27,0) -> 0 | AQA24: =IF(APY24=APJ25+1,AQA27,0) -> 0 | AQN24: =IF(AQZ26<>1000,-AQP27,AQW27-AQL27) -> 30.25156728 | AQT24: =COUNTIF(AQL28:AQL107,">"&0) -> 5 | AQU24: =AQT24+$E$19*$D$12 -> 19 | AQV24: =IF(AQU24=AQF25+1,AQP27,0) -> 0 | AQW24: =IF(AQU24=AQF25+1,AQW27,0) -> 0 | ARJ24: =IF(ARV26<>1000,-ARL27,ARS27-ARH27) -> 30.25156728 | ARP24: =COUNTIF(ARH28:ARH107,">"&0) -> 5 | ARQ24: =ARP24+$E$19*$D$12 -> 19 | ARR24: =IF(ARQ24=ARB25+1,ARL27,0) -> 0 | ARS24: =IF(ARQ24=ARB25+1,ARS27,0) -> 0 | ASF24: =IF(ASR26<>1000,-ASH27,ASO27-ASD27) -> 30.25156728 | ASL24: =COUNTIF(ASD28:ASD107,">"&0) -> 5 | ASM24: =ASL24+$E$19*$D$12 -> 19 | ASN24: =IF(ASM24=ARX25+1,ASH27,0) -> 0 | ASO24: =IF(ASM24=ARX25+1,ASO27,0) -> 0 | ATB24: =IF(ATN26<>1000,-ATD27,ATK27-ASZ27) -> 30.25156728 | ATH24: =COUNTIF(ASZ28:ASZ107,">"&0) -> 5 | ATI24: =ATH24+$E$19*$D$12 -> 19 | ATJ24: =IF(ATI24=AST25+1,ATD27,0) -> 0 | ATK24: =IF(ATI24=AST25+1,ATK27,0) -> 0 | ATX24: =IF(AUJ26<>1000,-ATZ27,AUG27-ATV27) -> 30.25156728 | AUD24: =COUNTIF(ATV28:ATV107,">"&0) -> 5 | AUE24: =AUD24+$E$19*$D$12 -> 19 | AUF24: =IF(AUE24=ATP25+1,ATZ27,0) -> 0 | AUG24: =IF(AUE24=ATP25+1,AUG27,0) -> 0 | AUT24: =IF(AVF26<>1000,-AUV27,AVC27-AUR27) -> 30.25156728 | AUZ24: =COUNTIF(AUR28:AUR107,">"&0) -> 5 | AVA24: =AUZ24+$E$19*$D$12 -> 19 | AVB24: =IF(AVA24=AUL25+1,AUV27,0) -> 0 | AVC24: =IF(AVA24=AUL25+1,AVC27,0) -> 0 | AVP24: =IF(AWB26<>1000,-AVR27,AVY27-AVN27) -> 30.25156728 | AVV24: =COUNTIF(AVN28:AVN107,">"&0) -> 5 | AVW24: =AVV24+$E$19*$D$12 -> 19 | AVX24: =IF(AVW24=AVH25+1,AVR27,0) -> 0 | AVY24: =IF(AVW24=AVH25+1,AVY27,0) -> 0 | AWL24: =IF(AWX26<>1000,-AWN27,AWU27-AWJ27) -> 30.25156728 | AWR24: =COUNTIF(AWJ28:AWJ107,">"&0) -> 5 | AWS24: =AWR24+$E$19*$D$12 -> 19 | AWT24: =IF(AWS24=AWD25+1,AWN27,0) -> 0 | AWU24: =IF(AWS24=AWD25+1,AWU27,0) -> 0 | AXH24: =IF(AXT26<>1000,-AXJ27,AXQ27-AXF27) -> 30.25156728 | AXN24: =COUNTIF(AXF28:AXF107,">"&0) -> 5 | AXO24: =AXN24+$E$19*$D$12 -> 19 | AXP24: =IF(AXO24=AWZ25+1,AXJ27,0) -> 0 | AXQ24: =IF(AXO24=AWZ25+1,AXQ27,0) -> 0 | AYD24: =IF(AYP26<>1000,-AYF27,AYM27-AYB27) -> 30.25156728 | AYJ24: =COUNTIF(AYB28:AYB107,">"&0) -> 5 | AYK24: =AYJ24+$E$19*$D$12 -> 19 | AYL24: =IF(AYK24=AXV25+1,AYF27,0) -> 0 | AYM24: =IF(AYK24=AXV25+1,AYM27,0) -> 0 | AYZ24: =IF(AZL26<>1000,-AZB27,AZI27-AYX27) -> 30.25156728 | AZF24: =COUNTIF(AYX28:AYX107,">"&0) -> 5 | AZG24: =AZF24+$E$19*$D$12 -> 19 | AZH24: =IF(AZG24=AYR25+1,AZB27,0) -> 0 | AZI24: =IF(AZG24=AYR25+1,AZI27,0) -> 0 | AZV24: =IF(BAH26<>1000,-AZX27,BAE27-AZT27) -> 30.25156728 | BAB24: =COUNTIF(AZT28:AZT107,">"&0) -> 5 | BAC24: =BAB24+$E$19*$D$12 -> 19 | BAD24: =IF(BAC24=AZN25+1,AZX27,0) -> 0 | BAE24: =IF(BAC24=AZN25+1,BAE27,0) -> 0 | BAR24: =IF(BBD26<>1000,-BAT27,BBA27-BAP27) -> 30.25156728 | BAX24: =COUNTIF(BAP28:BAP107,">"&0) -> 5 | BAY24: =BAX24+$E$19*$D$12 -> 19 | BAZ24: =IF(BAY24=BAJ25+1,BAT27,0) -> 0 | BBA24: =IF(BAY24=BAJ25+1,BBA27,0) -> 0 | BBN24: =IF(BBZ26<>1000,-BBP27,BBW27-BBL27) -> 30.25156728 | BBT24: =COUNTIF(BBL28:BBL107,">"&0) -> 5 | BBU24: =BBT24+$E$19*$D$12 -> 19 | BBV24: =IF(BBU24=BBF25+1,BBP27,0) -> 0 | BBW24: =IF(BBU24=BBF25+1,BBW27,0) -> 0 | BCJ24: =IF(BCV26<>1000,-BCL27,BCS27-BCH27) -> 30.25156728 | BCP24: =COUNTIF(BCH28:BCH107,">"&0) -> 5 | BCQ24: =BCP24+$E$19*$D$12 -> 19 | BCR24: =IF(BCQ24=BCB25+1,BCL27,0) -> 0 | BCS24: =IF(BCQ24=BCB25+1,BCS27,0) -> 0 | BDF24: =IF(BDR26<>1000,-BDH27,BDO27-BDD27) -> 30.25156728 | BDL24: =COUNTIF(BDD28:BDD107,">"&0) -> 5 | BDM24: =BDL24+$E$19*$D$12 -> 19 | BDN24: =IF(BDM24=BCX25+1,BDH27,0) -> 0 | BDO24: =IF(BDM24=BCX25+1,BDO27,0) -> 0 | BEB24: =IF(BEN26<>1000,-BED27,BEK27-BDZ27) -> 30.25156728 | BEH24: =COUNTIF(BDZ28:BDZ107,">"&0) -> 5 | BEI24: =BEH24+$E$19*$D$12 -> 19 | BEJ24: =IF(BEI24=BDT25+1,BED27,0) -> 0 | BEK24: =IF(BEI24=BDT25+1,BEK27,0) -> 0 | BEX24: =IF(BFJ26<>1000,-BEZ27,BFG27-BEV27) -> 30.25156728 | BFD24: =COUNTIF(BEV28:BEV107,">"&0) -> 5 | BFE24: =BFD24+$E$19*$D$12 -> 19 | BFF24: =IF(BFE24=BEP25+1,BEZ27,0) -> 0 | BFG24: =IF(BFE24=BEP25+1,BFG27,0) -> 0 | BFT24: =IF(BGF26<>1000,-BFV27,BGC27-BFR27) -> 30.25156728 | BFZ24: =COUNTIF(BFR28:BFR107,">"&0) -> 5 | BGA24: =BFZ24+$E$19*$D$12 -> 19 | BGB24: =IF(BGA24=BFL25+1,BFV27,0) -> 0 | BGC24: =IF(BGA24=BFL25+1,BGC27,0) -> 0 | BGP24: =IF(BHB26<>1000,-BGR27,BGY27-BGN27) -> 30.25156728 | BGV24: =COUNTIF(BGN28:BGN107,">"&0) -> 5 | BGW24: =BGV24+$E$19*$D$12 -> 19 | BGX24: =IF(BGW24=BGH25+1,BGR27,0) -> 0 | BGY24: =IF(BGW24=BGH25+1,BGY27,0) -> 0 | BHL24: =IF(BHX26<>1000,-BHN27,BHU27-BHJ27) -> 30.25156728 | BHR24: =COUNTIF(BHJ28:BHJ107,">"&0) -> 5 | BHS24: =BHR24+$E$19*$D$12 -> 19 | BHT24: =IF(BHS24=BHD25+1,BHN27,0) -> 0 | BHU24: =IF(BHS24=BHD25+1,BHU27,0) -> 0 | BIH24: =IF(BIT26<>1000,-BIJ27,BIQ27-BIF27) -> 30.25156728 | BIN24: =COUNTIF(BIF28:BIF107,">"&0) -> 5 | BIO24: =BIN24+$E$19*$D$12 -> 19 | BIP24: =IF(BIO24=BHZ25+1,BIJ27,0) -> 0 | BIQ24: =IF(BIO24=BHZ25+1,BIQ27,0) -> 0 | BJD24: =IF(BJP26<>1000,-BJF27,BJM27-BJB27) -> 30.25156728 | BJJ24: =COUNTIF(BJB28:BJB107,">"&0) -> 5 | BJK24: =BJJ24+$E$19*$D$12 -> 19 | BJL24: =IF(BJK24=BIV25+1,BJF27,0) -> 0 | BJM24: =IF(BJK24=BIV25+1,BJM27,0) -> 0 | BJZ24: =IF(BKL26<>1000,-BKB27,BKI27-BJX27) -> 30.25156728 | BKF24: =COUNTIF(BJX28:BJX107,">"&0) -> 5 | BKG24: =BKF24+$E$19*$D$12 -> 19 | BKH24: =IF(BKG24=BJR25+1,BKB27,0) -> 0 | BKI24: =IF(BKG24=BJR25+1,BKI27,0) -> 0 | BKV24: =IF(BLH26<>1000,-BKX27,BLE27-BKT27) -> 30.25156728 | BLB24: =COUNTIF(BKT28:BKT107,">"&0) -> 5 | BLC24: =BLB24+$E$19*$D$12 -> 19 | BLD24: =IF(BLC24=BKN25+1,BKX27,0) -> 0 | BLE24: =IF(BLC24=BKN25+1,BLE27,0) -> 0 | BLR24: =IF(BMD26<>1000,-BLT27,BMA27-BLP27) -> 30.25156728 | BLX24: =COUNTIF(BLP28:BLP107,">"&0) -> 5 | BLY24: =BLX24+$E$19*$D$12 -> 19 | BLZ24: =IF(BLY24=BLJ25+1,BLT27,0) -> 0 | BMA24: =IF(BLY24=BLJ25+1,BMA27,0) -> 0 | BMN24: =IF(BMZ26<>1000,-BMP27,BMW27-BML27) -> 30.25156728 | BMT24: =COUNTIF(BML28:BML107,">"&0) -> 5 | BMU24: =BMT24+$E$19*$D$12 -> 19 | BMV24: =IF(BMU24=BMF25+1,BMP27,0) -> 0 | BMW24: =IF(BMU24=BMF25+1,BMW27,0) -> 0 | BNJ24: =IF(BNV26<>1000,-BNL27,BNS27-BNH27) -> 30.25156728 | BNP24: =COUNTIF(BNH28:BNH107,">"&0) -> 5 | BNQ24: =BNP24+$E$19*$D$12 -> 19 | BNR24: =IF(BNQ24=BNB25+1,BNL27,0) -> 0 | BNS24: =IF(BNQ24=BNB25+1,BNS27,0) -> 0 | BOF24: =IF(BOR26<>1000,-BOH27,BOO27-BOD27) -> 30.25156728 | BOL24: =COUNTIF(BOD28:BOD107,">"&0) -> 5 | BOM24: =BOL24+$E$19*$D$12 -> 19 | BON24: =IF(BOM24=BNX25+1,BOH27,0) -> 0 | BOO24: =IF(BOM24=BNX25+1,BOO27,0) -> 0 | BOV24: =COUNTIF(BOU28:BOU107,">"&0) -> 7
B25: 0 | W25: 1 | AT25: 2 | BP25: 3 | CL25: 4 | DH25: 5 | ED25: 6 | EZ25: 7 | FV25: 8 | GR25: 9 | HN25: 10 | IJ25: 11 | JF25: 12 | KB25: 13 | KX25: 14 | LT25: 15 | MP25: 16 | NL25: 17 | OH25: 18 | PD25: 19 | PZ25: 20 | QV25: 21 | RR25: 22 | SN25: 23 | TJ25: 24 | UF25: 25 | VB25: 26 | VX25: 27 | WT25: 28 | XP25: 29 | YL25: 30 | ZH25: 31 | AAD25: 32 | AAZ25: 33 | ABV25: 34 | ACR25: 35 | ADN25: 36 | AEJ25: 37 | AFF25: 38 | AGB25: 39 | AGX25: 40 | AHT25: 41 | AIP25: 42 | AJL25: 43 | AKH25: 44 | ALD25: 45 | ALZ25: 46 | AMV25: 47 | ANR25: 48 | AON25: 49 | APJ25: 50 | AQF25: 51 | ARB25: 52 | ARX25: 53 | AST25: 54 | ATP25: 55 | AUL25: 56 | AVH25: 57 | AWD25: 58 | AWZ25: 59 | AXV25: 60 | AYR25: 61 | AZN25: 62 | BAJ25: 63 | BBF25: 64 | BCB25: 65 | BCX25: 66 | BDT25: 67 | BEP25: 68 | BFL25: 69 | BGH25: 70 | BHD25: 71 | BHZ25: 72 | BIV25: 73 | BJR25: 74 | BKN25: 75 | BLJ25: 76 | BMF25: 77 | BNB25: 78 | BNX25: 79 | BOS25: NPV
A26: Period | B26: Años | C26: dz | D26: I(t) | E26: K(t+1) | F26: K(t) | G26: E(t) | H26: =SUM(H27:H107) -> 0 | I26: Value of Project | J26: I real | K26: PV de I en t | L26: Decision | M26: =IF(SUM(M27:M107)=0,1000,SUM(M27:M107)) -> 1000 | O26: dz | Q26: C(t)* | R26: W(t) | T26: Failure | U26: =IF(SUM(U27:U107)=0,1000,SUM(U27:U107)) -> 1000 | W26: Period | X26: Años | Y26: dz | Z26: I(t) | AA26: K(t+1) | AB26: K(t) | AC26: E(t) | AD26: =SUM(AD27:AD107) -> 0 | AE26: Value of Project | AF26: I real | AG26: PV de I en t | AH26: Decision | AI26: =IF(SUM(AI27:AI107)=0,1000,SUM(AI27:AI107)) -> 1000 | AK26: dz | AM26: C(t)* | AN26: W(t) | AP26: Failure | AQ26: =IF(SUM(AQ27:AQ107)=0,1000,SUM(AQ27:AQ107)) -> 1000 | AT26: Period | AU26: Años | AV26: dz | AW26: I(t) | AX26: K(t+1) | AY26: K(t) | AZ26: E(t) | BA26: =SUM(BA27:BA107) -> 0 | BB26: Value of Project | BC26: I real | BD26: PV de I en t | BE26: Decision | BF26: =IF(SUM(BF27:BF107)=0,1000,SUM(BF27:BF107)) -> 1000 | BH26: dz | BJ26: C(t)* | BK26: W(t) | BM26: Failure | BN26: =IF(SUM(BN27:BN107)=0,1000,SUM(BN27:BN107)) -> 1000 | BP26: Period | BQ26: Años | BR26: dz | BS26: I(t) | BT26: K(t+1) | BU26: K(t) | BV26: E(t) | BW26: =SUM(BW27:BW107) -> 0 | BX26: Value of Project | BY26: I real | BZ26: PV de I en t | CA26: Decision | CB26: =IF(SUM(CB27:CB107)=0,1000,SUM(CB27:CB107)) -> 1000 | CD26: dz | CF26: C(t)* | CG26: W(t) | CI26: Failure | CJ26: =IF(SUM(CJ27:CJ107)=0,1000,SUM(CJ27:CJ107)) -> 1000 | CL26: Periodos | CM26: Años | CN26: dz | CO26: I | CP26: K(t+1) | CR26: E(t) | CS26: =SUM(CS27:CS107) -> 5 | CT26: Value of Project | CU26: I real | CV26: PV de I | CW26: Decisión | CX26: =IF(SUM(CX27:CX107)=0,1000,SUM(CX27:CX107)) -> 1000 | CZ26: dz | DB26: C(t)* | DC26: W(t) | DE26: Failure | DF26: =IF(SUM(DF27:DF107)=0,1000,SUM(DF27:DF107)) -> 1000 | DH26: Periodos | DI26: Años | DJ26: dz | DK26: I | DL26: K(t+1) | DN26: E(t) | DO26: =SUM(DO27:DO107) -> 0 | DP26: Value of Project | DQ26: I real | DR26: PV de I | DS26: Decisión | DT26: =IF(SUM(DT27:DT107)=0,1000,SUM(DT27:DT107)) -> 1000 | DV26: dz | DX26: C(t)* | DY26: W(t) | EA26: Failure | EB26: =IF(SUM(EB27:EB107)=0,1000,SUM(EB27:EB107)) -> 1000 | ED26: Periodos | EE26: Años | EF26: dz | EG26: I | EH26: K(t+1) | EJ26: E(t) | EK26: =SUM(EK27:EK107) -> 0 | EL26: Value of Project | EM26: I real | EN26: PV de I | EO26: Decisión | EP26: =IF(SUM(EP27:EP107)=0,1000,SUM(EP27:EP107)) -> 1000 | ER26: dz | ET26: C(t)* | EU26: W(t) | EW26: Failure | EX26: =IF(SUM(EX27:EX107)=0,1000,SUM(EX27:EX107)) -> 1000 | EZ26: Periodos | FA26: Años | FB26: dz | FC26: I | FD26: K(t+1) | FF26: E(t) | FG26: =SUM(FG27:FG107) -> 0 | FH26: Value of Project | FI26: I real | FJ26: PV de I | FK26: Decisión | FL26: =IF(SUM(FL27:FL107)=0,1000,SUM(FL27:FL107)) -> 1000 | FN26: dz | FP26: C(t)* | FQ26: W(t) | FS26: Failure | FT26: =IF(SUM(FT27:FT107)=0,1000,SUM(FT27:FT107)) -> 1000 | FV26: Periodos | FW26: Años | FX26: dz | FY26: I | FZ26: K(t+1) | GB26: E(t) | GC26: =SUM(GC27:GC107) -> 0 | GD26: Value of Project | GE26: I real | GF26: PV de I | GG26: Decisión | GH26: =IF(SUM(GH27:GH107)=0,1000,SUM(GH27:GH107)) -> 1000 | GJ26: dz | GL26: C(t)* | GM26: W(t) | GO26: Failure | GP26: =IF(SUM(GP27:GP107)=0,1000,SUM(GP27:GP107)) -> 1000 | GR26: Periodos | GS26: Años | GT26: dz | GU26: I | GV26: K(t+1) | GX26: E(t) | GY26: =SUM(GY27:GY107) -> 0 | GZ26: Value of Project | HA26: I real | HB26: PV de I | HC26: Decisión | HD26: =IF(SUM(HD27:HD107)=0,1000,SUM(HD27:HD107)) -> 1000 | HF26: dz | HH26: C(t)* | HI26: W(t) | HK26: Failure | HL26: =IF(SUM(HL27:HL107)=0,1000,SUM(HL27:HL107)) -> 1000 | HN26: Periodos | HO26: Años | HP26: dz | HQ26: I | HR26: K(t+1) | HT26: E(t) | HU26: =SUM(HU27:HU107) -> 0 | HV26: Value of Project | HW26: I real | HX26: PV de I | HY26: Decisión | HZ26: =IF(SUM(HZ27:HZ107)=0,1000,SUM(HZ27:HZ107)) -> 1000 | IB26: dz | ID26: C(t)* | IE26: W(t) | IG26: Failure | IH26: =IF(SUM(IH27:IH107)=0,1000,SUM(IH27:IH107)) -> 1000 | IJ26: Periodos | IK26: Años | IL26: dz | IM26: I | IN26: K(t+1) | IP26: E(t) | IQ26: =SUM(IQ27:IQ107) -> 0 | IR26: Value of Project | IS26: I real | IT26: PV de I | IU26: Decisión | IV26: =IF(SUM(IV27:IV107)=0,1000,SUM(IV27:IV107)) -> 1000 | IX26: dz | IZ26: C(t)* | JA26: W(t) | JC26: Failure | JD26: =IF(SUM(JD27:JD107)=0,1000,SUM(JD27:JD107)) -> 1000 | JF26: Periodos | JG26: Años | JH26: dz | JI26: I | JJ26: K(t+1) | JL26: E(t) | JM26: =SUM(JM27:JM107) -> 0 | JN26: Value of Project | JO26: I real | JP26: PV de I | JQ26: Decisión | JR26: =IF(SUM(JR27:JR107)=0,1000,SUM(JR27:JR107)) -> 1000 | JT26: dz | JV26: C(t)* | JW26: W(t) | JY26: Failure | JZ26: =IF(SUM(JZ27:JZ107)=0,1000,SUM(JZ27:JZ107)) -> 1000 | KB26: Periodos | KC26: Años | KD26: dz | KE26: I | KF26: K(t+1) | KH26: E(t) | KI26: =SUM(KI27:KI107) -> 0 | KJ26: Value of Project | KK26: I real | KL26: PV de I | KM26: Decisión | KN26: =IF(SUM(KN27:KN107)=0,1000,SUM(KN27:KN107)) -> 1000 | KP26: dz | KR26: C(t)* | KS26: W(t) | KU26: Failure | KV26: =IF(SUM(KV27:KV107)=0,1000,SUM(KV27:KV107)) -> 1000 | KX26: Periodos | KY26: Años | KZ26: dz | LA26: I | LB26: K(t+1) | LD26: E(t) | LE26: =SUM(LE27:LE107) -> 0 | LF26: Value of Project | LG26: I real | LH26: PV de I | LI26: Decisión | LJ26: =IF(SUM(LJ27:LJ107)=0,1000,SUM(LJ27:LJ107)) -> 1000 | LL26: dz | LN26: C(t)* | LO26: W(t) | LQ26: Failure | LR26: =IF(SUM(LR27:LR107)=0,1000,SUM(LR27:LR107)) -> 1000 | LT26: Periodos | LU26: Años | LV26: dz | LW26: I | LX26: K(t+1) | LZ26: E(t) | MA26: =SUM(MA27:MA107) -> 0 | MB26: Value of Project | MC26: I real | MD26: PV de I | ME26: Decisión | MF26: =IF(SUM(MF27:MF107)=0,1000,SUM(MF27:MF107)) -> 1000 | MH26: dz | MJ26: C(t)* | MK26: W(t) | MM26: Failure | MN26: =IF(SUM(MN27:MN107)=0,1000,SUM(MN27:MN107)) -> 1000 | MP26: Periodos | MQ26: Años | MR26: dz | MS26: I | MT26: K(t+1) | MV26: E(t) | MW26: =SUM(MW27:MW107) -> 0 | MX26: Value of Project | MY26: I real | MZ26: PV de I | NA26: Decisión | NB26: =IF(SUM(NB27:NB107)=0,1000,SUM(NB27:NB107)) -> 1000 | ND26: dz | NF26: C(t)* | NG26: W(t) | NI26: Failure | NJ26: =IF(SUM(NJ27:NJ107)=0,1000,SUM(NJ27:NJ107)) -> 1000 | NL26: Periodos | NM26: Años | NN26: dz | NO26: I | NP26: K(t+1) | NR26: E(t) | NS26: =SUM(NS27:NS107) -> 0 | NT26: Value of Project | NU26: I real | NV26: PV de I | NW26: Decisión | NX26: =IF(SUM(NX27:NX107)=0,1000,SUM(NX27:NX107)) -> 1000 | NZ26: dz | OB26: C(t)* | OC26: W(t) | OE26: Failure | OF26: =IF(SUM(OF27:OF107)=0,1000,SUM(OF27:OF107)) -> 1000 | OH26: Periodos | OI26: Años | OJ26: dz | OK26: I | OL26: K(t+1) | ON26: E(t) | OO26: =SUM(OO27:OO107) -> 0 | OP26: Value of Project | OQ26: I real | OR26: PV de I | OS26: Decisión | OT26: =IF(SUM(OT27:OT107)=0,1000,SUM(OT27:OT107)) -> 1000 | OV26: dz | OX26: C(t)* | OY26: W(t) | PA26: Failure | PB26: =IF(SUM(PB27:PB107)=0,1000,SUM(PB27:PB107)) -> 1000 | PD26: Periodos | PE26: Años | PF26: dz | PG26: I | PH26: K(t+1) | PJ26: E(t) | PK26: =SUM(PK27:PK107) -> 0 | PL26: Value of Project | PM26: I real | PN26: PV de I | PO26: Decisión | PP26: =IF(SUM(PP27:PP107)=0,1000,SUM(PP27:PP107)) -> 1000 | PR26: dz | PT26: C(t)* | PU26: W(t) | PW26: Failure | PX26: =IF(SUM(PX27:PX107)=0,1000,SUM(PX27:PX107)) -> 1000 | PZ26: Periodos | QA26: Años | QB26: dz | QC26: I | QD26: K(t+1) | QF26: E(t) | QG26: =SUM(QG27:QG107) -> 0 | QH26: Value of Project | QI26: I real | QJ26: PV de I | QK26: Decisión | QL26: =IF(SUM(QL27:QL107)=0,1000,SUM(QL27:QL107)) -> 1000 | QN26: dz | QP26: C(t)* | QQ26: W(t) | QS26: Failure | QT26: =IF(SUM(QT27:QT107)=0,1000,SUM(QT27:QT107)) -> 1000 | QV26: Periodos | QW26: Años | QX26: dz | QY26: I | QZ26: K(t+1) | RB26: E(t) | RC26: =SUM(RC27:RC107) -> 0 | RD26: Value of Project | RE26: I real | RF26: PV de I | RG26: Decisión | RH26: =IF(SUM(RH27:RH107)=0,1000,SUM(RH27:RH107)) -> 1000 | RJ26: dz | RL26: C(t)* | RM26: W(t) | RO26: Failure | RP26: =IF(SUM(RP27:RP107)=0,1000,SUM(RP27:RP107)) -> 1000 | RR26: Periodos | RS26: Años | RT26: dz | RU26: I | RV26: K(t+1) | RX26: E(t) | RY26: =SUM(RY27:RY107) -> 0 | RZ26: Value of Project | SA26: I real | SB26: PV de I | SC26: Decisión | SD26: =IF(SUM(SD27:SD107)=0,1000,SUM(SD27:SD107)) -> 1000 | SF26: dz | SH26: C(t)* | SI26: W(t) | SK26: Failure | SL26: =IF(SUM(SL27:SL107)=0,1000,SUM(SL27:SL107)) -> 1000 | SN26: Periodos | SO26: Años | SP26: dz | SQ26: I | SR26: K(t+1) | ST26: E(t) | SU26: =SUM(SU27:SU107) -> 0 | SV26: Value of Project | SW26: I real | SX26: PV de I | SY26: Decisión | SZ26: =IF(SUM(SZ27:SZ107)=0,1000,SUM(SZ27:SZ107)) -> 1000 | TB26: dz | TD26: C(t)* | TE26: W(t) | TG26: Failure | TH26: =IF(SUM(TH27:TH107)=0,1000,SUM(TH27:TH107)) -> 1000 | TJ26: Periodos | TK26: Años | TL26: dz | TM26: I | TN26: K(t+1) | TP26: E(t) | TQ26: =SUM(TQ27:TQ107) -> 0 | TR26: Value of Project | TS26: I real | TT26: PV de I | TU26: Decisión | TV26: =IF(SUM(TV27:TV107)=0,1000,SUM(TV27:TV107)) -> 1000 | TX26: dz | TZ26: C(t)* | UA26: W(t) | UC26: Failure | UD26: =IF(SUM(UD27:UD107)=0,1000,SUM(UD27:UD107)) -> 1000 | UF26: Periodos | UG26: Años | UH26: dz | UI26: I | UJ26: K(t+1) | UL26: E(t) | UM26: =SUM(UM27:UM107) -> 0 | UN26: Value of Project | UO26: I real | UP26: PV de I | UQ26: Decisión | UR26: =IF(SUM(UR27:UR107)=0,1000,SUM(UR27:UR107)) -> 1000 | UT26: dz | UV26: C(t)* | UW26: W(t) | UY26: Failure | UZ26: =IF(SUM(UZ27:UZ107)=0,1000,SUM(UZ27:UZ107)) -> 1000 | VB26: Periodos | VC26: Años | VD26: dz | VE26: I | VF26: K(t+1) | VH26: E(t) | VI26: =SUM(VI27:VI107) -> 0 | VJ26: Value of Project | VK26: I real | VL26: PV de I | VM26: Decisión | VN26: =IF(SUM(VN27:VN107)=0,1000,SUM(VN27:VN107)) -> 1000 | VP26: dz | VR26: C(t)* | VS26: W(t) | VU26: Failure | VV26: =IF(SUM(VV27:VV107)=0,1000,SUM(VV27:VV107)) -> 1000 | VX26: Periodos | VY26: Años | VZ26: dz | WA26: I | WB26: K(t+1) | WD26: E(t) | WE26: =SUM(WE27:WE107) -> 0 | WF26: Value of Project | WG26: I real | WH26: PV de I | WI26: Decisión | WJ26: =IF(SUM(WJ27:WJ107)=0,1000,SUM(WJ27:WJ107)) -> 1000 | WL26: dz | WN26: C(t)* | WO26: W(t) | WQ26: Failure | WR26: =IF(SUM(WR27:WR107)=0,1000,SUM(WR27:WR107)) -> 1000 | WT26: Periodos | WU26: Años | WV26: dz | WW26: I | WX26: K(t+1) | WZ26: E(t) | XA26: =SUM(XA27:XA107) -> 0 | XB26: Value of Project | XC26: I real | XD26: PV de I | XE26: Decisión | XF26: =IF(SUM(XF27:XF107)=0,1000,SUM(XF27:XF107)) -> 1000 | XH26: dz | XJ26: C(t)* | XK26: W(t) | XM26: Failure | XN26: =IF(SUM(XN27:XN107)=0,1000,SUM(XN27:XN107)) -> 1000 | XP26: Periodos | XQ26: Años | XR26: dz | XS26: I | XT26: K(t+1) | XV26: E(t) | XW26: =SUM(XW27:XW107) -> 0 | XX26: Value of Project | XY26: I real | XZ26: PV de I | YA26: Decisión | YB26: =IF(SUM(YB27:YB107)=0,1000,SUM(YB27:YB107)) -> 1000 | YD26: dz | YF26: C(t)* | YG26: W(t) | YI26: Failure | YJ26: =IF(SUM(YJ27:YJ107)=0,1000,SUM(YJ27:YJ107)) -> 1000 | YL26: Periodos | YM26: Años | YN26: dz | YO26: I | YP26: K(t+1) | YR26: E(t) | YS26: =SUM(YS27:YS107) -> 0 | YT26: Value of Project | YU26: I real | YV26: PV de I | YW26: Decisión | YX26: =IF(SUM(YX27:YX107)=0,1000,SUM(YX27:YX107)) -> 1000 | YZ26: dz | ZB26: C(t)* | ZC26: W(t) | ZE26: Failure | ZF26: =IF(SUM(ZF27:ZF107)=0,1000,SUM(ZF27:ZF107)) -> 1000 | ZH26: Periodos | ZI26: Años | ZJ26: dz | ZK26: I | ZL26: K(t+1) | ZN26: E(t) | ZO26: =SUM(ZO27:ZO107) -> 0 | ZP26: Value of Project | ZQ26: I real | ZR26: PV de I | ZS26: Decisión | ZT26: =IF(SUM(ZT27:ZT107)=0,1000,SUM(ZT27:ZT107)) -> 1000 | ZV26: dz | ZX26: C(t)* | ZY26: W(t) | AAA26: Failure | AAB26: =IF(SUM(AAB27:AAB107)=0,1000,SUM(AAB27:AAB107)) -> 1000 | AAD26: Periodos | AAE26: Años | AAF26: dz | AAG26: I | AAH26: K(t+1) | AAJ26: E(t) | AAK26: =SUM(AAK27:AAK107) -> 0 | AAL26: Value of Project | AAM26: I real | AAN26: PV de I | AAO26: Decisión | AAP26: =IF(SUM(AAP27:AAP107)=0,1000,SUM(AAP27:AAP107)) -> 1000 | AAR26: dz | AAT26: C(t)* | AAU26: W(t) | AAW26: Failure | AAX26: =IF(SUM(AAX27:AAX107)=0,1000,SUM(AAX27:AAX107)) -> 1000 | AAZ26: Period | ABA26: Años | ABB26: dz | ABC26: I(t) | ABD26: K(t+1) | ABE26: K(t) | ABF26: E(t) | ABG26: =SUM(ABG27:ABG107) -> 0 | ABH26: Value of Project | ABI26: I real | ABJ26: PV de I en t | ABK26: Decision | ABL26: =IF(SUM(ABL27:ABL107)=0,1000,SUM(ABL27:ABL107)) -> 1000 | ABN26: dz | ABP26: C(t)* | ABQ26: W(t) | ABS26: Failure | ABT26: =IF(SUM(ABT27:ABT107)=0,1000,SUM(ABT27:ABT107)) -> 1000 | ABV26: Periodos | ABW26: Años | ABX26: dz | ABY26: I | ABZ26: K(t+1) | ACB26: E(t) | ACC26: =SUM(ACC27:ACC107) -> 0 | ACD26: Value of Project | ACE26: I real | ACF26: PV de I | ACG26: Decisión | ACH26: =IF(SUM(ACH27:ACH107)=0,1000,SUM(ACH27:ACH107)) -> 1000 | ACJ26: dz | ACL26: C(t)* | ACM26: W(t) | ACO26: Failure | ACP26: =IF(SUM(ACP27:ACP107)=0,1000,SUM(ACP27:ACP107)) -> 1000 | ACR26: Periodos | ACS26: Años | ACT26: dz | ACU26: I | ACV26: K(t+1) | ACX26: E(t) | ACY26: =SUM(ACY27:ACY107) -> 0 | ACZ26: Value of Project | ADA26: I real | ADB26: PV de I | ADC26: Decisión | ADD26: =IF(SUM(ADD27:ADD107)=0,1000,SUM(ADD27:ADD107)) -> 1000 | ADF26: dz | ADH26: C(t)* | ADI26: W(t) | ADK26: Failure | ADL26: =IF(SUM(ADL27:ADL107)=0,1000,SUM(ADL27:ADL107)) -> 1000 | ADN26: Periodos | ADO26: Años | ADP26: dz | ADQ26: I | ADR26: K(t+1) | ADT26: E(t) | ADU26: =SUM(ADU27:ADU107) -> 0 | ADV26: Value of Project | ADW26: I real | ADX26: PV de I | ADY26: Decisión | ADZ26: =IF(SUM(ADZ27:ADZ107)=0,1000,SUM(ADZ27:ADZ107)) -> 1000 | AEB26: dz | AED26: C(t)* | AEE26: W(t) | AEG26: Failure | AEH26: =IF(SUM(AEH27:AEH107)=0,1000,SUM(AEH27:AEH107)) -> 1000 | AEJ26: Periodos | AEK26: Años | AEL26: dz | AEM26: I | AEN26: K(t+1) | AEP26: E(t) | AEQ26: =SUM(AEQ27:AEQ107) -> 0 | AER26: Value of Project | AES26: I real | AET26: PV de I | AEU26: Decisión | AEV26: =IF(SUM(AEV27:AEV107)=0,1000,SUM(AEV27:AEV107)) -> 1000 | AEX26: dz | AEZ26: C(t)* | AFA26: W(t) | AFC26: Failure | AFD26: =IF(SUM(AFD27:AFD107)=0,1000,SUM(AFD27:AFD107)) -> 1000 | AFF26: Periodos | AFG26: Años | AFH26: dz | AFI26: I | AFJ26: K(t+1) | AFL26: E(t) | AFM26: =SUM(AFM27:AFM107) -> 0 | AFN26: Value of Project | AFO26: I real | AFP26: PV de I | AFQ26: Decisión | AFR26: =IF(SUM(AFR27:AFR107)=0,1000,SUM(AFR27:AFR107)) -> 1000 | AFT26: dz | AFV26: C(t)* | AFW26: W(t) | AFY26: Failure | AFZ26: =IF(SUM(AFZ27:AFZ107)=0,1000,SUM(AFZ27:AFZ107)) -> 1000 | AGB26: Periodos | AGC26: Años | AGD26: dz | AGE26: I | AGF26: K(t+1) | AGH26: E(t) | AGI26: =SUM(AGI27:AGI107) -> 0 | AGJ26: Value of Project | AGK26: I real | AGL26: PV de I | AGM26: Decisión | AGN26: =IF(SUM(AGN27:AGN107)=0,1000,SUM(AGN27:AGN107)) -> 1000 | AGP26: dz | AGR26: C(t)* | AGS26: W(t) | AGU26: Failure | AGV26: =IF(SUM(AGV27:AGV107)=0,1000,SUM(AGV27:AGV107)) -> 1000 | AGX26: Periodos | AGY26: Años | AGZ26: dz | AHA26: I | AHB26: K(t+1) | AHD26: E(t) | AHE26: =SUM(AHE27:AHE107) -> 0 | AHF26: Value of Project | AHG26: I real | AHH26: PV de I | AHI26: Decisión | AHJ26: =IF(SUM(AHJ27:AHJ107)=0,1000,SUM(AHJ27:AHJ107)) -> 1000 | AHL26: dz | AHN26: C(t)* | AHO26: W(t) | AHQ26: Failure | AHR26: =IF(SUM(AHR27:AHR107)=0,1000,SUM(AHR27:AHR107)) -> 1000 | AHT26: Periodos | AHU26: Años | AHV26: dz | AHW26: I | AHX26: K(t+1) | AHZ26: E(t) | AIA26: =SUM(AIA27:AIA107) -> 0 | AIB26: Value of Project | AIC26: I real | AID26: PV de I | AIE26: Decisión | AIF26: =IF(SUM(AIF27:AIF107)=0,1000,SUM(AIF27:AIF107)) -> 1000 | AIH26: dz | AIJ26: C(t)* | AIK26: W(t) | AIM26: Failure | AIN26: =IF(SUM(AIN27:AIN107)=0,1000,SUM(AIN27:AIN107)) -> 1000 | AIP26: Periodos | AIQ26: Años | AIR26: dz | AIS26: I | AIT26: K(t+1) | AIV26: E(t) | AIW26: =SUM(AIW27:AIW107) -> 0 | AIX26: Value of Project | AIY26: I real | AIZ26: PV de I | AJA26: Decisión | AJB26: =IF(SUM(AJB27:AJB107)=0,1000,SUM(AJB27:AJB107)) -> 1000 | AJD26: dz | AJF26: C(t)* | AJG26: W(t) | AJI26: Failure | AJJ26: =IF(SUM(AJJ27:AJJ107)=0,1000,SUM(AJJ27:AJJ107)) -> 1000 | AJL26: Periodos | AJM26: Años | AJN26: dz | AJO26: I | AJP26: K(t+1) | AJR26: E(t) | AJS26: =SUM(AJS27:AJS107) -> 0 | AJT26: Value of Project | AJU26: I real | AJV26: PV de I | AJW26: Decisión | AJX26: =IF(SUM(AJX27:AJX107)=0,1000,SUM(AJX27:AJX107)) -> 1000 | AJZ26: dz | AKB26: C(t)* | AKC26: W(t) | AKE26: Failure | AKF26: =IF(SUM(AKF27:AKF107)=0,1000,SUM(AKF27:AKF107)) -> 1000 | AKH26: Periodos | AKI26: Años | AKJ26: dz | AKK26: I | AKL26: K(t+1) | AKN26: E(t) | AKO26: =SUM(AKO27:AKO107) -> 0 | AKP26: Value of Project | AKQ26: I real | AKR26: PV de I | AKS26: Decisión | AKT26: =IF(SUM(AKT27:AKT107)=0,1000,SUM(AKT27:AKT107)) -> 1000 | AKV26: dz | AKX26: C(t)* | AKY26: W(t) | ALA26: Failure | ALB26: =IF(SUM(ALB27:ALB107)=0,1000,SUM(ALB27:ALB107)) -> 1000 | ALD26: Periodos | ALE26: Años | ALF26: dz | ALG26: I | ALH26: K(t+1) | ALJ26: E(t) | ALK26: =SUM(ALK27:ALK107) -> 0 | ALL26: Value of Project | ALM26: I real | ALN26: PV de I | ALO26: Decisión | ALP26: =IF(SUM(ALP27:ALP107)=0,1000,SUM(ALP27:ALP107)) -> 1000 | ALR26: dz | ALT26: C(t)* | ALU26: W(t) | ALW26: Failure | ALX26: =IF(SUM(ALX27:ALX107)=0,1000,SUM(ALX27:ALX107)) -> 1000 | ALZ26: Periodos | AMA26: Años | AMB26: dz | AMC26: I | AMD26: K(t+1) | AMF26: E(t) | AMG26: =SUM(AMG27:AMG107) -> 0 | AMH26: Value of Project | AMI26: I real | AMJ26: PV de I | AMK26: Decisión | AML26: =IF(SUM(AML27:AML107)=0,1000,SUM(AML27:AML107)) -> 1000 | AMN26: dz | AMP26: C(t)* | AMQ26: W(t) | AMS26: Failure | AMT26: =IF(SUM(AMT27:AMT107)=0,1000,SUM(AMT27:AMT107)) -> 1000 | AMV26: Periodos | AMW26: Años | AMX26: dz | AMY26: I | AMZ26: K(t+1) | ANB26: E(t) | ANC26: =SUM(ANC27:ANC107) -> 0 | AND26: Value of Project | ANE26: I real | ANF26: PV de I | ANG26: Decisión | ANH26: =IF(SUM(ANH27:ANH107)=0,1000,SUM(ANH27:ANH107)) -> 1000 | ANJ26: dz | ANL26: C(t)* | ANM26: W(t) | ANO26: Failure | ANP26: =IF(SUM(ANP27:ANP107)=0,1000,SUM(ANP27:ANP107)) -> 1000 | ANR26: Periodos | ANS26: Años | ANT26: dz | ANU26: I | ANV26: K(t+1) | ANX26: E(t) | ANY26: =SUM(ANY27:ANY107) -> 0 | ANZ26: Value of Project | AOA26: I real | AOB26: PV de I | AOC26: Decisión | AOD26: =IF(SUM(AOD27:AOD107)=0,1000,SUM(AOD27:AOD107)) -> 1000 | AOF26: dz | AOH26: C(t)* | AOI26: W(t) | AOK26: Failure | AOL26: =IF(SUM(AOL27:AOL107)=0,1000,SUM(AOL27:AOL107)) -> 1000 | AON26: Periodos | AOO26: Años | AOP26: dz | AOQ26: I | AOR26: K(t+1) | AOT26: E(t) | AOU26: =SUM(AOU27:AOU107) -> 0 | AOV26: Value of Project | AOW26: I real | AOX26: PV de I | AOY26: Decisión | AOZ26: =IF(SUM(AOZ27:AOZ107)=0,1000,SUM(AOZ27:AOZ107)) -> 1000 | APB26: dz | APD26: C(t)* | APE26: W(t) | APG26: Failure | APH26: =IF(SUM(APH27:APH107)=0,1000,SUM(APH27:APH107)) -> 1000 | APJ26: Periodos | APK26: Años | APL26: dz | APM26: I | APN26: K(t+1) | APP26: E(t) | APQ26: =SUM(APQ27:APQ107) -> 0 | APR26: Value of Project | APS26: I real | APT26: PV de I | APU26: Decisión | APV26: =IF(SUM(APV27:APV107)=0,1000,SUM(APV27:APV107)) -> 1000 | APX26: dz | APZ26: C(t)* | AQA26: W(t) | AQC26: Failure | AQD26: =IF(SUM(AQD27:AQD107)=0,1000,SUM(AQD27:AQD107)) -> 1000 | AQF26: Periodos | AQG26: Años | AQH26: dz | AQI26: I | AQJ26: K(t+1) | AQL26: E(t) | AQM26: =SUM(AQM27:AQM107) -> 0 | AQN26: Value of Project | AQO26: I real | AQP26: PV de I | AQQ26: Decisión | AQR26: =IF(SUM(AQR27:AQR107)=0,1000,SUM(AQR27:AQR107)) -> 1000 | AQT26: dz | AQV26: C(t)* | AQW26: W(t) | AQY26: Failure | AQZ26: =IF(SUM(AQZ27:AQZ107)=0,1000,SUM(AQZ27:AQZ107)) -> 1000 | ARB26: Periodos | ARC26: Años | ARD26: dz | ARE26: I | ARF26: K(t+1) | ARH26: E(t) | ARI26: =SUM(ARI27:ARI107) -> 0 | ARJ26: Value of Project | ARK26: I real | ARL26: PV de I | ARM26: Decisión | ARN26: =IF(SUM(ARN27:ARN107)=0,1000,SUM(ARN27:ARN107)) -> 1000 | ARP26: dz | ARR26: C(t)* | ARS26: W(t) | ARU26: Failure | ARV26: =IF(SUM(ARV27:ARV107)=0,1000,SUM(ARV27:ARV107)) -> 1000 | ARX26: Periodos | ARY26: Años | ARZ26: dz | ASA26: I | ASB26: K(t+1) | ASD26: E(t) | ASE26: =SUM(ASE27:ASE107) -> 0 | ASF26: Value of Project | ASG26: I real | ASH26: PV de I | ASI26: Decisión | ASJ26: =IF(SUM(ASJ27:ASJ107)=0,1000,SUM(ASJ27:ASJ107)) -> 1000 | ASL26: dz | ASN26: C(t)* | ASO26: W(t) | ASQ26: Failure | ASR26: =IF(SUM(ASR27:ASR107)=0,1000,SUM(ASR27:ASR107)) -> 1000 | AST26: Periodos | ASU26: Años | ASV26: dz | ASW26: I | ASX26: K(t+1) | ASZ26: E(t) | ATA26: =SUM(ATA27:ATA107) -> 0 | ATB26: Value of Project | ATC26: I real | ATD26: PV de I | ATE26: Decisión | ATF26: =IF(SUM(ATF27:ATF107)=0,1000,SUM(ATF27:ATF107)) -> 1000 | ATH26: dz | ATJ26: C(t)* | ATK26: W(t) | ATM26: Failure | ATN26: =IF(SUM(ATN27:ATN107)=0,1000,SUM(ATN27:ATN107)) -> 1000 | ATP26: Periodos | ATQ26: Años | ATR26: dz | ATS26: I | ATT26: K(t+1) | ATV26: E(t) | ATW26: =SUM(ATW27:ATW107) -> 0 | ATX26: Value of Project | ATY26: I real | ATZ26: PV de I | AUA26: Decisión | AUB26: =IF(SUM(AUB27:AUB107)=0,1000,SUM(AUB27:AUB107)) -> 1000 | AUD26: dz | AUF26: C(t)* | AUG26: W(t) | AUI26: Failure | AUJ26: =IF(SUM(AUJ27:AUJ107)=0,1000,SUM(AUJ27:AUJ107)) -> 1000 | AUL26: Periodos | AUM26: Años | AUN26: dz | AUO26: I | AUP26: K(t+1) | AUR26: E(t) | AUS26: =SUM(AUS27:AUS107) -> 0 | AUT26: Value of Project | AUU26: I real | AUV26: PV de I | AUW26: Decisión | AUX26: =IF(SUM(AUX27:AUX107)=0,1000,SUM(AUX27:AUX107)) -> 1000 | AUZ26: dz | AVB26: C(t)* | AVC26: W(t) | AVE26: Failure | AVF26: =IF(SUM(AVF27:AVF107)=0,1000,SUM(AVF27:AVF107)) -> 1000 | AVH26: Periodos | AVI26: Años | AVJ26: dz | AVK26: I | AVL26: K(t+1) | AVN26: E(t) | AVO26: =SUM(AVO27:AVO107) -> 0 | AVP26: Value of Project | AVQ26: I real | AVR26: PV de I | AVS26: Decisión | AVT26: =IF(SUM(AVT27:AVT107)=0,1000,SUM(AVT27:AVT107)) -> 1000 | AVV26: dz | AVX26: C(t)* | AVY26: W(t) | AWA26: Failure | AWB26: =IF(SUM(AWB27:AWB107)=0,1000,SUM(AWB27:AWB107)) -> 1000 | AWD26: Periodos | AWE26: Años | AWF26: dz | AWG26: I | AWH26: K(t+1) | AWJ26: E(t) | AWK26: =SUM(AWK27:AWK107) -> 0 | AWL26: Value of Project | AWM26: I real | AWN26: PV de I | AWO26: Decisión | AWP26: =IF(SUM(AWP27:AWP107)=0,1000,SUM(AWP27:AWP107)) -> 1000 | AWR26: dz | AWT26: C(t)* | AWU26: W(t) | AWW26: Failure | AWX26: =IF(SUM(AWX27:AWX107)=0,1000,SUM(AWX27:AWX107)) -> 1000 | AWZ26: Periodos | AXA26: Años | AXB26: dz | AXC26: I | AXD26: K(t+1) | AXF26: E(t) | AXG26: =SUM(AXG27:AXG107) -> 0 | AXH26: Value of Project | AXI26: I real | AXJ26: PV de I | AXK26: Decisión | AXL26: =IF(SUM(AXL27:AXL107)=0,1000,SUM(AXL27:AXL107)) -> 1000 | AXN26: dz | AXP26: C(t)* | AXQ26: W(t) | AXS26: Failure | AXT26: =IF(SUM(AXT27:AXT107)=0,1000,SUM(AXT27:AXT107)) -> 1000 | AXV26: Periodos | AXW26: Años | AXX26: dz | AXY26: I | AXZ26: K(t+1) | AYB26: E(t) | AYC26: =SUM(AYC27:AYC107) -> 0 | AYD26: Value of Project | AYE26: I real | AYF26: PV de I | AYG26: Decisión | AYH26: =IF(SUM(AYH27:AYH107)=0,1000,SUM(AYH27:AYH107)) -> 1000 | AYJ26: dz | AYL26: C(t)* | AYM26: W(t) | AYO26: Failure | AYP26: =IF(SUM(AYP27:AYP107)=0,1000,SUM(AYP27:AYP107)) -> 1000 | AYR26: Periodos | AYS26: Años | AYT26: dz | AYU26: I | AYV26: K(t+1) | AYX26: E(t) | AYY26: =SUM(AYY27:AYY107) -> 0 | AYZ26: Value of Project | AZA26: I real | AZB26: PV de I | AZC26: Decisión | AZD26: =IF(SUM(AZD27:AZD107)=0,1000,SUM(AZD27:AZD107)) -> 1000 | AZF26: dz | AZH26: C(t)* | AZI26: W(t) | AZK26: Failure | AZL26: =IF(SUM(AZL27:AZL107)=0,1000,SUM(AZL27:AZL107)) -> 1000 | AZN26: Periodos | AZO26: Años | AZP26: dz | AZQ26: I | AZR26: K(t+1) | AZT26: E(t) | AZU26: =SUM(AZU27:AZU107) -> 0 | AZV26: Value of Project | AZW26: I real | AZX26: PV de I | AZY26: Decisión | AZZ26: =IF(SUM(AZZ27:AZZ107)=0,1000,SUM(AZZ27:AZZ107)) -> 1000 | BAB26: dz | BAD26: C(t)* | BAE26: W(t) | BAG26: Failure | BAH26: =IF(SUM(BAH27:BAH107)=0,1000,SUM(BAH27:BAH107)) -> 1000 | BAJ26: Periodos | BAK26: Años | BAL26: dz | BAM26: I | BAN26: K(t+1) | BAP26: E(t) | BAQ26: =SUM(BAQ27:BAQ107) -> 0 | BAR26: Value of Project | BAS26: I real | BAT26: PV de I | BAU26: Decisión | BAV26: =IF(SUM(BAV27:BAV107)=0,1000,SUM(BAV27:BAV107)) -> 1000 | BAX26: dz | BAZ26: C(t)* | BBA26: W(t) | BBC26: Failure | BBD26: =IF(SUM(BBD27:BBD107)=0,1000,SUM(BBD27:BBD107)) -> 1000 | BBF26: Periodos | BBG26: Años | BBH26: dz | BBI26: I | BBJ26: K(t+1) | BBL26: E(t) | BBM26: =SUM(BBM27:BBM107) -> 0 | BBN26: Value of Project | BBO26: I real | BBP26: PV de I | BBQ26: Decisión | BBR26: =IF(SUM(BBR27:BBR107)=0,1000,SUM(BBR27:BBR107)) -> 1000 | BBT26: dz | BBV26: C(t)* | BBW26: W(t) | BBY26: Failure | BBZ26: =IF(SUM(BBZ27:BBZ107)=0,1000,SUM(BBZ27:BBZ107)) -> 1000 | BCB26: Periodos | BCC26: Años | BCD26: dz | BCE26: I | BCF26: K(t+1) | BCH26: E(t) | BCI26: =SUM(BCI27:BCI107) -> 0 | BCJ26: Value of Project | BCK26: I real | BCL26: PV de I | BCM26: Decisión | BCN26: =IF(SUM(BCN27:BCN107)=0,1000,SUM(BCN27:BCN107)) -> 1000 | BCP26: dz | BCR26: C(t)* | BCS26: W(t) | BCU26: Failure | BCV26: =IF(SUM(BCV27:BCV107)=0,1000,SUM(BCV27:BCV107)) -> 1000 | BCX26: Periodos | BCY26: Años | BCZ26: dz | BDA26: I | BDB26: K(t+1) | BDD26: E(t) | BDE26: =SUM(BDE27:BDE107) -> 0 | BDF26: Value of Project | BDG26: I real | BDH26: PV de I | BDI26: Decisión | BDJ26: =IF(SUM(BDJ27:BDJ107)=0,1000,SUM(BDJ27:BDJ107)) -> 1000 | BDL26: dz | BDN26: C(t)* | BDO26: W(t) | BDQ26: Failure | BDR26: =IF(SUM(BDR27:BDR107)=0,1000,SUM(BDR27:BDR107)) -> 1000 | BDT26: Periodos | BDU26: Años | BDV26: dz | BDW26: I | BDX26: K(t+1) | BDZ26: E(t) | BEA26: =SUM(BEA27:BEA107) -> 0 | BEB26: Value of Project | BEC26: I real | BED26: PV de I | BEE26: Decisión | BEF26: =IF(SUM(BEF27:BEF107)=0,1000,SUM(BEF27:BEF107)) -> 1000 | BEH26: dz | BEJ26: C(t)* | BEK26: W(t) | BEM26: Failure | BEN26: =IF(SUM(BEN27:BEN107)=0,1000,SUM(BEN27:BEN107)) -> 1000 | BEP26: Periodos | BEQ26: Años | BER26: dz | BES26: I | BET26: K(t+1) | BEV26: E(t) | BEW26: =SUM(BEW27:BEW107) -> 0 | BEX26: Value of Project | BEY26: I real | BEZ26: PV de I | BFA26: Decisión | BFB26: =IF(SUM(BFB27:BFB107)=0,1000,SUM(BFB27:BFB107)) -> 1000 | BFD26: dz | BFF26: C(t)* | BFG26: W(t) | BFI26: Failure | BFJ26: =IF(SUM(BFJ27:BFJ107)=0,1000,SUM(BFJ27:BFJ107)) -> 1000 | BFL26: Periodos | BFM26: Años | BFN26: dz | BFO26: I | BFP26: K(t+1) | BFR26: E(t) | BFS26: =SUM(BFS27:BFS107) -> 0 | BFT26: Value of Project | BFU26: I real | BFV26: PV de I | BFW26: Decisión | BFX26: =IF(SUM(BFX27:BFX107)=0,1000,SUM(BFX27:BFX107)) -> 1000 | BFZ26: dz | BGB26: C(t)* | BGC26: W(t) | BGE26: Failure | BGF26: =IF(SUM(BGF27:BGF107)=0,1000,SUM(BGF27:BGF107)) -> 1000 | BGH26: Periodos | BGI26: Años | BGJ26: dz | BGK26: I | BGL26: K(t+1) | BGN26: E(t) | BGO26: =SUM(BGO27:BGO107) -> 0 | BGP26: Value of Project | BGQ26: I real | BGR26: PV de I | BGS26: Decisión | BGT26: =IF(SUM(BGT27:BGT107)=0,1000,SUM(BGT27:BGT107)) -> 1000 | BGV26: dz | BGX26: C(t)* | BGY26: W(t) | BHA26: Failure | BHB26: =IF(SUM(BHB27:BHB107)=0,1000,SUM(BHB27:BHB107)) -> 1000 | BHD26: Periodos | BHE26: Años | BHF26: dz | BHG26: I | BHH26: K(t+1) | BHJ26: E(t) | BHK26: =SUM(BHK27:BHK107) -> 0 | BHL26: Value of Project | BHM26: I real | BHN26: PV de I | BHO26: Decisión | BHP26: =IF(SUM(BHP27:BHP107)=0,1000,SUM(BHP27:BHP107)) -> 1000 | BHR26: dz | BHT26: C(t)* | BHU26: W(t) | BHW26: Failure | BHX26: =IF(SUM(BHX27:BHX107)=0,1000,SUM(BHX27:BHX107)) -> 1000 | BHZ26: Periodos | BIA26: Años | BIB26: dz | BIC26: I | BID26: K(t+1) | BIF26: E(t) | BIG26: =SUM(BIG27:BIG107) -> 0 | BIH26: Value of Project | BII26: I real | BIJ26: PV de I | BIK26: Decisión | BIL26: =IF(SUM(BIL27:BIL107)=0,1000,SUM(BIL27:BIL107)) -> 1000 | BIN26: dz | BIP26: C(t)* | BIQ26: W(t) | BIS26: Failure | BIT26: =IF(SUM(BIT27:BIT107)=0,1000,SUM(BIT27:BIT107)) -> 1000 | BIV26: Periodos | BIW26: Años | BIX26: dz | BIY26: I | BIZ26: K(t+1) | BJB26: E(t) | BJC26: =SUM(BJC27:BJC107) -> 0 | BJD26: Value of Project | BJE26: I real | BJF26: PV de I | BJG26: Decisión | BJH26: =IF(SUM(BJH27:BJH107)=0,1000,SUM(BJH27:BJH107)) -> 1000 | BJJ26: dz | BJL26: C(t)* | BJM26: W(t) | BJO26: Failure | BJP26: =IF(SUM(BJP27:BJP107)=0,1000,SUM(BJP27:BJP107)) -> 1000 | BJR26: Periodos | BJS26: Años | BJT26: dz | BJU26: I | BJV26: K(t+1) | BJX26: E(t) | BJY26: =SUM(BJY27:BJY107) -> 0 | BJZ26: Value of Project | BKA26: I real | BKB26: PV de I | BKC26: Decisión | BKD26: =IF(SUM(BKD27:BKD107)=0,1000,SUM(BKD27:BKD107)) -> 1000 | BKF26: dz | BKH26: C(t)* | BKI26: W(t) | BKK26: Failure | BKL26: =IF(SUM(BKL27:BKL107)=0,1000,SUM(BKL27:BKL107)) -> 1000 | BKN26: Periodos | BKO26: Años | BKP26: dz | BKQ26: I | BKR26: K(t+1) | BKT26: E(t) | BKU26: =SUM(BKU27:BKU107) -> 0 | BKV26: Value of Project | BKW26: I real | BKX26: PV de I | BKY26: Decisión | BKZ26: =IF(SUM(BKZ27:BKZ107)=0,1000,SUM(BKZ27:BKZ107)) -> 1000 | BLB26: dz | BLD26: C(t)* | BLE26: W(t) | BLG26: Failure | BLH26: =IF(SUM(BLH27:BLH107)=0,1000,SUM(BLH27:BLH107)) -> 1000 | BLJ26: Periodos | BLK26: Años | BLL26: dz | BLM26: I | BLN26: K(t+1) | BLP26: E(t) | BLQ26: =SUM(BLQ27:BLQ107) -> 0 | BLR26: Value of Project | BLS26: I real | BLT26: PV de I | BLU26: Decisión | BLV26: =IF(SUM(BLV27:BLV107)=0,1000,SUM(BLV27:BLV107)) -> 1000 | BLX26: dz | BLZ26: C(t)* | BMA26: W(t) | BMC26: Failure | BMD26: =IF(SUM(BMD27:BMD107)=0,1000,SUM(BMD27:BMD107)) -> 1000 | BMF26: Periodos | BMG26: Años | BMH26: dz | BMI26: I | BMJ26: K(t+1) | BML26: E(t) | BMM26: =SUM(BMM27:BMM107) -> 0 | BMN26: Value of Project | BMO26: I real | BMP26: PV de I | BMQ26: Decisión | BMR26: =IF(SUM(BMR27:BMR107)=0,1000,SUM(BMR27:BMR107)) -> 1000 | BMT26: dz | BMV26: C(t)* | BMW26: W(t) | BMY26: Failure | BMZ26: =IF(SUM(BMZ27:BMZ107)=0,1000,SUM(BMZ27:BMZ107)) -> 1000 | BNB26: Periodos | BNC26: Años | BND26: dz | BNE26: I | BNF26: K(t+1) | BNH26: E(t) | BNI26: =SUM(BNI27:BNI107) -> 0 | BNJ26: Value of Project | BNK26: I real | BNL26: PV de I | BNM26: Decisión | BNN26: =IF(SUM(BNN27:BNN107)=0,1000,SUM(BNN27:BNN107)) -> 1000 | BNP26: dz | BNR26: C(t)* | BNS26: W(t) | BNU26: Failure | BNV26: =IF(SUM(BNV27:BNV107)=0,1000,SUM(BNV27:BNV107)) -> 1000 | BNX26: Periodos | BNY26: Años | BNZ26: dz | BOA26: I | BOB26: K(t+1) | BOD26: E(t) | BOE26: =SUM(BOE27:BOE107) -> 0 | BOF26: Value of Project | BOG26: I real | BOH26: PV de I | BOI26: Decisión | BOJ26: =IF(SUM(BOJ27:BOJ107)=0,1000,SUM(BOJ27:BOJ107)) -> 1000 | BOL26: dz | BON26: C(t)* | BOO26: W(t) | BOQ26: Failure | BOR26: =IF(SUM(BOR27:BOR107)=0,1000,SUM(BOR27:BOR107)) -> 1000 | BOS26: Periodos | BOT26: Años | BOU26: I(t) | BOV26: Cash Flows | BOX26: C(t) | BOY26: I(t) | BOZ26: NPV | BPA26: IRR | BPC26: Value of Project | BPE26: PV de E | BPF26: PV de C
A27: 0 | B27: 0 | D27: =D5 -> 2.142857143 | E27: =D3 -> 15 | F27: =E27 -> 15 | G27: =EXP(-($D$16)*$D$13)*(G28) -> 8.451579965 | H27: =IF(AND(F27=0,F26>0),A27," ") ->  | I27: =MAX(R27-G27,0) -> 23.11429887 | J27: =$D$27 -> 2.142857143 | K27: =EXP(-($D$16)*$D$13)*(K28) -> 8.451579965 | M27: =IF(L27="Abandon",A27,) -> 0 | P27: =D7 -> 1.75 | Q27: =IF(A27>0,IF(F27=0,P27,0),0) -> 0 | R27: =IF(A27=$D$14*$D$12,IF(Q27+(P28*$D$18)/(($D$16*$D$13)-($D$8*$D$13))<0,Q27,Q27+(P28*$D$18)/(($D$16*$D$13)-($D$8*$D$13))),IF(Q27=0,EXP(-($D$16+$D$10)*$D$13)*R28+Q27,EXP(-($D$16)*$D$13)*R28+Q27)) -> 31.56587884 | W27: =A27 -> 0 | X27: 0 | Y27: 0 | Z27: =$D$27 -> 2.142857143 | AA27: 15 | AB27: 15 | AC27: =EXP(-($D$16)*$D$13)*(AC28) -> 10.00440867 | AE27: =MAX(AN27-AC27,0) -> 63.0738468 | AF27: =$D$27 -> 2.142857143 | AG27: =EXP(-($D$16)*$D$13)*(AG28) -> 10.00440867 | AI27: =IF(AH27="Abandon",W27,) -> 0 | AK27: =O27 -> 0 | AL27: =P27 -> 1.75 | AM27: =IF(W27>0,IF(AB27=0,AL27,0),0) -> 0 | AN27: =IF(W27=$D$14*$D$12,IF(AM27+(AL28*$D$18)/(($D$16*$D$13)-($D$8*$D$13))<0,AM27,AM27+(AL28*$D$18)/(($D$16*$D$13)-($D$8*$D$13))),IF(AM27=0,EXP(-($D$16)*$D$13)*AN28+AM27,EXP(-($D$16)*$D$13)*AN28+AM27)) -> 73.07825548 | AT27: =X27 -> 0 | AU27: =X27 -> 0 | AV27: 0 | AW27: 2.142857143 | AX27: 15 | AY27: 15 | AZ27: =EXP(-($D$16)*$D$13)*(AZ28) -> 10.88995891 | BB27: =MAX(BK27-AZ27,0) -> 40.9492358 | BC27: =$D$27 -> 2.142857143 | BD27: =EXP(-($D$16)*$D$13)*(BD28) -> 10.88995891 | BF27: =IF(BE27="Abandon",AT27,) -> 0 | BH27: =AK27 -> 0 | BI27: 1.75 | BJ27: =IF(AT27>0,IF(AY27=0,BI27,0),0) -> 0 | BK27: =IF(AT27=$D$14*$D$12,IF(BJ27+(BI28*$D$18)/(($D$16*$D$13)-($D$8*$D$13))<0,BJ27,BJ27+(BI28*$D$18)/(($D$16*$D$13)-($D$8*$D$13))),IF(BJ27=0,EXP(-($D$16)*$D$13)*BK28+BJ27,EXP(-($D$16)*$D$13)*BK28+BJ27)) -> 51.83919472 | BP27: =AT27 -> 0 | BQ27: 0 | BR27: 0 | BS27: 2.142857143 | BT27: 15 | BU27: 15 | BV27: =EXP(-($D$16)*$D$13)*(BV28) -> 9.797539038 | BX27: =MAX(CG27-BV27,0) -> 15.09612902 | BY27: =$D$27 -> 2.142857143 | BZ27: =EXP(-($D$16)*$D$13)*(BZ28) -> 9.797539038 | CB27: =IF(CA27="Abandon",BP27,) -> 0 | CD27: =BH27 -> 0 | CE27: 1.75 | CF27: =IF(BP27>0,IF(BU27=0,CE27,0),0) -> 0 | CG27: =IF(BP27=$D$14*$D$12,IF(CF27+(CE28*$D$18)/(($D$16*$D$13)-($D$8*$D$13))<0,CF27,CF27+(CE28*$D$18)/(($D$16*$D$13)-($D$8*$D$13))),IF(CF27=0,EXP(-($D$16)*$D$13)*CG28+CF27,EXP(-($D$16)*$D$13)*CG28+CF27)) -> 24.89366805 | CL27: =BP27 -> 0 | CM27: 0 | CN27: 0 | CO27: =$D$27 -> 2.142857143 | CP27: 15 | CQ27: 15 | CR27: =EXP(-($D$16)*$D$13)*(CR28) -> 9.778380768 | CT27: =MAX(DC27-CR27,0) -> 26.00999233 | CU27: =$D$27 -> 2.142857143 | CV27: =EXP(-($D$16)*$D$13)*(CV28) -> 9.778380768 | CX27: =IF(CW27="Abandon",CL27,) -> 0 | CZ27: =CD27 -> 0 | DA27: 1.75 | DB27: =IF(CL27<=CZ$24,0,IF(AND(CL27>0,$D$19=1),DA27,IF(AND(CL27>0,CL27<=$E$19*$D$12+CZ$24),DA27,0))) -> 0 | DC27: =IF(CL27=$D$14*$D$12,IF(DB27+(DA28*$D$18)/(($D$16*$D$13)-($D$8*$D$13))<0,DB27,DB27+(DA28*$D$18)/(($D$16*$D$13)-($D$8*$D$13))),IF(DB27=0,EXP(-($D$16)*$D$13)*DC28+DB27,EXP(-($D$16)*$D$13)*DC28+DB27)) -> 35.7883731 | DH27: =CL27 -> 0 | DI27: 0 | DJ27: 0 | DK27: =$D$27 -> 2.142857143 | DL27: 15 | DM27: 15 | DN27: =EXP(-($D$16)*$D$13)*(DN28) -> 9.778380768 | DP27: =MAX(DY27-DN27,0) -> 28.95155532 | DQ27: =$D$27 -> 2.142857143 | DR27: =EXP(-($D$16)*$D$13)*(DR28) -> 9.778380768 | DT27: =IF(DS27="Abandon",DH27,) -> 0 | DV27: =CZ27 -> 0 | DW27: 1.75 | DX27: =IF(DH27<=DV$24,0,IF(AND(DH27>0,$D$19=1),DW27,IF(AND(DH27>0,DH27<=$E$19*$D$12+DV$24),DW27,0))) -> 0 | DY27: =IF(DH27=$D$14*$D$12,IF(DX27+(DW28*$D$18)/(($D$16*$D$13)-($D$8*$D$13))<0,DX27,DX27+(DW28*$D$18)/(($D$16*$D$13)-($D$8*$D$13))),IF(DX27=0,EXP(-($D$16)*$D$13)*DY28+DX27,EXP(-($D$16)*$D$13)*DY28+DX27)) -> 38.72993609 | ED27: =DH27 -> 0 | EE27: 0 | EF27: 0 | EG27: =$D$27 -> 2.142857143 | EH27: 15 | EI27: 15 | EJ27: =EXP(-($D$16)*$D$13)*(EJ28) -> 9.778380768 | EL27: =MAX(EU27-EJ27,0) -> 35.09533611 | EM27: =$D$27 -> 2.142857143 | EN27: =EXP(-($D$16)*$D$13)*(EN28) -> 9.778380768 | EP27: =IF(EO27="Abandon",ED27,) -> 0 | ER27: =DV27 -> 0 | ES27: 1.75 | ET27: =IF(ED27<=ER$24,0,IF(AND(ED27>0,$D$19=1),ES27,IF(AND(ED27>0,ED27<=$E$19*$D$12+ER$24),ES27,0))) -> 0 | EU27: =IF(ED27=$D$14*$D$12,IF(ET27+(ES28*$D$18)/(($D$16*$D$13)-($D$8*$D$13))<0,ET27,ET27+(ES28*$D$18)/(($D$16*$D$13)-($D$8*$D$13))),IF(ET27=0,EXP(-($D$16)*$D$13)*EU28+ET27,EXP(-($D$16)*$D$13)*EU28+ET27)) -> 44.87371688 | EZ27: =ED27 -> 0 | FA27: 0 | FB27: 0 | FC27: =$D$27 -> 2.142857143 | FD27: 15 | FE27: 15 | FF27: =EXP(-($D$16)*$D$13)*(FF28) -> 9.778380768 | FH27: =MAX(FQ27-FF27,0) -> 37.85986757 | FI27: =$D$27 -> 2.142857143 | FJ27: =EXP(-($D$16)*$D$13)*(FJ28) -> 9.778380768 | FL27: =IF(FK27="Abandon",EZ27,) -> 0 | FN27: =ER27 -> 0 | FO27: 1.75 | FP27: =IF(EZ27<=FN$24,0,IF(AND(EZ27>0,$D$19=1),FO27,IF(AND(EZ27>0,EZ27<=$E$19*$D$12+FN$24),FO27,0))) -> 0 | FQ27: =IF(EZ27=$D$14*$D$12,IF(FP27+(FO28*$D$18)/(($D$16*$D$13)-($D$8*$D$13))<0,FP27,FP27+(FO28*$D$18)/(($D$16*$D$13)-($D$8*$D$13))),IF(FP27=0,EXP(-($D$16)*$D$13)*FQ28+FP27,EXP(-($D$16)*$D$13)*FQ28+FP27)) -> 47.63824833 | FV27: =EZ27 -> 0 | FW27: =FA27 -> 0 | FX27: =FB27 -> 0 | FY27: =$D$27 -> 2.142857143 | FZ27: 15 | GA27: 15 | GB27: =EXP(-($D$16)*$D$13)*(GB28) -> 9.778380768 | GD27: =MAX(GM27-GB27,0) -> 29.15358672 | GE27: =$D$27 -> 2.142857143 | GF27: =EXP(-($D$16)*$D$13)*(GF28) -> 9.778380768 | GH27: =IF(GG27="Abandon",FV27,) -> 0 | GJ27: =FN27 -> 0 | GK27: =FO27 -> 1.75 | GL27: =IF(FV27<=GJ$24,0,IF(AND(FV27>0,$D$19=1),GK27,IF(AND(FV27>0,FV27<=$E$19*$D$12+GJ$24),GK27,0))) -> 0 | GM27: =IF(FV27=$D$14*$D$12,IF(GL27+(GK28*$D$18)/(($D$16*$D$13)-($D$8*$D$13))<0,GL27,GL27+(GK28*$D$18)/(($D$16*$D$13)-($D$8*$D$13))),IF(GL27=0,EXP(-($D$16)*$D$13)*GM28+GL27,EXP(-($D$16)*$D$13)*GM28+GL27)) -> 38.93196749 | GR27: =FV27 -> 0 | GS27: =FW27 -> 0 | GT27: =FX27 -> 0 | GU27: =$D$27 -> 2.142857143 | GV27: 15 | GW27: 15 | GX27: =EXP(-($D$16)*$D$13)*(GX28) -> 9.778380768 | GZ27: =MAX(HI27-GX27,0) -> 31.22859629 | HA27: =$D$27 -> 2.142857143 | HB27: =EXP(-($D$16)*$D$13)*(HB28) -> 9.778380768 | HD27: =IF(HC27="Abandon",GR27,) -> 0 | HF27: =GJ27 -> 0 | HG27: =GK27 -> 1.75 | HH27: =IF(GR27<=HF$24,0,IF(AND(GR27>0,$D$19=1),HG27,IF(AND(GR27>0,GR27<=$E$19*$D$12+HF$24),HG27,0))) -> 0 | HI27: =IF(GR27=$D$14*$D$12,IF(HH27+(HG28*$D$18)/(($D$16*$D$13)-($D$8*$D$13))<0,HH27,HH27+(HG28*$D$18)/(($D$16*$D$13)-($D$8*$D$13))),IF(HH27=0,EXP(-($D$16)*$D$13)*HI28+HH27,EXP(-($D$16)*$D$13)*HI28+HH27)) -> 41.00697705 | HN27: =GR27 -> 0 | HO27: =GS27 -> 0 | HP27: =GT27 -> 0 | HQ27: =$D$27 -> 2.142857143 | HR27: 15 | HS27: 15 | HT27: =EXP(-($D$16)*$D$13)*(HT28) -> 9.778380768 | HV27: =MAX(IE27-HT27,0) -> 30.22704329 | HW27: =$D$27 -> 2.142857143 | HX27: =EXP(-($D$16)*$D$13)*(HX28) -> 9.778380768 | HZ27: =IF(HY27="Abandon",HN27,) -> 0 | IB27: =HF27 -> 0 | IC27: =HG27 -> 1.75 | ID27: =IF(HN27<=IB$24,0,IF(AND(HN27>0,$D$19=1),IC27,IF(AND(HN27>0,HN27<=$E$19*$D$12+IB$24),IC27,0))) -> 0 | IE27: =IF(HN27=$D$14*$D$12,IF(ID27+(IC28*$D$18)/(($D$16*$D$13)-($D$8*$D$13))<0,ID27,ID27+(IC28*$D$18)/(($D$16*$D$13)-($D$8*$D$13))),IF(ID27=0,EXP(-($D$16)*$D$13)*IE28+ID27,EXP(-($D$16)*$D$13)*IE28+ID27)) -> 40.00542405 | IJ27: =HN27 -> 0 | IK27: =HO27 -> 0 | IL27: =HP27 -> 0 | IM27: =$D$27 -> 2.142857143 | IN27: 15 | IO27: 15 | IP27: =EXP(-($D$16)*$D$13)*(IP28) -> 9.778380768 | IR27: =MAX(JA27-IP27,0) -> 11.9808975 | IS27: =$D$27 -> 2.142857143 | IT27: =EXP(-($D$16)*$D$13)*(IT28) -> 9.778380768 | IV27: =IF(IU27="Abandon",IJ27,) -> 0 | IX27: =IB27 -> 0 | IY27: =IC27 -> 1.75 | IZ27: =IF(IJ27<=IX$24,0,IF(AND(IJ27>0,$D$19=1),IY27,IF(AND(IJ27>0,IJ27<=$E$19*$D$12+IX$24),IY27,0))) -> 0 | JA27: =IF(IJ27=$D$14*$D$12,IF(IZ27+(IY28*$D$18)/(($D$16*$D$13)-($D$8*$D$13))<0,IZ27,IZ27+(IY28*$D$18)/(($D$16*$D$13)-($D$8*$D$13))),IF(IZ27=0,EXP(-($D$16)*$D$13)*JA28+IZ27,EXP(-($D$16)*$D$13)*JA28+IZ27)) -> 21.75927827 | JF27: =IJ27 -> 0 | JG27: =IK27 -> 0 | JH27: =IL27 -> 0 | JI27: =$D$27 -> 2.142857143 | JJ27: 15 | JK27: 15 | JL27: =EXP(-($D$16)*$D$13)*(JL28) -> 9.778380768 | JN27: =MAX(JW27-JL27,0) -> 12.80123969 | JO27: =$D$27 -> 2.142857143 | JP27: =EXP(-($D$16)*$D$13)*(JP28) -> 9.778380768 | JR27: =IF(JQ27="Abandon",JF27,) -> 0 | JT27: =IX27 -> 0 | JU27: =IY27 -> 1.75 | JV27: =IF(JF27<=JT$24,0,IF(AND(JF27>0,$D$19=1),JU27,IF(AND(JF27>0,JF27<=$E$19*$D$12+JT$24),JU27,0))) -> 0 | JW27: =IF(JF27=$D$14*$D$12,IF(JV27+(JU28*$D$18)/(($D$16*$D$13)-($D$8*$D$13))<0,JV27,JV27+(JU28*$D$18)/(($D$16*$D$13)-($D$8*$D$13))),IF(JV27=0,EXP(-($D$16)*$D$13)*JW28+JV27,EXP(-($D$16)*$D$13)*JW28+JV27)) -> 22.57962046 | KB27: =JF27 -> 0 | KC27: =JG27 -> 0 | KD27: =JH27 -> 0 | KE27: =$D$27 -> 2.142857143 | KF27: 15 | KG27: 15 | KH27: =EXP(-($D$16)*$D$13)*(KH28) -> 9.778380768 | KJ27: =MAX(KS27-KH27,0) -> 24.69522661 | KK27: =$D$27 -> 2.142857143 | KL27: =EXP(-($D$16)*$D$13)*(KL28) -> 9.778380768 | KN27: =IF(KM27="Abandon",KB27,) -> 0 | KP27: =JT27 -> 0 | KQ27: =JU27 -> 1.75 | KR27: =IF(KB27<=KP$24,0,IF(AND(KB27>0,$D$19=1),KQ27,IF(AND(KB27>0,KB27<=$E$19*$D$12+KP$24),KQ27,0))) -> 0 | KS27: =IF(KB27=$D$14*$D$12,IF(KR27+(KQ28*$D$18)/(($D$16*$D$13)-($D$8*$D$13))<0,KR27,KR27+(KQ28*$D$18)/(($D$16*$D$13)-($D$8*$D$13))),IF(KR27=0,EXP(-($D$16)*$D$13)*KS28+KR27,EXP(-($D$16)*$D$13)*KS28+KR27)) -> 34.47360737 | KX27: =KB27 -> 0 | KY27: =KC27 -> 0 | KZ27: =KD27 -> 0 | LA27: =$D$27 -> 2.142857143 | LB27: 15 | LC27: 15 | LD27: =EXP(-($D$16)*$D$13)*(LD28) -> 9.778380768 | LF27: =MAX(LO27-LD27,0) -> 14.99216104 | LG27: =$D$27 -> 2.142857143 | LH27: =EXP(-($D$16)*$D$13)*(LH28) -> 9.778380768 | LJ27: =IF(LI27="Abandon",KX27,) -> 0 | LL27: =KP27 -> 0 | LM27: =KQ27 -> 1.75 | LN27: =IF(KX27<=LL$24,0,IF(AND(KX27>0,$D$19=1),LM27,IF(AND(KX27>0,KX27<=$E$19*$D$12+LL$24),LM27,0))) -> 0 | LO27: =IF(KX27=$D$14*$D$12,IF(LN27+(LM28*$D$18)/(($D$16*$D$13)-($D$8*$D$13))<0,LN27,LN27+(LM28*$D$18)/(($D$16*$D$13)-($D$8*$D$13))),IF(LN27=0,EXP(-($D$16)*$D$13)*LO28+LN27,EXP(-($D$16)*$D$13)*LO28+LN27)) -> 24.77054181 | LT27: =KX27 -> 0 | LU27: =KY27 -> 0 | LV27: =KZ27 -> 0 | LW27: =$D$27 -> 2.142857143 | LX27: 15 | LY27: 15 | LZ27: =EXP(-($D$16)*$D$13)*(LZ28) -> 9.778380768 | MB27: =MAX(MK27-LZ27,0) -> 22.98066546 | MC27: =$D$27 -> 2.142857143 | MD27: =EXP(-($D$16)*$D$13)*(MD28) -> 9.778380768 | MF27: =IF(ME27="Abandon",LT27,) -> 0 | MH27: =LL27 -> 0 | MI27: =LM27 -> 1.75 | MJ27: =IF(LT27<=MH$24,0,IF(AND(LT27>0,$D$19=1),MI27,IF(AND(LT27>0,LT27<=$E$19*$D$12+MH$24),MI27,0))) -> 0 | MK27: =IF(LT27=$D$14*$D$12,IF(MJ27+(MI28*$D$18)/(($D$16*$D$13)-($D$8*$D$13))<0,MJ27,MJ27+(MI28*$D$18)/(($D$16*$D$13)-($D$8*$D$13))),IF(MJ27=0,EXP(-($D$16)*$D$13)*MK28+MJ27,EXP(-($D$16)*$D$13)*MK28+MJ27)) -> 32.75904623 | MP27: =LT27 -> 0 | MQ27: =LU27 -> 0 | MR27: =LV27 -> 0 | MS27: =$D$27 -> 2.142857143 | MT27: 15 | MU27: 15 | MV27: =EXP(-($D$16)*$D$13)*(MV28) -> 9.778380768 | MX27: =MAX(NG27-MV27,0) -> 19.37568016 | MY27: =$D$27 -> 2.142857143 | MZ27: =EXP(-($D$16)*$D$13)*(MZ28) -> 9.778380768 | NB27: =IF(NA27="Abandon",MP27,) -> 0 | ND27: =MH27 -> 0 | NE27: =MI27 -> 1.75 | NF27: =IF(MP27<=ND$24,0,IF(AND(MP27>0,$D$19=1),NE27,IF(AND(MP27>0,MP27<=$E$19*$D$12+ND$24),NE27,0))) -> 0 | NG27: =IF(MP27=$D$14*$D$12,IF(NF27+(NE28*$D$18)/(($D$16*$D$13)-($D$8*$D$13))<0,NF27,NF27+(NE28*$D$18)/(($D$16*$D$13)-($D$8*$D$13))),IF(NF27=0,EXP(-($D$16)*$D$13)*NG28+NF27,EXP(-($D$16)*$D$13)*NG28+NF27)) -> 29.15406093 | NL27: =MP27 -> 0 | NM27: =MQ27 -> 0 | NN27: =MR27 -> 0 | NO27: =$D$27 -> 2.142857143 | NP27: 15 | NQ27: 15 | NR27: =EXP(-($D$16)*$D$13)*(NR28) -> 9.778380768 | NT27: =MAX(OC27-NR27,0) -> 28.74762286 | NU27: =$D$27 -> 2.142857143 | NV27: =EXP(-($D$16)*$D$13)*(NV28) -> 9.778380768 | NX27: =IF(NW27="Abandon",NL27,) -> 0 | NZ27: =ND27 -> 0 | OA27: =NE27 -> 1.75 | OB27: =IF(NL27<=NZ$24,0,IF(AND(NL27>0,$D$19=1),OA27,IF(AND(NL27>0,NL27<=$E$19*$D$12+NZ$24),OA27,0))) -> 0 | OC27: =IF(NL27=$D$14*$D$12,IF(OB27+(OA28*$D$18)/(($D$16*$D$13)-($D$8*$D$13))<0,OB27,OB27+(OA28*$D$18)/(($D$16*$D$13)-($D$8*$D$13))),IF(OB27=0,EXP(-($D$16)*$D$13)*OC28+OB27,EXP(-($D$16)*$D$13)*OC28+OB27)) -> 38.52600363 | OH27: =NL27 -> 0 | OI27: =NM27 -> 0 | OJ27: =NN27 -> 0 | OK27: =$D$27 -> 2.142857143 | OL27: 15 | OM27: 15 | ON27: =EXP(-($D$16)*$D$13)*(ON28) -> 9.778380768 | OP27: =MAX(OY27-ON27,0) -> 24.79090065 | OQ27: =$D$27 -> 2.142857143 | OR27: =EXP(-($D$16)*$D$13)*(OR28) -> 9.778380768 | OT27: =IF(OS27="Abandon",OH27,) -> 0 | OV27: =NZ27 -> 0 | OW27: =OA27 -> 1.75 | OX27: =IF(OH27<=OV$24,0,IF(AND(OH27>0,$D$19=1),OW27,IF(AND(OH27>0,OH27<=$E$19*$D$12+OV$24),OW27,0))) -> 0 | OY27: =IF(OH27=$D$14*$D$12,IF(OX27+(OW28*$D$18)/(($D$16*$D$13)-($D$8*$D$13))<0,OX27,OX27+(OW28*$D$18)/(($D$16*$D$13)-($D$8*$D$13))),IF(OX27=0,EXP(-($D$16)*$D$13)*OY28+OX27,EXP(-($D$16)*$D$13)*OY28+OX27)) -> 34.56928142 | PD27: =OH27 -> 0 | PE27: 0 | PF27: 0 | PG27: =$D$27 -> 2.142857143 | PH27: 15 | PI27: 15 | PJ27: =EXP(-($D$16)*$D$13)*(PJ28) -> 9.778380768 | PL27: =MAX(PU27-PJ27,0) -> 24.25192041 | PM27: =$D$27 -> 2.142857143 | PN27: =EXP(-($D$16)*$D$13)*(PN28) -> 9.778380768 | PP27: =IF(PO27="Abandon",PD27,) -> 0 | PR27: =OV27 -> 0 | PS27: =OW27 -> 1.75 | PT27: =IF(PD27<=PR$24,0,IF(AND(PD27>0,$D$19=1),PS27,IF(AND(PD27>0,PD27<=$E$19*$D$12+PR$24),PS27,0))) -> 0 | PU27: =IF(PD27=$D$14*$D$12,IF(PT27+(PS28*$D$18)/(($D$16*$D$13)-($D$8*$D$13))<0,PT27,PT27+(PS28*$D$18)/(($D$16*$D$13)-($D$8*$D$13))),IF(PT27=0,EXP(-($D$16)*$D$13)*PU28+PT27,EXP(-($D$16)*$D$13)*PU28+PT27)) -> 34.03030118 | PZ27: =PD27 -> 0 | QA27: =PE27 -> 0 | QB27: =PF27 -> 0 | QC27: =$D$27 -> 2.142857143 | QD27: 15 | QE27: 15 | QF27: =EXP(-($D$16)*$D$13)*(QF28) -> 9.778380768 | QH27: =MAX(QQ27-QF27,0) -> 22.70403729 | QI27: =$D$27 -> 2.142857143 | QJ27: =EXP(-($D$16)*$D$13)*(QJ28) -> 9.778380768 | QL27: =IF(QK27="Abandon",PZ27,) -> 0 | QN27: =PR27 -> 0 | QO27: =PS27 -> 1.75 | QP27: =IF(PZ27<=QN$24,0,IF(AND(PZ27>0,$D$19=1),QO27,IF(AND(PZ27>0,PZ27<=$E$19*$D$12+QN$24),QO27,0))) -> 0 | QQ27: =IF(PZ27=$D$14*$D$12,IF(QP27+(QO28*$D$18)/(($D$16*$D$13)-($D$8*$D$13))<0,QP27,QP27+(QO28*$D$18)/(($D$16*$D$13)-($D$8*$D$13))),IF(QP27=0,EXP(-($D$16)*$D$13)*QQ28+QP27,EXP(-($D$16)*$D$13)*QQ28+QP27)) -> 32.48241806 | QV27: =PZ27 -> 0 | QW27: =QA27 -> 0 | QX27: =QB27 -> 0 | QY27: =$D$27 -> 2.142857143 | QZ27: =QD27 -> 15 | RA27: =QE27 -> 15 | RB27: =EXP(-($D$16)*$D$13)*(RB28) -> 9.778380768 | RD27: =MAX(RM27-RB27,0) -> 24.80592384 | RE27: =$D$27 -> 2.142857143 | RF27: =EXP(-($D$16)*$D$13)*(RF28) -> 9.778380768 | RH27: =IF(RG27="Abandon",QV27,) -> 0 | RJ27: =QN27 -> 0 | RK27: =QO27 -> 1.75 | RL27: =IF(QV27<=RJ$24,0,IF(AND(QV27>0,$D$19=1),RK27,IF(AND(QV27>0,QV27<=$E$19*$D$12+RJ$24),RK27,0))) -> 0 | RM27: =IF(QV27=$D$14*$D$12,IF(RL27+(RK28*$D$18)/(($D$16*$D$13)-($D$8*$D$13))<0,RL27,RL27+(RK28*$D$18)/(($D$16*$D$13)-($D$8*$D$13))),IF(RL27=0,EXP(-($D$16)*$D$13)*RM28+RL27,EXP(-($D$16)*$D$13)*RM28+RL27)) -> 34.58430461 | RR27: =QV27 -> 0 | RS27: =QW27 -> 0 | RT27: =QX27 -> 0 | RU27: =$D$27 -> 2.142857143 | RV27: =QZ27 -> 15 | RW27: =RA27 -> 15 | RX27: =EXP(-($D$16)*$D$13)*(RX28) -> 9.778380768 | RZ27: =MAX(SI27-RX27,0) -> 30.35535054 | SA27: =$D$27 -> 2.142857143 | SB27: =EXP(-($D$16)*$D$13)*(SB28) -> 9.778380768 | SD27: =IF(SC27="Abandon",RR27,) -> 0 | SF27: =RJ27 -> 0 | SG27: =RK27 -> 1.75 | SH27: =IF(RR27<=SF$24,0,IF(AND(RR27>0,$D$19=1),SG27,IF(AND(RR27>0,RR27<=$E$19*$D$12+SF$24),SG27,0))) -> 0 | SI27: =IF(RR27=$D$14*$D$12,IF(SH27+(SG28*$D$18)/(($D$16*$D$13)-($D$8*$D$13))<0,SH27,SH27+(SG28*$D$18)/(($D$16*$D$13)-($D$8*$D$13))),IF(SH27=0,EXP(-($D$16)*$D$13)*SI28+SH27,EXP(-($D$16)*$D$13)*SI28+SH27)) -> 40.1337313 | SN27: =RR27 -> 0 | SO27: =RS27 -> 0 | SP27: =RT27 -> 0 | SQ27: =$D$27 -> 2.142857143 | SR27: =RV27 -> 15 | SS27: =RW27 -> 15 | ST27: =EXP(-($D$16)*$D$13)*(ST28) -> 9.778380768 | SV27: =MAX(TE27-ST27,0) -> 32.11281279 | SW27: =$D$27 -> 2.142857143 | SX27: =EXP(-($D$16)*$D$13)*(SX28) -> 9.778380768 | SZ27: =IF(SY27="Abandon",SN27,) -> 0 | TB27: =SF27 -> 0 | TC27: =SG27 -> 1.75 | TD27: =IF(SN27<=TB$24,0,IF(AND(SN27>0,$D$19=1),TC27,IF(AND(SN27>0,SN27<=$E$19*$D$12+TB$24),TC27,0))) -> 0 | TE27: =IF(SN27=$D$14*$D$12,IF(TD27+(TC28*$D$18)/(($D$16*$D$13)-($D$8*$D$13))<0,TD27,TD27+(TC28*$D$18)/(($D$16*$D$13)-($D$8*$D$13))),IF(TD27=0,EXP(-($D$16)*$D$13)*TE28+TD27,EXP(-($D$16)*$D$13)*TE28+TD27)) -> 41.89119355 | TJ27: =SN27 -> 0 | TK27: =SO27 -> 0 | TL27: =SP27 -> 0 | TM27: =$D$27 -> 2.142857143 | TN27: 15 | TO27: 15 | TP27: =EXP(-($D$16)*$D$13)*(TP28) -> 9.778380768 | TR27: =MAX(UA27-TP27,0) -> 28.22587647 | TS27: =$D$27 -> 2.142857143 | TT27: =EXP(-($D$16)*$D$13)*(TT28) -> 9.778380768 | TV27: =IF(TU27="Abandon",TJ27,) -> 0 | TX27: =TB27 -> 0 | TY27: =TC27 -> 1.75 | TZ27: =IF(TJ27<=TX$24,0,IF(AND(TJ27>0,$D$19=1),TY27,IF(AND(TJ27>0,TJ27<=$E$19*$D$12+TX$24),TY27,0))) -> 0 | UA27: =IF(TJ27=$D$14*$D$12,IF(TZ27+(TY28*$D$18)/(($D$16*$D$13)-($D$8*$D$13))<0,TZ27,TZ27+(TY28*$D$18)/(($D$16*$D$13)-($D$8*$D$13))),IF(TZ27=0,EXP(-($D$16)*$D$13)*UA28+TZ27,EXP(-($D$16)*$D$13)*UA28+TZ27)) -> 38.00425723 | UF27: =TJ27 -> 0 | UG27: =TK27 -> 0 | UH27: =TL27 -> 0 | UI27: =$D$27 -> 2.142857143 | UJ27: 15 | UK27: 15 | UL27: =EXP(-($D$16)*$D$13)*(UL28) -> 9.778380768 | UN27: =MAX(UW27-UL27,0) -> 31.55408329 | UO27: =$D$27 -> 2.142857143 | UP27: =EXP(-($D$16)*$D$13)*(UP28) -> 9.778380768 | UR27: =IF(UQ27="Abandon",UF27,) -> 0 | UT27: =TX27 -> 0 | UU27: =TY27 -> 1.75 | UV27: =IF(UF27<=UT$24,0,IF(AND(UF27>0,$D$19=1),UU27,IF(AND(UF27>0,UF27<=$E$19*$D$12+UT$24),UU27,0))) -> 0 | UW27: =IF(UF27=$D$14*$D$12,IF(UV27+(UU28*$D$18)/(($D$16*$D$13)-($D$8*$D$13))<0,UV27,UV27+(UU28*$D$18)/(($D$16*$D$13)-($D$8*$D$13))),IF(UV27=0,EXP(-($D$16)*$D$13)*UW28+UV27,EXP(-($D$16)*$D$13)*UW28+UV27)) -> 41.33246406 | VB27: =UF27 -> 0 | VC27: =UG27 -> 0 | VD27: =UH27 -> 0 | VE27: =$D$27 -> 2.142857143 | VF27: 15 | VG27: 15 | VH27: =EXP(-($D$16)*$D$13)*(VH28) -> 9.778380768 | VJ27: =MAX(VS27-VH27,0) -> 30.24555031 | VK27: =$D$27 -> 2.142857143 | VL27: =EXP(-($D$16)*$D$13)*(VL28) -> 9.778380768 | VN27: =IF(VM27="Abandon",VB27,) -> 0 | VP27: =UT27 -> 0 | VQ27: =UU27 -> 1.75 | VR27: =IF(VB27<=VP$24,0,IF(AND(VB27>0,$D$19=1),VQ27,IF(AND(VB27>0,VB27<=$E$19*$D$12+VP$24),VQ27,0))) -> 0 | VS27: =IF(VB27=$D$14*$D$12,IF(VR27+(VQ28*$D$18)/(($D$16*$D$13)-($D$8*$D$13))<0,VR27,VR27+(VQ28*$D$18)/(($D$16*$D$13)-($D$8*$D$13))),IF(VR27=0,EXP(-($D$16)*$D$13)*VS28+VR27,EXP(-($D$16)*$D$13)*VS28+VR27)) -> 40.02393108 | VX27: =VB27 -> 0 | VY27: 0 | VZ27: 0 | WA27: =$D$27 -> 2.142857143 | WB27: 15 | WC27: 15 | WD27: =EXP(-($D$16)*$D$13)*(WD28) -> 9.778380768 | WF27: =MAX(WO27-WD27,0) -> 30.4817719 | WG27: =$D$27 -> 2.142857143 | WH27: =EXP(-($D$16)*$D$13)*(WH28) -> 9.778380768 | WJ27: =IF(WI27="Abandon",VX27,) -> 0 | WL27: =VP27 -> 0 | WM27: =VQ27 -> 1.75 | WN27: =IF(VX27<=WL$24,0,IF(AND(VX27>0,$D$19=1),WM27,IF(AND(VX27>0,VX27<=$E$19*$D$12+WL$24),WM27,0))) -> 0 | WO27: =IF(VX27=$D$14*$D$12,IF(WN27+(WM28*$D$18)/(($D$16*$D$13)-($D$8*$D$13))<0,WN27,WN27+(WM28*$D$18)/(($D$16*$D$13)-($D$8*$D$13))),IF(WN27=0,EXP(-($D$16)*$D$13)*WO28+WN27,EXP(-($D$16)*$D$13)*WO28+WN27)) -> 40.26015266 | WT27: =VX27 -> 0 | WU27: 0 | WV27: 0 | WW27: =$D$27 -> 2.142857143 | WX27: 15 | WY27: 15 | WZ27: =EXP(-($D$16)*$D$13)*(WZ28) -> 9.778380768 | XB27: =MAX(XK27-WZ27,0) -> 33.44590342 | XC27: =$D$27 -> 2.142857143 | XD27: =EXP(-($D$16)*$D$13)*(XD28) -> 9.778380768 | XF27: =IF(XE27="Abandon",WT27,) -> 0 | XH27: =WL27 -> 0 | XI27: =WM27 -> 1.75 | XJ27: =IF(WT27<=XH$24,0,IF(AND(WT27>0,$D$19=1),XI27,IF(AND(WT27>0,WT27<=$E$19*$D$12+XH$24),XI27,0))) -> 0 | XK27: =IF(WT27=$D$14*$D$12,IF(XJ27+(XI28*$D$18)/(($D$16*$D$13)-($D$8*$D$13))<0,XJ27,XJ27+(XI28*$D$18)/(($D$16*$D$13)-($D$8*$D$13))),IF(XJ27=0,EXP(-($D$16)*$D$13)*XK28+XJ27,EXP(-($D$16)*$D$13)*XK28+XJ27)) -> 43.22428418 | XP27: =WT27 -> 0 | XQ27: 0 | XR27: 0 | XS27: =$D$27 -> 2.142857143 | XT27: 15 | XU27: 15 | XV27: =EXP(-($D$16)*$D$13)*(XV28) -> 9.778380768 | XX27: =MAX(YG27-XV27,0) -> 32.45984433 | XY27: =$D$27 -> 2.142857143 | XZ27: =EXP(-($D$16)*$D$13)*(XZ28) -> 9.778380768 | YB27: =IF(YA27="Abandon",XP27,) -> 0 | YD27: =XH27 -> 0 | YE27: =XI27 -> 1.75 | YF27: =IF(XP27<=YD$24,0,IF(AND(XP27>0,$D$19=1),YE27,IF(AND(XP27>0,XP27<=$E$19*$D$12+YD$24),YE27,0))) -> 0 | YG27: =IF(XP27=$D$14*$D$12,IF(YF27+(YE28*$D$18)/(($D$16*$D$13)-($D$8*$D$13))<0,YF27,YF27+(YE28*$D$18)/(($D$16*$D$13)-($D$8*$D$13))),IF(YF27=0,EXP(-($D$16)*$D$13)*YG28+YF27,EXP(-($D$16)*$D$13)*YG28+YF27)) -> 42.2382251 | YL27: =XP27 -> 0 | YM27: 0 | YN27: 0 | YO27: =$D$27 -> 2.142857143 | YP27: 15 | YQ27: 15 | YR27: =EXP(-($D$16)*$D$13)*(YR28) -> 9.778380768 | YT27: =MAX(ZC27-YR27,0) -> 30.57888185 | YU27: =$D$27 -> 2.142857143 | YV27: =EXP(-($D$16)*$D$13)*(YV28) -> 9.778380768 | YX27: =IF(YW27="Abandon",YL27,) -> 0 | YZ27: =YD27 -> 0 | ZA27: =YE27 -> 1.75 | ZB27: =IF(YL27<=YZ$24,0,IF(AND(YL27>0,$D$19=1),ZA27,IF(AND(YL27>0,YL27<=$E$19*$D$12+YZ$24),ZA27,0))) -> 0 | ZC27: =IF(YL27=$D$14*$D$12,IF(ZB27+(ZA28*$D$18)/(($D$16*$D$13)-($D$8*$D$13))<0,ZB27,ZB27+(ZA28*$D$18)/(($D$16*$D$13)-($D$8*$D$13))),IF(ZB27=0,EXP(-($D$16)*$D$13)*ZC28+ZB27,EXP(-($D$16)*$D$13)*ZC28+ZB27)) -> 40.35726262 | ZH27: =YL27 -> 0 | ZI27: 0 | ZJ27: 0 | ZK27: =$D$27 -> 2.142857143 | ZL27: 15 | ZM27: 15 | ZN27: =EXP(-($D$16)*$D$13)*(ZN28) -> 9.778380768 | ZP27: =MAX(ZY27-ZN27,0) -> 30.39645407 | ZQ27: =$D$27 -> 2.142857143 | ZR27: =EXP(-($D$16)*$D$13)*(ZR28) -> 9.778380768 | ZT27: =IF(ZS27="Abandon",ZH27,) -> 0 | ZV27: =YZ27 -> 0 | ZW27: =ZA27 -> 1.75 | ZX27: =IF(ZH27<=ZV$24,0,IF(AND(ZH27>0,$D$19=1),ZW27,IF(AND(ZH27>0,ZH27<=$E$19*$D$12+ZV$24),ZW27,0))) -> 0 | ZY27: =IF(ZH27=$D$14*$D$12,IF(ZX27+(ZW28*$D$18)/(($D$16*$D$13)-($D$8*$D$13))<0,ZX27,ZX27+(ZW28*$D$18)/(($D$16*$D$13)-($D$8*$D$13))),IF(ZX27=0,EXP(-($D$16)*$D$13)*ZY28+ZX27,EXP(-($D$16)*$D$13)*ZY28+ZX27)) -> 40.17483484 | AAD27: =ZH27 -> 0 | AAE27: 0 | AAF27: 0 | AAG27: =$D$27 -> 2.142857143 | AAH27: 15 | AAI27: 15 | AAJ27: =EXP(-($D$16)*$D$13)*(AAJ28) -> 9.778380768 | AAL27: =MAX(AAU27-AAJ27,0) -> 30.16511868 | AAM27: =$D$27 -> 2.142857143 | AAN27: =EXP(-($D$16)*$D$13)*(AAN28) -> 9.778380768 | AAP27: =IF(AAO27="Abandon",AAD27,) -> 0 | AAR27: =ZV27 -> 0 | AAS27: =ZW27 -> 1.75 | AAT27: =IF(AAD27<=AAR$24,0,IF(AND(AAD27>0,$D$19=1),AAS27,IF(AND(AAD27>0,AAD27<=$E$19*$D$12+AAR$24),AAS27,0))) -> 0 | AAU27: =IF(AAD27=$D$14*$D$12,IF(AAT27+(AAS28*$D$18)/(($D$16*$D$13)-($D$8*$D$13))<0,AAT27,AAT27+(AAS28*$D$18)/(($D$16*$D$13)-($D$8*$D$13))),IF(AAT27=0,EXP(-($D$16)*$D$13)*AAU28+AAT27,EXP(-($D$16)*$D$13)*AAU28+AAT27)) -> 39.94349945 | AAZ27: =AAD27 -> 0 | ABA27: 0 | ABB27: 0 | ABC27: =$D$27 -> 2.142857143 | ABD27: 15 | ABE27: 15 | ABF27: =EXP(-($D$16)*$D$13)*(ABF28) -> 9.778380768 | ABH27: =MAX(ABQ27-ABF27,0) -> 30.25156728 | ABI27: =$D$27 -> 2.142857143 | ABJ27: =EXP(-($D$16)*$D$13)*(ABJ28) -> 9.778380768 | ABL27: =IF(ABK27="Abandon",AAZ27,) -> 0 | ABN27: =AAR27 -> 0 | ABO27: =AAS27 -> 1.75 | ABP27: =IF(AAZ27<=ABN$24,0,IF(AND(AAZ27>0,$D$19=1),ABO27,IF(AND(AAZ27>0,AAZ27<=$E$19*$D$12+ABN$24),ABO27,0))) -> 0 | ABQ27: =IF(AAZ27=$D$14*$D$12,IF(ABP27+(ABO28*$D$18)/(($D$16*$D$13)-($D$8*$D$13))<0,ABP27,ABP27+(ABO28*$D$18)/(($D$16*$D$13)-($D$8*$D$13))),IF(ABP27=0,EXP(-($D$16)*$D$13)*ABQ28+ABP27,EXP(-($D$16)*$D$13)*ABQ28+ABP27)) -> 40.02994805 | ABV27: =AAZ27 -> 0 | ABW27: 0 | ABX27: 0 | ABY27: =$D$27 -> 2.142857143 | ABZ27: 15 | ACA27: 15 | ACB27: =EXP(-($D$16)*$D$13)*(ACB28) -> 9.778380768 | ACD27: =MAX(ACM27-ACB27,0) -> 30.25156728 | ACE27: =$D$27 -> 2.142857143 | ACF27: =EXP(-($D$16)*$D$13)*(ACF28) -> 9.778380768 | ACH27: =IF(ACG27="Abandon",ABV27,) -> 0 | ACJ27: =ABN27 -> 0 | ACK27: =ABO27 -> 1.75 | ACL27: =IF(ABV27<=ACJ$24,0,IF(AND(ABV27>0,$D$19=1),ACK27,IF(AND(ABV27>0,ABV27<=$E$19*$D$12+ACJ$24),ACK27,0))) -> 0 | ACM27: =IF(ABV27=$D$14*$D$12,IF(ACL27+(ACK28*$D$18)/(($D$16*$D$13)-($D$8*$D$13))<0,ACL27,ACL27+(ACK28*$D$18)/(($D$16*$D$13)-($D$8*$D$13))),IF(ACL27=0,EXP(-($D$16)*$D$13)*ACM28+ACL27,EXP(-($D$16)*$D$13)*ACM28+ACL27)) -> 40.02994805 | ACR27: =ABV27 -> 0 | ACS27: =ABW27 -> 0 | ACT27: =ABX27 -> 0 | ACU27: =$D$27 -> 2.142857143 | ACV27: =ABZ27 -> 15 | ACW27: =ACA27 -> 15 | ACX27: =EXP(-($D$16)*$D$13)*(ACX28) -> 9.778380768 | ACZ27: =MAX(ADI27-ACX27,0) -> 30.25156728 | ADA27: =$D$27 -> 2.142857143 | ADB27: =EXP(-($D$16)*$D$13)*(ADB28) -> 9.778380768 | ADD27: =IF(ADC27="Abandon",ACR27,) -> 0 | ADF27: =ACJ27 -> 0 | ADG27: =ACK27 -> 1.75 | ADH27: =IF(ACR27<=ADF$24,0,IF(AND(ACR27>0,$D$19=1),ADG27,IF(AND(ACR27>0,ACR27<=$E$19*$D$12+ADF$24),ADG27,0))) -> 0 | ADI27: =IF(ACR27=$D$14*$D$12,IF(ADH27+(ADG28*$D$18)/(($D$16*$D$13)-($D$8*$D$13))<0,ADH27,ADH27+(ADG28*$D$18)/(($D$16*$D$13)-($D$8*$D$13))),IF(ADH27=0,EXP(-($D$16)*$D$13)*ADI28+ADH27,EXP(-($D$16)*$D$13)*ADI28+ADH27)) -> 40.02994805 | ADN27: =ACR27 -> 0 | ADO27: =ACS27 -> 0 | ADP27: =ACT27 -> 0 | ADQ27: =$D$27 -> 2.142857143 | ADR27: =ACV27 -> 15 | ADS27: =ACW27 -> 15 | ADT27: =EXP(-($D$16)*$D$13)*(ADT28) -> 9.778380768 | ADV27: =MAX(AEE27-ADT27,0) -> 30.25156728 | ADW27: =$D$27 -> 2.142857143 | ADX27: =EXP(-($D$16)*$D$13)*(ADX28) -> 9.778380768 | ADZ27: =IF(ADY27="Abandon",ADN27,) -> 0 | AEB27: =ADF27 -> 0 | AEC27: =ADG27 -> 1.75 | AED27: =IF(ADN27<=AEB$24,0,IF(AND(ADN27>0,$D$19=1),AEC27,IF(AND(ADN27>0,ADN27<=$E$19*$D$12+AEB$24),AEC27,0))) -> 0 | AEE27: =IF(ADN27=$D$14*$D$12,IF(AED27+(AEC28*$D$18)/(($D$16*$D$13)-($D$8*$D$13))<0,AED27,AED27+(AEC28*$D$18)/(($D$16*$D$13)-($D$8*$D$13))),IF(AED27=0,EXP(-($D$16)*$D$13)*AEE28+AED27,EXP(-($D$16)*$D$13)*AEE28+AED27)) -> 40.02994805 | AEJ27: =ADN27 -> 0 | AEK27: =ADO27 -> 0 | AEL27: =ADP27 -> 0 | AEM27: =$D$27 -> 2.142857143 | AEN27: =ADR27 -> 15 | AEO27: =ADS27 -> 15 | AEP27: =EXP(-($D$16)*$D$13)*(AEP28) -> 9.778380768 | AER27: =MAX(AFA27-AEP27,0) -> 30.25156728 | AES27: =$D$27 -> 2.142857143 | AET27: =EXP(-($D$16)*$D$13)*(AET28) -> 9.778380768 | AEV27: =IF(AEU27="Abandon",AEJ27,) -> 0 | AEX27: =AEB27 -> 0 | AEY27: =AEC27 -> 1.75 | AEZ27: =IF(AEJ27<=AEX$24,0,IF(AND(AEJ27>0,$D$19=1),AEY27,IF(AND(AEJ27>0,AEJ27<=$E$19*$D$12+AEX$24),AEY27,0))) -> 0 | AFA27: =IF(AEJ27=$D$14*$D$12,IF(AEZ27+(AEY28*$D$18)/(($D$16*$D$13)-($D$8*$D$13))<0,AEZ27,AEZ27+(AEY28*$D$18)/(($D$16*$D$13)-($D$8*$D$13))),IF(AEZ27=0,EXP(-($D$16)*$D$13)*AFA28+AEZ27,EXP(-($D$16)*$D$13)*AFA28+AEZ27)) -> 40.02994805 | AFF27: =AEJ27 -> 0 | AFG27: =AEK27 -> 0 | AFH27: =AEL27 -> 0 | AFI27: =$D$27 -> 2.142857143 | AFJ27: =AEN27 -> 15 | AFK27: =AEO27 -> 15 | AFL27: =EXP(-($D$16)*$D$13)*(AFL28) -> 9.778380768 | AFN27: =MAX(AFW27-AFL27,0) -> 30.25156728 | AFO27: =$D$27 -> 2.142857143 | AFP27: =EXP(-($D$16)*$D$13)*(AFP28) -> 9.778380768 | AFR27: =IF(AFQ27="Abandon",AFF27,) -> 0 | AFT27: =AEX27 -> 0 | AFU27: =AEY27 -> 1.75 | AFV27: =IF(AFF27<=AFT$24,0,IF(AND(AFF27>0,$D$19=1),AFU27,IF(AND(AFF27>0,AFF27<=$E$19*$D$12+AFT$24),AFU27,0))) -> 0 | AFW27: =IF(AFF27=$D$14*$D$12,IF(AFV27+(AFU28*$D$18)/(($D$16*$D$13)-($D$8*$D$13))<0,AFV27,AFV27+(AFU28*$D$18)/(($D$16*$D$13)-($D$8*$D$13))),IF(AFV27=0,EXP(-($D$16)*$D$13)*AFW28+AFV27,EXP(-($D$16)*$D$13)*AFW28+AFV27)) -> 40.02994805 | AGB27: =AFF27 -> 0 | AGC27: =AFG27 -> 0 | AGD27: =AFH27 -> 0 | AGE27: =$D$27 -> 2.142857143 | AGF27: =AFJ27 -> 15 | AGG27: =AFK27 -> 15 | AGH27: =EXP(-($D$16)*$D$13)*(AGH28) -> 9.778380768 | AGJ27: =MAX(AGS27-AGH27,0) -> 30.25156728 | AGK27: =$D$27 -> 2.142857143 | AGL27: =EXP(-($D$16)*$D$13)*(AGL28) -> 9.778380768 | AGN27: =IF(AGM27="Abandon",AGB27,) -> 0 | AGP27: =AFT27 -> 0 | AGQ27: =AFU27 -> 1.75 | AGR27: =IF(AGB27<=AGP$24,0,IF(AND(AGB27>0,$D$19=1),AGQ27,IF(AND(AGB27>0,AGB27<=$E$19*$D$12+AGP$24),AGQ27,0))) -> 0 | AGS27: =IF(AGB27=$D$14*$D$12,IF(AGR27+(AGQ28*$D$18)/(($D$16*$D$13)-($D$8*$D$13))<0,AGR27,AGR27+(AGQ28*$D$18)/(($D$16*$D$13)-($D$8*$D$13))),IF(AGR27=0,EXP(-($D$16)*$D$13)*AGS28+AGR27,EXP(-($D$16)*$D$13)*AGS28+AGR27)) -> 40.02994805 | AGX27: =AGB27 -> 0 | AGY27: =AGC27 -> 0 | AGZ27: =AGD27 -> 0 | AHA27: =$D$27 -> 2.142857143 | AHB27: =AGF27 -> 15 | AHC27: =AGG27 -> 15 | AHD27: =EXP(-($D$16)*$D$13)*(AHD28) -> 9.778380768 | AHF27: =MAX(AHO27-AHD27,0) -> 30.25156728 | AHG27: =$D$27 -> 2.142857143 | AHH27: =EXP(-($D$16)*$D$13)*(AHH28) -> 9.778380768 | AHJ27: =IF(AHI27="Abandon",AGX27,) -> 0 | AHL27: =AGP27 -> 0 | AHM27: =AGQ27 -> 1.75 | AHN27: =IF(AGX27<=AHL$24,0,IF(AND(AGX27>0,$D$19=1),AHM27,IF(AND(AGX27>0,AGX27<=$E$19*$D$12+AHL$24),AHM27,0))) -> 0 | AHO27: =IF(AGX27=$D$14*$D$12,IF(AHN27+(AHM28*$D$18)/(($D$16*$D$13)-($D$8*$D$13))<0,AHN27,AHN27+(AHM28*$D$18)/(($D$16*$D$13)-($D$8*$D$13))),IF(AHN27=0,EXP(-($D$16)*$D$13)*AHO28+AHN27,EXP(-($D$16)*$D$13)*AHO28+AHN27)) -> 40.02994805 | AHT27: =AGX27 -> 0 | AHU27: =AGY27 -> 0 | AHV27: =AGZ27 -> 0 | AHW27: =$D$27 -> 2.142857143 | AHX27: =AHB27 -> 15 | AHY27: =AHC27 -> 15 | AHZ27: =EXP(-($D$16)*$D$13)*(AHZ28) -> 9.778380768 | AIB27: =MAX(AIK27-AHZ27,0) -> 30.25156728 | AIC27: =$D$27 -> 2.142857143 | AID27: =EXP(-($D$16)*$D$13)*(AID28) -> 9.778380768 | AIF27: =IF(AIE27="Abandon",AHT27,) -> 0 | AIH27: =AHL27 -> 0 | AII27: =AHM27 -> 1.75 | AIJ27: =IF(AHT27<=AIH$24,0,IF(AND(AHT27>0,$D$19=1),AII27,IF(AND(AHT27>0,AHT27<=$E$19*$D$12+AIH$24),AII27,0))) -> 0 | AIK27: =IF(AHT27=$D$14*$D$12,IF(AIJ27+(AII28*$D$18)/(($D$16*$D$13)-($D$8*$D$13))<0,AIJ27,AIJ27+(AII28*$D$18)/(($D$16*$D$13)-($D$8*$D$13))),IF(AIJ27=0,EXP(-($D$16)*$D$13)*AIK28+AIJ27,EXP(-($D$16)*$D$13)*AIK28+AIJ27)) -> 40.02994805 | AIP27: =AHT27 -> 0 | AIQ27: =AHU27 -> 0 | AIR27: =AHV27 -> 0 | AIS27: =$D$27 -> 2.142857143 | AIT27: =AHX27 -> 15 | AIU27: =AHY27 -> 15 | AIV27: =EXP(-($D$16)*$D$13)*(AIV28) -> 9.778380768 | AIX27: =MAX(AJG27-AIV27,0) -> 30.25156728 | AIY27: =$D$27 -> 2.142857143 | AIZ27: =EXP(-($D$16)*$D$13)*(AIZ28) -> 9.778380768 | AJB27: =IF(AJA27="Abandon",AIP27,) -> 0 | AJD27: =AIH27 -> 0 | AJE27: =AII27 -> 1.75 | AJF27: =IF(AIP27<=AJD$24,0,IF(AND(AIP27>0,$D$19=1),AJE27,IF(AND(AIP27>0,AIP27<=$E$19*$D$12+AJD$24),AJE27,0))) -> 0 | AJG27: =IF(AIP27=$D$14*$D$12,IF(AJF27+(AJE28*$D$18)/(($D$16*$D$13)-($D$8*$D$13))<0,AJF27,AJF27+(AJE28*$D$18)/(($D$16*$D$13)-($D$8*$D$13))),IF(AJF27=0,EXP(-($D$16)*$D$13)*AJG28+AJF27,EXP(-($D$16)*$D$13)*AJG28+AJF27)) -> 40.02994805 | AJL27: =AIP27 -> 0 | AJM27: =AIQ27 -> 0 | AJN27: =AIR27 -> 0 | AJO27: =$D$27 -> 2.142857143 | AJP27: =AIT27 -> 15 | AJQ27: =AIU27 -> 15 | AJR27: =EXP(-($D$16)*$D$13)*(AJR28) -> 9.778380768 | AJT27: =MAX(AKC27-AJR27,0) -> 30.25156728 | AJU27: =$D$27 -> 2.142857143 | AJV27: =EXP(-($D$16)*$D$13)*(AJV28) -> 9.778380768 | AJX27: =IF(AJW27="Abandon",AJL27,) -> 0 | AJZ27: =AJD27 -> 0 | AKA27: =AJE27 -> 1.75 | AKB27: =IF(AJL27<=AJZ$24,0,IF(AND(AJL27>0,$D$19=1),AKA27,IF(AND(AJL27>0,AJL27<=$E$19*$D$12+AJZ$24),AKA27,0))) -> 0 | AKC27: =IF(AJL27=$D$14*$D$12,IF(AKB27+(AKA28*$D$18)/(($D$16*$D$13)-($D$8*$D$13))<0,AKB27,AKB27+(AKA28*$D$18)/(($D$16*$D$13)-($D$8*$D$13))),IF(AKB27=0,EXP(-($D$16)*$D$13)*AKC28+AKB27,EXP(-($D$16)*$D$13)*AKC28+AKB27)) -> 40.02994805 | AKH27: =AJL27 -> 0 | AKI27: =AJM27 -> 0 | AKJ27: =AJN27 -> 0 | AKK27: =$D$27 -> 2.142857143 | AKL27: =AJP27 -> 15 | AKM27: =AJQ27 -> 15 | AKN27: =EXP(-($D$16)*$D$13)*(AKN28) -> 9.778380768 | AKP27: =MAX(AKY27-AKN27,0) -> 30.25156728 | AKQ27: =$D$27 -> 2.142857143 | AKR27: =EXP(-($D$16)*$D$13)*(AKR28) -> 9.778380768 | AKT27: =IF(AKS27="Abandon",AKH27,) -> 0 | AKU27: =IF(AKM27>0,RANDBETWEEN(0,1000),1000) -> 816 | AKV27: =AJZ27 -> 0 | AKW27: =AKA27 -> 1.75 | AKX27: =IF(AKH27<=AKV$24,0,IF(AND(AKH27>0,$D$19=1),AKW27,IF(AND(AKH27>0,AKH27<=$E$19*$D$12+AKV$24),AKW27,0))) -> 0 | AKY27: =IF(AKH27=$D$14*$D$12,IF(AKX27+(AKW28*$D$18)/(($D$16*$D$13)-($D$8*$D$13))<0,AKX27,AKX27+(AKW28*$D$18)/(($D$16*$D$13)-($D$8*$D$13))),IF(AKX27=0,EXP(-($D$16)*$D$13)*AKY28+AKX27,EXP(-($D$16)*$D$13)*AKY28+AKX27)) -> 40.02994805 | ALD27: =AKH27 -> 0 | ALE27: =AKI27 -> 0 | ALF27: =AKJ27 -> 0 | ALG27: =$D$27 -> 2.142857143 | ALH27: =AKL27 -> 15 | ALI27: =AKM27 -> 15 | ALJ27: =EXP(-($D$16)*$D$13)*(ALJ28) -> 9.778380768 | ALL27: =MAX(ALU27-ALJ27,0) -> 30.25156728 | ALM27: =$D$27 -> 2.142857143 | ALN27: =EXP(-($D$16)*$D$13)*(ALN28) -> 9.778380768 | ALP27: =IF(ALO27="Abandon",ALD27,) -> 0 | ALQ27: =IF(ALI27>0,RANDBETWEEN(0,1000),1000) -> 372 | ALR27: =AKV27 -> 0 | ALS27: =AKW27 -> 1.75 | ALT27: =IF(ALD27<=ALR$24,0,IF(AND(ALD27>0,$D$19=1),ALS27,IF(AND(ALD27>0,ALD27<=$E$19*$D$12+ALR$24),ALS27,0))) -> 0 | ALU27: =IF(ALD27=$D$14*$D$12,IF(ALT27+(ALS28*$D$18)/(($D$16*$D$13)-($D$8*$D$13))<0,ALT27,ALT27+(ALS28*$D$18)/(($D$16*$D$13)-($D$8*$D$13))),IF(ALT27=0,EXP(-($D$16)*$D$13)*ALU28+ALT27,EXP(-($D$16)*$D$13)*ALU28+ALT27)) -> 40.02994805 | ALZ27: =ALD27 -> 0 | AMA27: =ALE27 -> 0 | AMB27: =ALF27 -> 0 | AMC27: =$D$27 -> 2.142857143 | AMD27: =ALH27 -> 15 | AME27: =ALI27 -> 15 | AMF27: =EXP(-($D$16)*$D$13)*(AMF28) -> 9.778380768 | AMH27: =MAX(AMQ27-AMF27,0) -> 30.25156728 | AMI27: =$D$27 -> 2.142857143 | AMJ27: =EXP(-($D$16)*$D$13)*(AMJ28) -> 9.778380768 | AML27: =IF(AMK27="Abandon",ALZ27,) -> 0 | AMM27: =IF(AME27>0,RANDBETWEEN(0,1000),1000) -> 533 | AMN27: =ALR27 -> 0 | AMO27: =ALS27 -> 1.75 | AMP27: =IF(ALZ27<=AMN$24,0,IF(AND(ALZ27>0,$D$19=1),AMO27,IF(AND(ALZ27>0,ALZ27<=$E$19*$D$12+AMN$24),AMO27,0))) -> 0 | AMQ27: =IF(ALZ27=$D$14*$D$12,IF(AMP27+(AMO28*$D$18)/(($D$16*$D$13)-($D$8*$D$13))<0,AMP27,AMP27+(AMO28*$D$18)/(($D$16*$D$13)-($D$8*$D$13))),IF(AMP27=0,EXP(-($D$16)*$D$13)*AMQ28+AMP27,EXP(-($D$16)*$D$13)*AMQ28+AMP27)) -> 40.02994805 | AMV27: =ALZ27 -> 0 | AMW27: =AMA27 -> 0 | AMX27: =AMB27 -> 0 | AMY27: =$D$27 -> 2.142857143 | AMZ27: =AMD27 -> 15 | ANA27: =AME27 -> 15 | ANB27: =EXP(-($D$16)*$D$13)*(ANB28) -> 9.778380768 | AND27: =MAX(ANM27-ANB27,0) -> 30.25156728 | ANE27: =$D$27 -> 2.142857143 | ANF27: =EXP(-($D$16)*$D$13)*(ANF28) -> 9.778380768 | ANH27: =IF(ANG27="Abandon",AMV27,) -> 0 | ANI27: =IF(ANA27>0,RANDBETWEEN(0,1000),1000) -> 348 | ANJ27: =AMN27 -> 0 | ANK27: =AMO27 -> 1.75 | ANL27: =IF(AMV27<=ANJ$24,0,IF(AND(AMV27>0,$D$19=1),ANK27,IF(AND(AMV27>0,AMV27<=$E$19*$D$12+ANJ$24),ANK27,0))) -> 0 | ANM27: =IF(AMV27=$D$14*$D$12,IF(ANL27+(ANK28*$D$18)/(($D$16*$D$13)-($D$8*$D$13))<0,ANL27,ANL27+(ANK28*$D$18)/(($D$16*$D$13)-($D$8*$D$13))),IF(ANL27=0,EXP(-($D$16)*$D$13)*ANM28+ANL27,EXP(-($D$16)*$D$13)*ANM28+ANL27)) -> 40.02994805 | ANR27: =AMV27 -> 0 | ANS27: =AMW27 -> 0 | ANT27: =AMX27 -> 0 | ANU27: =$D$27 -> 2.142857143 | ANV27: =AMZ27 -> 15 | ANW27: =ANA27 -> 15 | ANX27: =EXP(-($D$16)*$D$13)*(ANX28) -> 9.778380768 | ANZ27: =MAX(AOI27-ANX27,0) -> 30.25156728 | AOA27: =$D$27 -> 2.142857143 | AOB27: =EXP(-($D$16)*$D$13)*(AOB28) -> 9.778380768 | AOD27: =IF(AOC27="Abandon",ANR27,) -> 0 | AOE27: =IF(ANW27>0,RANDBETWEEN(0,1000),1000) -> 626 | AOF27: =ANJ27 -> 0 | AOG27: =ANK27 -> 1.75 | AOH27: =IF(ANR27<=AOF$24,0,IF(AND(ANR27>0,$D$19=1),AOG27,IF(AND(ANR27>0,ANR27<=$E$19*$D$12+AOF$24),AOG27,0))) -> 0 | AOI27: =IF(ANR27=$D$14*$D$12,IF(AOH27+(AOG28*$D$18)/(($D$16*$D$13)-($D$8*$D$13))<0,AOH27,AOH27+(AOG28*$D$18)/(($D$16*$D$13)-($D$8*$D$13))),IF(AOH27=0,EXP(-($D$16)*$D$13)*AOI28+AOH27,EXP(-($D$16)*$D$13)*AOI28+AOH27)) -> 40.02994805 | AON27: =ANR27 -> 0 | AOO27: =ANS27 -> 0 | AOP27: =ANT27 -> 0 | AOQ27: =$D$27 -> 2.142857143 | AOR27: =ANV27 -> 15 | AOS27: =ANW27 -> 15 | AOT27: =EXP(-($D$16)*$D$13)*(AOT28) -> 9.778380768 | AOV27: =MAX(APE27-AOT27,0) -> 30.25156728 | AOW27: =$D$27 -> 2.142857143 | AOX27: =EXP(-($D$16)*$D$13)*(AOX28) -> 9.778380768 | AOZ27: =IF(AOY27="Abandon",AON27,) -> 0 | APA27: =IF(AOS27>0,RANDBETWEEN(0,1000),1000) -> 486 | APB27: =AOF27 -> 0 | APC27: =AOG27 -> 1.75 | APD27: =IF(AON27<=APB$24,0,IF(AND(AON27>0,$D$19=1),APC27,IF(AND(AON27>0,AON27<=$E$19*$D$12+APB$24),APC27,0))) -> 0 | APE27: =IF(AON27=$D$14*$D$12,IF(APD27+(APC28*$D$18)/(($D$16*$D$13)-($D$8*$D$13))<0,APD27,APD27+(APC28*$D$18)/(($D$16*$D$13)-($D$8*$D$13))),IF(APD27=0,EXP(-($D$16)*$D$13)*APE28+APD27,EXP(-($D$16)*$D$13)*APE28+APD27)) -> 40.02994805 | APJ27: =AON27 -> 0 | APK27: =AOO27 -> 0 | APL27: =AOP27 -> 0 | APM27: =$D$27 -> 2.142857143 | APN27: =AOR27 -> 15 | APO27: =AOS27 -> 15 | APP27: =EXP(-($D$16)*$D$13)*(APP28) -> 9.778380768 | APR27: =MAX(AQA27-APP27,0) -> 30.25156728 | APS27: =$D$27 -> 2.142857143 | APT27: =EXP(-($D$16)*$D$13)*(APT28) -> 9.778380768 | APV27: =IF(APU27="Abandon",APJ27,) -> 0 | APW27: =IF(APO27>0,RANDBETWEEN(0,1000),1000) -> 467 | APX27: =APB27 -> 0 | APY27: =APC27 -> 1.75 | APZ27: =IF(APJ27<=APX$24,0,IF(AND(APJ27>0,$D$19=1),APY27,IF(AND(APJ27>0,APJ27<=$E$19*$D$12+APX$24),APY27,0))) -> 0 | AQA27: =IF(APJ27=$D$14*$D$12,IF(APZ27+(APY28*$D$18)/(($D$16*$D$13)-($D$8*$D$13))<0,APZ27,APZ27+(APY28*$D$18)/(($D$16*$D$13)-($D$8*$D$13))),IF(APZ27=0,EXP(-($D$16)*$D$13)*AQA28+APZ27,EXP(-($D$16)*$D$13)*AQA28+APZ27)) -> 40.02994805 | AQF27: =APJ27 -> 0 | AQG27: =APK27 -> 0 | AQH27: =APL27 -> 0 | AQI27: =$D$27 -> 2.142857143 | AQJ27: =APN27 -> 15 | AQK27: =APO27 -> 15 | AQL27: =EXP(-($D$16)*$D$13)*(AQL28) -> 9.778380768 | AQN27: =MAX(AQW27-AQL27,0) -> 30.25156728 | AQO27: =$D$27 -> 2.142857143 | AQP27: =EXP(-($D$16)*$D$13)*(AQP28) -> 9.778380768 | AQR27: =IF(AQQ27="Abandon",AQF27,) -> 0 | AQT27: =APX27 -> 0 | AQU27: =APY27 -> 1.75 | AQV27: =IF(AQF27<=AQT$24,0,IF(AND(AQF27>0,$D$19=1),AQU27,IF(AND(AQF27>0,AQF27<=$E$19*$D$12+AQT$24),AQU27,0))) -> 0 | AQW27: =IF(AQF27=$D$14*$D$12,IF(AQV27+(AQU28*$D$18)/(($D$16*$D$13)-($D$8*$D$13))<0,AQV27,AQV27+(AQU28*$D$18)/(($D$16*$D$13)-($D$8*$D$13))),IF(AQV27=0,EXP(-($D$16)*$D$13)*AQW28+AQV27,EXP(-($D$16)*$D$13)*AQW28+AQV27)) -> 40.02994805 | ARB27: =AQF27 -> 0 | ARC27: =AQG27 -> 0 | ARD27: =AQH27 -> 0 | ARE27: =$D$27 -> 2.142857143 | ARF27: =AQJ27 -> 15 | ARG27: =AQK27 -> 15 | ARH27: =EXP(-($D$16)*$D$13)*(ARH28) -> 9.778380768 | ARJ27: =MAX(ARS27-ARH27,0) -> 30.25156728 | ARK27: =$D$27 -> 2.142857143 | ARL27: =EXP(-($D$16)*$D$13)*(ARL28) -> 9.778380768 | ARN27: =IF(ARM27="Abandon",ARB27,) -> 0 | ARP27: =AQT27 -> 0 | ARQ27: =AQU27 -> 1.75 | ARR27: =IF(ARB27<=ARP$24,0,IF(AND(ARB27>0,$D$19=1),ARQ27,IF(AND(ARB27>0,ARB27<=$E$19*$D$12+ARP$24),ARQ27,0))) -> 0 | ARS27: =IF(ARB27=$D$14*$D$12,IF(ARR27+(ARQ28*$D$18)/(($D$16*$D$13)-($D$8*$D$13))<0,ARR27,ARR27+(ARQ28*$D$18)/(($D$16*$D$13)-($D$8*$D$13))),IF(ARR27=0,EXP(-($D$16)*$D$13)*ARS28+ARR27,EXP(-($D$16)*$D$13)*ARS28+ARR27)) -> 40.02994805 | ARX27: =ARB27 -> 0 | ARY27: =ARC27 -> 0 | ARZ27: =ARD27 -> 0 | ASA27: =$D$27 -> 2.142857143 | ASB27: =ARF27 -> 15 | ASC27: =ARG27 -> 15 | ASD27: =EXP(-($D$16)*$D$13)*(ASD28) -> 9.778380768 | ASF27: =MAX(ASO27-ASD27,0) -> 30.25156728 | ASG27: =$D$27 -> 2.142857143 | ASH27: =EXP(-($D$16)*$D$13)*(ASH28) -> 9.778380768 | ASJ27: =IF(ASI27="Abandon",ARX27,) -> 0 | ASL27: =ARP27 -> 0 | ASM27: =ARQ27 -> 1.75 | ASN27: =IF(ARX27<=ASL$24,0,IF(AND(ARX27>0,$D$19=1),ASM27,IF(AND(ARX27>0,ARX27<=$E$19*$D$12+ASL$24),ASM27,0))) -> 0 | ASO27: =IF(ARX27=$D$14*$D$12,IF(ASN27+(ASM28*$D$18)/(($D$16*$D$13)-($D$8*$D$13))<0,ASN27,ASN27+(ASM28*$D$18)/(($D$16*$D$13)-($D$8*$D$13))),IF(ASN27=0,EXP(-($D$16)*$D$13)*ASO28+ASN27,EXP(-($D$16)*$D$13)*ASO28+ASN27)) -> 40.02994805 | AST27: =ARX27 -> 0 | ASU27: =ARY27 -> 0 | ASV27: =ARZ27 -> 0 | ASW27: =$D$27 -> 2.142857143 | ASX27: =ASB27 -> 15 | ASY27: =ASC27 -> 15 | ASZ27: =EXP(-($D$16)*$D$13)*(ASZ28) -> 9.778380768 | ATB27: =MAX(ATK27-ASZ27,0) -> 30.25156728 | ATC27: =$D$27 -> 2.142857143 | ATD27: =EXP(-($D$16)*$D$13)*(ATD28) -> 9.778380768 | ATF27: =IF(ATE27="Abandon",AST27,) -> 0 | ATH27: =ASL27 -> 0 | ATI27: =ASM27 -> 1.75 | ATJ27: =IF(AST27<=ATH$24,0,IF(AND(AST27>0,$D$19=1),ATI27,IF(AND(AST27>0,AST27<=$E$19*$D$12+ATH$24),ATI27,0))) -> 0 | ATK27: =IF(AST27=$D$14*$D$12,IF(ATJ27+(ATI28*$D$18)/(($D$16*$D$13)-($D$8*$D$13))<0,ATJ27,ATJ27+(ATI28*$D$18)/(($D$16*$D$13)-($D$8*$D$13))),IF(ATJ27=0,EXP(-($D$16)*$D$13)*ATK28+ATJ27,EXP(-($D$16)*$D$13)*ATK28+ATJ27)) -> 40.02994805 | ATP27: =AST27 -> 0 | ATQ27: =ASU27 -> 0 | ATR27: =ASV27 -> 0 | ATS27: =$D$27 -> 2.142857143 | ATT27: =ASX27 -> 15 | ATU27: =ASY27 -> 15 | ATV27: =EXP(-($D$16)*$D$13)*(ATV28) -> 9.778380768 | ATX27: =MAX(AUG27-ATV27,0) -> 30.25156728 | ATY27: =$D$27 -> 2.142857143 | ATZ27: =EXP(-($D$16)*$D$13)*(ATZ28) -> 9.778380768 | AUB27: =IF(AUA27="Abandon",ATP27,) -> 0 | AUD27: =ATH27 -> 0 | AUE27: =ATI27 -> 1.75 | AUF27: =IF(ATP27<=AUD$24,0,IF(AND(ATP27>0,$D$19=1),AUE27,IF(AND(ATP27>0,ATP27<=$E$19*$D$12+AUD$24),AUE27,0))) -> 0 | AUG27: =IF(ATP27=$D$14*$D$12,IF(AUF27+(AUE28*$D$18)/(($D$16*$D$13)-($D$8*$D$13))<0,AUF27,AUF27+(AUE28*$D$18)/(($D$16*$D$13)-($D$8*$D$13))),IF(AUF27=0,EXP(-($D$16)*$D$13)*AUG28+AUF27,EXP(-($D$16)*$D$13)*AUG28+AUF27)) -> 40.02994805 | AUL27: =ATP27 -> 0 | AUM27: =ATQ27 -> 0 | AUN27: =ATR27 -> 0 | AUO27: =$D$27 -> 2.142857143 | AUP27: =ATT27 -> 15 | AUQ27: =ATU27 -> 15 | AUR27: =EXP(-($D$16)*$D$13)*(AUR28) -> 9.778380768 | AUT27: =MAX(AVC27-AUR27,0) -> 30.25156728 | AUU27: =$D$27 -> 2.142857143 | AUV27: =EXP(-($D$16)*$D$13)*(AUV28) -> 9.778380768 | AUX27: =IF(AUW27="Abandon",AUL27,) -> 0 | AUZ27: =AUD27 -> 0 | AVA27: =AUE27 -> 1.75 | AVB27: =IF(AUL27<=AUZ$24,0,IF(AND(AUL27>0,$D$19=1),AVA27,IF(AND(AUL27>0,AUL27<=$E$19*$D$12+AUZ$24),AVA27,0))) -> 0 | AVC27: =IF(AUL27=$D$14*$D$12,IF(AVB27+(AVA28*$D$18)/(($D$16*$D$13)-($D$8*$D$13))<0,AVB27,AVB27+(AVA28*$D$18)/(($D$16*$D$13)-($D$8*$D$13))),IF(AVB27=0,EXP(-($D$16)*$D$13)*AVC28+AVB27,EXP(-($D$16)*$D$13)*AVC28+AVB27)) -> 40.02994805 | AVH27: =AUL27 -> 0 | AVI27: =AUM27 -> 0 | AVJ27: =AUN27 -> 0 | AVK27: =$D$27 -> 2.142857143 | AVL27: =AUP27 -> 15 | AVM27: =AUQ27 -> 15 | AVN27: =EXP(-($D$16)*$D$13)*(AVN28) -> 9.778380768 | AVP27: =MAX(AVY27-AVN27,0) -> 30.25156728 | AVQ27: =$D$27 -> 2.142857143 | AVR27: =EXP(-($D$16)*$D$13)*(AVR28) -> 9.778380768 | AVT27: =IF(AVS27="Abandon",AVH27,) -> 0 | AVV27: =AUZ27 -> 0 | AVW27: =AVA27 -> 1.75 | AVX27: =IF(AVH27<=AVV$24,0,IF(AND(AVH27>0,$D$19=1),AVW27,IF(AND(AVH27>0,AVH27<=$E$19*$D$12+AVV$24),AVW27,0))) -> 0 | AVY27: =IF(AVH27=$D$14*$D$12,IF(AVX27+(AVW28*$D$18)/(($D$16*$D$13)-($D$8*$D$13))<0,AVX27,AVX27+(AVW28*$D$18)/(($D$16*$D$13)-($D$8*$D$13))),IF(AVX27=0,EXP(-($D$16)*$D$13)*AVY28+AVX27,EXP(-($D$16)*$D$13)*AVY28+AVX27)) -> 40.02994805 | AWD27: =AVH27 -> 0 | AWE27: =AVI27 -> 0 | AWF27: =AVJ27 -> 0 | AWG27: =$D$27 -> 2.142857143 | AWH27: =AVL27 -> 15 | AWI27: =AVM27 -> 15 | AWJ27: =EXP(-($D$16)*$D$13)*(AWJ28) -> 9.778380768 | AWL27: =MAX(AWU27-AWJ27,0) -> 30.25156728 | AWM27: =$D$27 -> 2.142857143 | AWN27: =EXP(-($D$16)*$D$13)*(AWN28) -> 9.778380768 | AWP27: =IF(AWO27="Abandon",AWD27,) -> 0 | AWR27: =AVV27 -> 0 | AWS27: =AVW27 -> 1.75 | AWT27: =IF(AWD27<=AWR$24,0,IF(AND(AWD27>0,$D$19=1),AWS27,IF(AND(AWD27>0,AWD27<=$E$19*$D$12+AWR$24),AWS27,0))) -> 0 | AWU27: =IF(AWD27=$D$14*$D$12,IF(AWT27+(AWS28*$D$18)/(($D$16*$D$13)-($D$8*$D$13))<0,AWT27,AWT27+(AWS28*$D$18)/(($D$16*$D$13)-($D$8*$D$13))),IF(AWT27=0,EXP(-($D$16)*$D$13)*AWU28+AWT27,EXP(-($D$16)*$D$13)*AWU28+AWT27)) -> 40.02994805 | AWZ27: =AWD27 -> 0 | AXA27: =AWE27 -> 0 | AXB27: =AWF27 -> 0 | AXC27: =$D$27 -> 2.142857143 | AXD27: =AWH27 -> 15 | AXE27: =AWI27 -> 15 | AXF27: =EXP(-($D$16)*$D$13)*(AXF28) -> 9.778380768 | AXH27: =MAX(AXQ27-AXF27,0) -> 30.25156728 | AXI27: =$D$27 -> 2.142857143 | AXJ27: =EXP(-($D$16)*$D$13)*(AXJ28) -> 9.778380768 | AXL27: =IF(AXK27="Abandon",AWZ27,) -> 0 | AXN27: =AWR27 -> 0 | AXO27: =AWS27 -> 1.75 | AXP27: =IF(AWZ27<=AXN$24,0,IF(AND(AWZ27>0,$D$19=1),AXO27,IF(AND(AWZ27>0,AWZ27<=$E$19*$D$12+AXN$24),AXO27,0))) -> 0 | AXQ27: =IF(AWZ27=$D$14*$D$12,IF(AXP27+(AXO28*$D$18)/(($D$16*$D$13)-($D$8*$D$13))<0,AXP27,AXP27+(AXO28*$D$18)/(($D$16*$D$13)-($D$8*$D$13))),IF(AXP27=0,EXP(-($D$16)*$D$13)*AXQ28+AXP27,EXP(-($D$16)*$D$13)*AXQ28+AXP27)) -> 40.02994805 | AXV27: =AWZ27 -> 0 | AXW27: =AXA27 -> 0 | AXX27: =AXB27 -> 0 | AXY27: =$D$27 -> 2.142857143 | AXZ27: =AXD27 -> 15 | AYA27: =AXE27 -> 15 | AYB27: =EXP(-($D$16)*$D$13)*(AYB28) -> 9.778380768 | AYD27: =MAX(AYM27-AYB27,0) -> 30.25156728 | AYE27: =$D$27 -> 2.142857143 | AYF27: =EXP(-($D$16)*$D$13)*(AYF28) -> 9.778380768 | AYH27: =IF(AYG27="Abandon",AXV27,) -> 0 | AYJ27: =AXN27 -> 0 | AYK27: =AXO27 -> 1.75 | AYL27: =IF(AXV27<=AYJ$24,0,IF(AND(AXV27>0,$D$19=1),AYK27,IF(AND(AXV27>0,AXV27<=$E$19*$D$12+AYJ$24),AYK27,0))) -> 0 | AYM27: =IF(AXV27=$D$14*$D$12,IF(AYL27+(AYK28*$D$18)/(($D$16*$D$13)-($D$8*$D$13))<0,AYL27,AYL27+(AYK28*$D$18)/(($D$16*$D$13)-($D$8*$D$13))),IF(AYL27=0,EXP(-($D$16)*$D$13)*AYM28+AYL27,EXP(-($D$16)*$D$13)*AYM28+AYL27)) -> 40.02994805 | AYR27: =AXV27 -> 0 | AYS27: =AXW27 -> 0 | AYT27: =AXX27 -> 0 | AYU27: =$D$27 -> 2.142857143 | AYV27: =AXZ27 -> 15 | AYW27: =AYA27 -> 15 | AYX27: =EXP(-($D$16)*$D$13)*(AYX28) -> 9.778380768 | AYZ27: =MAX(AZI27-AYX27,0) -> 30.25156728 | AZA27: =$D$27 -> 2.142857143 | AZB27: =EXP(-($D$16)*$D$13)*(AZB28) -> 9.778380768 | AZD27: =IF(AZC27="Abandon",AYR27,) -> 0 | AZF27: =AYJ27 -> 0 | AZG27: =AYK27 -> 1.75 | AZH27: =IF(AYR27<=AZF$24,0,IF(AND(AYR27>0,$D$19=1),AZG27,IF(AND(AYR27>0,AYR27<=$E$19*$D$12+AZF$24),AZG27,0))) -> 0 | AZI27: =IF(AYR27=$D$14*$D$12,IF(AZH27+(AZG28*$D$18)/(($D$16*$D$13)-($D$8*$D$13))<0,AZH27,AZH27+(AZG28*$D$18)/(($D$16*$D$13)-($D$8*$D$13))),IF(AZH27=0,EXP(-($D$16)*$D$13)*AZI28+AZH27,EXP(-($D$16)*$D$13)*AZI28+AZH27)) -> 40.02994805 | AZN27: =AYR27 -> 0 | AZO27: =AYS27 -> 0 | AZP27: =AYT27 -> 0 | AZQ27: =$D$27 -> 2.142857143 | AZR27: =AYV27 -> 15 | AZS27: =AYW27 -> 15 | AZT27: =EXP(-($D$16)*$D$13)*(AZT28) -> 9.778380768 | AZV27: =MAX(BAE27-AZT27,0) -> 30.25156728 | AZW27: =$D$27 -> 2.142857143 | AZX27: =EXP(-($D$16)*$D$13)*(AZX28) -> 9.778380768 | AZZ27: =IF(AZY27="Abandon",AZN27,) -> 0 | BAB27: =AZF27 -> 0 | BAC27: =AZG27 -> 1.75 | BAD27: =IF(AZN27<=BAB$24,0,IF(AND(AZN27>0,$D$19=1),BAC27,IF(AND(AZN27>0,AZN27<=$E$19*$D$12+BAB$24),BAC27,0))) -> 0 | BAE27: =IF(AZN27=$D$14*$D$12,IF(BAD27+(BAC28*$D$18)/(($D$16*$D$13)-($D$8*$D$13))<0,BAD27,BAD27+(BAC28*$D$18)/(($D$16*$D$13)-($D$8*$D$13))),IF(BAD27=0,EXP(-($D$16)*$D$13)*BAE28+BAD27,EXP(-($D$16)*$D$13)*BAE28+BAD27)) -> 40.02994805 | BAJ27: =AZN27 -> 0 | BAK27: =AZO27 -> 0 | BAL27: =AZP27 -> 0 | BAM27: =$D$27 -> 2.142857143 | BAN27: =AZR27 -> 15 | BAO27: =AZS27 -> 15 | BAP27: =EXP(-($D$16)*$D$13)*(BAP28) -> 9.778380768 | BAR27: =MAX(BBA27-BAP27,0) -> 30.25156728 | BAS27: =$D$27 -> 2.142857143 | BAT27: =EXP(-($D$16)*$D$13)*(BAT28) -> 9.778380768 | BAV27: =IF(BAU27="Abandon",BAJ27,) -> 0 | BAX27: =BAB27 -> 0 | BAY27: =BAC27 -> 1.75 | BAZ27: =IF(BAJ27<=BAX$24,0,IF(AND(BAJ27>0,$D$19=1),BAY27,IF(AND(BAJ27>0,BAJ27<=$E$19*$D$12+BAX$24),BAY27,0))) -> 0 | BBA27: =IF(BAJ27=$D$14*$D$12,IF(BAZ27+(BAY28*$D$18)/(($D$16*$D$13)-($D$8*$D$13))<0,BAZ27,BAZ27+(BAY28*$D$18)/(($D$16*$D$13)-($D$8*$D$13))),IF(BAZ27=0,EXP(-($D$16)*$D$13)*BBA28+BAZ27,EXP(-($D$16)*$D$13)*BBA28+BAZ27)) -> 40.02994805 | BBF27: =BAJ27 -> 0 | BBG27: =BAK27 -> 0 | BBH27: =BAL27 -> 0 | BBI27: =$D$27 -> 2.142857143 | BBJ27: =BAN27 -> 15 | BBK27: =BAO27 -> 15 | BBL27: =EXP(-($D$16)*$D$13)*(BBL28) -> 9.778380768 | BBN27: =MAX(BBW27-BBL27,0) -> 30.25156728 | BBO27: =$D$27 -> 2.142857143 | BBP27: =EXP(-($D$16)*$D$13)*(BBP28) -> 9.778380768 | BBR27: =IF(BBQ27="Abandon",BBF27,) -> 0 | BBT27: =BAX27 -> 0 | BBU27: =BAY27 -> 1.75 | BBV27: =IF(BBF27<=BBT$24,0,IF(AND(BBF27>0,$D$19=1),BBU27,IF(AND(BBF27>0,BBF27<=$E$19*$D$12+BBT$24),BBU27,0))) -> 0 | BBW27: =IF(BBF27=$D$14*$D$12,IF(BBV27+(BBU28*$D$18)/(($D$16*$D$13)-($D$8*$D$13))<0,BBV27,BBV27+(BBU28*$D$18)/(($D$16*$D$13)-($D$8*$D$13))),IF(BBV27=0,EXP(-($D$16)*$D$13)*BBW28+BBV27,EXP(-($D$16)*$D$13)*BBW28+BBV27)) -> 40.02994805 | BCB27: =BBF27 -> 0 | BCC27: =BBG27 -> 0 | BCD27: =BBH27 -> 0 | BCE27: =$D$27 -> 2.142857143 | BCF27: =BBJ27 -> 15 | BCG27: =BBK27 -> 15 | BCH27: =EXP(-($D$16)*$D$13)*(BCH28) -> 9.778380768 | BCJ27: =MAX(BCS27-BCH27,0) -> 30.25156728 | BCK27: =$D$27 -> 2.142857143 | BCL27: =EXP(-($D$16)*$D$13)*(BCL28) -> 9.778380768 | BCN27: =IF(BCM27="Abandon",BCB27,) -> 0 | BCP27: =BBT27 -> 0 | BCQ27: =BBU27 -> 1.75 | BCR27: =IF(BCB27<=BCP$24,0,IF(AND(BCB27>0,$D$19=1),BCQ27,IF(AND(BCB27>0,BCB27<=$E$19*$D$12+BCP$24),BCQ27,0))) -> 0 | BCS27: =IF(BCB27=$D$14*$D$12,IF(BCR27+(BCQ28*$D$18)/(($D$16*$D$13)-($D$8*$D$13))<0,BCR27,BCR27+(BCQ28*$D$18)/(($D$16*$D$13)-($D$8*$D$13))),IF(BCR27=0,EXP(-($D$16)*$D$13)*BCS28+BCR27,EXP(-($D$16)*$D$13)*BCS28+BCR27)) -> 40.02994805 | BCX27: =BCB27 -> 0 | BCY27: =BCC27 -> 0 | BCZ27: =BCD27 -> 0 | BDA27: =$D$27 -> 2.142857143 | BDB27: =BCF27 -> 15 | BDC27: =BCG27 -> 15 | BDD27: =EXP(-($D$16)*$D$13)*(BDD28) -> 9.778380768 | BDF27: =MAX(BDO27-BDD27,0) -> 30.25156728 | BDG27: =$D$27 -> 2.142857143 | BDH27: =EXP(-($D$16)*$D$13)*(BDH28) -> 9.778380768 | BDJ27: =IF(BDI27="Abandon",BCX27,) -> 0 | BDL27: =BCP27 -> 0 | BDM27: =BCQ27 -> 1.75 | BDN27: =IF(BCX27<=BDL$24,0,IF(AND(BCX27>0,$D$19=1),BDM27,IF(AND(BCX27>0,BCX27<=$E$19*$D$12+BDL$24),BDM27,0))) -> 0 | BDO27: =IF(BCX27=$D$14*$D$12,IF(BDN27+(BDM28*$D$18)/(($D$16*$D$13)-($D$8*$D$13))<0,BDN27,BDN27+(BDM28*$D$18)/(($D$16*$D$13)-($D$8*$D$13))),IF(BDN27=0,EXP(-($D$16)*$D$13)*BDO28+BDN27,EXP(-($D$16)*$D$13)*BDO28+BDN27)) -> 40.02994805 | BDT27: =BCX27 -> 0 | BDU27: =BCY27 -> 0 | BDV27: =BCZ27 -> 0 | BDW27: =$D$27 -> 2.142857143 | BDX27: =BDB27 -> 15 | BDY27: =BDC27 -> 15 | BDZ27: =EXP(-($D$16)*$D$13)*(BDZ28) -> 9.778380768 | BEB27: =MAX(BEK27-BDZ27,0) -> 30.25156728 | BEC27: =$D$27 -> 2.142857143 | BED27: =EXP(-($D$16)*$D$13)*(BED28) -> 9.778380768 | BEF27: =IF(BEE27="Abandon",BDT27,) -> 0 | BEH27: =BDL27 -> 0 | BEI27: =BDM27 -> 1.75 | BEJ27: =IF(BDT27<=BEH$24,0,IF(AND(BDT27>0,$D$19=1),BEI27,IF(AND(BDT27>0,BDT27<=$E$19*$D$12+BEH$24),BEI27,0))) -> 0 | BEK27: =IF(BDT27=$D$14*$D$12,IF(BEJ27+(BEI28*$D$18)/(($D$16*$D$13)-($D$8*$D$13))<0,BEJ27,BEJ27+(BEI28*$D$18)/(($D$16*$D$13)-($D$8*$D$13))),IF(BEJ27=0,EXP(-($D$16)*$D$13)*BEK28+BEJ27,EXP(-($D$16)*$D$13)*BEK28+BEJ27)) -> 40.02994805 | BEP27: =BDT27 -> 0 | BEQ27: =BDU27 -> 0 | BER27: =BDV27 -> 0 | BES27: =$D$27 -> 2.142857143 | BET27: =BDX27 -> 15 | BEU27: =BDY27 -> 15 | BEV27: =EXP(-($D$16)*$D$13)*(BEV28) -> 9.778380768 | BEX27: =MAX(BFG27-BEV27,0) -> 30.25156728 | BEY27: =$D$27 -> 2.142857143 | BEZ27: =EXP(-($D$16)*$D$13)*(BEZ28) -> 9.778380768 | BFB27: =IF(BFA27="Abandon",BEP27,) -> 0 | BFD27: =BEH27 -> 0 | BFE27: =BEI27 -> 1.75 | BFF27: =IF(BEP27<=BFD$24,0,IF(AND(BEP27>0,$D$19=1),BFE27,IF(AND(BEP27>0,BEP27<=$E$19*$D$12+BFD$24),BFE27,0))) -> 0 | BFG27: =IF(BEP27=$D$14*$D$12,IF(BFF27+(BFE28*$D$18)/(($D$16*$D$13)-($D$8*$D$13))<0,BFF27,BFF27+(BFE28*$D$18)/(($D$16*$D$13)-($D$8*$D$13))),IF(BFF27=0,EXP(-($D$16)*$D$13)*BFG28+BFF27,EXP(-($D$16)*$D$13)*BFG28+BFF27)) -> 40.02994805 | BFL27: =BEP27 -> 0 | BFM27: =BEQ27 -> 0 | BFN27: =BER27 -> 0 | BFO27: =$D$27 -> 2.142857143 | BFP27: =BET27 -> 15 | BFQ27: =BEU27 -> 15 | BFR27: =EXP(-($D$16)*$D$13)*(BFR28) -> 9.778380768 | BFT27: =MAX(BGC27-BFR27,0) -> 30.25156728 | BFU27: =$D$27 -> 2.142857143 | BFV27: =EXP(-($D$16)*$D$13)*(BFV28) -> 9.778380768 | BFX27: =IF(BFW27="Abandon",BFL27,) -> 0 | BFZ27: =BFD27 -> 0 | BGA27: =BFE27 -> 1.75 | BGB27: =IF(BFL27<=BFZ$24,0,IF(AND(BFL27>0,$D$19=1),BGA27,IF(AND(BFL27>0,BFL27<=$E$19*$D$12+BFZ$24),BGA27,0))) -> 0 | BGC27: =IF(BFL27=$D$14*$D$12,IF(BGB27+(BGA28*$D$18)/(($D$16*$D$13)-($D$8*$D$13))<0,BGB27,BGB27+(BGA28*$D$18)/(($D$16*$D$13)-($D$8*$D$13))),IF(BGB27=0,EXP(-($D$16)*$D$13)*BGC28+BGB27,EXP(-($D$16)*$D$13)*BGC28+BGB27)) -> 40.02994805 | BGH27: =BFL27 -> 0 | BGI27: =BFM27 -> 0 | BGJ27: =BFN27 -> 0 | BGK27: =$D$27 -> 2.142857143 | BGL27: =BFP27 -> 15 | BGM27: =BFQ27 -> 15 | BGN27: =EXP(-($D$16)*$D$13)*(BGN28) -> 9.778380768 | BGP27: =MAX(BGY27-BGN27,0) -> 30.25156728 | BGQ27: =$D$27 -> 2.142857143 | BGR27: =EXP(-($D$16)*$D$13)*(BGR28) -> 9.778380768 | BGT27: =IF(BGS27="Abandon",BGH27,) -> 0 | BGV27: =BFZ27 -> 0 | BGW27: =BGA27 -> 1.75 | BGX27: =IF(BGH27<=BGV$24,0,IF(AND(BGH27>0,$D$19=1),BGW27,IF(AND(BGH27>0,BGH27<=$E$19*$D$12+BGV$24),BGW27,0))) -> 0 | BGY27: =IF(BGH27=$D$14*$D$12,IF(BGX27+(BGW28*$D$18)/(($D$16*$D$13)-($D$8*$D$13))<0,BGX27,BGX27+(BGW28*$D$18)/(($D$16*$D$13)-($D$8*$D$13))),IF(BGX27=0,EXP(-($D$16)*$D$13)*BGY28+BGX27,EXP(-($D$16)*$D$13)*BGY28+BGX27)) -> 40.02994805 | BHD27: =BGH27 -> 0 | BHE27: =BGI27 -> 0 | BHF27: =BGJ27 -> 0 | BHG27: =$D$27 -> 2.142857143 | BHH27: =BGL27 -> 15 | BHI27: =BGM27 -> 15 | BHJ27: =EXP(-($D$16)*$D$13)*(BHJ28) -> 9.778380768 | BHL27: =MAX(BHU27-BHJ27,0) -> 30.25156728 | BHM27: =$D$27 -> 2.142857143 | BHN27: =EXP(-($D$16)*$D$13)*(BHN28) -> 9.778380768 | BHP27: =IF(BHO27="Abandon",BHD27,) -> 0 | BHR27: =BGV27 -> 0 | BHS27: =BGW27 -> 1.75 | BHT27: =IF(BHD27<=BHR$24,0,IF(AND(BHD27>0,$D$19=1),BHS27,IF(AND(BHD27>0,BHD27<=$E$19*$D$12+BHR$24),BHS27,0))) -> 0 | BHU27: =IF(BHD27=$D$14*$D$12,IF(BHT27+(BHS28*$D$18)/(($D$16*$D$13)-($D$8*$D$13))<0,BHT27,BHT27+(BHS28*$D$18)/(($D$16*$D$13)-($D$8*$D$13))),IF(BHT27=0,EXP(-($D$16)*$D$13)*BHU28+BHT27,EXP(-($D$16)*$D$13)*BHU28+BHT27)) -> 40.02994805 | BHZ27: =BHD27 -> 0 | BIA27: =BHE27 -> 0 | BIB27: =BHF27 -> 0 | BIC27: =$D$27 -> 2.142857143 | BID27: =BHH27 -> 15 | BIE27: =BHI27 -> 15 | BIF27: =EXP(-($D$16)*$D$13)*(BIF28) -> 9.778380768 | BIH27: =MAX(BIQ27-BIF27,0) -> 30.25156728 | BII27: =$D$27 -> 2.142857143 | BIJ27: =EXP(-($D$16)*$D$13)*(BIJ28) -> 9.778380768 | BIL27: =IF(BIK27="Abandon",BHZ27,) -> 0 | BIN27: =BHR27 -> 0 | BIO27: =BHS27 -> 1.75 | BIP27: =IF(BHZ27<=BIN$24,0,IF(AND(BHZ27>0,$D$19=1),BIO27,IF(AND(BHZ27>0,BHZ27<=$E$19*$D$12+BIN$24),BIO27,0))) -> 0 | BIQ27: =IF(BHZ27=$D$14*$D$12,IF(BIP27+(BIO28*$D$18)/(($D$16*$D$13)-($D$8*$D$13))<0,BIP27,BIP27+(BIO28*$D$18)/(($D$16*$D$13)-($D$8*$D$13))),IF(BIP27=0,EXP(-($D$16)*$D$13)*BIQ28+BIP27,EXP(-($D$16)*$D$13)*BIQ28+BIP27)) -> 40.02994805 | BIV27: =BHZ27 -> 0 | BIW27: =BIA27 -> 0 | BIX27: =BIB27 -> 0 | BIY27: =$D$27 -> 2.142857143 | BIZ27: =BID27 -> 15 | BJA27: =BIE27 -> 15 | BJB27: =EXP(-($D$16)*$D$13)*(BJB28) -> 9.778380768 | BJD27: =MAX(BJM27-BJB27,0) -> 30.25156728 | BJE27: =$D$27 -> 2.142857143 | BJF27: =EXP(-($D$16)*$D$13)*(BJF28) -> 9.778380768 | BJH27: =IF(BJG27="Abandon",BIV27,) -> 0 | BJJ27: =BIN27 -> 0 | BJK27: =BIO27 -> 1.75 | BJL27: =IF(BIV27<=BJJ$24,0,IF(AND(BIV27>0,$D$19=1),BJK27,IF(AND(BIV27>0,BIV27<=$E$19*$D$12+BJJ$24),BJK27,0))) -> 0 | BJM27: =IF(BIV27=$D$14*$D$12,IF(BJL27+(BJK28*$D$18)/(($D$16*$D$13)-($D$8*$D$13))<0,BJL27,BJL27+(BJK28*$D$18)/(($D$16*$D$13)-($D$8*$D$13))),IF(BJL27=0,EXP(-($D$16)*$D$13)*BJM28+BJL27,EXP(-($D$16)*$D$13)*BJM28+BJL27)) -> 40.02994805 | BJR27: =BIV27 -> 0 | BJS27: =BIW27 -> 0 | BJT27: =BIX27 -> 0 | BJU27: =$D$27 -> 2.142857143 | BJV27: =BIZ27 -> 15 | BJW27: =BJA27 -> 15 | BJX27: =EXP(-($D$16)*$D$13)*(BJX28) -> 9.778380768 | BJZ27: =MAX(BKI27-BJX27,0) -> 30.25156728 | BKA27: =$D$27 -> 2.142857143 | BKB27: =EXP(-($D$16)*$D$13)*(BKB28) -> 9.778380768 | BKD27: =IF(BKC27="Abandon",BJR27,) -> 0 | BKF27: =BJJ27 -> 0 | BKG27: =BJK27 -> 1.75 | BKH27: =IF(BJR27<=BKF$24,0,IF(AND(BJR27>0,$D$19=1),BKG27,IF(AND(BJR27>0,BJR27<=$E$19*$D$12+BKF$24),BKG27,0))) -> 0 | BKI27: =IF(BJR27=$D$14*$D$12,IF(BKH27+(BKG28*$D$18)/(($D$16*$D$13)-($D$8*$D$13))<0,BKH27,BKH27+(BKG28*$D$18)/(($D$16*$D$13)-($D$8*$D$13))),IF(BKH27=0,EXP(-($D$16)*$D$13)*BKI28+BKH27,EXP(-($D$16)*$D$13)*BKI28+BKH27)) -> 40.02994805 | BKN27: =BJR27 -> 0 | BKO27: =BJS27 -> 0 | BKP27: =BJT27 -> 0 | BKQ27: =$D$27 -> 2.142857143 | BKR27: =BJV27 -> 15 | BKS27: =BJW27 -> 15 | BKT27: =EXP(-($D$16)*$D$13)*(BKT28) -> 9.778380768 | BKV27: =MAX(BLE27-BKT27,0) -> 30.25156728 | BKW27: =$D$27 -> 2.142857143 | BKX27: =EXP(-($D$16)*$D$13)*(BKX28) -> 9.778380768 | BKZ27: =IF(BKY27="Abandon",BKN27,) -> 0 | BLB27: =BKF27 -> 0 | BLC27: =BKG27 -> 1.75 | BLD27: =IF(BKN27<=BLB$24,0,IF(AND(BKN27>0,$D$19=1),BLC27,IF(AND(BKN27>0,BKN27<=$E$19*$D$12+BLB$24),BLC27,0))) -> 0 | BLE27: =IF(BKN27=$D$14*$D$12,IF(BLD27+(BLC28*$D$18)/(($D$16*$D$13)-($D$8*$D$13))<0,BLD27,BLD27+(BLC28*$D$18)/(($D$16*$D$13)-($D$8*$D$13))),IF(BLD27=0,EXP(-($D$16)*$D$13)*BLE28+BLD27,EXP(-($D$16)*$D$13)*BLE28+BLD27)) -> 40.02994805 | BLJ27: =BKN27 -> 0 | BLK27: =BKO27 -> 0 | BLL27: =BKP27 -> 0 | BLM27: =$D$27 -> 2.142857143 | BLN27: =BKR27 -> 15 | BLO27: =BKS27 -> 15 | BLP27: =EXP(-($D$16)*$D$13)*(BLP28) -> 9.778380768 | BLR27: =MAX(BMA27-BLP27,0) -> 30.25156728 | BLS27: =$D$27 -> 2.142857143 | BLT27: =EXP(-($D$16)*$D$13)*(BLT28) -> 9.778380768 | BLV27: =IF(BLU27="Abandon",BLJ27,) -> 0 | BLX27: =BLB27 -> 0 | BLY27: =BLC27 -> 1.75 | BLZ27: =IF(BLJ27<=BLX$24,0,IF(AND(BLJ27>0,$D$19=1),BLY27,IF(AND(BLJ27>0,BLJ27<=$E$19*$D$12+BLX$24),BLY27,0))) -> 0 | BMA27: =IF(BLJ27=$D$14*$D$12,IF(BLZ27+(BLY28*$D$18)/(($D$16*$D$13)-($D$8*$D$13))<0,BLZ27,BLZ27+(BLY28*$D$18)/(($D$16*$D$13)-($D$8*$D$13))),IF(BLZ27=0,EXP(-($D$16)*$D$13)*BMA28+BLZ27,EXP(-($D$16)*$D$13)*BMA28+BLZ27)) -> 40.02994805 | BMF27: =BLJ27 -> 0 | BMG27: =BLK27 -> 0 | BMH27: =BLL27 -> 0 | BMI27: =$D$27 -> 2.142857143 | BMJ27: =BLN27 -> 15 | BMK27: =BLO27 -> 15 | BML27: =EXP(-($D$16)*$D$13)*(BML28) -> 9.778380768 | BMN27: =MAX(BMW27-BML27,0) -> 30.25156728 | BMO27: =$D$27 -> 2.142857143 | BMP27: =EXP(-($D$16)*$D$13)*(BMP28) -> 9.778380768 | BMR27: =IF(BMQ27="Abandon",BMF27,) -> 0 | BMT27: =BLX27 -> 0 | BMU27: =BLY27 -> 1.75 | BMV27: =IF(BMF27<=BMT$24,0,IF(AND(BMF27>0,$D$19=1),BMU27,IF(AND(BMF27>0,BMF27<=$E$19*$D$12+BMT$24),BMU27,0))) -> 0 | BMW27: =IF(BMF27=$D$14*$D$12,IF(BMV27+(BMU28*$D$18)/(($D$16*$D$13)-($D$8*$D$13))<0,BMV27,BMV27+(BMU28*$D$18)/(($D$16*$D$13)-($D$8*$D$13))),IF(BMV27=0,EXP(-($D$16)*$D$13)*BMW28+BMV27,EXP(-($D$16)*$D$13)*BMW28+BMV27)) -> 40.02994805 | BNB27: =BMF27 -> 0 | BNC27: =BMG27 -> 0 | BND27: =BMH27 -> 0 | BNE27: =$D$27 -> 2.142857143 | BNF27: =BMJ27 -> 15 | BNG27: =BMK27 -> 15 | BNH27: =EXP(-($D$16)*$D$13)*(BNH28) -> 9.778380768 | BNJ27: =MAX(BNS27-BNH27,0) -> 30.25156728 | BNK27: =$D$27 -> 2.142857143 | BNL27: =EXP(-($D$16)*$D$13)*(BNL28) -> 9.778380768 | BNN27: =IF(BNM27="Abandon",BNB27,) -> 0 | BNP27: =BMT27 -> 0 | BNQ27: =BMU27 -> 1.75 | BNR27: =IF(BNB27<=BNP$24,0,IF(AND(BNB27>0,$D$19=1),BNQ27,IF(AND(BNB27>0,BNB27<=$E$19*$D$12+BNP$24),BNQ27,0))) -> 0 | BNS27: =IF(BNB27=$D$14*$D$12,IF(BNR27+(BNQ28*$D$18)/(($D$16*$D$13)-($D$8*$D$13))<0,BNR27,BNR27+(BNQ28*$D$18)/(($D$16*$D$13)-($D$8*$D$13))),IF(BNR27=0,EXP(-($D$16)*$D$13)*BNS28+BNR27,EXP(-($D$16)*$D$13)*BNS28+BNR27)) -> 40.02994805 | BNX27: =BNB27 -> 0 | BNY27: =BNC27 -> 0 | BNZ27: =BND27 -> 0 | BOA27: =$D$27 -> 2.142857143 | BOB27: =BNF27 -> 15 | BOC27: =BNG27 -> 15 | BOD27: =EXP(-($D$16)*$D$13)*(BOD28) -> 9.778380768 | BOF27: =MAX(BOO27-BOD27,0) -> 30.25156728 | BOG27: =$D$27 -> 2.142857143 | BOH27: =EXP(-($D$16)*$D$13)*(BOH28) -> 9.778380768 | BOJ27: =IF(BOI27="Abandon",BNX27,) -> 0 | BOL27: =BNP27 -> 0 | BOM27: =BNQ27 -> 1.75 | BON27: =IF(BNX27<=BOL$24,0,IF(AND(BNX27>0,$D$19=1),BOM27,IF(AND(BNX27>0,BNX27<=$E$19*$D$12+BOL$24),BOM27,0))) -> 0 | BOO27: =IF(BNX27=$D$14*$D$12,IF(BON27+(BOM28*$D$18)/(($D$16*$D$13)-($D$8*$D$13))<0,BON27,BON27+(BOM28*$D$18)/(($D$16*$D$13)-($D$8*$D$13))),IF(BON27=0,EXP(-($D$16)*$D$13)*BOO28+BON27,EXP(-($D$16)*$D$13)*BOO28+BON27)) -> 40.02994805 | BOS27: =BNX27 -> 0 | BOT27: =BNY27 -> 0 | BOX27: =NPV((D16+D1)*D13,BOV28:BOV107) -> 29.74339187 | BOY27: =NPV((D16+D10)*D13,BOU28:BOU107) -> 12.45573727 | BOZ27: =BOX27-BOY27 -> 17.2876546 | BPA27: =IRR(BPA28:BPA107) -> 0.09630132597
A28: =IF(A27<$D$14*$D$12,A27+1,IF(A27=$D$14*$D$12,,)) -> 1 | B28: =B27+$A$28/$D$12 -> 0.5 | C28: =NORMSINV(RAND()) -> 0.2156920041 | D28: =D27 -> 2.142857143 | E28: =IF(E27<=0,0,E27-D28+$D$4*(E27-D28)*SQRT($D$13)*NORMINV((RAND()),0,1)) -> 11.18569684 | F28: =IF(OR(F27=0,E28<=0,A28=0),0,E28) -> 11.18569684 | G28: =IF(AND(F27>0,F28=0),EXP(-($D$16)*$D$13)*G29+IF(D28-(0-E28)<0,0,D28-(0-E28)),IF(F28=0,0,EXP(-($D$16)*$D$13)*G29+D28)) -> 8.66553273 | H28: =IF(A28>0,IF(AND(F28=0,F27>0),A28," ")) ->  | I28: 24.47730887 | J28: =IF(E28=0,0,IF(A28=0,0,IF(M$26=1000,IF(E28<0,IF(E27>0,IF(D28-(0-E28)<0,0,D28-(0-E28)),0),IF(M$26>=A28,D28,0)),IF(M$26>=A28,D28,0)))) -> 2.142857143 | K28: =IF(M28=A28,0,EXP(-($D$16)*$D$13)*(K29)+J28) -> 8.66553273 | L28: =IF(L27="Abandon",0,IF(A28>0,IF(AND(G28>0,I$28=0),"Abandon"," ")," ")) ->  | M28: =IF(M27>0," ",IF(OR(T28="Failure",L28="Abandon"),A28,)) -> 0 | N28: =IF(F28>0,RANDBETWEEN(0,1000),1000) -> 359 | O28: =NORMSINV(RAND()) -> 1.052916175 | P28: =IF(F27>0,IF((P27+$D$7*$D$9*O28*SQRT($D$13))<0,0,(P27+$D$7*$D$9*O28*SQRT($D$13))),IF(P27*EXP((($D$8-$D$1)-(1/2)*$D$9^2)*$D$13+$D$9*SQRT($D$13)*O28)<0,0,P27*EXP((($D$8-$D$1)-(1/2)*$D$9^2)*$D$13+$D$9*SQRT($D$13)*O28))) -> 2.015795128 | Q28: =IF(A28<=O$24,0,IF(AND(A28>0,$D$19=1),P28,IF(AND(A28>0,A28<=$E$19*$D$12+O$24),P28,0))) -> 0 | R28: =IF(A28=$D$14*$D$12,IF(Q28+(P29*$D$18)/(($D$16*$D$13)-($D$8*$D$13))<0,Q28,Q28+(P29*$D$18)/(($D$16*$D$13)-($D$8*$D$13))),IF(Q28=0,EXP(-($D$16+$D$10)*$D$13)*R29+Q28,EXP(-($D$16)*$D$13)*R29+Q28)) -> 33.1428416 | S28: =Q28-J28 -> -2.142857143 | T28: =IF(F28>0,IF(N28<=$D$10*$D$13*1000,"Failure"," ")," ") ->  | U28: =IF(U27>0," ",IF(T28="Failure",A28,)) -> 0 | W28: =A28 -> 1 | X28: 0.5 | Y28: =C28 -> 0.2156920041 | Z28: =$D$27 -> 2.142857143 | AA28: 11.18569684 | AB28: 11.18569684 | AC28: =IF(AND(AB27>0,AB28=0),EXP(-($D$16)*$D$13)*AC29+IF(Z28-(0-AA28)<0,0,Z28-(0-AA28)),IF(AB28=0,0,EXP(-($D$16)*$D$13)*AC29+Z28)) -> 10.25767149 | AE28: =MAX(AN28-AC28,0) -> 64.67056884 | AF28: =IF(AA28=0,0,IF(W28=0,0,IF(AI$26=1000,IF(AA28<0,IF(AA27>0,IF(Z28-(0-AA28)<0,0,Z28-(0-AA28)),0),IF(AI$26>=W28,Z28,0)),IF(AI$26>=W28,Z28,0)))) -> 2.142857143 | AG28: =IF(AI28=W28,0,EXP(-($D$16)*$D$13)*(AG29)+AF28) -> 10.25767149 | AI28: =IF(AI27>0," ",IF(OR(AP28="Failure",AH28="Abandon"),W28,)) -> 0 | AJ28: =IF(AB28>0,RANDBETWEEN(0,1000),1000) -> 744 | AK28: =O28 -> 1.052916175 | AL28: =P28 -> 2.015795128 | AM28: =IF(W28<=AK$24,0,IF(AND(W28>0,$D$19=1),AL28,IF(AND(W28>0,W28<=$E$19*$D$12+AK$24),AL28,0))) -> 0 | AN28: =IF(W28=$D$14*$D$12,IF(AM28+(AL29*$D$18)/(($D$16*$D$13)-($D$8*$D$13))<0,AM28,AM28+(AL29*$D$18)/(($D$16*$D$13)-($D$8*$D$13))),IF(AM28=0,EXP(-($D$16)*$D$13)*AN29+AM28,EXP(-($D$16)*$D$13)*AN29+AM28)) -> 74.92824032 | AT28: =IF(AT27<$D$14*$D$12,AT27+1,IF(AT27=$D$14*$D$12,,)) -> 1 | AU28: 0.5 | AV28: 0.2156920041 | AW28: =$D$27 -> 2.142857143 | AX28: 11.18569684 | AY28: 11.18569684 | AZ28: =IF(AND(AY27>0,AY28=0),EXP(-($D$16)*$D$13)*AZ29+IF(AW28-(0-AX28)<0,0,AW28-(0-AX28)),IF(AY28=0,0,EXP(-($D$16)*$D$13)*AZ29+AW28)) -> 11.16563954 | BB28: =MAX(BK28-AZ28,0) -> 41.98587064 | BC28: =IF(AX28=0,0,IF(AT28=0,0,IF(BF$26=1000,IF(AX28<0,IF(AX27>0,IF(AW28-(0-AX28)<0,0,AW28-(0-AX28)),0),IF(BF$26>=AT28,AW28,0)),IF(BF$26>=AT28,AW28,0)))) -> 2.142857143 | BD28: =IF(BF28=AT28,0,EXP(-($D$16)*$D$13)*(BD29)+BC28) -> 11.16563954 | BF28: =IF(BF27>0," ",IF(OR(BM28="Failure",BE28="Abandon"),AT28,)) -> 0 | BG28: =IF(AY28>0,RANDBETWEEN(0,1000),1000) -> 762 | BH28: 1.052916175 | BI28: 2.015795128 | BJ28: =IF(AT28<=BH$24,0,IF(AND(AT28>0,$D$19=1),BI28,IF(AND(AT28>0,AT28<=$E$19*$D$12+BH$24),BI28,0))) -> 0 | BK28: =IF(AT28=$D$14*$D$12,IF(BJ28+(BI29*$D$18)/(($D$16*$D$13)-($D$8*$D$13))<0,BJ28,BJ28+(BI29*$D$18)/(($D$16*$D$13)-($D$8*$D$13))),IF(BJ28=0,EXP(-($D$16)*$D$13)*BK29+BJ28,EXP(-($D$16)*$D$13)*BK29+BJ28)) -> 53.15151018 | BP28: =IF(BP27<$D$14*$D$12,BP27+1,IF(BP27=$D$14*$D$12,,)) -> 1 | BQ28: =AU28 -> 0.5 | BR28: 0.2156920041 | BS28: =$D$27 -> 2.142857143 | BT28: 11.18569684 | BU28: 11.18569684 | BV28: =IF(AND(BU27>0,BU28=0),EXP(-($D$16)*$D$13)*BV29+IF(BS28-(0-BT28)<0,0,BS28-(0-BT28)),IF(BU28=0,0,EXP(-($D$16)*$D$13)*BV29+BS28)) -> 10.04556492 | BX28: =MAX(CG28-BV28,0) -> 15.47828934 | BY28: =IF(BT28=0,0,IF(BP28=0,0,IF(CB$26=1000,IF(BT28<0,IF(BT27>0,IF(BS28-(0-BT28)<0,0,BS28-(0-BT28)),0),IF(CB$26>=BP28,BS28,0)),IF(CB$26>=BP28,BS28,0)))) -> 2.142857143 | BZ28: =IF(CB28=BP28,0,EXP(-($D$16)*$D$13)*(BZ29)+BY28) -> 10.04556492 | CB28: =IF(CB27>0," ",IF(OR(CI28="Failure",CA28="Abandon"),BP28,)) -> 0 | CC28: =IF(BU28>0,RANDBETWEEN(0,1000),1000) -> 297 | CD28: 1.052916175 | CE28: 2.015795128 | CF28: =IF(BP28<=CD$24,0,IF(AND(BP28>0,$D$19=1),CE28,IF(AND(BP28>0,BP28<=$E$19*$D$12+CD$24),CE28,0))) -> 0 | CG28: =IF(BP28=$D$14*$D$12,IF(CF28+(CE29*$D$18)/(($D$16*$D$13)-($D$8*$D$13))<0,CF28,CF28+(CE29*$D$18)/(($D$16*$D$13)-($D$8*$D$13))),IF(CF28=0,EXP(-($D$16)*$D$13)*CG29+CF28,EXP(-($D$16)*$D$13)*CG29+CF28)) -> 25.52385426 | CL28: =IF(CL27<$D$14*$D$12,CL27+1,IF(CL27=$D$14*$D$12,,)) -> 1 | CM28: =BQ28 -> 0.5 | CN28: 0.2156920041 | CO28: =$D$27 -> 2.142857143 | CP28: 11.18569684 | CQ28: 11.18569684 | CR28: =IF(AND(CQ27>0,CQ28=0),EXP(-($D$16)*$D$13)*CR29+IF(CO28-(0-CP28)<0,0,CO28-(0-CP28)),IF(CQ28=0,0,EXP(-($D$16)*$D$13)*CR29+CO28)) -> 10.02592166 | CT28: =MAX(DC28-CR28,0) -> 26.66843842 | CU28: =IF(CP28=0,0,IF(CL28=0,0,IF(CX$26=1000,IF(CP28<0,IF(CP27>0,IF(CO28-(0-CP28)<0,0,CO28-(0-CP28)),0),IF(CX$26>=CL28,CO28,0)),IF(CX$26>=CL28,CO28,0)))) -> 2.142857143 | CV28: =IF(CX28=CL28,0,EXP(-($D$16)*$D$13)*(CV29)+CU28) -> 10.02592166 | CX28: =IF(CX27>0," ",IF(OR(DE28="Failure",CW28="Abandon"),CL28,)) -> 0 | CY28: =IF(CQ28>0,RANDBETWEEN(0,1000),1000) -> 933 | CZ28: 1.052916175 | DA28: 2.015795128 | DB28: 0 | DC28: =IF(CL28=$D$14*$D$12,IF(DB28+(DA29*$D$18)/(($D$16*$D$13)-($D$8*$D$13))<0,DB28,DB28+(DA29*$D$18)/(($D$16*$D$13)-($D$8*$D$13))),IF(DB28=0,EXP(-($D$16)*$D$13)*DC29+DB28,EXP(-($D$16)*$D$13)*DC29+DB28)) -> 36.69436007 | DH28: =IF(DH27<$D$14*$D$12,DH27+1,IF(DH27=$D$14*$D$12,,)) -> 1 | DI28: =CM28 -> 0.5 | DJ28: 0.2156920041 | DK28: =$D$27 -> 2.142857143 | DL28: 11.18569684 | DM28: 11.18569684 | DN28: =IF(AND(DM27>0,DM28=0),EXP(-($D$16)*$D$13)*DN29+IF(DK28-(0-DL28)<0,0,DK28-(0-DL28)),IF(DM28=0,0,EXP(-($D$16)*$D$13)*DN29+DK28)) -> 10.02592166 | DP28: =MAX(DY28-DN28,0) -> 29.68446743 | DQ28: =IF(DL28=0,0,IF(DH28=0,0,IF(DT$26=1000,IF(DL28<0,IF(DL27>0,IF(DK28-(0-DL28)<0,0,DK28-(0-DL28)),0),IF(DT$26>=DH28,DK28,0)),IF(DT$26>=DH28,DK28,0)))) -> 2.142857143 | DR28: =IF(DT28=DH28,0,EXP(-($D$16)*$D$13)*(DR29)+DQ28) -> 10.02592166 | DT28: =IF(DT27>0," ",IF(OR(EA28="Failure",DS28="Abandon"),DH28,)) -> 0 | DU28: =IF(DM28>0,RANDBETWEEN(0,1000),1000) -> 849 | DV28: 1.052916175 | DW28: 2.015795128 | DX28: 0 | DY28: =IF(DH28=$D$14*$D$12,IF(DX28+(DW29*$D$18)/(($D$16*$D$13)-($D$8*$D$13))<0,DX28,DX28+(DW29*$D$18)/(($D$16*$D$13)-($D$8*$D$13))),IF(DX28=0,EXP(-($D$16)*$D$13)*DY29+DX28,EXP(-($D$16)*$D$13)*DY29+DX28)) -> 39.71038909 | ED28: =IF(ED27<$D$14*$D$12,ED27+1,IF(ED27=$D$14*$D$12,,)) -> 1 | EE28: =DI28 -> 0.5 | EF28: =DJ28 -> 0.2156920041 | EG28: =$D$27 -> 2.142857143 | EH28: =DL28 -> 11.18569684 | EI28: =DM28 -> 11.18569684 | EJ28: =IF(AND(EI27>0,EI28=0),EXP(-($D$16)*$D$13)*EJ29+IF(EG28-(0-EH28)<0,0,EG28-(0-EH28)),IF(EI28=0,0,EXP(-($D$16)*$D$13)*EJ29+EG28)) -> 10.02592166 | EL28: =MAX(EU28-EJ28,0) -> 35.98377877 | EM28: =IF(EH28=0,0,IF(ED28=0,0,IF(EP$26=1000,IF(EH28<0,IF(EH27>0,IF(EG28-(0-EH28)<0,0,EG28-(0-EH28)),0),IF(EP$26>=ED28,EG28,0)),IF(EP$26>=ED28,EG28,0)))) -> 2.142857143 | EN28: =IF(EP28=ED28,0,EXP(-($D$16)*$D$13)*(EN29)+EM28) -> 10.02592166 | EP28: =IF(EP27>0," ",IF(OR(EW28="Failure",EO28="Abandon"),ED28,)) -> 0 | EQ28: =IF(EI28>0,RANDBETWEEN(0,1000),1000) -> 227 | ER28: 1.052916175 | ES28: 2.015795128 | ET28: 0 | EU28: =IF(ED28=$D$14*$D$12,IF(ET28+(ES29*$D$18)/(($D$16*$D$13)-($D$8*$D$13))<0,ET28,ET28+(ES29*$D$18)/(($D$16*$D$13)-($D$8*$D$13))),IF(ET28=0,EXP(-($D$16)*$D$13)*EU29+ET28,EXP(-($D$16)*$D$13)*EU29+ET28)) -> 46.00970043 | EZ28: =IF(EZ27<$D$14*$D$12,EZ27+1,IF(EZ27=$D$14*$D$12,,)) -> 1 | FA28: =EE28 -> 0.5 | FB28: =EF28 -> 0.2156920041 | FC28: =$D$27 -> 2.142857143 | FD28: =EH28 -> 11.18569684 | FE28: =EI28 -> 11.18569684 | FF28: =IF(AND(FE27>0,FE28=0),EXP(-($D$16)*$D$13)*FF29+IF(FC28-(0-FD28)<0,0,FC28-(0-FD28)),IF(FE28=0,0,EXP(-($D$16)*$D$13)*FF29+FC28)) -> 10.02592166 | FH28: =MAX(FQ28-FF28,0) -> 38.81829468 | FI28: =IF(FD28=0,0,IF(EZ28=0,0,IF(FL$26=1000,IF(FD28<0,IF(FD27>0,IF(FC28-(0-FD28)<0,0,FC28-(0-FD28)),0),IF(FL$26>=EZ28,FC28,0)),IF(FL$26>=EZ28,FC28,0)))) -> 2.142857143 | FJ28: =IF(FL28=EZ28,0,EXP(-($D$16)*$D$13)*(FJ29)+FI28) -> 10.02592166 | FL28: =IF(FL27>0," ",IF(OR(FS28="Failure",FK28="Abandon"),EZ28,)) -> 0 | FM28: =IF(FE28>0,RANDBETWEEN(0,1000),1000) -> 27 | FN28: 1.052916175 | FO28: 2.015795128 | FP28: 0 | FQ28: =IF(EZ28=$D$14*$D$12,IF(FP28+(FO29*$D$18)/(($D$16*$D$13)-($D$8*$D$13))<0,FP28,FP28+(FO29*$D$18)/(($D$16*$D$13)-($D$8*$D$13))),IF(FP28=0,EXP(-($D$16)*$D$13)*FQ29+FP28,EXP(-($D$16)*$D$13)*FQ29+FP28)) -> 48.84421633 | FV28: =IF(FV27<$D$14*$D$12,FV27+1,IF(FV27=$D$14*$D$12,,)) -> 1 | FW28: =FA28 -> 0.5 | FX28: 0.2156920041 | FY28: =$D$27 -> 2.142857143 | FZ28: 11.18569684 | GA28: 11.18569684 | GB28: =IF(AND(GA27>0,GA28=0),EXP(-($D$16)*$D$13)*GB29+IF(FY28-(0-FZ28)<0,0,FY28-(0-FZ28)),IF(GA28=0,0,EXP(-($D$16)*$D$13)*GB29+FY28)) -> 10.02592166 | GD28: =MAX(GM28-GB28,0) -> 29.89161328 | GE28: =IF(FZ28=0,0,IF(FV28=0,0,IF(GH$26=1000,IF(FZ28<0,IF(FZ27>0,IF(FY28-(0-FZ28)<0,0,FY28-(0-FZ28)),0),IF(GH$26>=FV28,FY28,0)),IF(GH$26>=FV28,FY28,0)))) -> 2.142857143 | GF28: =IF(GH28=FV28,0,EXP(-($D$16)*$D$13)*(GF29)+GE28) -> 10.02592166 | GH28: =IF(GH27>0," ",IF(OR(GO28="Failure",GG28="Abandon"),FV28,)) -> 0 | GI28: =IF(GA28>0,RANDBETWEEN(0,1000),1000) -> 326 | GJ28: 1.052916175 | GK28: 2.015795128 | GL28: 0 | GM28: =IF(FV28=$D$14*$D$12,IF(GL28+(GK29*$D$18)/(($D$16*$D$13)-($D$8*$D$13))<0,GL28,GL28+(GK29*$D$18)/(($D$16*$D$13)-($D$8*$D$13))),IF(GL28=0,EXP(-($D$16)*$D$13)*GM29+GL28,EXP(-($D$16)*$D$13)*GM29+GL28)) -> 39.91753494 | GR28: =IF(GR27<$D$14*$D$12,GR27+1,IF(GR27=$D$14*$D$12,,)) -> 1 | GS28: =FW28 -> 0.5 | GT28: 0.2156920041 | GU28: =$D$27 -> 2.142857143 | GV28: 11.18569684 | GW28: 11.18569684 | GX28: =IF(AND(GW27>0,GW28=0),EXP(-($D$16)*$D$13)*GX29+IF(GU28-(0-GV28)<0,0,GU28-(0-GV28)),IF(GW28=0,0,EXP(-($D$16)*$D$13)*GX29+GU28)) -> 10.02592166 | GZ28: =MAX(HI28-GX28,0) -> 32.01915196 | HA28: =IF(GV28=0,0,IF(GR28=0,0,IF(HD$26=1000,IF(GV28<0,IF(GV27>0,IF(GU28-(0-GV28)<0,0,GU28-(0-GV28)),0),IF(HD$26>=GR28,GU28,0)),IF(HD$26>=GR28,GU28,0)))) -> 2.142857143 | HB28: =IF(HD28=GR28,0,EXP(-($D$16)*$D$13)*(HB29)+HA28) -> 10.02592166 | HD28: =IF(HD27>0," ",IF(OR(HK28="Failure",HC28="Abandon"),GR28,)) -> 0 | HE28: =IF(GW28>0,RANDBETWEEN(0,1000),1000) -> 869 | HF28: 1.052916175 | HG28: 2.015795128 | HH28: 0 | HI28: =IF(GR28=$D$14*$D$12,IF(HH28+(HG29*$D$18)/(($D$16*$D$13)-($D$8*$D$13))<0,HH28,HH28+(HG29*$D$18)/(($D$16*$D$13)-($D$8*$D$13))),IF(HH28=0,EXP(-($D$16)*$D$13)*HI29+HH28,EXP(-($D$16)*$D$13)*HI29+HH28)) -> 42.04507362 | HN28: =IF(HN27<$D$14*$D$12,HN27+1,IF(HN27=$D$14*$D$12,,)) -> 1 | HO28: =GS28 -> 0.5 | HP28: 0.2156920041 | HQ28: =$D$27 -> 2.142857143 | HR28: 11.18569684 | HS28: 11.18569684 | HT28: =IF(AND(HS27>0,HS28=0),EXP(-($D$16)*$D$13)*HT29+IF(HQ28-(0-HR28)<0,0,HQ28-(0-HR28)),IF(HS28=0,0,EXP(-($D$16)*$D$13)*HT29+HQ28)) -> 10.02592166 | HV28: =MAX(IE28-HT28,0) -> 30.99224453 | HW28: =IF(HR28=0,0,IF(HN28=0,0,IF(HZ$26=1000,IF(HR28<0,IF(HR27>0,IF(HQ28-(0-HR28)<0,0,HQ28-(0-HR28)),0),IF(HZ$26>=HN28,HQ28,0)),IF(HZ$26>=HN28,HQ28,0)))) -> 2.142857143 | HX28: =IF(HZ28=HN28,0,EXP(-($D$16)*$D$13)*(HX29)+HW28) -> 10.02592166 | HZ28: =IF(HZ27>0," ",IF(OR(IG28="Failure",HY28="Abandon"),HN28,)) -> 0 | IA28: =IF(HS28>0,RANDBETWEEN(0,1000),1000) -> 570 | IB28: 1.052916175 | IC28: 2.015795128 | ID28: 0 | IE28: =IF(HN28=$D$14*$D$12,IF(ID28+(IC29*$D$18)/(($D$16*$D$13)-($D$8*$D$13))<0,ID28,ID28+(IC29*$D$18)/(($D$16*$D$13)-($D$8*$D$13))),IF(ID28=0,EXP(-($D$16)*$D$13)*IE29+ID28,EXP(-($D$16)*$D$13)*IE29+ID28)) -> 41.01816619 | IJ28: =IF(IJ27<$D$14*$D$12,IJ27+1,IF(IJ27=$D$14*$D$12,,)) -> 1 | IK28: =HO28 -> 0.5 | IL28: 0.2156920041 | IM28: =$D$27 -> 2.142857143 | IN28: 11.18569684 | IO28: 11.18569684 | IP28: =IF(AND(IO27>0,IO28=0),EXP(-($D$16)*$D$13)*IP29+IF(IM28-(0-IN28)<0,0,IM28-(0-IN28)),IF(IO28=0,0,EXP(-($D$16)*$D$13)*IP29+IM28)) -> 10.02592166 | IR28: =MAX(JA28-IP28,0) -> 12.28419537 | IS28: =IF(IN28=0,0,IF(IJ28=0,0,IF(IV$26=1000,IF(IN28<0,IF(IN27>0,IF(IM28-(0-IN28)<0,0,IM28-(0-IN28)),0),IF(IV$26>=IJ28,IM28,0)),IF(IV$26>=IJ28,IM28,0)))) -> 2.142857143 | IT28: =IF(IV28=IJ28,0,EXP(-($D$16)*$D$13)*(IT29)+IS28) -> 10.02592166 | IV28: =IF(IV27>0," ",IF(OR(JC28="Failure",IU28="Abandon"),IJ28,)) -> 0 | IW28: =IF(IO28>0,RANDBETWEEN(0,1000),1000) -> 625 | IX28: 1.052916175 | IY28: 2.015795128 | IZ28: 0 | JA28: =IF(IJ28=$D$14*$D$12,IF(IZ28+(IY29*$D$18)/(($D$16*$D$13)-($D$8*$D$13))<0,IZ28,IZ28+(IY29*$D$18)/(($D$16*$D$13)-($D$8*$D$13))),IF(IZ28=0,EXP(-($D$16)*$D$13)*JA29+IZ28,EXP(-($D$16)*$D$13)*JA29+IZ28)) -> 22.31011702 | JF28: =IF(JF27<$D$14*$D$12,JF27+1,IF(JF27=$D$14*$D$12,,)) -> 1 | JG28: =IK28 -> 0.5 | JH28: 0.2156920041 | JI28: =$D$27 -> 2.142857143 | JJ28: 11.18569684 | JK28: 11.18569684 | JL28: =IF(AND(JK27>0,JK28=0),EXP(-($D$16)*$D$13)*JL29+IF(JI28-(0-JJ28)<0,0,JI28-(0-JJ28)),IF(JK28=0,0,EXP(-($D$16)*$D$13)*JL29+JI28)) -> 10.02592166 | JN28: =MAX(JW28-JL28,0) -> 13.12530461 | JO28: =IF(JJ28=0,0,IF(JF28=0,0,IF(JR$26=1000,IF(JJ28<0,IF(JJ27>0,IF(JI28-(0-JJ28)<0,0,JI28-(0-JJ28)),0),IF(JR$26>=JF28,JI28,0)),IF(JR$26>=JF28,JI28,0)))) -> 2.142857143 | JP28: =IF(JR28=JF28,0,EXP(-($D$16)*$D$13)*(JP29)+JO28) -> 10.02592166 | JR28: =IF(JR27>0," ",IF(OR(JY28="Failure",JQ28="Abandon"),JF28,)) -> 0 | JS28: =IF(JK28>0,RANDBETWEEN(0,1000),1000) -> 282 | JT28: 1.052916175 | JU28: 2.015795128 | JV28: 0 | JW28: =IF(JF28=$D$14*$D$12,IF(JV28+(JU29*$D$18)/(($D$16*$D$13)-($D$8*$D$13))<0,JV28,JV28+(JU29*$D$18)/(($D$16*$D$13)-($D$8*$D$13))),IF(JV28=0,EXP(-($D$16)*$D$13)*JW29+JV28,EXP(-($D$16)*$D$13)*JW29+JV28)) -> 23.15122627 | KB28: =IF(KB27<$D$14*$D$12,KB27+1,IF(KB27=$D$14*$D$12,,)) -> 1 | KC28: =JG28 -> 0.5 | KD28: 0.2156920041 | KE28: =$D$27 -> 2.142857143 | KF28: 11.18569684 | KG28: 11.18569684 | KH28: =IF(AND(KG27>0,KG28=0),EXP(-($D$16)*$D$13)*KH29+IF(KE28-(0-KF28)<0,0,KE28-(0-KF28)),IF(KG28=0,0,EXP(-($D$16)*$D$13)*KH29+KE28)) -> 10.02592166 | KJ28: =MAX(KS28-KH28,0) -> 25.32038924 | KK28: =IF(KF28=0,0,IF(KB28=0,0,IF(KN$26=1000,IF(KF28<0,IF(KF27>0,IF(KE28-(0-KF28)<0,0,KE28-(0-KF28)),0),IF(KN$26>=KB28,KE28,0)),IF(KN$26>=KB28,KE28,0)))) -> 2.142857143 | KL28: =IF(KN28=KB28,0,EXP(-($D$16)*$D$13)*(KL29)+KK28) -> 10.02592166 | KN28: =IF(KN27>0," ",IF(OR(KU28="Failure",KM28="Abandon"),KB28,)) -> 0 | KO28: =IF(KG28>0,RANDBETWEEN(0,1000),1000) -> 147 | KP28: 1.052916175 | KQ28: 2.015795128 | KR28: 0 | KS28: =IF(KB28=$D$14*$D$12,IF(KR28+(KQ29*$D$18)/(($D$16*$D$13)-($D$8*$D$13))<0,KR28,KR28+(KQ29*$D$18)/(($D$16*$D$13)-($D$8*$D$13))),IF(KR28=0,EXP(-($D$16)*$D$13)*KS29+KR28,EXP(-($D$16)*$D$13)*KS29+KR28)) -> 35.3463109 | KX28: =IF(KX27<$D$14*$D$12,KX27+1,IF(KX27=$D$14*$D$12,,)) -> 1 | KY28: =KC28 -> 0.5 | KZ28: 0.2156920041 | LA28: =$D$27 -> 2.142857143 | LB28: 11.18569684 | LC28: 11.18569684 | LD28: =IF(AND(LC27>0,LC28=0),EXP(-($D$16)*$D$13)*LD29+IF(LA28-(0-LB28)<0,0,LA28-(0-LB28)),IF(LC28=0,0,EXP(-($D$16)*$D$13)*LD29+LA28)) -> 10.02592166 | LF28: =MAX(LO28-LD28,0) -> 15.3716894 | LG28: =IF(LB28=0,0,IF(KX28=0,0,IF(LJ$26=1000,IF(LB28<0,IF(LB27>0,IF(LA28-(0-LB28)<0,0,LA28-(0-LB28)),0),IF(LJ$26>=KX28,LA28,0)),IF(LJ$26>=KX28,LA28,0)))) -> 2.142857143 | LH28: =IF(LJ28=KX28,0,EXP(-($D$16)*$D$13)*(LH29)+LG28) -> 10.02592166 | LJ28: =IF(LJ27>0," ",IF(OR(LQ28="Failure",LI28="Abandon"),KX28,)) -> 0 | LK28: =IF(LC28>0,RANDBETWEEN(0,1000),1000) -> 560 | LL28: 1.052916175 | LM28: 2.015795128 | LN28: 0 | LO28: =IF(KX28=$D$14*$D$12,IF(LN28+(LM29*$D$18)/(($D$16*$D$13)-($D$8*$D$13))<0,LN28,LN28+(LM29*$D$18)/(($D$16*$D$13)-($D$8*$D$13))),IF(LN28=0,EXP(-($D$16)*$D$13)*LO29+LN28,EXP(-($D$16)*$D$13)*LO29+LN28)) -> 25.39761106 | LT28: =IF(LT27<$D$14*$D$12,LT27+1,IF(LT27=$D$14*$D$12,,)) -> 1 | LU28: =KY28 -> 0.5 | LV28: 0.2156920041 | LW28: =$D$27 -> 2.142857143 | LX28: 11.18569684 | LY28: 11.18569684 | LZ28: =IF(AND(LY27>0,LY28=0),EXP(-($D$16)*$D$13)*LZ29+IF(LW28-(0-LX28)<0,0,LW28-(0-LX28)),IF(LY28=0,0,EXP(-($D$16)*$D$13)*LZ29+LW28)) -> 10.02592166 | MB28: =MAX(MK28-LZ28,0) -> 23.56242378 | MC28: =IF(LX28=0,0,IF(LT28=0,0,IF(MF$26=1000,IF(LX28<0,IF(LX27>0,IF(LW28-(0-LX28)<0,0,LW28-(0-LX28)),0),IF(MF$26>=LT28,LW28,0)),IF(MF$26>=LT28,LW28,0)))) -> 2.142857143 | MD28: =IF(MF28=LT28,0,EXP(-($D$16)*$D$13)*(MD29)+MC28) -> 10.02592166 | MF28: =IF(MF27>0," ",IF(OR(MM28="Failure",ME28="Abandon"),LT28,)) -> 0 | MG28: =IF(LY28>0,RANDBETWEEN(0,1000),1000) -> 91 | MH28: 1.052916175 | MI28: 2.015795128 | MJ28: 0 | MK28: =IF(LT28=$D$14*$D$12,IF(MJ28+(MI29*$D$18)/(($D$16*$D$13)-($D$8*$D$13))<0,MJ28,MJ28+(MI29*$D$18)/(($D$16*$D$13)-($D$8*$D$13))),IF(MJ28=0,EXP(-($D$16)*$D$13)*MK29+MJ28,EXP(-($D$16)*$D$13)*MK29+MJ28)) -> 33.58834543 | MP28: =IF(MP27<$D$14*$D$12,MP27+1,IF(MP27=$D$14*$D$12,,)) -> 1 | MQ28: =LU28 -> 0.5 | MR28: 0.2156920041 | MS28: =$D$27 -> 2.142857143 | MT28: 11.18569684 | MU28: 11.18569684 | MV28: =IF(AND(MU27>0,MU28=0),EXP(-($D$16)*$D$13)*MV29+IF(MS28-(0-MT28)<0,0,MS28-(0-MT28)),IF(MU28=0,0,EXP(-($D$16)*$D$13)*MV29+MS28)) -> 10.02592166 | MX28: =MAX(NG28-MV28,0) -> 19.86617784 | MY28: =IF(MT28=0,0,IF(MP28=0,0,IF(NB$26=1000,IF(MT28<0,IF(MT27>0,IF(MS28-(0-MT28)<0,0,MS28-(0-MT28)),0),IF(NB$26>=MP28,MS28,0)),IF(NB$26>=MP28,MS28,0)))) -> 2.142857143 | MZ28: =IF(NB28=MP28,0,EXP(-($D$16)*$D$13)*(MZ29)+MY28) -> 10.02592166 | NB28: =IF(NB27>0," ",IF(OR(NI28="Failure",NA28="Abandon"),MP28,)) -> 0 | NC28: =IF(MU28>0,RANDBETWEEN(0,1000),1000) -> 128 | ND28: 1.052916175 | NE28: 2.015795128 | NF28: 0 | NG28: =IF(MP28=$D$14*$D$12,IF(NF28+(NE29*$D$18)/(($D$16*$D$13)-($D$8*$D$13))<0,NF28,NF28+(NE29*$D$18)/(($D$16*$D$13)-($D$8*$D$13))),IF(NF28=0,EXP(-($D$16)*$D$13)*NG29+NF28,EXP(-($D$16)*$D$13)*NG29+NF28)) -> 29.89209949 | NL28: =IF(NL27<$D$14*$D$12,NL27+1,IF(NL27=$D$14*$D$12,,)) -> 1 | NM28: =MQ28 -> 0.5 | NN28: 0.2156920041 | NO28: =$D$27 -> 2.142857143 | NP28: 11.18569684 | NQ28: 11.18569684 | NR28: =IF(AND(NQ27>0,NQ28=0),EXP(-($D$16)*$D$13)*NR29+IF(NO28-(0-NP28)<0,0,NO28-(0-NP28)),IF(NQ28=0,0,EXP(-($D$16)*$D$13)*NR29+NO28)) -> 10.02592166 | NT28: =MAX(OC28-NR28,0) -> 29.4753724 | NU28: =IF(NP28=0,0,IF(NL28=0,0,IF(NX$26=1000,IF(NP28<0,IF(NP27>0,IF(NO28-(0-NP28)<0,0,NO28-(0-NP28)),0),IF(NX$26>=NL28,NO28,0)),IF(NX$26>=NL28,NO28,0)))) -> 2.142857143 | NV28: =IF(NX28=NL28,0,EXP(-($D$16)*$D$13)*(NV29)+NU28) -> 10.02592166 | NX28: =IF(NX27>0," ",IF(OR(OE28="Failure",NW28="Abandon"),NL28,)) -> 0 | NY28: =IF(NQ28>0,RANDBETWEEN(0,1000),1000) -> 776 | NZ28: 1.052916175 | OA28: 2.015795128 | OB28: 0 | OC28: =IF(NL28=$D$14*$D$12,IF(OB28+(OA29*$D$18)/(($D$16*$D$13)-($D$8*$D$13))<0,OB28,OB28+(OA29*$D$18)/(($D$16*$D$13)-($D$8*$D$13))),IF(OB28=0,EXP(-($D$16)*$D$13)*OC29+OB28,EXP(-($D$16)*$D$13)*OC29+OB28)) -> 39.50129406 | OH28: =IF(OH27<$D$14*$D$12,OH27+1,IF(OH27=$D$14*$D$12,,)) -> 1 | OI28: =NM28 -> 0.5 | OJ28: 0.2156920041 | OK28: =$D$27 -> 2.142857143 | OL28: 11.18569684 | OM28: 11.18569684 | ON28: =IF(AND(OM27>0,OM28=0),EXP(-($D$16)*$D$13)*ON29+IF(OK28-(0-OL28)<0,0,OK28-(0-OL28)),IF(OM28=0,0,EXP(-($D$16)*$D$13)*ON29+OK28)) -> 10.02592166 | OP28: =MAX(OY28-ON28,0) -> 25.41848529 | OQ28: =IF(OL28=0,0,IF(OH28=0,0,IF(OT$26=1000,IF(OL28<0,IF(OL27>0,IF(OK28-(0-OL28)<0,0,OK28-(0-OL28)),0),IF(OT$26>=OH28,OK28,0)),IF(OT$26>=OH28,OK28,0)))) -> 2.142857143 | OR28: =IF(OT28=OH28,0,EXP(-($D$16)*$D$13)*(OR29)+OQ28) -> 10.02592166 | OT28: =IF(OT27>0," ",IF(OR(PA28="Failure",OS28="Abandon"),OH28,)) -> 0 | OU28: =IF(OM28>0,RANDBETWEEN(0,1000),1000) -> 769 | OV28: 1.052916175 | OW28: 2.015795128 | OX28: 0 | OY28: =IF(OH28=$D$14*$D$12,IF(OX28+(OW29*$D$18)/(($D$16*$D$13)-($D$8*$D$13))<0,OX28,OX28+(OW29*$D$18)/(($D$16*$D$13)-($D$8*$D$13))),IF(OX28=0,EXP(-($D$16)*$D$13)*OY29+OX28,EXP(-($D$16)*$D$13)*OY29+OX28)) -> 35.44440694 | PD28: =IF(PD27<$D$14*$D$12,PD27+1,IF(PD27=$D$14*$D$12,,)) -> 1 | PE28: =OI28 -> 0.5 | PF28: =OJ28 -> 0.2156920041 | PG28: =$D$27 -> 2.142857143 | PH28: 11.18569684 | PI28: 11.18569684 | PJ28: =IF(AND(PI27>0,PI28=0),EXP(-($D$16)*$D$13)*PJ29+IF(PG28-(0-PH28)<0,0,PG28-(0-PH28)),IF(PI28=0,0,EXP(-($D$16)*$D$13)*PJ29+PG28)) -> 10.02592166 | PL28: =MAX(PU28-PJ28,0) -> 24.8658607 | PM28: =IF(PH28=0,0,IF(PD28=0,0,IF(PP$26=1000,IF(PH28<0,IF(PH27>0,IF(PG28-(0-PH28)<0,0,PG28-(0-PH28)),0),IF(PP$26>=PD28,PG28,0)),IF(PP$26>=PD28,PG28,0)))) -> 2.142857143 | PN28: =IF(PP28=PD28,0,EXP(-($D$16)*$D$13)*(PN29)+PM28) -> 10.02592166 | PP28: =IF(PP27>0," ",IF(OR(PW28="Failure",PO28="Abandon"),PD28,)) -> 0 | PQ28: =IF(PI28>0,RANDBETWEEN(0,1000),1000) -> 732 | PR28: 1.052916175 | PS28: 2.015795128 | PT28: 0 | PU28: =IF(PD28=$D$14*$D$12,IF(PT28+(PS29*$D$18)/(($D$16*$D$13)-($D$8*$D$13))<0,PT28,PT28+(PS29*$D$18)/(($D$16*$D$13)-($D$8*$D$13))),IF(PT28=0,EXP(-($D$16)*$D$13)*PU29+PT28,EXP(-($D$16)*$D$13)*PU29+PT28)) -> 34.89178235 | PZ28: =IF(PZ27<$D$14*$D$12,PZ27+1,IF(PZ27=$D$14*$D$12,,)) -> 1 | QA28: =PE28 -> 0.5 | QB28: 0.2156920041 | QC28: =$D$27 -> 2.142857143 | QD28: 11.18569684 | QE28: 11.18569684 | QF28: =IF(AND(QE27>0,QE28=0),EXP(-($D$16)*$D$13)*QF29+IF(QC28-(0-QD28)<0,0,QC28-(0-QD28)),IF(QE28=0,0,EXP(-($D$16)*$D$13)*QF29+QC28)) -> 10.02592166 | QH28: =MAX(QQ28-QF28,0) -> 23.27879273 | QI28: =IF(QD28=0,0,IF(PZ28=0,0,IF(QL$26=1000,IF(QD28<0,IF(QD27>0,IF(QC28-(0-QD28)<0,0,QC28-(0-QD28)),0),IF(QL$26>=PZ28,QC28,0)),IF(QL$26>=PZ28,QC28,0)))) -> 2.142857143 | QJ28: =IF(QL28=PZ28,0,EXP(-($D$16)*$D$13)*(QJ29)+QI28) -> 10.02592166 | QL28: =IF(QL27>0," ",IF(OR(QS28="Failure",QK28="Abandon"),PZ28,)) -> 0 | QM28: =IF(QE28>0,RANDBETWEEN(0,1000),1000) -> 81 | QN28: 1.052916175 | QO28: 2.015795128 | QP28: 0 | QQ28: =IF(PZ28=$D$14*$D$12,IF(QP28+(QO29*$D$18)/(($D$16*$D$13)-($D$8*$D$13))<0,QP28,QP28+(QO29*$D$18)/(($D$16*$D$13)-($D$8*$D$13))),IF(QP28=0,EXP(-($D$16)*$D$13)*QQ29+QP28,EXP(-($D$16)*$D$13)*QQ29+QP28)) -> 33.30471438 | QV28: =IF(QV27<$D$14*$D$12,QV27+1,IF(QV27=$D$14*$D$12,,)) -> 1 | QW28: 0.5 | QX28: 0.2156920041 | QY28: =$D$27 -> 2.142857143 | QZ28: 11.18569684 | RA28: 11.18569684 | RB28: =IF(AND(RA27>0,RA28=0),EXP(-($D$16)*$D$13)*RB29+IF(QY28-(0-QZ28)<0,0,QY28-(0-QZ28)),IF(RA28=0,0,EXP(-($D$16)*$D$13)*RB29+QY28)) -> 10.02592166 | RD28: =MAX(RM28-RB28,0) -> 25.43388879 | RE28: =IF(QZ28=0,0,IF(QV28=0,0,IF(RH$26=1000,IF(QZ28<0,IF(QZ27>0,IF(QY28-(0-QZ28)<0,0,QY28-(0-QZ28)),0),IF(RH$26>=QV28,QY28,0)),IF(RH$26>=QV28,QY28,0)))) -> 2.142857143 | RF28: =IF(RH28=QV28,0,EXP(-($D$16)*$D$13)*(RF29)+RE28) -> 10.02592166 | RH28: =IF(RH27>0," ",IF(OR(RO28="Failure",RG28="Abandon"),QV28,)) -> 0 | RI28: =IF(RA28>0,RANDBETWEEN(0,1000),1000) -> 124 | RJ28: 1.052916175 | RK28: 2.015795128 | RL28: 0 | RM28: =IF(QV28=$D$14*$D$12,IF(RL28+(RK29*$D$18)/(($D$16*$D$13)-($D$8*$D$13))<0,RL28,RL28+(RK29*$D$18)/(($D$16*$D$13)-($D$8*$D$13))),IF(RL28=0,EXP(-($D$16)*$D$13)*RM29+RL28,EXP(-($D$16)*$D$13)*RM29+RL28)) -> 35.45981045 | RR28: =IF(RR27<$D$14*$D$12,RR27+1,IF(RR27=$D$14*$D$12,,)) -> 1 | RS28: 0.5 | RT28: 0.2156920041 | RU28: =$D$27 -> 2.142857143 | RV28: 11.18569684 | RW28: 11.18569684 | RX28: =IF(AND(RW27>0,RW28=0),EXP(-($D$16)*$D$13)*RX29+IF(RU28-(0-RV28)<0,0,RU28-(0-RV28)),IF(RW28=0,0,EXP(-($D$16)*$D$13)*RX29+RU28)) -> 10.02592166 | RZ28: =MAX(SI28-RX28,0) -> 31.12379989 | SA28: =IF(RV28=0,0,IF(RR28=0,0,IF(SD$26=1000,IF(RV28<0,IF(RV27>0,IF(RU28-(0-RV28)<0,0,RU28-(0-RV28)),0),IF(SD$26>=RR28,RU28,0)),IF(SD$26>=RR28,RU28,0)))) -> 2.142857143 | SB28: =IF(SD28=RR28,0,EXP(-($D$16)*$D$13)*(SB29)+SA28) -> 10.02592166 | SD28: =IF(SD27>0," ",IF(OR(SK28="Failure",SC28="Abandon"),RR28,)) -> 0 | SE28: =IF(RW28>0,RANDBETWEEN(0,1000),1000) -> 762 | SF28: 1.052916175 | SG28: 2.015795128 | SH28: 0 | SI28: =IF(RR28=$D$14*$D$12,IF(SH28+(SG29*$D$18)/(($D$16*$D$13)-($D$8*$D$13))<0,SH28,SH28+(SG29*$D$18)/(($D$16*$D$13)-($D$8*$D$13))),IF(SH28=0,EXP(-($D$16)*$D$13)*SI29+SH28,EXP(-($D$16)*$D$13)*SI29+SH28)) -> 41.14972155 | SN28: =IF(SN27<$D$14*$D$12,SN27+1,IF(SN27=$D$14*$D$12,,)) -> 1 | SO28: 0.5 | SP28: 0.2156920041 | SQ28: =$D$27 -> 2.142857143 | SR28: 11.18569684 | SS28: 11.18569684 | ST28: =IF(AND(SS27>0,SS28=0),EXP(-($D$16)*$D$13)*ST29+IF(SQ28-(0-SR28)<0,0,SQ28-(0-SR28)),IF(SS28=0,0,EXP(-($D$16)*$D$13)*ST29+SQ28)) -> 10.02592166 | SV28: =MAX(TE28-ST28,0) -> 32.92575251 | SW28: =IF(SR28=0,0,IF(SN28=0,0,IF(SZ$26=1000,IF(SR28<0,IF(SR27>0,IF(SQ28-(0-SR28)<0,0,SQ28-(0-SR28)),0),IF(SZ$26>=SN28,SQ28,0)),IF(SZ$26>=SN28,SQ28,0)))) -> 2.142857143 | SX28: =IF(SZ28=SN28,0,EXP(-($D$16)*$D$13)*(SX29)+SW28) -> 10.02592166 | SZ28: =IF(SZ27>0," ",IF(OR(TG28="Failure",SY28="Abandon"),SN28,)) -> 0 | TA28: =IF(SS28>0,RANDBETWEEN(0,1000),1000) -> 696 | TB28: 1.052916175 | TC28: 2.015795128 | TD28: 0 | TE28: =IF(SN28=$D$14*$D$12,IF(TD28+(TC29*$D$18)/(($D$16*$D$13)-($D$8*$D$13))<0,TD28,TD28+(TC29*$D$18)/(($D$16*$D$13)-($D$8*$D$13))),IF(TD28=0,EXP(-($D$16)*$D$13)*TE29+TD28,EXP(-($D$16)*$D$13)*TE29+TD28)) -> 42.95167417 | TJ28: =IF(TJ27<$D$14*$D$12,TJ27+1,IF(TJ27=$D$14*$D$12,,)) -> 1 | TK28: =SO28 -> 0.5 | TL28: 0.2156920041 | TM28: =$D$27 -> 2.142857143 | TN28: 11.18569684 | TO28: 11.18569684 | TP28: =IF(AND(TO27>0,TO28=0),EXP(-($D$16)*$D$13)*TP29+IF(TM28-(0-TN28)<0,0,TM28-(0-TN28)),IF(TO28=0,0,EXP(-($D$16)*$D$13)*TP29+TM28)) -> 10.02592166 | TR28: =MAX(UA28-TP28,0) -> 28.94041793 | TS28: =IF(TN28=0,0,IF(TJ28=0,0,IF(TV$26=1000,IF(TN28<0,IF(TN27>0,IF(TM28-(0-TN28)<0,0,TM28-(0-TN28)),0),IF(TV$26>=TJ28,TM28,0)),IF(TV$26>=TJ28,TM28,0)))) -> 2.142857143 | TT28: =IF(TV28=TJ28,0,EXP(-($D$16)*$D$13)*(TT29)+TS28) -> 10.02592166 | TV28: =IF(TV27>0," ",IF(OR(UC28="Failure",TU28="Abandon"),TJ28,)) -> 0 | TW28: =IF(TO28>0,RANDBETWEEN(0,1000),1000) -> 668 | TX28: 1.052916175 | TY28: 2.015795128 | TZ28: 0 | UA28: =IF(TJ28=$D$14*$D$12,IF(TZ28+(TY29*$D$18)/(($D$16*$D$13)-($D$8*$D$13))<0,TZ28,TZ28+(TY29*$D$18)/(($D$16*$D$13)-($D$8*$D$13))),IF(TZ28=0,EXP(-($D$16)*$D$13)*UA29+TZ28,EXP(-($D$16)*$D$13)*UA29+TZ28)) -> 38.96633959 | UF28: =IF(UF27<$D$14*$D$12,UF27+1,IF(UF27=$D$14*$D$12,,)) -> 1 | UG28: =TK28 -> 0.5 | UH28: 0.2156920041 | UI28: =$D$27 -> 2.142857143 | UJ28: 11.18569684 | UK28: 11.18569684 | UL28: =IF(AND(UK27>0,UK28=0),EXP(-($D$16)*$D$13)*UL29+IF(UI28-(0-UJ28)<0,0,UI28-(0-UJ28)),IF(UK28=0,0,EXP(-($D$16)*$D$13)*UL29+UI28)) -> 10.02592166 | UN28: =MAX(UW28-UL28,0) -> 32.35287872 | UO28: =IF(UJ28=0,0,IF(UF28=0,0,IF(UR$26=1000,IF(UJ28<0,IF(UJ27>0,IF(UI28-(0-UJ28)<0,0,UI28-(0-UJ28)),0),IF(UR$26>=UF28,UI28,0)),IF(UR$26>=UF28,UI28,0)))) -> 2.142857143 | UP28: =IF(UR28=UF28,0,EXP(-($D$16)*$D$13)*(UP29)+UO28) -> 10.02592166 | UR28: =IF(UR27>0," ",IF(OR(UY28="Failure",UQ28="Abandon"),UF28,)) -> 0 | US28: =IF(UK28>0,RANDBETWEEN(0,1000),1000) -> 739 | UT28: 1.052916175 | UU28: 2.015795128 | UV28: 0 | UW28: =IF(UF28=$D$14*$D$12,IF(UV28+(UU29*$D$18)/(($D$16*$D$13)-($D$8*$D$13))<0,UV28,UV28+(UU29*$D$18)/(($D$16*$D$13)-($D$8*$D$13))),IF(UV28=0,EXP(-($D$16)*$D$13)*UW29+UV28,EXP(-($D$16)*$D$13)*UW29+UV28)) -> 42.37880037 | VB28: =IF(VB27<$D$14*$D$12,VB27+1,IF(VB27=$D$14*$D$12,,)) -> 1 | VC28: =UG28 -> 0.5 | VD28: 0.2156920041 | VE28: =$D$27 -> 2.142857143 | VF28: 11.18569684 | VG28: 11.18569684 | VH28: =IF(AND(VG27>0,VG28=0),EXP(-($D$16)*$D$13)*VH29+IF(VE28-(0-VF28)<0,0,VE28-(0-VF28)),IF(VG28=0,0,EXP(-($D$16)*$D$13)*VH29+VE28)) -> 10.02592166 | VJ28: =MAX(VS28-VH28,0) -> 31.01122006 | VK28: =IF(VF28=0,0,IF(VB28=0,0,IF(VN$26=1000,IF(VF28<0,IF(VF27>0,IF(VE28-(0-VF28)<0,0,VE28-(0-VF28)),0),IF(VN$26>=VB28,VE28,0)),IF(VN$26>=VB28,VE28,0)))) -> 2.142857143 | VL28: =IF(VN28=VB28,0,EXP(-($D$16)*$D$13)*(VL29)+VK28) -> 10.02592166 | VN28: =IF(VN27>0," ",IF(OR(VU28="Failure",VM28="Abandon"),VB28,)) -> 0 | VO28: =IF(VG28>0,RANDBETWEEN(0,1000),1000) -> 691 | VP28: 1.052916175 | VQ28: 2.015795128 | VR28: 0 | VS28: =IF(VB28=$D$14*$D$12,IF(VR28+(VQ29*$D$18)/(($D$16*$D$13)-($D$8*$D$13))<0,VR28,VR28+(VQ29*$D$18)/(($D$16*$D$13)-($D$8*$D$13))),IF(VR28=0,EXP(-($D$16)*$D$13)*VS29+VR28,EXP(-($D$16)*$D$13)*VS29+VR28)) -> 41.03714172 | VX28: =IF(VX27<$D$14*$D$12,VX27+1,IF(VX27=$D$14*$D$12,,)) -> 1 | VY28: =VC28 -> 0.5 | VZ28: =VD28 -> 0.2156920041 | WA28: =$D$27 -> 2.142857143 | WB28: =VF28 -> 11.18569684 | WC28: =VG28 -> 11.18569684 | WD28: =IF(AND(WC27>0,WC28=0),EXP(-($D$16)*$D$13)*WD29+IF(WA28-(0-WB28)<0,0,WA28-(0-WB28)),IF(WC28=0,0,EXP(-($D$16)*$D$13)*WD29+WA28)) -> 10.02592166 | WF28: =MAX(WO28-WD28,0) -> 31.25342162 | WG28: =IF(WB28=0,0,IF(VX28=0,0,IF(WJ$26=1000,IF(WB28<0,IF(WB27>0,IF(WA28-(0-WB28)<0,0,WA28-(0-WB28)),0),IF(WJ$26>=VX28,WA28,0)),IF(WJ$26>=VX28,WA28,0)))) -> 2.142857143 | WH28: =IF(WJ28=VX28,0,EXP(-($D$16)*$D$13)*(WH29)+WG28) -> 10.02592166 | WJ28: =IF(WJ27>0," ",IF(OR(WQ28="Failure",WI28="Abandon"),VX28,)) -> 0 | WK28: =IF(WC28>0,RANDBETWEEN(0,1000),1000) -> 753 | WL28: 1.052916175 | WM28: 2.015795128 | WN28: 0 | WO28: =IF(VX28=$D$14*$D$12,IF(WN28+(WM29*$D$18)/(($D$16*$D$13)-($D$8*$D$13))<0,WN28,WN28+(WM29*$D$18)/(($D$16*$D$13)-($D$8*$D$13))),IF(WN28=0,EXP(-($D$16)*$D$13)*WO29+WN28,EXP(-($D$16)*$D$13)*WO29+WN28)) -> 41.27934328 | WT28: =IF(WT27<$D$14*$D$12,WT27+1,IF(WT27=$D$14*$D$12,,)) -> 1 | WU28: =VY28 -> 0.5 | WV28: =VZ28 -> 0.2156920041 | WW28: =$D$27 -> 2.142857143 | WX28: =WB28 -> 11.18569684 | WY28: =WC28 -> 11.18569684 | WZ28: =IF(AND(WY27>0,WY28=0),EXP(-($D$16)*$D$13)*WZ29+IF(WW28-(0-WX28)<0,0,WW28-(0-WX28)),IF(WY28=0,0,EXP(-($D$16)*$D$13)*WZ29+WW28)) -> 10.02592166 | XB28: =MAX(XK28-WZ28,0) -> 34.29259049 | XC28: =IF(WX28=0,0,IF(WT28=0,0,IF(XF$26=1000,IF(WX28<0,IF(WX27>0,IF(WW28-(0-WX28)<0,0,WW28-(0-WX28)),0),IF(XF$26>=WT28,WW28,0)),IF(XF$26>=WT28,WW28,0)))) -> 2.142857143 | XD28: =IF(XF28=WT28,0,EXP(-($D$16)*$D$13)*(XD29)+XC28) -> 10.02592166 | XF28: =IF(XF27>0," ",IF(OR(XM28="Failure",XE28="Abandon"),WT28,)) -> 0 | XG28: =IF(WY28>0,RANDBETWEEN(0,1000),1000) -> 76 | XH28: 1.052916175 | XI28: 2.015795128 | XJ28: 0 | XK28: =IF(WT28=$D$14*$D$12,IF(XJ28+(XI29*$D$18)/(($D$16*$D$13)-($D$8*$D$13))<0,XJ28,XJ28+(XI29*$D$18)/(($D$16*$D$13)-($D$8*$D$13))),IF(XJ28=0,EXP(-($D$16)*$D$13)*XK29+XJ28,EXP(-($D$16)*$D$13)*XK29+XJ28)) -> 44.31851215 | XP28: =IF(XP27<$D$14*$D$12,XP27+1,IF(XP27=$D$14*$D$12,,)) -> 1 | XQ28: =WU28 -> 0.5 | XR28: =WV28 -> 0.2156920041 | XS28: =$D$27 -> 2.142857143 | XT28: =WX28 -> 11.18569684 | XU28: =WY28 -> 11.18569684 | XV28: =IF(AND(XU27>0,XU28=0),EXP(-($D$16)*$D$13)*XV29+IF(XS28-(0-XT28)<0,0,XS28-(0-XT28)),IF(XU28=0,0,EXP(-($D$16)*$D$13)*XV29+XS28)) -> 10.02592166 | XX28: =MAX(YG28-XV28,0) -> 33.2815692 | XY28: =IF(XT28=0,0,IF(XP28=0,0,IF(YB$26=1000,IF(XT28<0,IF(XT27>0,IF(XS28-(0-XT28)<0,0,XS28-(0-XT28)),0),IF(YB$26>=XP28,XS28,0)),IF(YB$26>=XP28,XS28,0)))) -> 2.142857143 | XZ28: =IF(YB28=XP28,0,EXP(-($D$16)*$D$13)*(XZ29)+XY28) -> 10.02592166 | YB28: =IF(YB27>0," ",IF(OR(YI28="Failure",YA28="Abandon"),XP28,)) -> 0 | YC28: =IF(XU28>0,RANDBETWEEN(0,1000),1000) -> 18 | YD28: 1.052916175 | YE28: 2.015795128 | YF28: 0 | YG28: =IF(XP28=$D$14*$D$12,IF(YF28+(YE29*$D$18)/(($D$16*$D$13)-($D$8*$D$13))<0,YF28,YF28+(YE29*$D$18)/(($D$16*$D$13)-($D$8*$D$13))),IF(YF28=0,EXP(-($D$16)*$D$13)*YG29+YF28,EXP(-($D$16)*$D$13)*YG29+YF28)) -> 43.30749086 | YL28: =IF(YL27<$D$14*$D$12,YL27+1,IF(YL27=$D$14*$D$12,,)) -> 1 | YM28: =XQ28 -> 0.5 | YN28: =XR28 -> 0.2156920041 | YO28: =$D$27 -> 2.142857143 | YP28: =XT28 -> 11.18569684 | YQ28: =XU28 -> 11.18569684 | YR28: =IF(AND(YQ27>0,YQ28=0),EXP(-($D$16)*$D$13)*YR29+IF(YO28-(0-YP28)<0,0,YO28-(0-YP28)),IF(YQ28=0,0,EXP(-($D$16)*$D$13)*YR29+YO28)) -> 10.02592166 | YT28: =MAX(ZC28-YR28,0) -> 31.35298993 | YU28: =IF(YP28=0,0,IF(YL28=0,0,IF(YX$26=1000,IF(YP28<0,IF(YP27>0,IF(YO28-(0-YP28)<0,0,YO28-(0-YP28)),0),IF(YX$26>=YL28,YO28,0)),IF(YX$26>=YL28,YO28,0)))) -> 2.142857143 | YV28: =IF(YX28=YL28,0,EXP(-($D$16)*$D$13)*(YV29)+YU28) -> 10.02592166 | YX28: =IF(YX27>0," ",IF(OR(ZE28="Failure",YW28="Abandon"),YL28,)) -> 0 | YY28: =IF(YQ28>0,RANDBETWEEN(0,1000),1000) -> 157 | YZ28: 1.052916175 | ZA28: 2.015795128 | ZB28: 0 | ZC28: =IF(YL28=$D$14*$D$12,IF(ZB28+(ZA29*$D$18)/(($D$16*$D$13)-($D$8*$D$13))<0,ZB28,ZB28+(ZA29*$D$18)/(($D$16*$D$13)-($D$8*$D$13))),IF(ZB28=0,EXP(-($D$16)*$D$13)*ZC29+ZB28,EXP(-($D$16)*$D$13)*ZC29+ZB28)) -> 41.37891159 | ZH28: =IF(ZH27<$D$14*$D$12,ZH27+1,IF(ZH27=$D$14*$D$12,,)) -> 1 | ZI28: =YM28 -> 0.5 | ZJ28: =YN28 -> 0.2156920041 | ZK28: =$D$27 -> 2.142857143 | ZL28: =YP28 -> 11.18569684 | ZM28: =YQ28 -> 11.18569684 | ZN28: =IF(AND(ZM27>0,ZM28=0),EXP(-($D$16)*$D$13)*ZN29+IF(ZK28-(0-ZL28)<0,0,ZK28-(0-ZL28)),IF(ZM28=0,0,EXP(-($D$16)*$D$13)*ZN29+ZK28)) -> 10.02592166 | ZP28: =MAX(ZY28-ZN28,0) -> 31.16594397 | ZQ28: =IF(ZL28=0,0,IF(ZH28=0,0,IF(ZT$26=1000,IF(ZL28<0,IF(ZL27>0,IF(ZK28-(0-ZL28)<0,0,ZK28-(0-ZL28)),0),IF(ZT$26>=ZH28,ZK28,0)),IF(ZT$26>=ZH28,ZK28,0)))) -> 2.142857143 | ZR28: =IF(ZT28=ZH28,0,EXP(-($D$16)*$D$13)*(ZR29)+ZQ28) -> 10.02592166 | ZT28: =IF(ZT27>0," ",IF(OR(AAA28="Failure",ZS28="Abandon"),ZH28,)) -> 0 | ZU28: =IF(ZM28>0,RANDBETWEEN(0,1000),1000) -> 785 | ZV28: 1.052916175 | ZW28: 2.015795128 | ZX28: 0 | ZY28: =IF(ZH28=$D$14*$D$12,IF(ZX28+(ZW29*$D$18)/(($D$16*$D$13)-($D$8*$D$13))<0,ZX28,ZX28+(ZW29*$D$18)/(($D$16*$D$13)-($D$8*$D$13))),IF(ZX28=0,EXP(-($D$16)*$D$13)*ZY29+ZX28,EXP(-($D$16)*$D$13)*ZY29+ZX28)) -> 41.19186562 | AAD28: =IF(AAD27<$D$14*$D$12,AAD27+1,IF(AAD27=$D$14*$D$12,,)) -> 1 | AAE28: =ZI28 -> 0.5 | AAF28: =ZJ28 -> 0.2156920041 | AAG28: =$D$27 -> 2.142857143 | AAH28: =ZL28 -> 11.18569684 | AAI28: =ZM28 -> 11.18569684 | AAJ28: =IF(AND(AAI27>0,AAI28=0),EXP(-($D$16)*$D$13)*AAJ29+IF(AAG28-(0-AAH28)<0,0,AAG28-(0-AAH28)),IF(AAI28=0,0,EXP(-($D$16)*$D$13)*AAJ29+AAG28)) -> 10.02592166 | AAL28: =MAX(AAU28-AAJ28,0) -> 30.9287523 | AAM28: =IF(AAH28=0,0,IF(AAD28=0,0,IF(AAP$26=1000,IF(AAH28<0,IF(AAH27>0,IF(AAG28-(0-AAH28)<0,0,AAG28-(0-AAH28)),0),IF(AAP$26>=AAD28,AAG28,0)),IF(AAP$26>=AAD28,AAG28,0)))) -> 2.142857143 | AAN28: =IF(AAP28=AAD28,0,EXP(-($D$16)*$D$13)*(AAN29)+AAM28) -> 10.02592166 | AAP28: =IF(AAP27>0," ",IF(OR(AAW28="Failure",AAO28="Abandon"),AAD28,)) -> 0 | AAQ28: =IF(AAI28>0,RANDBETWEEN(0,1000),1000) -> 533 | AAR28: 1.052916175 | AAS28: 2.015795128 | AAT28: 0 | AAU28: =IF(AAD28=$D$14*$D$12,IF(AAT28+(AAS29*$D$18)/(($D$16*$D$13)-($D$8*$D$13))<0,AAT28,AAT28+(AAS29*$D$18)/(($D$16*$D$13)-($D$8*$D$13))),IF(AAT28=0,EXP(-($D$16)*$D$13)*AAU29+AAT28,EXP(-($D$16)*$D$13)*AAU29+AAT28)) -> 40.95467395 | AAZ28: =IF(AAZ27<$D$14*$D$12,AAZ27+1,IF(AAZ27=$D$14*$D$12,,)) -> 1 | ABA28: =AAE28 -> 0.5 | ABB28: =AAF28 -> 0.2156920041 | ABC28: =$D$27 -> 2.142857143 | ABD28: =AAH28 -> 11.18569684 | ABE28: =AAI28 -> 11.18569684 | ABF28: =IF(AND(ABE27>0,ABE28=0),EXP(-($D$16)*$D$13)*ABF29+IF(ABC28-(0-ABD28)<0,0,ABC28-(0-ABD28)),IF(ABE28=0,0,EXP(-($D$16)*$D$13)*ABF29+ABC28)) -> 10.02592166 | ABH28: =MAX(ABQ28-ABF28,0) -> 31.01738935 | ABI28: =IF(ABD28=0,0,IF(AAZ28=0,0,IF(ABL$26=1000,IF(ABD28<0,IF(ABD27>0,IF(ABC28-(0-ABD28)<0,0,ABC28-(0-ABD28)),0),IF(ABL$26>=AAZ28,ABC28,0)),IF(ABL$26>=AAZ28,ABC28,0)))) -> 2.142857143 | ABJ28: =IF(ABL28=AAZ28,0,EXP(-($D$16)*$D$13)*(ABJ29)+ABI28) -> 10.02592166 | ABL28: =IF(ABL27>0," ",IF(OR(ABS28="Failure",ABK28="Abandon"),AAZ28,)) -> 0 | ABM28: =IF(ABE28>0,RANDBETWEEN(0,1000),1000) -> 200 | ABN28: 1.052916175 | ABO28: 2.015795128 | ABP28: 0 | ABQ28: =IF(AAZ28=$D$14*$D$12,IF(ABP28+(ABO29*$D$18)/(($D$16*$D$13)-($D$8*$D$13))<0,ABP28,ABP28+(ABO29*$D$18)/(($D$16*$D$13)-($D$8*$D$13))),IF(ABP28=0,EXP(-($D$16)*$D$13)*ABQ29+ABP28,EXP(-($D$16)*$D$13)*ABQ29+ABP28)) -> 41.04331101 | ABV28: =IF(ABV27<$D$14*$D$12,ABV27+1,IF(ABV27=$D$14*$D$12,,)) -> 1 | ABW28: =ABA28 -> 0.5 | ABX28: =ABB28 -> 0.2156920041 | ABY28: =$D$27 -> 2.142857143 | ABZ28: =ABD28 -> 11.18569684 | ACA28: =ABE28 -> 11.18569684 | ACB28: =IF(AND(ACA27>0,ACA28=0),EXP(-($D$16)*$D$13)*ACB29+IF(ABY28-(0-ABZ28)<0,0,ABY28-(0-ABZ28)),IF(ACA28=0,0,EXP(-($D$16)*$D$13)*ACB29+ABY28)) -> 10.02592166 | ACD28: =MAX(ACM28-ACB28,0) -> 31.01738935 | ACE28: =IF(ABZ28=0,0,IF(ABV28=0,0,IF(ACH$26=1000,IF(ABZ28<0,IF(ABZ27>0,IF(ABY28-(0-ABZ28)<0,0,ABY28-(0-ABZ28)),0),IF(ACH$26>=ABV28,ABY28,0)),IF(ACH$26>=ABV28,ABY28,0)))) -> 2.142857143 | ACF28: =IF(ACH28=ABV28,0,EXP(-($D$16)*$D$13)*(ACF29)+ACE28) -> 10.02592166 | ACH28: =IF(ACH27>0," ",IF(OR(ACO28="Failure",ACG28="Abandon"),ABV28,)) -> 0 | ACI28: =IF(ACA28>0,RANDBETWEEN(0,1000),1000) -> 250 | ACJ28: 1.052916175 | ACK28: 2.015795128 | ACL28: 0 | ACM28: =IF(ABV28=$D$14*$D$12,IF(ACL28+(ACK29*$D$18)/(($D$16*$D$13)-($D$8*$D$13))<0,ACL28,ACL28+(ACK29*$D$18)/(($D$16*$D$13)-($D$8*$D$13))),IF(ACL28=0,EXP(-($D$16)*$D$13)*ACM29+ACL28,EXP(-($D$16)*$D$13)*ACM29+ACL28)) -> 41.04331101 | ACR28: =IF(ACR27<$D$14*$D$12,ACR27+1,IF(ACR27=$D$14*$D$12,,)) -> 1 | ACS28: =ABW28 -> 0.5 | ACT28: 0.2156920041 | ACU28: =$D$27 -> 2.142857143 | ACV28: 11.18569684 | ACW28: 11.18569684 | ACX28: =IF(AND(ACW27>0,ACW28=0),EXP(-($D$16)*$D$13)*ACX29+IF(ACU28-(0-ACV28)<0,0,ACU28-(0-ACV28)),IF(ACW28=0,0,EXP(-($D$16)*$D$13)*ACX29+ACU28)) -> 10.02592166 | ACZ28: =MAX(ADI28-ACX28,0) -> 31.01738935 | ADA28: =IF(ACV28=0,0,IF(ACR28=0,0,IF(ADD$26=1000,IF(ACV28<0,IF(ACV27>0,IF(ACU28-(0-ACV28)<0,0,ACU28-(0-ACV28)),0),IF(ADD$26>=ACR28,ACU28,0)),IF(ADD$26>=ACR28,ACU28,0)))) -> 2.142857143 | ADB28: =IF(ADD28=ACR28,0,EXP(-($D$16)*$D$13)*(ADB29)+ADA28) -> 10.02592166 | ADD28: =IF(ADD27>0," ",IF(OR(ADK28="Failure",ADC28="Abandon"),ACR28,)) -> 0 | ADE28: =IF(ACW28>0,RANDBETWEEN(0,1000),1000) -> 994 | ADF28: 1.052916175 | ADG28: 2.015795128 | ADH28: 0 | ADI28: =IF(ACR28=$D$14*$D$12,IF(ADH28+(ADG29*$D$18)/(($D$16*$D$13)-($D$8*$D$13))<0,ADH28,ADH28+(ADG29*$D$18)/(($D$16*$D$13)-($D$8*$D$13))),IF(ADH28=0,EXP(-($D$16)*$D$13)*ADI29+ADH28,EXP(-($D$16)*$D$13)*ADI29+ADH28)) -> 41.04331101 | ADN28: =IF(ADN27<$D$14*$D$12,ADN27+1,IF(ADN27=$D$14*$D$12,,)) -> 1 | ADO28: =ACS28 -> 0.5 | ADP28: 0.2156920041 | ADQ28: =$D$27 -> 2.142857143 | ADR28: 11.18569684 | ADS28: 11.18569684 | ADT28: =IF(AND(ADS27>0,ADS28=0),EXP(-($D$16)*$D$13)*ADT29+IF(ADQ28-(0-ADR28)<0,0,ADQ28-(0-ADR28)),IF(ADS28=0,0,EXP(-($D$16)*$D$13)*ADT29+ADQ28)) -> 10.02592166 | ADV28: =MAX(AEE28-ADT28,0) -> 31.01738935 | ADW28: =IF(ADR28=0,0,IF(ADN28=0,0,IF(ADZ$26=1000,IF(ADR28<0,IF(ADR27>0,IF(ADQ28-(0-ADR28)<0,0,ADQ28-(0-ADR28)),0),IF(ADZ$26>=ADN28,ADQ28,0)),IF(ADZ$26>=ADN28,ADQ28,0)))) -> 2.142857143 | ADX28: =IF(ADZ28=ADN28,0,EXP(-($D$16)*$D$13)*(ADX29)+ADW28) -> 10.02592166 | ADZ28: =IF(ADZ27>0," ",IF(OR(AEG28="Failure",ADY28="Abandon"),ADN28,)) -> 0 | AEA28: =IF(ADS28>0,RANDBETWEEN(0,1000),1000) -> 447 | AEB28: 1.052916175 | AEC28: 2.015795128 | AED28: 0 | AEE28: =IF(ADN28=$D$14*$D$12,IF(AED28+(AEC29*$D$18)/(($D$16*$D$13)-($D$8*$D$13))<0,AED28,AED28+(AEC29*$D$18)/(($D$16*$D$13)-($D$8*$D$13))),IF(AED28=0,EXP(-($D$16)*$D$13)*AEE29+AED28,EXP(-($D$16)*$D$13)*AEE29+AED28)) -> 41.04331101 | AEJ28: =IF(AEJ27<$D$14*$D$12,AEJ27+1,IF(AEJ27=$D$14*$D$12,,)) -> 1 | AEK28: =ADO28 -> 0.5 | AEL28: 0.2156920041 | AEM28: =$D$27 -> 2.142857143 | AEN28: 11.18569684 | AEO28: 11.18569684 | AEP28: =IF(AND(AEO27>0,AEO28=0),EXP(-($D$16)*$D$13)*AEP29+IF(AEM28-(0-AEN28)<0,0,AEM28-(0-AEN28)),IF(AEO28=0,0,EXP(-($D$16)*$D$13)*AEP29+AEM28)) -> 10.02592166 | AER28: =MAX(AFA28-AEP28,0) -> 31.01738935 | AES28: =IF(AEN28=0,0,IF(AEJ28=0,0,IF(AEV$26=1000,IF(AEN28<0,IF(AEN27>0,IF(AEM28-(0-AEN28)<0,0,AEM28-(0-AEN28)),0),IF(AEV$26>=AEJ28,AEM28,0)),IF(AEV$26>=AEJ28,AEM28,0)))) -> 2.142857143 | AET28: =IF(AEV28=AEJ28,0,EXP(-($D$16)*$D$13)*(AET29)+AES28) -> 10.02592166 | AEV28: =IF(AEV27>0," ",IF(OR(AFC28="Failure",AEU28="Abandon"),AEJ28,)) -> 0 | AEW28: =IF(AEO28>0,RANDBETWEEN(0,1000),1000) -> 344 | AEX28: 1.052916175 | AEY28: 2.015795128 | AEZ28: 0 | AFA28: =IF(AEJ28=$D$14*$D$12,IF(AEZ28+(AEY29*$D$18)/(($D$16*$D$13)-($D$8*$D$13))<0,AEZ28,AEZ28+(AEY29*$D$18)/(($D$16*$D$13)-($D$8*$D$13))),IF(AEZ28=0,EXP(-($D$16)*$D$13)*AFA29+AEZ28,EXP(-($D$16)*$D$13)*AFA29+AEZ28)) -> 41.04331101 | AFF28: =IF(AFF27<$D$14*$D$12,AFF27+1,IF(AFF27=$D$14*$D$12,,)) -> 1 | AFG28: =AEK28 -> 0.5 | AFH28: 0.2156920041 | AFI28: =$D$27 -> 2.142857143 | AFJ28: 11.18569684 | AFK28: 11.18569684 | AFL28: =IF(AND(AFK27>0,AFK28=0),EXP(-($D$16)*$D$13)*AFL29+IF(AFI28-(0-AFJ28)<0,0,AFI28-(0-AFJ28)),IF(AFK28=0,0,EXP(-($D$16)*$D$13)*AFL29+AFI28)) -> 10.02592166 | AFN28: =MAX(AFW28-AFL28,0) -> 31.01738935 | AFO28: =IF(AFJ28=0,0,IF(AFF28=0,0,IF(AFR$26=1000,IF(AFJ28<0,IF(AFJ27>0,IF(AFI28-(0-AFJ28)<0,0,AFI28-(0-AFJ28)),0),IF(AFR$26>=AFF28,AFI28,0)),IF(AFR$26>=AFF28,AFI28,0)))) -> 2.142857143 | AFP28: =IF(AFR28=AFF28,0,EXP(-($D$16)*$D$13)*(AFP29)+AFO28) -> 10.02592166 | AFR28: =IF(AFR27>0," ",IF(OR(AFY28="Failure",AFQ28="Abandon"),AFF28,)) -> 0 | AFS28: =IF(AFK28>0,RANDBETWEEN(0,1000),1000) -> 663 | AFT28: 1.052916175 | AFU28: 2.015795128 | AFV28: 0 | AFW28: =IF(AFF28=$D$14*$D$12,IF(AFV28+(AFU29*$D$18)/(($D$16*$D$13)-($D$8*$D$13))<0,AFV28,AFV28+(AFU29*$D$18)/(($D$16*$D$13)-($D$8*$D$13))),IF(AFV28=0,EXP(-($D$16)*$D$13)*AFW29+AFV28,EXP(-($D$16)*$D$13)*AFW29+AFV28)) -> 41.04331101 | AGB28: =IF(AGB27<$D$14*$D$12,AGB27+1,IF(AGB27=$D$14*$D$12,,)) -> 1 | AGC28: =AFG28 -> 0.5 | AGD28: 0.2156920041 | AGE28: =$D$27 -> 2.142857143 | AGF28: 11.18569684 | AGG28: 11.18569684 | AGH28: =IF(AND(AGG27>0,AGG28=0),EXP(-($D$16)*$D$13)*AGH29+IF(AGE28-(0-AGF28)<0,0,AGE28-(0-AGF28)),IF(AGG28=0,0,EXP(-($D$16)*$D$13)*AGH29+AGE28)) -> 10.02592166 | AGJ28: =MAX(AGS28-AGH28,0) -> 31.01738935 | AGK28: =IF(AGF28=0,0,IF(AGB28=0,0,IF(AGN$26=1000,IF(AGF28<0,IF(AGF27>0,IF(AGE28-(0-AGF28)<0,0,AGE28-(0-AGF28)),0),IF(AGN$26>=AGB28,AGE28,0)),IF(AGN$26>=AGB28,AGE28,0)))) -> 2.142857143 | AGL28: =IF(AGN28=AGB28,0,EXP(-($D$16)*$D$13)*(AGL29)+AGK28) -> 10.02592166 | AGN28: =IF(AGN27>0," ",IF(OR(AGU28="Failure",AGM28="Abandon"),AGB28,)) -> 0 | AGO28: =IF(AGG28>0,RANDBETWEEN(0,1000),1000) -> 247 | AGP28: 1.052916175 | AGQ28: 2.015795128 | AGR28: 0 | AGS28: =IF(AGB28=$D$14*$D$12,IF(AGR28+(AGQ29*$D$18)/(($D$16*$D$13)-($D$8*$D$13))<0,AGR28,AGR28+(AGQ29*$D$18)/(($D$16*$D$13)-($D$8*$D$13))),IF(AGR28=0,EXP(-($D$16)*$D$13)*AGS29+AGR28,EXP(-($D$16)*$D$13)*AGS29+AGR28)) -> 41.04331101 | AGX28: =IF(AGX27<$D$14*$D$12,AGX27+1,IF(AGX27=$D$14*$D$12,,)) -> 1 | AGY28: =AGC28 -> 0.5 | AGZ28: 0.2156920041 | AHA28: =$D$27 -> 2.142857143 | AHB28: 11.18569684 | AHC28: 11.18569684 | AHD28: =IF(AND(AHC27>0,AHC28=0),EXP(-($D$16)*$D$13)*AHD29+IF(AHA28-(0-AHB28)<0,0,AHA28-(0-AHB28)),IF(AHC28=0,0,EXP(-($D$16)*$D$13)*AHD29+AHA28)) -> 10.02592166 | AHF28: =MAX(AHO28-AHD28,0) -> 31.01738935 | AHG28: =IF(AHB28=0,0,IF(AGX28=0,0,IF(AHJ$26=1000,IF(AHB28<0,IF(AHB27>0,IF(AHA28-(0-AHB28)<0,0,AHA28-(0-AHB28)),0),IF(AHJ$26>=AGX28,AHA28,0)),IF(AHJ$26>=AGX28,AHA28,0)))) -> 2.142857143 | AHH28: =IF(AHJ28=AGX28,0,EXP(-($D$16)*$D$13)*(AHH29)+AHG28) -> 10.02592166 | AHJ28: =IF(AHJ27>0," ",IF(OR(AHQ28="Failure",AHI28="Abandon"),AGX28,)) -> 0 | AHK28: =IF(AHC28>0,RANDBETWEEN(0,1000),1000) -> 419 | AHL28: 1.052916175 | AHM28: 2.015795128 | AHN28: 0 | AHO28: =IF(AGX28=$D$14*$D$12,IF(AHN28+(AHM29*$D$18)/(($D$16*$D$13)-($D$8*$D$13))<0,AHN28,AHN28+(AHM29*$D$18)/(($D$16*$D$13)-($D$8*$D$13))),IF(AHN28=0,EXP(-($D$16)*$D$13)*AHO29+AHN28,EXP(-($D$16)*$D$13)*AHO29+AHN28)) -> 41.04331101 | AHT28: =IF(AHT27<$D$14*$D$12,AHT27+1,IF(AHT27=$D$14*$D$12,,)) -> 1 | AHU28: =AGY28 -> 0.5 | AHV28: 0.2156920041 | AHW28: =$D$27 -> 2.142857143 | AHX28: 11.18569684 | AHY28: 11.18569684 | AHZ28: =IF(AND(AHY27>0,AHY28=0),EXP(-($D$16)*$D$13)*AHZ29+IF(AHW28-(0-AHX28)<0,0,AHW28-(0-AHX28)),IF(AHY28=0,0,EXP(-($D$16)*$D$13)*AHZ29+AHW28)) -> 10.02592166 | AIB28: =MAX(AIK28-AHZ28,0) -> 31.01738935 | AIC28: =IF(AHX28=0,0,IF(AHT28=0,0,IF(AIF$26=1000,IF(AHX28<0,IF(AHX27>0,IF(AHW28-(0-AHX28)<0,0,AHW28-(0-AHX28)),0),IF(AIF$26>=AHT28,AHW28,0)),IF(AIF$26>=AHT28,AHW28,0)))) -> 2.142857143 | AID28: =IF(AIF28=AHT28,0,EXP(-($D$16)*$D$13)*(AID29)+AIC28) -> 10.02592166 | AIF28: =IF(AIF27>0," ",IF(OR(AIM28="Failure",AIE28="Abandon"),AHT28,)) -> 0 | AIG28: =IF(AHY28>0,RANDBETWEEN(0,1000),1000) -> 532 | AIH28: 1.052916175 | AII28: 2.015795128 | AIJ28: 0 | AIK28: =IF(AHT28=$D$14*$D$12,IF(AIJ28+(AII29*$D$18)/(($D$16*$D$13)-($D$8*$D$13))<0,AIJ28,AIJ28+(AII29*$D$18)/(($D$16*$D$13)-($D$8*$D$13))),IF(AIJ28=0,EXP(-($D$16)*$D$13)*AIK29+AIJ28,EXP(-($D$16)*$D$13)*AIK29+AIJ28)) -> 41.04331101 | AIP28: =IF(AIP27<$D$14*$D$12,AIP27+1,IF(AIP27=$D$14*$D$12,,)) -> 1 | AIQ28: =AHU28 -> 0.5 | AIR28: 0.2156920041 | AIS28: =$D$27 -> 2.142857143 | AIT28: 11.18569684 | AIU28: 11.18569684 | AIV28: =IF(AND(AIU27>0,AIU28=0),EXP(-($D$16)*$D$13)*AIV29+IF(AIS28-(0-AIT28)<0,0,AIS28-(0-AIT28)),IF(AIU28=0,0,EXP(-($D$16)*$D$13)*AIV29+AIS28)) -> 10.02592166 | AIX28: =MAX(AJG28-AIV28,0) -> 31.01738935 | AIY28: =IF(AIT28=0,0,IF(AIP28=0,0,IF(AJB$26=1000,IF(AIT28<0,IF(AIT27>0,IF(AIS28-(0-AIT28)<0,0,AIS28-(0-AIT28)),0),IF(AJB$26>=AIP28,AIS28,0)),IF(AJB$26>=AIP28,AIS28,0)))) -> 2.142857143 | AIZ28: =IF(AJB28=AIP28,0,EXP(-($D$16)*$D$13)*(AIZ29)+AIY28) -> 10.02592166 | AJB28: =IF(AJB27>0," ",IF(OR(AJI28="Failure",AJA28="Abandon"),AIP28,)) -> 0 | AJC28: =IF(AIU28>0,RANDBETWEEN(0,1000),1000) -> 572 | AJD28: 1.052916175 | AJE28: 2.015795128 | AJF28: 0 | AJG28: =IF(AIP28=$D$14*$D$12,IF(AJF28+(AJE29*$D$18)/(($D$16*$D$13)-($D$8*$D$13))<0,AJF28,AJF28+(AJE29*$D$18)/(($D$16*$D$13)-($D$8*$D$13))),IF(AJF28=0,EXP(-($D$16)*$D$13)*AJG29+AJF28,EXP(-($D$16)*$D$13)*AJG29+AJF28)) -> 41.04331101 | AJL28: =IF(AJL27<$D$14*$D$12,AJL27+1,IF(AJL27=$D$14*$D$12,,)) -> 1 | AJM28: =AIQ28 -> 0.5 | AJN28: 0.2156920041 | AJO28: =$D$27 -> 2.142857143 | AJP28: 11.18569684 | AJQ28: 11.18569684 | AJR28: =IF(AND(AJQ27>0,AJQ28=0),EXP(-($D$16)*$D$13)*AJR29+IF(AJO28-(0-AJP28)<0,0,AJO28-(0-AJP28)),IF(AJQ28=0,0,EXP(-($D$16)*$D$13)*AJR29+AJO28)) -> 10.02592166 | AJT28: =MAX(AKC28-AJR28,0) -> 31.01738935 | AJU28: =IF(AJP28=0,0,IF(AJL28=0,0,IF(AJX$26=1000,IF(AJP28<0,IF(AJP27>0,IF(AJO28-(0-AJP28)<0,0,AJO28-(0-AJP28)),0),IF(AJX$26>=AJL28,AJO28,0)),IF(AJX$26>=AJL28,AJO28,0)))) -> 2.142857143 | AJV28: =IF(AJX28=AJL28,0,EXP(-($D$16)*$D$13)*(AJV29)+AJU28) -> 10.02592166 | AJX28: =IF(AJX27>0," ",IF(OR(AKE28="Failure",AJW28="Abandon"),AJL28,)) -> 0 | AJY28: =IF(AJQ28>0,RANDBETWEEN(0,1000),1000) -> 250 | AJZ28: 1.052916175 | AKA28: 2.015795128 | AKB28: 0 | AKC28: =IF(AJL28=$D$14*$D$12,IF(AKB28+(AKA29*$D$18)/(($D$16*$D$13)-($D$8*$D$13))<0,AKB28,AKB28+(AKA29*$D$18)/(($D$16*$D$13)-($D$8*$D$13))),IF(AKB28=0,EXP(-($D$16)*$D$13)*AKC29+AKB28,EXP(-($D$16)*$D$13)*AKC29+AKB28)) -> 41.04331101 | AKH28: =IF(AKH27<$D$14*$D$12,AKH27+1,IF(AKH27=$D$14*$D$12,,)) -> 1 | AKI28: =AJM28 -> 0.5 | AKJ28: 0.2156920041 | AKK28: =$D$27 -> 2.142857143 | AKL28: 11.18569684 | AKM28: 11.18569684 | AKN28: =IF(AND(AKM27>0,AKM28=0),EXP(-($D$16)*$D$13)*AKN29+IF(AKK28-(0-AKL28)<0,0,AKK28-(0-AKL28)),IF(AKM28=0,0,EXP(-($D$16)*$D$13)*AKN29+AKK28)) -> 10.02592166 | AKP28: =MAX(AKY28-AKN28,0) -> 31.01738935 | AKQ28: =IF(AKL28=0,0,IF(AKH28=0,0,IF(AKT$26=1000,IF(AKL28<0,IF(AKL27>0,IF(AKK28-(0-AKL28)<0,0,AKK28-(0-AKL28)),0),IF(AKT$26>=AKH28,AKK28,0)),IF(AKT$26>=AKH28,AKK28,0)))) -> 2.142857143 | AKR28: =IF(AKT28=AKH28,0,EXP(-($D$16)*$D$13)*(AKR29)+AKQ28) -> 10.02592166 | AKT28: =IF(AKT27>0," ",IF(OR(ALA28="Failure",AKS28="Abandon"),AKH28,)) -> 0 | AKU28: =IF(AKM28>0,RANDBETWEEN(0,1000),1000) -> 590 | AKV28: 1.052916175 | AKW28: 2.015795128 | AKX28: 0 | AKY28: =IF(AKH28=$D$14*$D$12,IF(AKX28+(AKW29*$D$18)/(($D$16*$D$13)-($D$8*$D$13))<0,AKX28,AKX28+(AKW29*$D$18)/(($D$16*$D$13)-($D$8*$D$13))),IF(AKX28=0,EXP(-($D$16)*$D$13)*AKY29+AKX28,EXP(-($D$16)*$D$13)*AKY29+AKX28)) -> 41.04331101 | ALD28: =IF(ALD27<$D$14*$D$12,ALD27+1,IF(ALD27=$D$14*$D$12,,)) -> 1 | ALE28: =AKI28 -> 0.5 | ALF28: 0.2156920041 | ALG28: =$D$27 -> 2.142857143 | ALH28: 11.18569684 | ALI28: 11.18569684 | ALJ28: =IF(AND(ALI27>0,ALI28=0),EXP(-($D$16)*$D$13)*ALJ29+IF(ALG28-(0-ALH28)<0,0,ALG28-(0-ALH28)),IF(ALI28=0,0,EXP(-($D$16)*$D$13)*ALJ29+ALG28)) -> 10.02592166 | ALL28: =MAX(ALU28-ALJ28,0) -> 31.01738935 | ALM28: =IF(ALH28=0,0,IF(ALD28=0,0,IF(ALP$26=1000,IF(ALH28<0,IF(ALH27>0,IF(ALG28-(0-ALH28)<0,0,ALG28-(0-ALH28)),0),IF(ALP$26>=ALD28,ALG28,0)),IF(ALP$26>=ALD28,ALG28,0)))) -> 2.142857143 | ALN28: =IF(ALP28=ALD28,0,EXP(-($D$16)*$D$13)*(ALN29)+ALM28) -> 10.02592166 | ALP28: =IF(ALP27>0," ",IF(OR(ALW28="Failure",ALO28="Abandon"),ALD28,)) -> 0 | ALQ28: =IF(ALI28>0,RANDBETWEEN(0,1000),1000) -> 413 | ALR28: 1.052916175 | ALS28: 2.015795128 | ALT28: 0 | ALU28: =IF(ALD28=$D$14*$D$12,IF(ALT28+(ALS29*$D$18)/(($D$16*$D$13)-($D$8*$D$13))<0,ALT28,ALT28+(ALS29*$D$18)/(($D$16*$D$13)-($D$8*$D$13))),IF(ALT28=0,EXP(-($D$16)*$D$13)*ALU29+ALT28,EXP(-($D$16)*$D$13)*ALU29+ALT28)) -> 41.04331101 | ALZ28: =IF(ALZ27<$D$14*$D$12,ALZ27+1,IF(ALZ27=$D$14*$D$12,,)) -> 1 | AMA28: =ALE28 -> 0.5 | AMB28: 0.2156920041 | AMC28: =$D$27 -> 2.142857143 | AMD28: 11.18569684 | AME28: 11.18569684 | AMF28: =IF(AND(AME27>0,AME28=0),EXP(-($D$16)*$D$13)*AMF29+IF(AMC28-(0-AMD28)<0,0,AMC28-(0-AMD28)),IF(AME28=0,0,EXP(-($D$16)*$D$13)*AMF29+AMC28)) -> 10.02592166 | AMH28: =MAX(AMQ28-AMF28,0) -> 31.01738935 | AMI28: =IF(AMD28=0,0,IF(ALZ28=0,0,IF(AML$26=1000,IF(AMD28<0,IF(AMD27>0,IF(AMC28-(0-AMD28)<0,0,AMC28-(0-AMD28)),0),IF(AML$26>=ALZ28,AMC28,0)),IF(AML$26>=ALZ28,AMC28,0)))) -> 2.142857143 | AMJ28: =IF(AML28=ALZ28,0,EXP(-($D$16)*$D$13)*(AMJ29)+AMI28) -> 10.02592166 | AML28: =IF(AML27>0," ",IF(OR(AMS28="Failure",AMK28="Abandon"),ALZ28,)) -> 0 | AMM28: =IF(AME28>0,RANDBETWEEN(0,1000),1000) -> 33 | AMN28: 1.052916175 | AMO28: 2.015795128 | AMP28: 0 | AMQ28: =IF(ALZ28=$D$14*$D$12,IF(AMP28+(AMO29*$D$18)/(($D$16*$D$13)-($D$8*$D$13))<0,AMP28,AMP28+(AMO29*$D$18)/(($D$16*$D$13)-($D$8*$D$13))),IF(AMP28=0,EXP(-($D$16)*$D$13)*AMQ29+AMP28,EXP(-($D$16)*$D$13)*AMQ29+AMP28)) -> 41.04331101 | AMV28: =IF(AMV27<$D$14*$D$12,AMV27+1,IF(AMV27=$D$14*$D$12,,)) -> 1 | AMW28: =AMA28 -> 0.5 | AMX28: 0.2156920041 | AMY28: =$D$27 -> 2.142857143 | AMZ28: 11.18569684 | ANA28: 11.18569684 | ANB28: =IF(AND(ANA27>0,ANA28=0),EXP(-($D$16)*$D$13)*ANB29+IF(AMY28-(0-AMZ28)<0,0,AMY28-(0-AMZ28)),IF(ANA28=0,0,EXP(-($D$16)*$D$13)*ANB29+AMY28)) -> 10.02592166 | AND28: =MAX(ANM28-ANB28,0) -> 31.01738935 | ANE28: =IF(AMZ28=0,0,IF(AMV28=0,0,IF(ANH$26=1000,IF(AMZ28<0,IF(AMZ27>0,IF(AMY28-(0-AMZ28)<0,0,AMY28-(0-AMZ28)),0),IF(ANH$26>=AMV28,AMY28,0)),IF(ANH$26>=AMV28,AMY28,0)))) -> 2.142857143 | ANF28: =IF(ANH28=AMV28,0,EXP(-($D$16)*$D$13)*(ANF29)+ANE28) -> 10.02592166 | ANH28: =IF(ANH27>0," ",IF(OR(ANO28="Failure",ANG28="Abandon"),AMV28,)) -> 0 | ANI28: =IF(ANA28>0,RANDBETWEEN(0,1000),1000) -> 314 | ANJ28: 1.052916175 | ANK28: 2.015795128 | ANL28: 0 | ANM28: =IF(AMV28=$D$14*$D$12,IF(ANL28+(ANK29*$D$18)/(($D$16*$D$13)-($D$8*$D$13))<0,ANL28,ANL28+(ANK29*$D$18)/(($D$16*$D$13)-($D$8*$D$13))),IF(ANL28=0,EXP(-($D$16)*$D$13)*ANM29+ANL28,EXP(-($D$16)*$D$13)*ANM29+ANL28)) -> 41.04331101 | ANR28: =IF(ANR27<$D$14*$D$12,ANR27+1,IF(ANR27=$D$14*$D$12,,)) -> 1 | ANS28: =AMW28 -> 0.5 | ANT28: 0.2156920041 | ANU28: =$D$27 -> 2.142857143 | ANV28: 11.18569684 | ANW28: 11.18569684 | ANX28: =IF(AND(ANW27>0,ANW28=0),EXP(-($D$16)*$D$13)*ANX29+IF(ANU28-(0-ANV28)<0,0,ANU28-(0-ANV28)),IF(ANW28=0,0,EXP(-($D$16)*$D$13)*ANX29+ANU28)) -> 10.02592166 | ANZ28: =MAX(AOI28-ANX28,0) -> 31.01738935 | AOA28: =IF(ANV28=0,0,IF(ANR28=0,0,IF(AOD$26=1000,IF(ANV28<0,IF(ANV27>0,IF(ANU28-(0-ANV28)<0,0,ANU28-(0-ANV28)),0),IF(AOD$26>=ANR28,ANU28,0)),IF(AOD$26>=ANR28,ANU28,0)))) -> 2.142857143 | AOB28: =IF(AOD28=ANR28,0,EXP(-($D$16)*$D$13)*(AOB29)+AOA28) -> 10.02592166 | AOD28: =IF(AOD27>0," ",IF(OR(AOK28="Failure",AOC28="Abandon"),ANR28,)) -> 0 | AOE28: =IF(ANW28>0,RANDBETWEEN(0,1000),1000) -> 367 | AOF28: 1.052916175 | AOG28: 2.015795128 | AOH28: 0 | AOI28: =IF(ANR28=$D$14*$D$12,IF(AOH28+(AOG29*$D$18)/(($D$16*$D$13)-($D$8*$D$13))<0,AOH28,AOH28+(AOG29*$D$18)/(($D$16*$D$13)-($D$8*$D$13))),IF(AOH28=0,EXP(-($D$16)*$D$13)*AOI29+AOH28,EXP(-($D$16)*$D$13)*AOI29+AOH28)) -> 41.04331101 | AON28: =IF(AON27<$D$14*$D$12,AON27+1,IF(AON27=$D$14*$D$12,,)) -> 1 | AOO28: =ANS28 -> 0.5 | AOP28: 0.2156920041 | AOQ28: =$D$27 -> 2.142857143 | AOR28: 11.18569684 | AOS28: 11.18569684 | AOT28: =IF(AND(AOS27>0,AOS28=0),EXP(-($D$16)*$D$13)*AOT29+IF(AOQ28-(0-AOR28)<0,0,AOQ28-(0-AOR28)),IF(AOS28=0,0,EXP(-($D$16)*$D$13)*AOT29+AOQ28)) -> 10.02592166 | AOV28: =MAX(APE28-AOT28,0) -> 31.01738935 | AOW28: =IF(AOR28=0,0,IF(AON28=0,0,IF(AOZ$26=1000,IF(AOR28<0,IF(AOR27>0,IF(AOQ28-(0-AOR28)<0,0,AOQ28-(0-AOR28)),0),IF(AOZ$26>=AON28,AOQ28,0)),IF(AOZ$26>=AON28,AOQ28,0)))) -> 2.142857143 | AOX28: =IF(AOZ28=AON28,0,EXP(-($D$16)*$D$13)*(AOX29)+AOW28) -> 10.02592166 | AOZ28: =IF(AOZ27>0," ",IF(OR(APG28="Failure",APA27="Abandon"),AON28,)) -> 0 | APA28: =IF(AOS28>0,RANDBETWEEN(0,1000),1000) -> 601 | APB28: 1.052916175 | APC28: 2.015795128 | APD28: 0 | APE28: =IF(AON28=$D$14*$D$12,IF(APD28+(APC29*$D$18)/(($D$16*$D$13)-($D$8*$D$13))<0,APD28,APD28+(APC29*$D$18)/(($D$16*$D$13)-($D$8*$D$13))),IF(APD28=0,EXP(-($D$16)*$D$13)*APE29+APD28,EXP(-($D$16)*$D$13)*APE29+APD28)) -> 41.04331101 | APJ28: =IF(APJ27<$D$14*$D$12,APJ27+1,IF(APJ27=$D$14*$D$12,,)) -> 1 | APK28: =AOO28 -> 0.5 | APL28: 0.2156920041 | APM28: =$D$27 -> 2.142857143 | APN28: 11.18569684 | APO28: 11.18569684 | APP28: =IF(AND(APO27>0,APO28=0),EXP(-($D$16)*$D$13)*APP29+IF(APM28-(0-APN28)<0,0,APM28-(0-APN28)),IF(APO28=0,0,EXP(-($D$16)*$D$13)*APP29+APM28)) -> 10.02592166 | APR28: =MAX(AQA28-APP28,0) -> 31.01738935 | APS28: =IF(APN28=0,0,IF(APJ28=0,0,IF(APV$26=1000,IF(APN28<0,IF(APN27>0,IF(APM28-(0-APN28)<0,0,APM28-(0-APN28)),0),IF(APV$26>=APJ28,APM28,0)),IF(APV$26>=APJ28,APM28,0)))) -> 2.142857143 | APT28: =IF(APV28=APJ28,0,EXP(-($D$16)*$D$13)*(APT29)+APS28) -> 10.02592166 | APV28: =IF(APV27>0," ",IF(OR(AQC28="Failure",APU28="Abandon"),APJ28,)) -> 0 | APW28: =IF(APO28>0,RANDBETWEEN(0,1000),1000) -> 754 | APX28: 1.052916175 | APY28: 2.015795128 | APZ28: 0 | AQA28: =IF(APJ28=$D$14*$D$12,IF(APZ28+(APY29*$D$18)/(($D$16*$D$13)-($D$8*$D$13))<0,APZ28,APZ28+(APY29*$D$18)/(($D$16*$D$13)-($D$8*$D$13))),IF(APZ28=0,EXP(-($D$16)*$D$13)*AQA29+APZ28,EXP(-($D$16)*$D$13)*AQA29+APZ28)) -> 41.04331101 | AQF28: =IF(AQF27<$D$14*$D$12,AQF27+1,IF(AQF27=$D$14*$D$12,,)) -> 1 | AQG28: =APK28 -> 0.5 | AQH28: 0.2156920041 | AQI28: =$D$27 -> 2.142857143 | AQJ28: 11.18569684 | AQK28: 11.18569684 | AQL28: =IF(AND(AQK27>0,AQK28=0),EXP(-($D$16)*$D$13)*AQL29+IF(AQI28-(0-AQJ28)<0,0,AQI28-(0-AQJ28)),IF(AQK28=0,0,EXP(-($D$16)*$D$13)*AQL29+AQI28)) -> 10.02592166 | AQN28: =MAX(AQW28-AQL28,0) -> 31.01738935 | AQO28: =IF(AQJ28=0,0,IF(AQF28=0,0,IF(AQR$26=1000,IF(AQJ28<0,IF(AQJ27>0,IF(AQI28-(0-AQJ28)<0,0,AQI28-(0-AQJ28)),0),IF(AQR$26>=AQF28,AQI28,0)),IF(AQR$26>=AQF28,AQI28,0)))) -> 2.142857143 | AQP28: =IF(AQR28=AQF28,0,EXP(-($D$16)*$D$13)*(AQP29)+AQO28) -> 10.02592166 | AQR28: =IF(AQR27>0," ",IF(OR(AQY28="Failure",AQQ28="Abandon"),AQF28,)) -> 0 | AQS28: =IF(AQK28>0,RANDBETWEEN(0,1000),1000) -> 168 | AQT28: 1.052916175 | AQU28: 2.015795128 | AQV28: 0 | AQW28: =IF(AQF28=$D$14*$D$12,IF(AQV28+(AQU29*$D$18)/(($D$16*$D$13)-($D$8*$D$13))<0,AQV28,AQV28+(AQU29*$D$18)/(($D$16*$D$13)-($D$8*$D$13))),IF(AQV28=0,EXP(-($D$16)*$D$13)*AQW29+AQV28,EXP(-($D$16)*$D$13)*AQW29+AQV28)) -> 41.04331101 | ARB28: =IF(ARB27<$D$14*$D$12,ARB27+1,IF(ARB27=$D$14*$D$12,,)) -> 1 | ARC28: =AQG28 -> 0.5 | ARD28: 0.2156920041 | ARE28: =$D$27 -> 2.142857143 | ARF28: 11.18569684 | ARG28: 11.18569684 | ARH28: =IF(AND(ARG27>0,ARG28=0),EXP(-($D$16)*$D$13)*ARH29+IF(ARE28-(0-ARF28)<0,0,ARE28-(0-ARF28)),IF(ARG28=0,0,EXP(-($D$16)*$D$13)*ARH29+ARE28)) -> 10.02592166 | ARJ28: =MAX(ARS28-ARH28,0) -> 31.01738935 | ARK28: =IF(ARF28=0,0,IF(ARB28=0,0,IF(ARN$26=1000,IF(ARF28<0,IF(ARF27>0,IF(ARE28-(0-ARF28)<0,0,ARE28-(0-ARF28)),0),IF(ARN$26>=ARB28,ARE28,0)),IF(ARN$26>=ARB28,ARE28,0)))) -> 2.142857143 | ARL28: =IF(ARN28=ARB28,0,EXP(-($D$16)*$D$13)*(ARL29)+ARK28) -> 10.02592166 | ARN28: =IF(ARN27>0," ",IF(OR(ARU28="Failure",ARM28="Abandon"),ARB28,)) -> 0 | ARO28: =IF(ARG28>0,RANDBETWEEN(0,1000),1000) -> 517 | ARP28: 1.052916175 | ARQ28: 2.015795128 | ARR28: 0 | ARS28: =IF(ARB28=$D$14*$D$12,IF(ARR28+(ARQ29*$D$18)/(($D$16*$D$13)-($D$8*$D$13))<0,ARR28,ARR28+(ARQ29*$D$18)/(($D$16*$D$13)-($D$8*$D$13))),IF(ARR28=0,EXP(-($D$16)*$D$13)*ARS29+ARR28,EXP(-($D$16)*$D$13)*ARS29+ARR28)) -> 41.04331101 | ARX28: =IF(ARX27<$D$14*$D$12,ARX27+1,IF(ARX27=$D$14*$D$12,,)) -> 1 | ARY28: =ARC28 -> 0.5 | ARZ28: 0.2156920041 | ASA28: =$D$27 -> 2.142857143 | ASB28: 11.18569684 | ASC28: 11.18569684 | ASD28: =IF(AND(ASC27>0,ASC28=0),EXP(-($D$16)*$D$13)*ASD29+IF(ASA28-(0-ASB28)<0,0,ASA28-(0-ASB28)),IF(ASC28=0,0,EXP(-($D$16)*$D$13)*ASD29+ASA28)) -> 10.02592166 | ASF28: =MAX(ASO28-ASD28,0) -> 31.01738935 | ASG28: =IF(ASB28=0,0,IF(ARX28=0,0,IF(ASJ$26=1000,IF(ASB28<0,IF(ASB27>0,IF(ASA28-(0-ASB28)<0,0,ASA28-(0-ASB28)),0),IF(ASJ$26>=ARX28,ASA28,0)),IF(ASJ$26>=ARX28,ASA28,0)))) -> 2.142857143 | ASH28: =IF(ASJ28=ARX28,0,EXP(-($D$16)*$D$13)*(ASH29)+ASG28) -> 10.02592166 | ASJ28: =IF(ASJ27>0," ",IF(OR(ASQ28="Failure",ASI28="Abandon"),ARX28,)) -> 0 | ASK28: =IF(ASC28>0,RANDBETWEEN(0,1000),1000) -> 573 | ASL28: 1.052916175 | ASM28: 2.015795128 | ASN28: 0 | ASO28: =IF(ARX28=$D$14*$D$12,IF(ASN28+(ASM29*$D$18)/(($D$16*$D$13)-($D$8*$D$13))<0,ASN28,ASN28+(ASM29*$D$18)/(($D$16*$D$13)-($D$8*$D$13))),IF(ASN28=0,EXP(-($D$16)*$D$13)*ASO29+ASN28,EXP(-($D$16)*$D$13)*ASO29+ASN28)) -> 41.04331101 | AST28: =IF(AST27<$D$14*$D$12,AST27+1,IF(AST27=$D$14*$D$12,,)) -> 1 | ASU28: =ARY28 -> 0.5 | ASV28: 0.2156920041 | ASW28: =$D$27 -> 2.142857143 | ASX28: 11.18569684 | ASY28: 11.18569684 | ASZ28: =IF(AND(ASY27>0,ASY28=0),EXP(-($D$16)*$D$13)*ASZ29+IF(ASW28-(0-ASX28)<0,0,ASW28-(0-ASX28)),IF(ASY28=0,0,EXP(-($D$16)*$D$13)*ASZ29+ASW28)) -> 10.02592166 | ATB28: =MAX(ATK28-ASZ28,0) -> 31.01738935 | ATC28: =IF(ASX28=0,0,IF(AST28=0,0,IF(ATF$26=1000,IF(ASX28<0,IF(ASX27>0,IF(ASW28-(0-ASX28)<0,0,ASW28-(0-ASX28)),0),IF(ATF$26>=AST28,ASW28,0)),IF(ATF$26>=AST28,ASW28,0)))) -> 2.142857143 | ATD28: =IF(ATF28=AST28,0,EXP(-($D$16)*$D$13)*(ATD29)+ATC28) -> 10.02592166 | ATF28: =IF(ATF27>0," ",IF(OR(ATM28="Failure",ATE28="Abandon"),AST28,)) -> 0 | ATG28: =IF(ASY28>0,RANDBETWEEN(0,1000),1000) -> 280 | ATH28: 1.052916175 | ATI28: 2.015795128 | ATJ28: 0 | ATK28: =IF(AST28=$D$14*$D$12,IF(ATJ28+(ATI29*$D$18)/(($D$16*$D$13)-($D$8*$D$13))<0,ATJ28,ATJ28+(ATI29*$D$18)/(($D$16*$D$13)-($D$8*$D$13))),IF(ATJ28=0,EXP(-($D$16)*$D$13)*ATK29+ATJ28,EXP(-($D$16)*$D$13)*ATK29+ATJ28)) -> 41.04331101 | ATP28: =IF(ATP27<$D$14*$D$12,ATP27+1,IF(ATP27=$D$14*$D$12,,)) -> 1 | ATQ28: =ASU28 -> 0.5 | ATR28: 0.2156920041 | ATS28: =$D$27 -> 2.142857143 | ATT28: 11.18569684 | ATU28: 11.18569684 | ATV28: =IF(AND(ATU27>0,ATU28=0),EXP(-($D$16)*$D$13)*ATV29+IF(ATS28-(0-ATT28)<0,0,ATS28-(0-ATT28)),IF(ATU28=0,0,EXP(-($D$16)*$D$13)*ATV29+ATS28)) -> 10.02592166 | ATX28: =MAX(AUG28-ATV28,0) -> 31.01738935 | ATY28: =IF(ATT28=0,0,IF(ATP28=0,0,IF(AUB$26=1000,IF(ATT28<0,IF(ATT27>0,IF(ATS28-(0-ATT28)<0,0,ATS28-(0-ATT28)),0),IF(AUB$26>=ATP28,ATS28,0)),IF(AUB$26>=ATP28,ATS28,0)))) -> 2.142857143 | ATZ28: =IF(AUB28=ATP28,0,EXP(-($D$16)*$D$13)*(ATZ29)+ATY28) -> 10.02592166 | AUB28: =IF(AUB27>0," ",IF(OR(AUI28="Failure",AUA28="Abandon"),ATP28,)) -> 0 | AUC28: =IF(ATU28>0,RANDBETWEEN(0,1000),1000) -> 455 | AUD28: 1.052916175 | AUE28: 2.015795128 | AUF28: 0 | AUG28: =IF(ATP28=$D$14*$D$12,IF(AUF28+(AUE29*$D$18)/(($D$16*$D$13)-($D$8*$D$13))<0,AUF28,AUF28+(AUE29*$D$18)/(($D$16*$D$13)-($D$8*$D$13))),IF(AUF28=0,EXP(-($D$16)*$D$13)*AUG29+AUF28,EXP(-($D$16)*$D$13)*AUG29+AUF28)) -> 41.04331101 | AUL28: =IF(AUL27<$D$14*$D$12,AUL27+1,IF(AUL27=$D$14*$D$12,,)) -> 1 | AUM28: =ATQ28 -> 0.5 | AUN28: 0.2156920041 | AUO28: =$D$27 -> 2.142857143 | AUP28: 11.18569684 | AUQ28: 11.18569684 | AUR28: =IF(AND(AUQ27>0,AUQ28=0),EXP(-($D$16)*$D$13)*AUR29+IF(AUO28-(0-AUP28)<0,0,AUO28-(0-AUP28)),IF(AUQ28=0,0,EXP(-($D$16)*$D$13)*AUR29+AUO28)) -> 10.02592166 | AUT28: =MAX(AVC28-AUR28,0) -> 31.01738935 | AUU28: =IF(AUP28=0,0,IF(AUL28=0,0,IF(AUX$26=1000,IF(AUP28<0,IF(AUP27>0,IF(AUO28-(0-AUP28)<0,0,AUO28-(0-AUP28)),0),IF(AUX$26>=AUL28,AUO28,0)),IF(AUX$26>=AUL28,AUO28,0)))) -> 2.142857143 | AUV28: =IF(AUX28=AUL28,0,EXP(-($D$16)*$D$13)*(AUV29)+AUU28) -> 10.02592166 | AUX28: =IF(AUX27>0," ",IF(OR(AVE28="Failure",AUW28="Abandon"),AUL28,)) -> 0 | AUY28: =IF(AUQ28>0,RANDBETWEEN(0,1000),1000) -> 583 | AUZ28: 1.052916175 | AVA28: 2.015795128 | AVB28: 0 | AVC28: =IF(AUL28=$D$14*$D$12,IF(AVB28+(AVA29*$D$18)/(($D$16*$D$13)-($D$8*$D$13))<0,AVB28,AVB28+(AVA29*$D$18)/(($D$16*$D$13)-($D$8*$D$13))),IF(AVB28=0,EXP(-($D$16)*$D$13)*AVC29+AVB28,EXP(-($D$16)*$D$13)*AVC29+AVB28)) -> 41.04331101 | AVH28: =IF(AVH27<$D$14*$D$12,AVH27+1,IF(AVH27=$D$14*$D$12,,)) -> 1 | AVI28: =AUM28 -> 0.5 | AVJ28: 0.2156920041 | AVK28: =$D$27 -> 2.142857143 | AVL28: 11.18569684 | AVM28: 11.18569684 | AVN28: =IF(AND(AVM27>0,AVM28=0),EXP(-($D$16)*$D$13)*AVN29+IF(AVK28-(0-AVL28)<0,0,AVK28-(0-AVL28)),IF(AVM28=0,0,EXP(-($D$16)*$D$13)*AVN29+AVK28)) -> 10.02592166 | AVP28: =MAX(AVY28-AVN28,0) -> 31.01738935 | AVQ28: =IF(AVL28=0,0,IF(AVH28=0,0,IF(AVT$26=1000,IF(AVL28<0,IF(AVL27>0,IF(AVK28-(0-AVL28)<0,0,AVK28-(0-AVL28)),0),IF(AVT$26>=AVH28,AVK28,0)),IF(AVT$26>=AVH28,AVK28,0)))) -> 2.142857143 | AVR28: =IF(AVT28=AVH28,0,EXP(-($D$16)*$D$13)*(AVR29)+AVQ28) -> 10.02592166 | AVT28: =IF(AVT27>0," ",IF(OR(AWA28="Failure",AVS28="Abandon"),AVH28,)) -> 0 | AVU28: =IF(AVM28>0,RANDBETWEEN(0,1000),1000) -> 516 | AVV28: 1.052916175 | AVW28: 2.015795128 | AVX28: 0 | AVY28: =IF(AVH28=$D$14*$D$12,IF(AVX28+(AVW29*$D$18)/(($D$16*$D$13)-($D$8*$D$13))<0,AVX28,AVX28+(AVW29*$D$18)/(($D$16*$D$13)-($D$8*$D$13))),IF(AVX28=0,EXP(-($D$16)*$D$13)*AVY29+AVX28,EXP(-($D$16)*$D$13)*AVY29+AVX28)) -> 41.04331101 | AWD28: =IF(AWD27<$D$14*$D$12,AWD27+1,IF(AWD27=$D$14*$D$12,,)) -> 1 | AWE28: =AVI28 -> 0.5 | AWF28: 0.2156920041 | AWG28: =$D$27 -> 2.142857143 | AWH28: 11.18569684 | AWI28: 11.18569684 | AWJ28: =IF(AND(AWI27>0,AWI28=0),EXP(-($D$16)*$D$13)*AWJ29+IF(AWG28-(0-AWH28)<0,0,AWG28-(0-AWH28)),IF(AWI28=0,0,EXP(-($D$16)*$D$13)*AWJ29+AWG28)) -> 10.02592166 | AWL28: =MAX(AWU28-AWJ28,0) -> 31.01738935 | AWM28: =IF(AWH28=0,0,IF(AWD28=0,0,IF(AWP$26=1000,IF(AWH28<0,IF(AWH27>0,IF(AWG28-(0-AWH28)<0,0,AWG28-(0-AWH28)),0),IF(AWP$26>=AWD28,AWG28,0)),IF(AWP$26>=AWD28,AWG28,0)))) -> 2.142857143 | AWN28: =IF(AWP28=AWD28,0,EXP(-($D$16)*$D$13)*(AWN29)+AWM28) -> 10.02592166 | AWP28: =IF(AWP27>0," ",IF(OR(AWW28="Failure",AWO28="Abandon"),AWD28,)) -> 0 | AWQ28: =IF(AWI28>0,RANDBETWEEN(0,1000),1000) -> 806 | AWR28: 1.052916175 | AWS28: 2.015795128 | AWT28: 0 | AWU28: =IF(AWD28=$D$14*$D$12,IF(AWT28+(AWS29*$D$18)/(($D$16*$D$13)-($D$8*$D$13))<0,AWT28,AWT28+(AWS29*$D$18)/(($D$16*$D$13)-($D$8*$D$13))),IF(AWT28=0,EXP(-($D$16)*$D$13)*AWU29+AWT28,EXP(-($D$16)*$D$13)*AWU29+AWT28)) -> 41.04331101 | AWZ28: =IF(AWZ27<$D$14*$D$12,AWZ27+1,IF(AWZ27=$D$14*$D$12,,)) -> 1 | AXA28: =AWE28 -> 0.5 | AXB28: 0.2156920041 | AXC28: =$D$27 -> 2.142857143 | AXD28: 11.18569684 | AXE28: 11.18569684 | AXF28: =IF(AND(AXE27>0,AXE28=0),EXP(-($D$16)*$D$13)*AXF29+IF(AXC28-(0-AXD28)<0,0,AXC28-(0-AXD28)),IF(AXE28=0,0,EXP(-($D$16)*$D$13)*AXF29+AXC28)) -> 10.02592166 | AXH28: =MAX(AXQ28-AXF28,0) -> 31.01738935 | AXI28: =IF(AXD28=0,0,IF(AWZ28=0,0,IF(AXL$26=1000,IF(AXD28<0,IF(AXD27>0,IF(AXC28-(0-AXD28)<0,0,AXC28-(0-AXD28)),0),IF(AXL$26>=AWZ28,AXC28,0)),IF(AXL$26>=AWZ28,AXC28,0)))) -> 2.142857143 | AXJ28: =IF(AXL28=AWZ28,0,EXP(-($D$16)*$D$13)*(AXJ29)+AXI28) -> 10.02592166 | AXL28: =IF(AXL27>0," ",IF(OR(AXS28="Failure",AXK28="Abandon"),AWZ28,)) -> 0 | AXM28: =IF(AXE28>0,RANDBETWEEN(0,1000),1000) -> 411 | AXN28: 1.052916175 | AXO28: 2.015795128 | AXP28: 0 | AXQ28: =IF(AWZ28=$D$14*$D$12,IF(AXP28+(AXO29*$D$18)/(($D$16*$D$13)-($D$8*$D$13))<0,AXP28,AXP28+(AXO29*$D$18)/(($D$16*$D$13)-($D$8*$D$13))),IF(AXP28=0,EXP(-($D$16)*$D$13)*AXQ29+AXP28,EXP(-($D$16)*$D$13)*AXQ29+AXP28)) -> 41.04331101 | AXV28: =IF(AXV27<$D$14*$D$12,AXV27+1,IF(AXV27=$D$14*$D$12,,)) -> 1 | AXW28: =AXA28 -> 0.5 | AXX28: 0.2156920041 | AXY28: =$D$27 -> 2.142857143 | AXZ28: 11.18569684 | AYA28: 11.18569684 | AYB28: =IF(AND(AYA27>0,AYA28=0),EXP(-($D$16)*$D$13)*AYB29+IF(AXY28-(0-AXZ28)<0,0,AXY28-(0-AXZ28)),IF(AYA28=0,0,EXP(-($D$16)*$D$13)*AYB29+AXY28)) -> 10.02592166 | AYD28: =MAX(AYM28-AYB28,0) -> 31.01738935 | AYE28: =IF(AXZ28=0,0,IF(AXV28=0,0,IF(AYH$26=1000,IF(AXZ28<0,IF(AXZ27>0,IF(AXY28-(0-AXZ28)<0,0,AXY28-(0-AXZ28)),0),IF(AYH$26>=AXV28,AXY28,0)),IF(AYH$26>=AXV28,AXY28,0)))) -> 2.142857143 | AYF28: =IF(AYH28=AXV28,0,EXP(-($D$16)*$D$13)*(AYF29)+AYE28) -> 10.02592166 | AYH28: =IF(AYH27>0," ",IF(OR(AYO28="Failure",AYG28="Abandon"),AXV28,)) -> 0 | AYI28: =IF(AYA28>0,RANDBETWEEN(0,1000),1000) -> 775 | AYJ28: 1.052916175 | AYK28: 2.015795128 | AYL28: 0 | AYM28: =IF(AXV28=$D$14*$D$12,IF(AYL28+(AYK29*$D$18)/(($D$16*$D$13)-($D$8*$D$13))<0,AYL28,AYL28+(AYK29*$D$18)/(($D$16*$D$13)-($D$8*$D$13))),IF(AYL28=0,EXP(-($D$16)*$D$13)*AYM29+AYL28,EXP(-($D$16)*$D$13)*AYM29+AYL28)) -> 41.04331101 | AYR28: =IF(AYR27<$D$14*$D$12,AYR27+1,IF(AYR27=$D$14*$D$12,,)) -> 1 | AYS28: =AXW28 -> 0.5 | AYT28: 0.2156920041 | AYU28: =$D$27 -> 2.142857143 | AYV28: 11.18569684 | AYW28: 11.18569684 | AYX28: =IF(AND(AYW27>0,AYW28=0),EXP(-($D$16)*$D$13)*AYX29+IF(AYU28-(0-AYV28)<0,0,AYU28-(0-AYV28)),IF(AYW28=0,0,EXP(-($D$16)*$D$13)*AYX29+AYU28)) -> 10.02592166 | AYZ28: =MAX(AZI28-AYX28,0) -> 31.01738935 | AZA28: =IF(AYV28=0,0,IF(AYR28=0,0,IF(AZD$26=1000,IF(AYV28<0,IF(AYV27>0,IF(AYU28-(0-AYV28)<0,0,AYU28-(0-AYV28)),0),IF(AZD$26>=AYR28,AYU28,0)),IF(AZD$26>=AYR28,AYU28,0)))) -> 2.142857143 | AZB28: =IF(AZD28=AYR28,0,EXP(-($D$16)*$D$13)*(AZB29)+AZA28) -> 10.02592166 | AZD28: =IF(AZD27>0," ",IF(OR(AZK28="Failure",AZC28="Abandon"),AYR28,)) -> 0 | AZE28: =IF(AYW28>0,RANDBETWEEN(0,1000),1000) -> 777 | AZF28: 1.052916175 | AZG28: 2.015795128 | AZH28: 0 | AZI28: =IF(AYR28=$D$14*$D$12,IF(AZH28+(AZG29*$D$18)/(($D$16*$D$13)-($D$8*$D$13))<0,AZH28,AZH28+(AZG29*$D$18)/(($D$16*$D$13)-($D$8*$D$13))),IF(AZH28=0,EXP(-($D$16)*$D$13)*AZI29+AZH28,EXP(-($D$16)*$D$13)*AZI29+AZH28)) -> 41.04331101 | AZN28: =IF(AZN27<$D$14*$D$12,AZN27+1,IF(AZN27=$D$14*$D$12,,)) -> 1 | AZO28: =AYS28 -> 0.5 | AZP28: 0.2156920041 | AZQ28: =$D$27 -> 2.142857143 | AZR28: 11.18569684 | AZS28: 11.18569684 | AZT28: =IF(AND(AZS27>0,AZS28=0),EXP(-($D$16)*$D$13)*AZT29+IF(AZQ28-(0-AZR28)<0,0,AZQ28-(0-AZR28)),IF(AZS28=0,0,EXP(-($D$16)*$D$13)*AZT29+AZQ28)) -> 10.02592166 | AZV28: =MAX(BAE28-AZT28,0) -> 31.01738935 | AZW28: =IF(AZR28=0,0,IF(AZN28=0,0,IF(AZZ$26=1000,IF(AZR28<0,IF(AZR27>0,IF(AZQ28-(0-AZR28)<0,0,AZQ28-(0-AZR28)),0),IF(AZZ$26>=AZN28,AZQ28,0)),IF(AZZ$26>=AZN28,AZQ28,0)))) -> 2.142857143 | AZX28: =IF(AZZ28=AZN28,0,EXP(-($D$16)*$D$13)*(AZX29)+AZW28) -> 10.02592166 | AZZ28: =IF(AZZ27>0," ",IF(OR(BAG28="Failure",AZY28="Abandon"),AZN28,)) -> 0 | BAA28: =IF(AZS28>0,RANDBETWEEN(0,1000),1000) -> 631 | BAB28: 1.052916175 | BAC28: 2.015795128 | BAD28: 0 | BAE28: =IF(AZN28=$D$14*$D$12,IF(BAD28+(BAC29*$D$18)/(($D$16*$D$13)-($D$8*$D$13))<0,BAD28,BAD28+(BAC29*$D$18)/(($D$16*$D$13)-($D$8*$D$13))),IF(BAD28=0,EXP(-($D$16)*$D$13)*BAE29+BAD28,EXP(-($D$16)*$D$13)*BAE29+BAD28)) -> 41.04331101 | BAJ28: =IF(BAJ27<$D$14*$D$12,BAJ27+1,IF(BAJ27=$D$14*$D$12,,)) -> 1 | BAK28: =AZO28 -> 0.5 | BAL28: 0.2156920041 | BAM28: =$D$27 -> 2.142857143 | BAN28: 11.18569684 | BAO28: 11.18569684 | BAP28: =IF(AND(BAO27>0,BAO28=0),EXP(-($D$16)*$D$13)*BAP29+IF(BAM28-(0-BAN28)<0,0,BAM28-(0-BAN28)),IF(BAO28=0,0,EXP(-($D$16)*$D$13)*BAP29+BAM28)) -> 10.02592166 | BAR28: =MAX(BBA28-BAP28,0) -> 31.01738935 | BAS28: =IF(BAN28=0,0,IF(BAJ28=0,0,IF(BAV$26=1000,IF(BAN28<0,IF(BAN27>0,IF(BAM28-(0-BAN28)<0,0,BAM28-(0-BAN28)),0),IF(BAV$26>=BAJ28,BAM28,0)),IF(BAV$26>=BAJ28,BAM28,0)))) -> 2.142857143 | BAT28: =IF(BAV28=BAJ28,0,EXP(-($D$16)*$D$13)*(BAT29)+BAS28) -> 10.02592166 | BAV28: =IF(BAV27>0," ",IF(OR(BBC28="Failure",BAU28="Abandon"),BAJ28,)) -> 0 | BAW28: =IF(BAO28>0,RANDBETWEEN(0,1000),1000) -> 164 | BAX28: 1.052916175 | BAY28: 2.015795128 | BAZ28: 0 | BBA28: =IF(BAJ28=$D$14*$D$12,IF(BAZ28+(BAY29*$D$18)/(($D$16*$D$13)-($D$8*$D$13))<0,BAZ28,BAZ28+(BAY29*$D$18)/(($D$16*$D$13)-($D$8*$D$13))),IF(BAZ28=0,EXP(-($D$16)*$D$13)*BBA29+BAZ28,EXP(-($D$16)*$D$13)*BBA29+BAZ28)) -> 41.04331101 | BBF28: =IF(BBF27<$D$14*$D$12,BBF27+1,IF(BBF27=$D$14*$D$12,,)) -> 1 | BBG28: =BAK28 -> 0.5 | BBH28: 0.2156920041 | BBI28: =$D$27 -> 2.142857143 | BBJ28: 11.18569684 | BBK28: 11.18569684 | BBL28: =IF(AND(BBK27>0,BBK28=0),EXP(-($D$16)*$D$13)*BBL29+IF(BBI28-(0-BBJ28)<0,0,BBI28-(0-BBJ28)),IF(BBK28=0,0,EXP(-($D$16)*$D$13)*BBL29+BBI28)) -> 10.02592166 | BBN28: =MAX(BBW28-BBL28,0) -> 31.01738935 | BBO28: =IF(BBJ28=0,0,IF(BBF28=0,0,IF(BBR$26=1000,IF(BBJ28<0,IF(BBJ27>0,IF(BBI28-(0-BBJ28)<0,0,BBI28-(0-BBJ28)),0),IF(BBR$26>=BBF28,BBI28,0)),IF(BBR$26>=BBF28,BBI28,0)))) -> 2.142857143 | BBP28: =IF(BBR28=BBF28,0,EXP(-($D$16)*$D$13)*(BBP29)+BBO28) -> 10.02592166 | BBR28: =IF(BBR27>0," ",IF(OR(BBY28="Failure",BBQ28="Abandon"),BBF28,)) -> 0 | BBS28: =IF(BBK28>0,RANDBETWEEN(0,1000),1000) -> 333 | BBT28: 1.052916175 | BBU28: 2.015795128 | BBV28: 0 | BBW28: =IF(BBF28=$D$14*$D$12,IF(BBV28+(BBU29*$D$18)/(($D$16*$D$13)-($D$8*$D$13))<0,BBV28,BBV28+(BBU29*$D$18)/(($D$16*$D$13)-($D$8*$D$13))),IF(BBV28=0,EXP(-($D$16)*$D$13)*BBW29+BBV28,EXP(-($D$16)*$D$13)*BBW29+BBV28)) -> 41.04331101 | BCB28: =IF(BCB27<$D$14*$D$12,BCB27+1,IF(BCB27=$D$14*$D$12,,)) -> 1 | BCC28: =BBG28 -> 0.5 | BCD28: 0.2156920041 | BCE28: =$D$27 -> 2.142857143 | BCF28: 11.18569684 | BCG28: 11.18569684 | BCH28: =IF(AND(BCG27>0,BCG28=0),EXP(-($D$16)*$D$13)*BCH29+IF(BCE28-(0-BCF28)<0,0,BCE28-(0-BCF28)),IF(BCG28=0,0,EXP(-($D$16)*$D$13)*BCH29+BCE28)) -> 10.02592166 | BCJ28: =MAX(BCS28-BCH28,0) -> 31.01738935 | BCK28: =IF(BCF28=0,0,IF(BCB28=0,0,IF(BCN$26=1000,IF(BCF28<0,IF(BCF27>0,IF(BCE28-(0-BCF28)<0,0,BCE28-(0-BCF28)),0),IF(BCN$26>=BCB28,BCE28,0)),IF(BCN$26>=BCB28,BCE28,0)))) -> 2.142857143 | BCL28: =IF(BCN28=BCB28,0,EXP(-($D$16)*$D$13)*(BCL29)+BCK28) -> 10.02592166 | BCN28: =IF(BCN27>0," ",IF(OR(BCU28="Failure",BCM28="Abandon"),BCB28,)) -> 0 | BCO28: =IF(BCG28>0,RANDBETWEEN(0,1000),1000) -> 972 | BCP28: 1.052916175 | BCQ28: 2.015795128 | BCR28: 0 | BCS28: =IF(BCB28=$D$14*$D$12,IF(BCR28+(BCQ29*$D$18)/(($D$16*$D$13)-($D$8*$D$13))<0,BCR28,BCR28+(BCQ29*$D$18)/(($D$16*$D$13)-($D$8*$D$13))),IF(BCR28=0,EXP(-($D$16)*$D$13)*BCS29+BCR28,EXP(-($D$16)*$D$13)*BCS29+BCR28)) -> 41.04331101 | BCX28: =IF(BCX27<$D$14*$D$12,BCX27+1,IF(BCX27=$D$14*$D$12,,)) -> 1 | BCY28: =BCC28 -> 0.5 | BCZ28: 0.2156920041 | BDA28: =$D$27 -> 2.142857143 | BDB28: 11.18569684 | BDC28: 11.18569684 | BDD28: =IF(AND(BDC27>0,BDC28=0),EXP(-($D$16)*$D$13)*BDD29+IF(BDA28-(0-BDB28)<0,0,BDA28-(0-BDB28)),IF(BDC28=0,0,EXP(-($D$16)*$D$13)*BDD29+BDA28)) -> 10.02592166 | BDF28: =MAX(BDO28-BDD28,0) -> 31.01738935 | BDG28: =IF(BDB28=0,0,IF(BCX28=0,0,IF(BDJ$26=1000,IF(BDB28<0,IF(BDB27>0,IF(BDA28-(0-BDB28)<0,0,BDA28-(0-BDB28)),0),IF(BDJ$26>=BCX28,BDA28,0)),IF(BDJ$26>=BCX28,BDA28,0)))) -> 2.142857143 | BDH28: =IF(BDJ28=BCX28,0,EXP(-($D$16)*$D$13)*(BDH29)+BDG28) -> 10.02592166 | BDJ28: =IF(BDJ27>0," ",IF(OR(BDQ28="Failure",BDI28="Abandon"),BCX28,)) -> 0 | BDK28: =IF(BDC28>0,RANDBETWEEN(0,1000),1000) -> 724 | BDL28: 1.052916175 | BDM28: 2.015795128 | BDN28: 0 | BDO28: =IF(BCX28=$D$14*$D$12,IF(BDN28+(BDM29*$D$18)/(($D$16*$D$13)-($D$8*$D$13))<0,BDN28,BDN28+(BDM29*$D$18)/(($D$16*$D$13)-($D$8*$D$13))),IF(BDN28=0,EXP(-($D$16)*$D$13)*BDO29+BDN28,EXP(-($D$16)*$D$13)*BDO29+BDN28)) -> 41.04331101 | BDT28: =IF(BDT27<$D$14*$D$12,BDT27+1,IF(BDT27=$D$14*$D$12,,)) -> 1 | BDU28: =BCY28 -> 0.5 | BDV28: 0.2156920041 | BDW28: =$D$27 -> 2.142857143 | BDX28: 11.18569684 | BDY28: 11.18569684 | BDZ28: =IF(AND(BDY27>0,BDY28=0),EXP(-($D$16)*$D$13)*BDZ29+IF(BDW28-(0-BDX28)<0,0,BDW28-(0-BDX28)),IF(BDY28=0,0,EXP(-($D$16)*$D$13)*BDZ29+BDW28)) -> 10.02592166 | BEB28: =MAX(BEK28-BDZ28,0) -> 31.01738935 | BEC28: =IF(BDX28=0,0,IF(BDT28=0,0,IF(BEF$26=1000,IF(BDX28<0,IF(BDX27>0,IF(BDW28-(0-BDX28)<0,0,BDW28-(0-BDX28)),0),IF(BEF$26>=BDT28,BDW28,0)),IF(BEF$26>=BDT28,BDW28,0)))) -> 2.142857143 | BED28: =IF(BEF28=BDT28,0,EXP(-($D$16)*$D$13)*(BED29)+BEC28) -> 10.02592166 | BEF28: =IF(BEF27>0," ",IF(OR(BEM28="Failure",BEE28="Abandon"),BDT28,)) -> 0 | BEG28: =IF(BDY28>0,RANDBETWEEN(0,1000),1000) -> 759 | BEH28: 1.052916175 | BEI28: 2.015795128 | BEJ28: 0 | BEK28: =IF(BDT28=$D$14*$D$12,IF(BEJ28+(BEI29*$D$18)/(($D$16*$D$13)-($D$8*$D$13))<0,BEJ28,BEJ28+(BEI29*$D$18)/(($D$16*$D$13)-($D$8*$D$13))),IF(BEJ28=0,EXP(-($D$16)*$D$13)*BEK29+BEJ28,EXP(-($D$16)*$D$13)*BEK29+BEJ28)) -> 41.04331101 | BEP28: =IF(BEP27<$D$14*$D$12,BEP27+1,IF(BEP27=$D$14*$D$12,,)) -> 1 | BEQ28: =BDU28 -> 0.5 | BER28: 0.2156920041 | BES28: =$D$27 -> 2.142857143 | BET28: 11.18569684 | BEU28: 11.18569684 | BEV28: =IF(AND(BEU27>0,BEU28=0),EXP(-($D$16)*$D$13)*BEV29+IF(BES28-(0-BET28)<0,0,BES28-(0-BET28)),IF(BEU28=0,0,EXP(-($D$16)*$D$13)*BEV29+BES28)) -> 10.02592166 | BEX28: =MAX(BFG28-BEV28,0) -> 31.01738935 | BEY28: =IF(BET28=0,0,IF(BEP28=0,0,IF(BFB$26=1000,IF(BET28<0,IF(BET27>0,IF(BES28-(0-BET28)<0,0,BES28-(0-BET28)),0),IF(BFB$26>=BEP28,BES28,0)),IF(BFB$26>=BEP28,BES28,0)))) -> 2.142857143 | BEZ28: =IF(BFB28=BEP28,0,EXP(-($D$16)*$D$13)*(BEZ29)+BEY28) -> 10.02592166 | BFB28: =IF(BFB27>0," ",IF(OR(BFI28="Failure",BFA28="Abandon"),BEP28,)) -> 0 | BFC28: =IF(BEU28>0,RANDBETWEEN(0,1000),1000) -> 508 | BFD28: 1.052916175 | BFE28: 2.015795128 | BFF28: 0 | BFG28: =IF(BEP28=$D$14*$D$12,IF(BFF28+(BFE29*$D$18)/(($D$16*$D$13)-($D$8*$D$13))<0,BFF28,BFF28+(BFE29*$D$18)/(($D$16*$D$13)-($D$8*$D$13))),IF(BFF28=0,EXP(-($D$16)*$D$13)*BFG29+BFF28,EXP(-($D$16)*$D$13)*BFG29+BFF28)) -> 41.04331101 | BFL28: =IF(BFL27<$D$14*$D$12,BFL27+1,IF(BFL27=$D$14*$D$12,,)) -> 1 | BFM28: =BEQ28 -> 0.5 | BFN28: 0.2156920041 | BFO28: =$D$27 -> 2.142857143 | BFP28: 11.18569684 | BFQ28: 11.18569684 | BFR28: =IF(AND(BFQ27>0,BFQ28=0),EXP(-($D$16)*$D$13)*BFR29+IF(BFO28-(0-BFP28)<0,0,BFO28-(0-BFP28)),IF(BFQ28=0,0,EXP(-($D$16)*$D$13)*BFR29+BFO28)) -> 10.02592166 | BFT28: =MAX(BGC28-BFR28,0) -> 31.01738935 | BFU28: =IF(BFP28=0,0,IF(BFL28=0,0,IF(BFX$26=1000,IF(BFP28<0,IF(BFP27>0,IF(BFO28-(0-BFP28)<0,0,BFO28-(0-BFP28)),0),IF(BFX$26>=BFL28,BFO28,0)),IF(BFX$26>=BFL28,BFO28,0)))) -> 2.142857143 | BFV28: =IF(BFX28=BFL28,0,EXP(-($D$16)*$D$13)*(BFV29)+BFU28) -> 10.02592166 | BFX28: =IF(BFX27>0," ",IF(OR(BGE28="Failure",BFW28="Abandon"),BFL28,)) -> 0 | BFY28: =IF(BFQ28>0,RANDBETWEEN(0,1000),1000) -> 792 | BFZ28: 1.052916175 | BGA28: 2.015795128 | BGB28: 0 | BGC28: =IF(BFL28=$D$14*$D$12,IF(BGB28+(BGA29*$D$18)/(($D$16*$D$13)-($D$8*$D$13))<0,BGB28,BGB28+(BGA29*$D$18)/(($D$16*$D$13)-($D$8*$D$13))),IF(BGB28=0,EXP(-($D$16)*$D$13)*BGC29+BGB28,EXP(-($D$16)*$D$13)*BGC29+BGB28)) -> 41.04331101 | BGH28: =IF(BGH27<$D$14*$D$12,BGH27+1,IF(BGH27=$D$14*$D$12,,)) -> 1 | BGI28: =BFM28 -> 0.5 | BGJ28: 0.2156920041 | BGK28: =$D$27 -> 2.142857143 | BGL28: 11.18569684 | BGM28: 11.18569684 | BGN28: =IF(AND(BGM27>0,BGM28=0),EXP(-($D$16)*$D$13)*BGN29+IF(BGK28-(0-BGL28)<0,0,BGK28-(0-BGL28)),IF(BGM28=0,0,EXP(-($D$16)*$D$13)*BGN29+BGK28)) -> 10.02592166 | BGP28: =MAX(BGY28-BGN28,0) -> 31.01738935 | BGQ28: =IF(BGL28=0,0,IF(BGH28=0,0,IF(BGT$26=1000,IF(BGL28<0,IF(BGL27>0,IF(BGK28-(0-BGL28)<0,0,BGK28-(0-BGL28)),0),IF(BGT$26>=BGH28,BGK28,0)),IF(BGT$26>=BGH28,BGK28,0)))) -> 2.142857143 | BGR28: =IF(BGT28=BGH28,0,EXP(-($D$16)*$D$13)*(BGR29)+BGQ28) -> 10.02592166 | BGT28: =IF(BGT27>0," ",IF(OR(BHA28="Failure",BGS28="Abandon"),BGH28,)) -> 0 | BGU28: =IF(BGM28>0,RANDBETWEEN(0,1000),1000) -> 892 | BGV28: 1.052916175 | BGW28: 2.015795128 | BGX28: 0 | BGY28: =IF(BGH28=$D$14*$D$12,IF(BGX28+(BGW29*$D$18)/(($D$16*$D$13)-($D$8*$D$13))<0,BGX28,BGX28+(BGW29*$D$18)/(($D$16*$D$13)-($D$8*$D$13))),IF(BGX28=0,EXP(-($D$16)*$D$13)*BGY29+BGX28,EXP(-($D$16)*$D$13)*BGY29+BGX28)) -> 41.04331101 | BHD28: =IF(BHD27<$D$14*$D$12,BHD27+1,IF(BHD27=$D$14*$D$12,,)) -> 1 | BHE28: =BGI28 -> 0.5 | BHF28: 0.2156920041 | BHG28: =$D$27 -> 2.142857143 | BHH28: 11.18569684 | BHI28: 11.18569684 | BHJ28: =IF(AND(BHI27>0,BHI28=0),EXP(-($D$16)*$D$13)*BHJ29+IF(BHG28-(0-BHH28)<0,0,BHG28-(0-BHH28)),IF(BHI28=0,0,EXP(-($D$16)*$D$13)*BHJ29+BHG28)) -> 10.02592166 | BHL28: =MAX(BHU28-BHJ28,0) -> 31.01738935 | BHM28: =IF(BHH28=0,0,IF(BHD28=0,0,IF(BHP$26=1000,IF(BHH28<0,IF(BHH27>0,IF(BHG28-(0-BHH28)<0,0,BHG28-(0-BHH28)),0),IF(BHP$26>=BHD28,BHG28,0)),IF(BHP$26>=BHD28,BHG28,0)))) -> 2.142857143 | BHN28: =IF(BHP28=BHD28,0,EXP(-($D$16)*$D$13)*(BHN29)+BHM28) -> 10.02592166 | BHP28: =IF(BHP27>0," ",IF(OR(BHW28="Failure",BHO28="Abandon"),BHD28,)) -> 0 | BHQ28: =IF(BHI28>0,RANDBETWEEN(0,1000),1000) -> 244 | BHR28: 1.052916175 | BHS28: 2.015795128 | BHT28: 0 | BHU28: =IF(BHD28=$D$14*$D$12,IF(BHT28+(BHS29*$D$18)/(($D$16*$D$13)-($D$8*$D$13))<0,BHT28,BHT28+(BHS29*$D$18)/(($D$16*$D$13)-($D$8*$D$13))),IF(BHT28=0,EXP(-($D$16)*$D$13)*BHU29+BHT28,EXP(-($D$16)*$D$13)*BHU29+BHT28)) -> 41.04331101 | BHZ28: =IF(BHZ27<$D$14*$D$12,BHZ27+1,IF(BHZ27=$D$14*$D$12,,)) -> 1 | BIA28: =BHE28 -> 0.5 | BIB28: 0.2156920041 | BIC28: =$D$27 -> 2.142857143 | BID28: 11.18569684 | BIE28: 11.18569684 | BIF28: =IF(AND(BIE27>0,BIE28=0),EXP(-($D$16)*$D$13)*BIF29+IF(BIC28-(0-BID28)<0,0,BIC28-(0-BID28)),IF(BIE28=0,0,EXP(-($D$16)*$D$13)*BIF29+BIC28)) -> 10.02592166 | BIH28: =MAX(BIQ28-BIF28,0) -> 31.01738935 | BII28: =IF(BID28=0,0,IF(BHZ28=0,0,IF(BIL$26=1000,IF(BID28<0,IF(BID27>0,IF(BIC28-(0-BID28)<0,0,BIC28-(0-BID28)),0),IF(BIL$26>=BHZ28,BIC28,0)),IF(BIL$26>=BHZ28,BIC28,0)))) -> 2.142857143 | BIJ28: =IF(BIL28=BHZ28,0,EXP(-($D$16)*$D$13)*(BIJ29)+BII28) -> 10.02592166 | BIL28: =IF(BIL27>0," ",IF(OR(BIS28="Failure",BIK28="Abandon"),BHZ28,)) -> 0 | BIM28: =IF(BIE28>0,RANDBETWEEN(0,1000),1000) -> 253 | BIN28: 1.052916175 | BIO28: 2.015795128 | BIP28: 0 | BIQ28: =IF(BHZ28=$D$14*$D$12,IF(BIP28+(BIO29*$D$18)/(($D$16*$D$13)-($D$8*$D$13))<0,BIP28,BIP28+(BIO29*$D$18)/(($D$16*$D$13)-($D$8*$D$13))),IF(BIP28=0,EXP(-($D$16)*$D$13)*BIQ29+BIP28,EXP(-($D$16)*$D$13)*BIQ29+BIP28)) -> 41.04331101 | BIV28: =IF(BIV27<$D$14*$D$12,BIV27+1,IF(BIV27=$D$14*$D$12,,)) -> 1 | BIW28: =BIA28 -> 0.5 | BIX28: 0.2156920041 | BIY28: =$D$27 -> 2.142857143 | BIZ28: 11.18569684 | BJA28: 11.18569684 | BJB28: =IF(AND(BJA27>0,BJA28=0),EXP(-($D$16)*$D$13)*BJB29+IF(BIY28-(0-BIZ28)<0,0,BIY28-(0-BIZ28)),IF(BJA28=0,0,EXP(-($D$16)*$D$13)*BJB29+BIY28)) -> 10.02592166 | BJD28: =MAX(BJM28-BJB28,0) -> 31.01738935 | BJE28: =IF(BIZ28=0,0,IF(BIV28=0,0,IF(BJH$26=1000,IF(BIZ28<0,IF(BIZ27>0,IF(BIY28-(0-BIZ28)<0,0,BIY28-(0-BIZ28)),0),IF(BJH$26>=BIV28,BIY28,0)),IF(BJH$26>=BIV28,BIY28,0)))) -> 2.142857143 | BJF28: =IF(BJH28=BIV28,0,EXP(-($D$16)*$D$13)*(BJF29)+BJE28) -> 10.02592166 | BJH28: =IF(BJH27>0," ",IF(OR(BJO28="Failure",BJG28="Abandon"),BIV28,)) -> 0 | BJI28: =IF(BJA28>0,RANDBETWEEN(0,1000),1000) -> 54 | BJJ28: 1.052916175 | BJK28: 2.015795128 | BJL28: 0 | BJM28: =IF(BIV28=$D$14*$D$12,IF(BJL28+(BJK29*$D$18)/(($D$16*$D$13)-($D$8*$D$13))<0,BJL28,BJL28+(BJK29*$D$18)/(($D$16*$D$13)-($D$8*$D$13))),IF(BJL28=0,EXP(-($D$16)*$D$13)*BJM29+BJL28,EXP(-($D$16)*$D$13)*BJM29+BJL28)) -> 41.04331101 | BJR28: =IF(BJR27<$D$14*$D$12,BJR27+1,IF(BJR27=$D$14*$D$12,,)) -> 1 | BJS28: =BIW28 -> 0.5 | BJT28: 0.2156920041 | BJU28: =$D$27 -> 2.142857143 | BJV28: 11.18569684 | BJW28: 11.18569684 | BJX28: =IF(AND(BJW27>0,BJW28=0),EXP(-($D$16)*$D$13)*BJX29+IF(BJU28-(0-BJV28)<0,0,BJU28-(0-BJV28)),IF(BJW28=0,0,EXP(-($D$16)*$D$13)*BJX29+BJU28)) -> 10.02592166 | BJZ28: =MAX(BKI28-BJX28,0) -> 31.01738935 | BKA28: =IF(BJV28=0,0,IF(BJR28=0,0,IF(BKD$26=1000,IF(BJV28<0,IF(BJV27>0,IF(BJU28-(0-BJV28)<0,0,BJU28-(0-BJV28)),0),IF(BKD$26>=BJR28,BJU28,0)),IF(BKD$26>=BJR28,BJU28,0)))) -> 2.142857143 | BKB28: =IF(BKD28=BJR28,0,EXP(-($D$16)*$D$13)*(BKB29)+BKA28) -> 10.02592166 | BKD28: =IF(BKD27>0," ",IF(OR(BKK28="Failure",BKC28="Abandon"),BJR28,)) -> 0 | BKE28: =IF(BJW28>0,RANDBETWEEN(0,1000),1000) -> 842 | BKF28: 1.052916175 | BKG28: 2.015795128 | BKH28: 0 | BKI28: =IF(BJR28=$D$14*$D$12,IF(BKH28+(BKG29*$D$18)/(($D$16*$D$13)-($D$8*$D$13))<0,BKH28,BKH28+(BKG29*$D$18)/(($D$16*$D$13)-($D$8*$D$13))),IF(BKH28=0,EXP(-($D$16)*$D$13)*BKI29+BKH28,EXP(-($D$16)*$D$13)*BKI29+BKH28)) -> 41.04331101 | BKN28: =IF(BKN27<$D$14*$D$12,BKN27+1,IF(BKN27=$D$14*$D$12,,)) -> 1 | BKO28: =BJS28 -> 0.5 | BKP28: 0.2156920041 | BKQ28: =$D$27 -> 2.142857143 | BKR28: 11.18569684 | BKS28: 11.18569684 | BKT28: =IF(AND(BKS27>0,BKS28=0),EXP(-($D$16)*$D$13)*BKT29+IF(BKQ28-(0-BKR28)<0,0,BKQ28-(0-BKR28)),IF(BKS28=0,0,EXP(-($D$16)*$D$13)*BKT29+BKQ28)) -> 10.02592166 | BKV28: =MAX(BLE28-BKT28,0) -> 31.01738935 | BKW28: =IF(BKR28=0,0,IF(BKN28=0,0,IF(BKZ$26=1000,IF(BKR28<0,IF(BKR27>0,IF(BKQ28-(0-BKR28)<0,0,BKQ28-(0-BKR28)),0),IF(BKZ$26>=BKN28,BKQ28,0)),IF(BKZ$26>=BKN28,BKQ28,0)))) -> 2.142857143 | BKX28: =IF(BKZ28=BKN28,0,EXP(-($D$16)*$D$13)*(BKX29)+BKW28) -> 10.02592166 | BKZ28: =IF(BKZ27>0," ",IF(OR(BLG28="Failure",BKY28="Abandon"),BKN28,)) -> 0 | BLA28: =IF(BKS28>0,RANDBETWEEN(0,1000),1000) -> 890 | BLB28: 1.052916175 | BLC28: 2.015795128 | BLD28: 0 | BLE28: =IF(BKN28=$D$14*$D$12,IF(BLD28+(BLC29*$D$18)/(($D$16*$D$13)-($D$8*$D$13))<0,BLD28,BLD28+(BLC29*$D$18)/(($D$16*$D$13)-($D$8*$D$13))),IF(BLD28=0,EXP(-($D$16)*$D$13)*BLE29+BLD28,EXP(-($D$16)*$D$13)*BLE29+BLD28)) -> 41.04331101 | BLJ28: =IF(BLJ27<$D$14*$D$12,BLJ27+1,IF(BLJ27=$D$14*$D$12,,)) -> 1 | BLK28: =BKO28 -> 0.5 | BLL28: 0.2156920041 | BLM28: =$D$27 -> 2.142857143 | BLN28: 11.18569684 | BLO28: 11.18569684 | BLP28: =IF(AND(BLO27>0,BLO28=0),EXP(-($D$16)*$D$13)*BLP29+IF(BLM28-(0-BLN28)<0,0,BLM28-(0-BLN28)),IF(BLO28=0,0,EXP(-($D$16)*$D$13)*BLP29+BLM28)) -> 10.02592166 | BLR28: =MAX(BMA28-BLP28,0) -> 31.01738935 | BLS28: =IF(BLN28=0,0,IF(BLJ28=0,0,IF(BLV$26=1000,IF(BLN28<0,IF(BLN27>0,IF(BLM28-(0-BLN28)<0,0,BLM28-(0-BLN28)),0),IF(BLV$26>=BLJ28,BLM28,0)),IF(BLV$26>=BLJ28,BLM28,0)))) -> 2.142857143 | BLT28: =IF(BLV28=BLJ28,0,EXP(-($D$16)*$D$13)*(BLT29)+BLS28) -> 10.02592166 | BLV28: =IF(BLV27>0," ",IF(OR(BMC28="Failure",BLU28="Abandon"),BLJ28,)) -> 0 | BLW28: =IF(BLO28>0,RANDBETWEEN(0,1000),1000) -> 812 | BLX28: 1.052916175 | BLY28: 2.015795128 | BLZ28: 0 | BMA28: =IF(BLJ28=$D$14*$D$12,IF(BLZ28+(BLY29*$D$18)/(($D$16*$D$13)-($D$8*$D$13))<0,BLZ28,BLZ28+(BLY29*$D$18)/(($D$16*$D$13)-($D$8*$D$13))),IF(BLZ28=0,EXP(-($D$16)*$D$13)*BMA29+BLZ28,EXP(-($D$16)*$D$13)*BMA29+BLZ28)) -> 41.04331101 | BMF28: =IF(BMF27<$D$14*$D$12,BMF27+1,IF(BMF27=$D$14*$D$12,,)) -> 1 | BMG28: =BLK28 -> 0.5 | BMH28: 0.2156920041 | BMI28: =$D$27 -> 2.142857143 | BMJ28: 11.18569684 | BMK28: 11.18569684 | BML28: =IF(AND(BMK27>0,BMK28=0),EXP(-($D$16)*$D$13)*BML29+IF(BMI28-(0-BMJ28)<0,0,BMI28-(0-BMJ28)),IF(BMK28=0,0,EXP(-($D$16)*$D$13)*BML29+BMI28)) -> 10.02592166 | BMN28: =MAX(BMW28-BML28,0) -> 31.01738935 | BMO28: =IF(BMJ28=0,0,IF(BMF28=0,0,IF(BMR$26=1000,IF(BMJ28<0,IF(BMJ27>0,IF(BMI28-(0-BMJ28)<0,0,BMI28-(0-BMJ28)),0),IF(BMR$26>=BMF28,BMI28,0)),IF(BMR$26>=BMF28,BMI28,0)))) -> 2.142857143 | BMP28: =IF(BMR28=BMF28,0,EXP(-($D$16)*$D$13)*(BMP29)+BMO28) -> 10.02592166 | BMR28: =IF(BMR27>0," ",IF(OR(BMY28="Failure",BMQ28="Abandon"),BMF28,)) -> 0 | BMS28: =IF(BMK28>0,RANDBETWEEN(0,1000),1000) -> 615 | BMT28: 1.052916175 | BMU28: 2.015795128 | BMV28: 0 | BMW28: =IF(BMF28=$D$14*$D$12,IF(BMV28+(BMU29*$D$18)/(($D$16*$D$13)-($D$8*$D$13))<0,BMV28,BMV28+(BMU29*$D$18)/(($D$16*$D$13)-($D$8*$D$13))),IF(BMV28=0,EXP(-($D$16)*$D$13)*BMW29+BMV28,EXP(-($D$16)*$D$13)*BMW29+BMV28)) -> 41.04331101 | BNB28: =IF(BNB27<$D$14*$D$12,BNB27+1,IF(BNB27=$D$14*$D$12,,)) -> 1 | BNC28: =BMG28 -> 0.5 | BND28: 0.2156920041 | BNE28: =$D$27 -> 2.142857143 | BNF28: 11.18569684 | BNG28: 11.18569684 | BNH28: =IF(AND(BNG27>0,BNG28=0),EXP(-($D$16)*$D$13)*BNH29+IF(BNE28-(0-BNF28)<0,0,BNE28-(0-BNF28)),IF(BNG28=0,0,EXP(-($D$16)*$D$13)*BNH29+BNE28)) -> 10.02592166 | BNJ28: =MAX(BNS28-BNH28,0) -> 31.01738935 | BNK28: =IF(BNF28=0,0,IF(BNB28=0,0,IF(BNN$26=1000,IF(BNF28<0,IF(BNF27>0,IF(BNE28-(0-BNF28)<0,0,BNE28-(0-BNF28)),0),IF(BNN$26>=BNB28,BNE28,0)),IF(BNN$26>=BNB28,BNE28,0)))) -> 2.142857143 | BNL28: =IF(BNN28=BNB28,0,EXP(-($D$16)*$D$13)*(BNL29)+BNK28) -> 10.02592166 | BNN28: =IF(BNN27>0," ",IF(OR(BNU28="Failure",BNM28="Abandon"),BNB28,)) -> 0 | BNO28: =IF(BNG28>0,RANDBETWEEN(0,1000),1000) -> 33 | BNP28: 1.052916175 | BNQ28: 2.015795128 | BNR28: 0 | BNS28: =IF(BNB28=$D$14*$D$12,IF(BNR28+(BNQ29*$D$18)/(($D$16*$D$13)-($D$8*$D$13))<0,BNR28,BNR28+(BNQ29*$D$18)/(($D$16*$D$13)-($D$8*$D$13))),IF(BNR28=0,EXP(-($D$16)*$D$13)*BNS29+BNR28,EXP(-($D$16)*$D$13)*BNS29+BNR28)) -> 41.04331101 | BNX28: =IF(BNX27<$D$14*$D$12,BNX27+1,IF(BNX27=$D$14*$D$12,,)) -> 1 | BNY28: =BNC28 -> 0.5 | BNZ28: 0.2156920041 | BOA28: =$D$27 -> 2.142857143 | BOB28: 11.18569684 | BOC28: 11.18569684 | BOD28: =IF(AND(BOC27>0,BOC28=0),EXP(-($D$16)*$D$13)*BOD29+IF(BOA28-(0-BOB28)<0,0,BOA28-(0-BOB28)),IF(BOC28=0,0,EXP(-($D$16)*$D$13)*BOD29+BOA28)) -> 10.02592166 | BOF28: =MAX(BOO28-BOD28,0) -> 31.01738935 | BOG28: =IF(BOB28=0,0,IF(BNX28=0,0,IF(BOJ$26=1000,IF(BOB28<0,IF(BOB27>0,IF(BOA28-(0-BOB28)<0,0,BOA28-(0-BOB28)),0),IF(BOJ$26>=BNX28,BOA28,0)),IF(BOJ$26>=BNX28,BOA28,0)))) -> 2.142857143 | BOH28: =IF(BOJ28=BNX28,0,EXP(-($D$16)*$D$13)*(BOH29)+BOG28) -> 10.02592166 | BOJ28: =IF(BOJ27>0," ",IF(OR(BOQ28="Failure",BOI28="Abandon"),BNX28,)) -> 0 | BOK28: =IF(BOC28>0,RANDBETWEEN(0,1000),1000) -> 792 | BOL28: 1.052916175 | BOM28: 2.015795128 | BON28: 0 | BOO28: =IF(BNX28=$D$14*$D$12,IF(BON28+(BOM29*$D$18)/(($D$16*$D$13)-($D$8*$D$13))<0,BON28,BON28+(BOM29*$D$18)/(($D$16*$D$13)-($D$8*$D$13))),IF(BON28=0,EXP(-($D$16)*$D$13)*BOO29+BON28,EXP(-($D$16)*$D$13)*BOO29+BON28)) -> 41.04331101 | BOS28: =BNX28 -> 1 | BOT28: =BNY28 -> 0.5 | BOU28: =IF(BOT28<=$D$15,$D$5,0) -> 2.142857143 | BOV28: =IF($D$19=2,IF(BOS28<=$E$19*$D$12+$BOV$24,IF(BOS28=$D$14/$D$13,IF(BOV27*(1+($D$8-$D$1)*$D$13)+$D$18*((BOV27*(1+($D$8-$D$1*$D$13)))/(($D$16-$D$8)*$D$13))<=0,BOV27*(1+($D$8-$D$1)*$D$13),BOV27*(1+($D$8-$D$1)*$D$13)+$D$18*((BOV27*(1+($D$8-$D$1*$D$13)))/(($D$16-$D$8)*$D$13))),IF(BOS28=0,0,IF(AND(BOU28>0,BOU29=0),(BOV27*(1+($D$8-$D$1)*$D$13)),IF(AND(BOV27=0,BOU28=0),$D$7,BOV27*(1+($D$8-$D$1)*$D$13))))),0),IF(BOS28=$D$14/$D$13,IF(BOV27*(1+($D$8-$D$1)*$D$13)+$D$18*((BOV27*(1+($D$8-$D$1*$D$13)))/(($D$16-$D$8)*$D$13))<=0,BOV27*(1+($D$8-$D$1)*$D$13),BOV27*(1+($D$8-$D$1)*$D$13)+$D$18*((BOV27*(1+($D$8-$D$1*$D$13)))/(($D$16-$D$8)*$D$13))),IF(BOS28=0,0,IF(AND(BOU28>0,BOU29=0),0,IF(AND(BOV27=0,BOU28=0),$D$7,BOV27*(1+($D$8-$D$1)*$D$13)))))) -> 0 | BOW28: =IF(BOU28=0,BOV28+BOW29*EXP(-($D$16+$D$10+$D$1)*$D$13)-BOU28,BOV28+BOW29*EXP(-($D$16)*$D$13)-BOU28) -> 11.2754269 | BOZ28: =-BOU28 -> -2.142857143 | BPA28: =BOZ28+BOV28 -> -2.142857143 | BPB28: 0 | BPC28: =I28 -> 24.47730887 | BPE28: =G28 -> 8.66553273 | BPF28: =R28 -> 33.1428416
